Workbook

Sheet Hitters
A1: Name | B1: ELG | C1: FPTS | D1: PPPA | E1: PPG | F1: G | G1: PA | H1: AB | I1: H | J1: 1B | K1: 2B | L1: 3B | M1: HR | N1: RBI | O1: R | P1: BB | Q1: SO | R1: SB | S1: CS | T1: SF | U1: HBP | V1: TB | W1: AVG | X1: K/BB | Y1: OBP | Z1: SLG | AA1: OPS | AB1: LG | AC1: PlayerID | AD1: POS | AE1: Drafted
A2: Dee Gordon | B2: 2B | C2: =(G2*'Points System'!$B$16)+(H2*'Points System'!$B$17)+(I2*'Points System'!$B$15)+(J2*'Points System'!$B$2)+(K2*'Points System'!$B$3)+(L2*'Points System'!$B$4)+(M2*'Points System'!$B$5)+(N2*'Points System'!$B$6)+(O2*'Points System'!$B$7)+(P2*'Points System'!$B$8)+(Q2*'Points System'!$B$9)+(R2*'Points System'!$B$10)+(S2*'Points System'!$B$11)+(T2*'Points System'!$B$13)+(U2*'Points System'!$B$12)+(V2*'Points System'!$B$14) -> 147.79 | D2: =C2/G2 -> 0.2270199693 | E2: =C2/F2 -> 0.9905495979 | F2: 149.2 | G2: 651 | H2: 613.31 | I2: 177.76 | J2: 147.79 | K2: 20.64 | L2: 7.68 | M2: 3.04 | N2: 41.33 | O2: 88.98 | P2: 27.97 | Q2: 95.21 | R2: 50.73 | S2: 15.21 | T2: 3.37 | U2: 5.01 | V2: 224.27 | W2: 0.29 | X2: 3.404 | Y2: 0.324 | Z2: 0.366 | AA2: 0.69 | AB2: AL | AC2: 430945 | AD2: SS | AE2: =IF(ISNA(VLOOKUP(A2,Rankings!$B$2:$H$1998,7,FALSE)),"-",VLOOKUP(A2,Rankings!$B$2:$H$1998,7,FALSE)) -> 0
A3: DJ LeMahieu | B3: 2B | C3: =(G3*'Points System'!$B$16)+(H3*'Points System'!$B$17)+(I3*'Points System'!$B$15)+(J3*'Points System'!$B$2)+(K3*'Points System'!$B$3)+(L3*'Points System'!$B$4)+(M3*'Points System'!$B$5)+(N3*'Points System'!$B$6)+(O3*'Points System'!$B$7)+(P3*'Points System'!$B$8)+(Q3*'Points System'!$B$9)+(R3*'Points System'!$B$10)+(S3*'Points System'!$B$11)+(T3*'Points System'!$B$13)+(U3*'Points System'!$B$12)+(V3*'Points System'!$B$14) -> 136.94 | D3: =C3/G3 -> 0.2116897772 | E3: =C3/F3 -> 0.9056878307 | F3: 151.2 | G3: 646.89 | H3: 581.29 | I3: 180.58 | J3: 136.94 | K3: 28.73 | L3: 4.89 | M3: 9.62 | N3: 63.96 | O3: 92.35 | P3: 58.13 | Q3: 90.44 | R3: 9.82 | S3: 5.01 | T3: 4.17 | U3: 4.08 | V3: 247.55 | W3: 0.311 | X3: 1.556 | Y3: 0.375 | Z3: 0.426 | AA3: 0.801 | AB3: NL | AC3: 592206 | AD3: LF | AE3: =IF(ISNA(VLOOKUP(A3,Rankings!$B$2:$H$1998,7,FALSE)),"-",VLOOKUP(A3,Rankings!$B$2:$H$1998,7,FALSE)) -> 0
A4: Ender Inciarte | B4: OF | C4: =(G4*'Points System'!$B$16)+(H4*'Points System'!$B$17)+(I4*'Points System'!$B$15)+(J4*'Points System'!$B$2)+(K4*'Points System'!$B$3)+(L4*'Points System'!$B$4)+(M4*'Points System'!$B$5)+(N4*'Points System'!$B$6)+(O4*'Points System'!$B$7)+(P4*'Points System'!$B$8)+(Q4*'Points System'!$B$9)+(R4*'Points System'!$B$10)+(S4*'Points System'!$B$11)+(T4*'Points System'!$B$13)+(U4*'Points System'!$B$12)+(V4*'Points System'!$B$14) -> 133.49 | D4: =C4/G4 -> 0.2049844906 | E4: =C4/F4 -> 0.8959060403 | F4: 149 | G4: 651.22 | H4: 598.21 | I4: 175.47 | J4: 133.49 | K4: 26.7 | L4: 5.39 | M4: 9.11 | N4: 51.39 | O4: 84.94 | P4: 46.36 | Q4: 82.2 | R4: 19.94 | S4: 7.88 | T4: 3.1 | U4: 2.69 | V4: 239.5 | W4: 0.293 | X4: 1.773 | Y4: 0.345 | Z4: 0.4 | AA4: 0.745 | AB4: NL | AC4: 519317 | AD4: SS | AE4: =IF(ISNA(VLOOKUP(A4,Rankings!$B$2:$H$1998,7,FALSE)),"-",VLOOKUP(A4,Rankings!$B$2:$H$1998,7,FALSE)) -> 0
A5: Jose Altuve | B5: 2B | C5: =(G5*'Points System'!$B$16)+(H5*'Points System'!$B$17)+(I5*'Points System'!$B$15)+(J5*'Points System'!$B$2)+(K5*'Points System'!$B$3)+(L5*'Points System'!$B$4)+(M5*'Points System'!$B$5)+(N5*'Points System'!$B$6)+(O5*'Points System'!$B$7)+(P5*'Points System'!$B$8)+(Q5*'Points System'!$B$9)+(R5*'Points System'!$B$10)+(S5*'Points System'!$B$11)+(T5*'Points System'!$B$13)+(U5*'Points System'!$B$12)+(V5*'Points System'!$B$14) -> 132.25 | D5: =C5/G5 -> 0.198341282 | E5: =C5/F5 -> 0.8565414508 | F5: 154.4 | G5: 666.78 | H5: 605.64 | I5: 178.93 | J5: 132.25 | K5: 34.84 | L5: 3.54 | M5: 21.47 | N5: 85.97 | O5: 101.21 | P5: 53.84 | Q5: 75.88 | R5: 29.93 | S5: 7.93 | T5: 4.97 | U5: 8.18 | V5: 298.43 | W5: 0.295 | X5: 1.409 | Y5: 0.358 | Z5: 0.493 | AA5: 0.851 | AB5: AL | AC5: 571448 | AD5: 3B | AE5: =IF(ISNA(VLOOKUP(A5,Rankings!$B$2:$H$1998,7,FALSE)),"-",VLOOKUP(A5,Rankings!$B$2:$H$1998,7,FALSE)) -> 0
A6: Jean Segura | B6: SS | C6: =(G6*'Points System'!$B$16)+(H6*'Points System'!$B$17)+(I6*'Points System'!$B$15)+(J6*'Points System'!$B$2)+(K6*'Points System'!$B$3)+(L6*'Points System'!$B$4)+(M6*'Points System'!$B$5)+(N6*'Points System'!$B$6)+(O6*'Points System'!$B$7)+(P6*'Points System'!$B$8)+(Q6*'Points System'!$B$9)+(R6*'Points System'!$B$10)+(S6*'Points System'!$B$11)+(T6*'Points System'!$B$13)+(U6*'Points System'!$B$12)+(V6*'Points System'!$B$14) -> 119.52 | D6: =C6/G6 -> 0.195153811 | E6: =C6/F6 -> 0.8387368421 | F6: 142.5 | G6: 612.44 | H6: 571.14 | I6: 151.38 | J6: 119.52 | K6: 27.41 | L6: 3.24 | M6: 13.01 | N6: 56.01 | O6: 83.61 | P6: 33.42 | Q6: 92.83 | R6: 24.2 | S6: 8.22 | T6: 3.37 | U6: 7.44 | V6: 236.1 | W6: 0.265 | X6: 2.778 | Y6: 0.312 | Z6: 0.413 | AA6: 0.725 | AB6: AL | AC6: 641313 | AD6: SS | AE6: =IF(ISNA(VLOOKUP(A6,Rankings!$B$2:$H$1998,7,FALSE)),"-",VLOOKUP(A6,Rankings!$B$2:$H$1998,7,FALSE)) -> 0
A7: Xander Bogaerts | B7: SS | C7: =(G7*'Points System'!$B$16)+(H7*'Points System'!$B$17)+(I7*'Points System'!$B$15)+(J7*'Points System'!$B$2)+(K7*'Points System'!$B$3)+(L7*'Points System'!$B$4)+(M7*'Points System'!$B$5)+(N7*'Points System'!$B$6)+(O7*'Points System'!$B$7)+(P7*'Points System'!$B$8)+(Q7*'Points System'!$B$9)+(R7*'Points System'!$B$10)+(S7*'Points System'!$B$11)+(T7*'Points System'!$B$13)+(U7*'Points System'!$B$12)+(V7*'Points System'!$B$14) -> 116.72 | D7: =C7/G7 -> 0.1830729657 | E7: =C7/F7 -> 0.7781333333 | F7: 150 | G7: 637.56 | H7: 586.71 | I7: 155.07 | J7: 116.72 | K7: 30.54 | L7: 3.42 | M7: 14.86 | N7: 76.31 | O7: 90.79 | P7: 52.14 | Q7: 110.08 | R7: 12.51 | S7: 2.8 | T7: 3.63 | U7: 5.05 | V7: 247.5 | W7: 0.264 | X7: 2.111 | Y7: 0.328 | Z7: 0.422 | AA7: 0.75 | AB7: AL | AC7: 607208 | AD7: RF | AE7: =IF(ISNA(VLOOKUP(A7,Rankings!$B$2:$H$1998,7,FALSE)),"-",VLOOKUP(A7,Rankings!$B$2:$H$1998,7,FALSE)) -> 0
A8: Elvis Andrus | B8: SS | C8: =(G8*'Points System'!$B$16)+(H8*'Points System'!$B$17)+(I8*'Points System'!$B$15)+(J8*'Points System'!$B$2)+(K8*'Points System'!$B$3)+(L8*'Points System'!$B$4)+(M8*'Points System'!$B$5)+(N8*'Points System'!$B$6)+(O8*'Points System'!$B$7)+(P8*'Points System'!$B$8)+(Q8*'Points System'!$B$9)+(R8*'Points System'!$B$10)+(S8*'Points System'!$B$11)+(T8*'Points System'!$B$13)+(U8*'Points System'!$B$12)+(V8*'Points System'!$B$14) -> 114.14 | D8: =C8/G8 -> 0.1762943284 | E8: =C8/F8 -> 0.7514154049 | F8: 151.9 | G8: 647.44 | H8: 594.36 | I8: 154.53 | J8: 114.14 | K8: 33.61 | L8: 3.81 | M8: 13.66 | N8: 72.54 | O8: 85.14 | P8: 43.04 | Q8: 88.13 | R8: 23.06 | S8: 8.87 | T8: 4.2 | U8: 3.23 | V8: 247.43 | W8: 0.26 | X8: 2.048 | Y8: 0.311 | Z8: 0.416 | AA8: 0.727 | AB8: AL | AC8: 596059 | AD8: LF | AE8: =IF(ISNA(VLOOKUP(A8,Rankings!$B$2:$H$1998,7,FALSE)),"-",VLOOKUP(A8,Rankings!$B$2:$H$1998,7,FALSE)) -> 0
A9: Jose Peraza | B9: 2B/SS | C9: =(G9*'Points System'!$B$16)+(H9*'Points System'!$B$17)+(I9*'Points System'!$B$15)+(J9*'Points System'!$B$2)+(K9*'Points System'!$B$3)+(L9*'Points System'!$B$4)+(M9*'Points System'!$B$5)+(N9*'Points System'!$B$6)+(O9*'Points System'!$B$7)+(P9*'Points System'!$B$8)+(Q9*'Points System'!$B$9)+(R9*'Points System'!$B$10)+(S9*'Points System'!$B$11)+(T9*'Points System'!$B$13)+(U9*'Points System'!$B$12)+(V9*'Points System'!$B$14) -> 113.37 | D9: =C9/G9 -> 0.2080183486 | E9: =C9/F9 -> 0.8404002965 | F9: 134.9 | G9: 545 | H9: 512.2 | I9: 140.01 | J9: 113.37 | K9: 15.99 | L9: 4.93 | M9: 6.21 | N9: 45.41 | O9: 54.95 | P9: 22.83 | Q9: 72.05 | R9: 26.39 | S9: 9.96 | T9: 3.33 | U9: 5.88 | V9: 184.98 | W9: 0.273 | X9: 3.156 | Y9: 0.31 | Z9: 0.361 | AA9: 0.671 | AB9: NL | AC9: 647304 | AD9: 2B | AE9: =IF(ISNA(VLOOKUP(A9,Rankings!$B$2:$H$1998,7,FALSE)),"-",VLOOKUP(A9,Rankings!$B$2:$H$1998,7,FALSE)) -> 0
A10: Cesar Hernandez | B10: 2B | C10: =(G10*'Points System'!$B$16)+(H10*'Points System'!$B$17)+(I10*'Points System'!$B$15)+(J10*'Points System'!$B$2)+(K10*'Points System'!$B$3)+(L10*'Points System'!$B$4)+(M10*'Points System'!$B$5)+(N10*'Points System'!$B$6)+(O10*'Points System'!$B$7)+(P10*'Points System'!$B$8)+(Q10*'Points System'!$B$9)+(R10*'Points System'!$B$10)+(S10*'Points System'!$B$11)+(T10*'Points System'!$B$13)+(U10*'Points System'!$B$12)+(V10*'Points System'!$B$14) -> 112.78 | D10: =C10/G10 -> 0.184682398 | E10: =C10/F10 -> 0.7897759104 | F10: 142.8 | G10: 610.67 | H10: 533.57 | I10: 151.6 | J10: 112.78 | K10: 23.2 | L10: 6.89 | M10: 8.03 | N10: 44.41 | O10: 78.64 | P10: 64.16 | Q10: 112.13 | R10: 16.43 | S10: 7.48 | T10: 2.73 | U10: 3.53 | V10: 211.97 | W10: 0.284 | X10: 1.748 | Y10: 0.363 | Z10: 0.397 | AA10: 0.76 | AB10: NL | AC10: 572041 | AD10: OF | AE10: =IF(ISNA(VLOOKUP(A10,Rankings!$B$2:$H$1998,7,FALSE)),"-",VLOOKUP(A10,Rankings!$B$2:$H$1998,7,FALSE)) -> 0
A11: Eric Hosmer | B11: 1B | C11: =(G11*'Points System'!$B$16)+(H11*'Points System'!$B$17)+(I11*'Points System'!$B$15)+(J11*'Points System'!$B$2)+(K11*'Points System'!$B$3)+(L11*'Points System'!$B$4)+(M11*'Points System'!$B$5)+(N11*'Points System'!$B$6)+(O11*'Points System'!$B$7)+(P11*'Points System'!$B$8)+(Q11*'Points System'!$B$9)+(R11*'Points System'!$B$10)+(S11*'Points System'!$B$11)+(T11*'Points System'!$B$13)+(U11*'Points System'!$B$12)+(V11*'Points System'!$B$14) -> 112.51 | D11: =C11/G11 -> 0.175096489 | E11: =C11/F11 -> 0.7277490298 | F11: 154.6 | G11: 642.56 | H11: 578.54 | I11: 165.36 | J11: 112.51 | K11: 28.42 | L11: 1.86 | M11: 23.15 | N11: 90.23 | O11: 84.61 | P11: 62.98 | Q11: 111.06 | R11: 5.26 | S11: 1.97 | T11: 2.87 | U11: 1.46 | V11: 267.53 | W11: 0.286 | X11: 1.763 | Y11: 0.356 | Z11: 0.462 | AA11: 0.818 | AB11: NL | AC11: 542303 | AD11: SS | AE11: =IF(ISNA(VLOOKUP(A11,Rankings!$B$2:$H$1998,7,FALSE)),"-",VLOOKUP(A11,Rankings!$B$2:$H$1998,7,FALSE)) -> 0
A12: Charlie Blackmon | B12: OF | C12: =(G12*'Points System'!$B$16)+(H12*'Points System'!$B$17)+(I12*'Points System'!$B$15)+(J12*'Points System'!$B$2)+(K12*'Points System'!$B$3)+(L12*'Points System'!$B$4)+(M12*'Points System'!$B$5)+(N12*'Points System'!$B$6)+(O12*'Points System'!$B$7)+(P12*'Points System'!$B$8)+(Q12*'Points System'!$B$9)+(R12*'Points System'!$B$10)+(S12*'Points System'!$B$11)+(T12*'Points System'!$B$13)+(U12*'Points System'!$B$12)+(V12*'Points System'!$B$14) -> 112.23 | D12: =C12/G12 -> 0.1701305198 | E12: =C12/F12 -> 0.7403034301 | F12: 151.6 | G12: 659.67 | H12: 599 | I12: 183.34 | J12: 112.23 | K12: 32.82 | L12: 8.49 | M12: 29.86 | N12: 87.96 | O12: 112.04 | P12: 53.96 | Q12: 116.36 | R12: 15.69 | S12: 8.61 | T12: 4.77 | U12: 11.73 | V12: 322.78 | W12: 0.306 | X12: 2.156 | Y12: 0.372 | Z12: 0.539 | AA12: 0.911 | AB12: NL | AC12: 458015 | AD12: C | AE12: =IF(ISNA(VLOOKUP(A12,Rankings!$B$2:$H$1998,7,FALSE)),"-",VLOOKUP(A12,Rankings!$B$2:$H$1998,7,FALSE)) -> 0
A13: Lorenzo Cain | B13: OF | C13: =(G13*'Points System'!$B$16)+(H13*'Points System'!$B$17)+(I13*'Points System'!$B$15)+(J13*'Points System'!$B$2)+(K13*'Points System'!$B$3)+(L13*'Points System'!$B$4)+(M13*'Points System'!$B$5)+(N13*'Points System'!$B$6)+(O13*'Points System'!$B$7)+(P13*'Points System'!$B$8)+(Q13*'Points System'!$B$9)+(R13*'Points System'!$B$10)+(S13*'Points System'!$B$11)+(T13*'Points System'!$B$13)+(U13*'Points System'!$B$12)+(V13*'Points System'!$B$14) -> 111.46 | D13: =C13/G13 -> 0.1845028223 | E13: =C13/F13 -> 0.7888181175 | F13: 141.3 | G13: 604.11 | H13: 543 | I13: 157.79 | J13: 111.46 | K13: 27.33 | L13: 3.97 | M13: 14.8 | N13: 62.71 | O13: 82.81 | P13: 47.8 | Q13: 102.14 | R13: 20.69 | S13: 4.58 | T13: 3.8 | U13: 6.39 | V13: 237.23 | W13: 0.291 | X13: 2.137 | Y13: 0.353 | Z13: 0.437 | AA13: 0.79 | AB13: NL | AC13: 543685 | AD13: SS | AE13: =IF(ISNA(VLOOKUP(A13,Rankings!$B$2:$H$1998,7,FALSE)),"-",VLOOKUP(A13,Rankings!$B$2:$H$1998,7,FALSE)) -> 0
A14: Robinson Cano | B14: 2B | C14: =(G14*'Points System'!$B$16)+(H14*'Points System'!$B$17)+(I14*'Points System'!$B$15)+(J14*'Points System'!$B$2)+(K14*'Points System'!$B$3)+(L14*'Points System'!$B$4)+(M14*'Points System'!$B$5)+(N14*'Points System'!$B$6)+(O14*'Points System'!$B$7)+(P14*'Points System'!$B$8)+(Q14*'Points System'!$B$9)+(R14*'Points System'!$B$10)+(S14*'Points System'!$B$11)+(T14*'Points System'!$B$13)+(U14*'Points System'!$B$12)+(V14*'Points System'!$B$14) -> 110.87 | D14: =C14/G14 -> 0.1730235026 | E14: =C14/F14 -> 0.7386409061 | F14: 150.1 | G14: 640.78 | H14: 591.71 | I14: 153.93 | J14: 110.87 | K14: 28.99 | L14: 0.85 | M14: 24.42 | N14: 91.54 | O14: 82.05 | P14: 46.6 | Q14: 90.96 | R14: 1.41 | S14: 1.17 | T14: 3.97 | U14: 4.97 | V14: 269.08 | W14: 0.26 | X14: 1.952 | Y14: 0.317 | Z14: 0.455 | AA14: 0.772 | AB14: AL | AC14: 518626 | AD14: LF | AE14: =IF(ISNA(VLOOKUP(A14,Rankings!$B$2:$H$1998,7,FALSE)),"-",VLOOKUP(A14,Rankings!$B$2:$H$1998,7,FALSE)) -> 0
A15: Andrelton Simmons | B15: SS | C15: =(G15*'Points System'!$B$16)+(H15*'Points System'!$B$17)+(I15*'Points System'!$B$15)+(J15*'Points System'!$B$2)+(K15*'Points System'!$B$3)+(L15*'Points System'!$B$4)+(M15*'Points System'!$B$5)+(N15*'Points System'!$B$6)+(O15*'Points System'!$B$7)+(P15*'Points System'!$B$8)+(Q15*'Points System'!$B$9)+(R15*'Points System'!$B$10)+(S15*'Points System'!$B$11)+(T15*'Points System'!$B$13)+(U15*'Points System'!$B$12)+(V15*'Points System'!$B$14) -> 110.48 | D15: =C15/G15 -> 0.1799670951 | E15: =C15/F15 -> 0.7474966171 | F15: 147.8 | G15: 613.89 | H15: 563.79 | I15: 142.12 | J15: 110.48 | K15: 28.18 | L15: 2.13 | M15: 10.65 | N15: 62.89 | O15: 67.11 | P15: 40.71 | Q15: 60 | R15: 13.8 | S15: 4.8 | T15: 4.47 | U15: 3.8 | V15: 215.83 | W15: 0.252 | X15: 1.474 | Y15: 0.305 | Z15: 0.383 | AA15: 0.688 | AB15: AL | AC15: 474832 | AD15: 1B | AE15: =IF(ISNA(VLOOKUP(A15,Rankings!$B$2:$H$1998,7,FALSE)),"-",VLOOKUP(A15,Rankings!$B$2:$H$1998,7,FALSE)) -> 0
A16: Trea Turner | B16: SS | C16: =(G16*'Points System'!$B$16)+(H16*'Points System'!$B$17)+(I16*'Points System'!$B$15)+(J16*'Points System'!$B$2)+(K16*'Points System'!$B$3)+(L16*'Points System'!$B$4)+(M16*'Points System'!$B$5)+(N16*'Points System'!$B$6)+(O16*'Points System'!$B$7)+(P16*'Points System'!$B$8)+(Q16*'Points System'!$B$9)+(R16*'Points System'!$B$10)+(S16*'Points System'!$B$11)+(T16*'Points System'!$B$13)+(U16*'Points System'!$B$12)+(V16*'Points System'!$B$14) -> 110.22 | D16: =C16/G16 -> 0.178124697 | E16: =C16/F16 -> 0.7992748368 | F16: 137.9 | G16: 618.78 | H16: 556.71 | I16: 163.74 | J16: 110.22 | K16: 30.65 | L16: 8.88 | M16: 15.96 | N16: 63.72 | O16: 94.69 | P16: 41.15 | Q16: 119.33 | R16: 50.14 | S16: 11.19 | T16: 2.77 | U16: 2.99 | V16: 262 | W16: 0.294 | X16: 2.9 | Y16: 0.344 | Z16: 0.471 | AA16: 0.815 | AB16: NL | AC16: 547989 | AD16: LF | AE16: =IF(ISNA(VLOOKUP(A16,Rankings!$B$2:$H$1998,7,FALSE)),"-",VLOOKUP(A16,Rankings!$B$2:$H$1998,7,FALSE)) -> 0
A17: Whit Merrifield | B17: 2B/OF | C17: =(G17*'Points System'!$B$16)+(H17*'Points System'!$B$17)+(I17*'Points System'!$B$15)+(J17*'Points System'!$B$2)+(K17*'Points System'!$B$3)+(L17*'Points System'!$B$4)+(M17*'Points System'!$B$5)+(N17*'Points System'!$B$6)+(O17*'Points System'!$B$7)+(P17*'Points System'!$B$8)+(Q17*'Points System'!$B$9)+(R17*'Points System'!$B$10)+(S17*'Points System'!$B$11)+(T17*'Points System'!$B$13)+(U17*'Points System'!$B$12)+(V17*'Points System'!$B$14) -> 109.96 | D17: =C17/G17 -> 0.1751569021 | E17: =C17/F17 -> 0.7490463215 | F17: 146.8 | G17: 627.78 | H17: 591.36 | I17: 149.13 | J17: 109.96 | K17: 31.81 | L17: 4.25 | M17: 14.53 | N17: 65.39 | O17: 77.54 | P17: 32.91 | Q17: 102.56 | R17: 27.29 | S17: 8.2 | T17: 4.4 | U17: 4.2 | V17: 244.45 | W17: 0.252 | X17: 3.116 | Y17: 0.294 | Z17: 0.413 | AA17: 0.707 | AB17: AL | AC17: 571875 | AD17: C | AE17: =IF(ISNA(VLOOKUP(A17,Rankings!$B$2:$H$1998,7,FALSE)),"-",VLOOKUP(A17,Rankings!$B$2:$H$1998,7,FALSE)) -> 0
A18: Francisco Lindor | B18: SS | C18: =(G18*'Points System'!$B$16)+(H18*'Points System'!$B$17)+(I18*'Points System'!$B$15)+(J18*'Points System'!$B$2)+(K18*'Points System'!$B$3)+(L18*'Points System'!$B$4)+(M18*'Points System'!$B$5)+(N18*'Points System'!$B$6)+(O18*'Points System'!$B$7)+(P18*'Points System'!$B$8)+(Q18*'Points System'!$B$9)+(R18*'Points System'!$B$10)+(S18*'Points System'!$B$11)+(T18*'Points System'!$B$13)+(U18*'Points System'!$B$12)+(V18*'Points System'!$B$14) -> 109.81 | D18: =C18/G18 -> 0.163354259 | E18: =C18/F18 -> 0.707083065 | F18: 155.3 | G18: 672.22 | H18: 615.79 | I18: 162.18 | J18: 109.81 | K18: 34.14 | L18: 3.73 | M18: 26.05 | N18: 87.72 | O18: 97.2 | P18: 56.82 | Q18: 86.7 | R18: 15.52 | S18: 4.73 | T18: 5.27 | U18: 3.9 | V18: 293.48 | W18: 0.263 | X18: 1.526 | Y18: 0.327 | Z18: 0.477 | AA18: 0.804 | AB18: AL | AC18: 592885 | AD18: 3B | AE18: =IF(ISNA(VLOOKUP(A18,Rankings!$B$2:$H$1998,7,FALSE)),"-",VLOOKUP(A18,Rankings!$B$2:$H$1998,7,FALSE)) -> 0
A19: Starling Marte | B19: OF | C19: =(G19*'Points System'!$B$16)+(H19*'Points System'!$B$17)+(I19*'Points System'!$B$15)+(J19*'Points System'!$B$2)+(K19*'Points System'!$B$3)+(L19*'Points System'!$B$4)+(M19*'Points System'!$B$5)+(N19*'Points System'!$B$6)+(O19*'Points System'!$B$7)+(P19*'Points System'!$B$8)+(Q19*'Points System'!$B$9)+(R19*'Points System'!$B$10)+(S19*'Points System'!$B$11)+(T19*'Points System'!$B$13)+(U19*'Points System'!$B$12)+(V19*'Points System'!$B$14) -> 108.65 | D19: =C19/G19 -> 0.1839779193 | E19: =C19/F19 -> 0.7936449963 | F19: 136.9 | G19: 590.56 | H19: 529.36 | I19: 151.45 | J19: 108.65 | K19: 27.6 | L19: 3.79 | M19: 13.86 | N19: 60.11 | O19: 77.19 | P19: 31.04 | Q19: 115.11 | R19: 34.1 | S19: 9.58 | T19: 5.17 | U19: 15.95 | V19: 230.66 | W19: 0.286 | X19: 3.708 | Y19: 0.341 | Z19: 0.436 | AA19: 0.777 | AB19: NL | AC19: 455976 | AD19: 2B | AE19: =IF(ISNA(VLOOKUP(A19,Rankings!$B$2:$H$1998,7,FALSE)),"-",VLOOKUP(A19,Rankings!$B$2:$H$1998,7,FALSE)) -> 0
A20: Christian Yelich | B20: OF | C20: =(G20*'Points System'!$B$16)+(H20*'Points System'!$B$17)+(I20*'Points System'!$B$15)+(J20*'Points System'!$B$2)+(K20*'Points System'!$B$3)+(L20*'Points System'!$B$4)+(M20*'Points System'!$B$5)+(N20*'Points System'!$B$6)+(O20*'Points System'!$B$7)+(P20*'Points System'!$B$8)+(Q20*'Points System'!$B$9)+(R20*'Points System'!$B$10)+(S20*'Points System'!$B$11)+(T20*'Points System'!$B$13)+(U20*'Points System'!$B$12)+(V20*'Points System'!$B$14) -> 108.2 | D20: =C20/G20 -> 0.16538779 | E20: =C20/F20 -> 0.7076520602 | F20: 152.9 | G20: 654.22 | H20: 570.5 | I20: 167.71 | J20: 108.2 | K20: 36.39 | L20: 2.71 | M20: 20.38 | N20: 84.32 | O20: 92.19 | P20: 73.62 | Q20: 130.61 | R20: 14.06 | S20: 4.13 | T20: 4.27 | U20: 4.14 | V20: 270.63 | W20: 0.294 | X20: 1.774 | Y20: 0.376 | Z20: 0.474 | AA20: 0.85 | AB20: NL | AC20: 457705 | AD20: SS | AE20: =IF(ISNA(VLOOKUP(A20,Rankings!$B$2:$H$1998,7,FALSE)),"-",VLOOKUP(A20,Rankings!$B$2:$H$1998,7,FALSE)) -> 0
A21: Mookie Betts | B21: OF | C21: =(G21*'Points System'!$B$16)+(H21*'Points System'!$B$17)+(I21*'Points System'!$B$15)+(J21*'Points System'!$B$2)+(K21*'Points System'!$B$3)+(L21*'Points System'!$B$4)+(M21*'Points System'!$B$5)+(N21*'Points System'!$B$6)+(O21*'Points System'!$B$7)+(P21*'Points System'!$B$8)+(Q21*'Points System'!$B$9)+(R21*'Points System'!$B$10)+(S21*'Points System'!$B$11)+(T21*'Points System'!$B$13)+(U21*'Points System'!$B$12)+(V21*'Points System'!$B$14) -> 106.58 | D21: =C21/G21 -> 0.159286216 | E21: =C21/F21 -> 0.6966013072 | F21: 153 | G21: 669.11 | H21: 613.29 | I21: 163.91 | J21: 106.58 | K21: 38.7 | L21: 3.56 | M21: 25.84 | N21: 95.61 | O21: 106.23 | P21: 63.18 | Q21: 77.86 | R21: 23.84 | S21: 4.88 | T21: 3.9 | U21: 2.45 | V21: 298.02 | W21: 0.267 | X21: 1.232 | Y21: 0.336 | Z21: 0.486 | AA21: 0.822 | AB21: AL | AC21: 514888 | AD21: SS | AE21: =IF(ISNA(VLOOKUP(A21,Rankings!$B$2:$H$1998,7,FALSE)),"-",VLOOKUP(A21,Rankings!$B$2:$H$1998,7,FALSE)) -> 0
A22: Adam Eaton | B22: OF | C22: =(G22*'Points System'!$B$16)+(H22*'Points System'!$B$17)+(I22*'Points System'!$B$15)+(J22*'Points System'!$B$2)+(K22*'Points System'!$B$3)+(L22*'Points System'!$B$4)+(M22*'Points System'!$B$5)+(N22*'Points System'!$B$6)+(O22*'Points System'!$B$7)+(P22*'Points System'!$B$8)+(Q22*'Points System'!$B$9)+(R22*'Points System'!$B$10)+(S22*'Points System'!$B$11)+(T22*'Points System'!$B$13)+(U22*'Points System'!$B$12)+(V22*'Points System'!$B$14) -> 106.17 | D22: =C22/G22 -> 0.1748143513 | E22: =C22/F22 -> 0.7710239651 | F22: 137.7 | G22: 607.33 | H22: 520.5 | I22: 148.39 | J22: 106.17 | K22: 28.28 | L22: 6.71 | M22: 11.64 | N22: 56.81 | O22: 84.45 | P22: 57.63 | Q22: 102.86 | R22: 13.44 | S22: 5.39 | T22: 4.33 | U22: 11.19 | V22: 229.42 | W22: 0.285 | X22: 1.785 | Y22: 0.366 | Z22: 0.441 | AA22: 0.807 | AB22: NL | AC22: 544369 | AD22: C | AE22: =IF(ISNA(VLOOKUP(A22,Rankings!$B$2:$H$1998,7,FALSE)),"-",VLOOKUP(A22,Rankings!$B$2:$H$1998,7,FALSE)) -> 0
A23: Tim Anderson | B23: SS | C23: =(G23*'Points System'!$B$16)+(H23*'Points System'!$B$17)+(I23*'Points System'!$B$15)+(J23*'Points System'!$B$2)+(K23*'Points System'!$B$3)+(L23*'Points System'!$B$4)+(M23*'Points System'!$B$5)+(N23*'Points System'!$B$6)+(O23*'Points System'!$B$7)+(P23*'Points System'!$B$8)+(Q23*'Points System'!$B$9)+(R23*'Points System'!$B$10)+(S23*'Points System'!$B$11)+(T23*'Points System'!$B$13)+(U23*'Points System'!$B$12)+(V23*'Points System'!$B$14) -> 106.04 | D23: =C23/G23 -> 0.1761461794 | E23: =C23/F23 -> 0.7363888889 | F23: 144 | G23: 602 | H23: 580.54 | I23: 152.94 | J23: 106.04 | K23: 27.54 | L23: 5.48 | M23: 14.98 | N23: 55.85 | O23: 70.49 | P23: 17.57 | Q23: 155.7 | R23: 17.12 | S23: 4.15 | T23: 2.77 | U23: 3.09 | V23: 237.48 | W23: 0.263 | X23: 8.862 | Y23: 0.287 | Z23: 0.409 | AA23: 0.696 | AB23: AL | AC23: 656847 | AD23: OF | AE23: =IF(ISNA(VLOOKUP(A23,Rankings!$B$2:$H$1998,7,FALSE)),"-",VLOOKUP(A23,Rankings!$B$2:$H$1998,7,FALSE)) -> 0
A24: Odubel Herrera | B24: OF | C24: =(G24*'Points System'!$B$16)+(H24*'Points System'!$B$17)+(I24*'Points System'!$B$15)+(J24*'Points System'!$B$2)+(K24*'Points System'!$B$3)+(L24*'Points System'!$B$4)+(M24*'Points System'!$B$5)+(N24*'Points System'!$B$6)+(O24*'Points System'!$B$7)+(P24*'Points System'!$B$8)+(Q24*'Points System'!$B$9)+(R24*'Points System'!$B$10)+(S24*'Points System'!$B$11)+(T24*'Points System'!$B$13)+(U24*'Points System'!$B$12)+(V24*'Points System'!$B$14) -> 105.55 | D24: =C24/G24 -> 0.1703628381 | E24: =C24/F24 -> 0.7146242383 | F24: 147.7 | G24: 619.56 | H24: 558.29 | I24: 157.22 | J24: 105.55 | K24: 32.98 | L24: 3.91 | M24: 14.52 | N24: 59.26 | O24: 76.83 | P24: 44.23 | Q24: 135.29 | R24: 13.89 | S24: 6.32 | T24: 3.1 | U24: 6.11 | V24: 241.32 | W24: 0.282 | X24: 3.059 | Y24: 0.339 | Z24: 0.432 | AA24: 0.771 | AB24: NL | AC24: 457803 | AD24: CF | AE24: =IF(ISNA(VLOOKUP(A24,Rankings!$B$2:$H$1998,7,FALSE)),"-",VLOOKUP(A24,Rankings!$B$2:$H$1998,7,FALSE)) -> 0
A25: Adam Jones | B25: OF | C25: =(G25*'Points System'!$B$16)+(H25*'Points System'!$B$17)+(I25*'Points System'!$B$15)+(J25*'Points System'!$B$2)+(K25*'Points System'!$B$3)+(L25*'Points System'!$B$4)+(M25*'Points System'!$B$5)+(N25*'Points System'!$B$6)+(O25*'Points System'!$B$7)+(P25*'Points System'!$B$8)+(Q25*'Points System'!$B$9)+(R25*'Points System'!$B$10)+(S25*'Points System'!$B$11)+(T25*'Points System'!$B$13)+(U25*'Points System'!$B$12)+(V25*'Points System'!$B$14) -> 104.66 | D25: =C25/G25 -> 0.1700240431 | E25: =C25/F25 -> 0.7247922438 | F25: 144.4 | G25: 615.56 | H25: 583.14 | I25: 144.64 | J25: 104.66 | K25: 22.73 | L25: 1.3 | M25: 26.66 | N25: 78.93 | O25: 79.91 | P25: 29.99 | Q25: 110.3 | R25: 2.6 | S25: 1.03 | T25: 4.47 | U25: 6.9 | V25: 260.66 | W25: 0.248 | X25: 3.678 | Y25: 0.291 | Z25: 0.447 | AA25: 0.738 | AB25: AL | AC25: 621439 | AD25: LF | AE25: =IF(ISNA(VLOOKUP(A25,Rankings!$B$2:$H$1998,7,FALSE)),"-",VLOOKUP(A25,Rankings!$B$2:$H$1998,7,FALSE)) -> 0
A26: Nick Markakis | B26: OF | C26: =(G26*'Points System'!$B$16)+(H26*'Points System'!$B$17)+(I26*'Points System'!$B$15)+(J26*'Points System'!$B$2)+(K26*'Points System'!$B$3)+(L26*'Points System'!$B$4)+(M26*'Points System'!$B$5)+(N26*'Points System'!$B$6)+(O26*'Points System'!$B$7)+(P26*'Points System'!$B$8)+(Q26*'Points System'!$B$9)+(R26*'Points System'!$B$10)+(S26*'Points System'!$B$11)+(T26*'Points System'!$B$13)+(U26*'Points System'!$B$12)+(V26*'Points System'!$B$14) -> 104.64 | D26: =C26/G26 -> 0.1754409496 | E26: =C26/F26 -> 0.7172035641 | F26: 145.9 | G26: 596.44 | H26: 538.79 | I26: 145.22 | J26: 104.64 | K26: 30.95 | L26: 1.06 | M26: 8.74 | N26: 66.21 | O26: 63.72 | P26: 61.22 | Q26: 95.31 | R26: 0.91 | S26: 1.43 | T26: 3.47 | U26: 4.06 | V26: 204.68 | W26: 0.27 | X26: 1.557 | Y26: 0.346 | Z26: 0.38 | AA26: 0.726 | AB26: NL | AC26: 641878 | AD26: CF | AE26: =IF(ISNA(VLOOKUP(A26,Rankings!$B$2:$H$1998,7,FALSE)),"-",VLOOKUP(A26,Rankings!$B$2:$H$1998,7,FALSE)) -> 0
A27: Jose Abreu | B27: 1B | C27: =(G27*'Points System'!$B$16)+(H27*'Points System'!$B$17)+(I27*'Points System'!$B$15)+(J27*'Points System'!$B$2)+(K27*'Points System'!$B$3)+(L27*'Points System'!$B$4)+(M27*'Points System'!$B$5)+(N27*'Points System'!$B$6)+(O27*'Points System'!$B$7)+(P27*'Points System'!$B$8)+(Q27*'Points System'!$B$9)+(R27*'Points System'!$B$10)+(S27*'Points System'!$B$11)+(T27*'Points System'!$B$13)+(U27*'Points System'!$B$12)+(V27*'Points System'!$B$14) -> 104.62 | D27: =C27/G27 -> 0.1632137285 | E27: =C27/F27 -> 0.6891963109 | F27: 151.8 | G27: 641 | H27: 589.38 | I27: 172.36 | J27: 104.62 | K27: 35.05 | L27: 3.48 | M27: 30.19 | N27: 99.19 | O27: 84.15 | P27: 39.56 | Q27: 118.84 | R27: 2 | S27: 0.94 | T27: 5.93 | U27: 13.4 | V27: 305.92 | W27: 0.292 | X27: 3.004 | Y27: 0.348 | Z27: 0.519 | AA27: 0.867 | AB27: AL | AC27: 570731 | AD27: 2B | AE27: =IF(ISNA(VLOOKUP(A27,Rankings!$B$2:$H$1998,7,FALSE)),"-",VLOOKUP(A27,Rankings!$B$2:$H$1998,7,FALSE)) -> 0
A28: Starlin Castro | B28: 2B | C28: =(G28*'Points System'!$B$16)+(H28*'Points System'!$B$17)+(I28*'Points System'!$B$15)+(J28*'Points System'!$B$2)+(K28*'Points System'!$B$3)+(L28*'Points System'!$B$4)+(M28*'Points System'!$B$5)+(N28*'Points System'!$B$6)+(O28*'Points System'!$B$7)+(P28*'Points System'!$B$8)+(Q28*'Points System'!$B$9)+(R28*'Points System'!$B$10)+(S28*'Points System'!$B$11)+(T28*'Points System'!$B$13)+(U28*'Points System'!$B$12)+(V28*'Points System'!$B$14) -> 104.52 | D28: =C28/G28 -> 0.1832269827 | E28: =C28/F28 -> 0.7612527312 | F28: 137.3 | G28: 570.44 | H28: 534.36 | I28: 147.15 | J28: 104.52 | K28: 25.36 | L28: 1.41 | M28: 16.81 | N28: 65.26 | O28: 62.99 | P28: 26.47 | Q28: 105.14 | R28: 3.26 | S28: 1.13 | T28: 3.73 | U28: 4.06 | V28: 226.71 | W28: 0.275 | X28: 3.972 | Y28: 0.312 | Z28: 0.424 | AA28: 0.736 | AB28: NL | AC28: 595879 | AD28: SS | AE28: =IF(ISNA(VLOOKUP(A28,Rankings!$B$2:$H$1998,7,FALSE)),"-",VLOOKUP(A28,Rankings!$B$2:$H$1998,7,FALSE)) -> 0
A29: Jose Ramirez | B29: 2B/3B | C29: =(G29*'Points System'!$B$16)+(H29*'Points System'!$B$17)+(I29*'Points System'!$B$15)+(J29*'Points System'!$B$2)+(K29*'Points System'!$B$3)+(L29*'Points System'!$B$4)+(M29*'Points System'!$B$5)+(N29*'Points System'!$B$6)+(O29*'Points System'!$B$7)+(P29*'Points System'!$B$8)+(Q29*'Points System'!$B$9)+(R29*'Points System'!$B$10)+(S29*'Points System'!$B$11)+(T29*'Points System'!$B$13)+(U29*'Points System'!$B$12)+(V29*'Points System'!$B$14) -> 104.14 | D29: =C29/G29 -> 0.1611525487 | E29: =C29/F29 -> 0.6855826201 | F29: 151.9 | G29: 646.22 | H29: 586.53 | I29: 164.61 | J29: 104.14 | K29: 43.57 | L29: 4.46 | M29: 22.21 | N29: 83.13 | O29: 97.47 | P29: 51.64 | Q29: 67.99 | R29: 18.34 | S29: 6.32 | T29: 4.37 | U29: 3.26 | V29: 293.5 | W29: 0.281 | X29: 1.317 | Y29: 0.34 | Z29: 0.5 | AA29: 0.84 | AB29: NL | AC29: 545361 | AD29: 3B | AE29: =IF(ISNA(VLOOKUP(A29,Rankings!$B$2:$H$1998,7,FALSE)),"-",VLOOKUP(A29,Rankings!$B$2:$H$1998,7,FALSE)) -> 0
A30: Buster Posey | B30: C/1B | C30: =(G30*'Points System'!$B$16)+(H30*'Points System'!$B$17)+(I30*'Points System'!$B$15)+(J30*'Points System'!$B$2)+(K30*'Points System'!$B$3)+(L30*'Points System'!$B$4)+(M30*'Points System'!$B$5)+(N30*'Points System'!$B$6)+(O30*'Points System'!$B$7)+(P30*'Points System'!$B$8)+(Q30*'Points System'!$B$9)+(R30*'Points System'!$B$10)+(S30*'Points System'!$B$11)+(T30*'Points System'!$B$13)+(U30*'Points System'!$B$12)+(V30*'Points System'!$B$14) -> 104.09 | D30: =C30/G30 -> 0.1879627289 | E30: =C30/F30 -> 0.7808702176 | F30: 133.3 | G30: 553.78 | H30: 496.13 | I30: 149.04 | J30: 104.09 | K30: 29.36 | L30: 0.99 | M30: 14.54 | N30: 73.15 | O30: 68.25 | P30: 58.51 | Q30: 63.89 | R30: 4.93 | S30: 1.4 | T30: 4.03 | U30: 4.93 | V30: 223.94 | W30: 0.3 | X30: 1.092 | Y30: 0.377 | Z30: 0.451 | AA30: 0.828 | AB30: NL | AC30: 543768 | AD30: 2B | AE30: =IF(ISNA(VLOOKUP(A30,Rankings!$B$2:$H$1998,7,FALSE)),"-",VLOOKUP(A30,Rankings!$B$2:$H$1998,7,FALSE)) -> 0
A31: Avisail Garcia | B31: OF | C31: =(G31*'Points System'!$B$16)+(H31*'Points System'!$B$17)+(I31*'Points System'!$B$15)+(J31*'Points System'!$B$2)+(K31*'Points System'!$B$3)+(L31*'Points System'!$B$4)+(M31*'Points System'!$B$5)+(N31*'Points System'!$B$6)+(O31*'Points System'!$B$7)+(P31*'Points System'!$B$8)+(Q31*'Points System'!$B$9)+(R31*'Points System'!$B$10)+(S31*'Points System'!$B$11)+(T31*'Points System'!$B$13)+(U31*'Points System'!$B$12)+(V31*'Points System'!$B$14) -> 104.03 | D31: =C31/G31 -> 0.1826497647 | E31: =C31/F31 -> 0.7494956772 | F31: 138.8 | G31: 569.56 | H31: 520.69 | I31: 148.14 | J31: 104.03 | K31: 23.61 | L31: 3.17 | M31: 17.94 | N31: 74.16 | O31: 70.05 | P31: 37.61 | Q31: 121.61 | R31: 5.51 | S31: 3.47 | T31: 3.37 | U31: 7.28 | V31: 232.52 | W31: 0.285 | X31: 3.233 | Y31: 0.339 | Z31: 0.447 | AA31: 0.786 | AB31: AL | AC31: 572039 | AD31: RF | AE31: =IF(ISNA(VLOOKUP(A31,Rankings!$B$2:$H$1998,7,FALSE)),"-",VLOOKUP(A31,Rankings!$B$2:$H$1998,7,FALSE)) -> 0
A32: Ozzie Albies | B32: 2B | C32: =(G32*'Points System'!$B$16)+(H32*'Points System'!$B$17)+(I32*'Points System'!$B$15)+(J32*'Points System'!$B$2)+(K32*'Points System'!$B$3)+(L32*'Points System'!$B$4)+(M32*'Points System'!$B$5)+(N32*'Points System'!$B$6)+(O32*'Points System'!$B$7)+(P32*'Points System'!$B$8)+(Q32*'Points System'!$B$9)+(R32*'Points System'!$B$10)+(S32*'Points System'!$B$11)+(T32*'Points System'!$B$13)+(U32*'Points System'!$B$12)+(V32*'Points System'!$B$14) -> 103.75 | D32: =C32/G32 -> 0.167820517 | E32: =C32/F32 -> 0.7260321903 | F32: 142.9 | G32: 618.22 | H32: 547.07 | I32: 148.54 | J32: 103.75 | K32: 27.24 | L32: 9.09 | M32: 12.34 | N32: 60.83 | O32: 76.84 | P32: 45.44 | Q32: 116.99 | R32: 21.66 | S32: 6.19 | T32: 4.87 | U32: 5 | V32: 234.86 | W32: 0.272 | X32: 2.575 | Y32: 0.33 | Z32: 0.429 | AA32: 0.759 | AB32: NL | AC32: 543063 | AD32: LF | AE32: =IF(ISNA(VLOOKUP(A32,Rankings!$B$2:$H$1998,7,FALSE)),"-",VLOOKUP(A32,Rankings!$B$2:$H$1998,7,FALSE)) -> 0
A33: Corey Seager | B33: SS | C33: =(G33*'Points System'!$B$16)+(H33*'Points System'!$B$17)+(I33*'Points System'!$B$15)+(J33*'Points System'!$B$2)+(K33*'Points System'!$B$3)+(L33*'Points System'!$B$4)+(M33*'Points System'!$B$5)+(N33*'Points System'!$B$6)+(O33*'Points System'!$B$7)+(P33*'Points System'!$B$8)+(Q33*'Points System'!$B$9)+(R33*'Points System'!$B$10)+(S33*'Points System'!$B$11)+(T33*'Points System'!$B$13)+(U33*'Points System'!$B$12)+(V33*'Points System'!$B$14) -> 103.58 | D33: =C33/G33 -> 0.1660814213 | E33: =C33/F33 -> 0.7178101178 | F33: 144.3 | G33: 623.67 | H33: 559.07 | I33: 166 | J33: 103.58 | K33: 35.24 | L33: 2.47 | M33: 24.33 | N33: 81.66 | O33: 91.24 | P33: 60.25 | Q33: 124.73 | R33: 4.25 | S33: 2.06 | T33: 3.6 | U33: 4.55 | V33: 278.79 | W33: 0.297 | X33: 2.07 | Y33: 0.368 | Z33: 0.499 | AA33: 0.867 | AB33: NL | AC33: 593160 | AD33: LF | AE33: =IF(ISNA(VLOOKUP(A33,Rankings!$B$2:$H$1998,7,FALSE)),"-",VLOOKUP(A33,Rankings!$B$2:$H$1998,7,FALSE)) -> 0
A34: Andrew Benintendi | B34: OF | C34: =(G34*'Points System'!$B$16)+(H34*'Points System'!$B$17)+(I34*'Points System'!$B$15)+(J34*'Points System'!$B$2)+(K34*'Points System'!$B$3)+(L34*'Points System'!$B$4)+(M34*'Points System'!$B$5)+(N34*'Points System'!$B$6)+(O34*'Points System'!$B$7)+(P34*'Points System'!$B$8)+(Q34*'Points System'!$B$9)+(R34*'Points System'!$B$10)+(S34*'Points System'!$B$11)+(T34*'Points System'!$B$13)+(U34*'Points System'!$B$12)+(V34*'Points System'!$B$14) -> 103.19 | D34: =C34/G34 -> 0.1604546656 | E34: =C34/F34 -> 0.6820224719 | F34: 151.3 | G34: 643.11 | H34: 574.79 | I34: 147.52 | J34: 103.19 | K34: 30.34 | L34: 3.47 | M34: 20.21 | N34: 88.35 | O34: 86.93 | P34: 65.31 | Q34: 103.31 | R34: 17.68 | S34: 6.44 | T34: 5.63 | U34: 5.1 | V34: 255.12 | W34: 0.257 | X34: 1.582 | Y34: 0.335 | Z34: 0.444 | AA34: 0.779 | AB34: AL | AC34: 572122 | AD34: 1B | AE34: =IF(ISNA(VLOOKUP(A34,Rankings!$B$2:$H$1998,7,FALSE)),"-",VLOOKUP(A34,Rankings!$B$2:$H$1998,7,FALSE)) -> 0
A35: Myles Straw | C35: =(G35*'Points System'!$B$16)+(H35*'Points System'!$B$17)+(I35*'Points System'!$B$15)+(J35*'Points System'!$B$2)+(K35*'Points System'!$B$3)+(L35*'Points System'!$B$4)+(M35*'Points System'!$B$5)+(N35*'Points System'!$B$6)+(O35*'Points System'!$B$7)+(P35*'Points System'!$B$8)+(Q35*'Points System'!$B$9)+(R35*'Points System'!$B$10)+(S35*'Points System'!$B$11)+(T35*'Points System'!$B$13)+(U35*'Points System'!$B$12)+(V35*'Points System'!$B$14) -> 103 | D35: =C35/G35 -> 0.1845878136 | E35: =C35/F35 -> 0.8442622951 | F35: 122 | G35: 558 | H35: 495 | I35: 124 | J35: 103 | K35: 15 | L35: 5 | M35: 1 | N35: 32 | O35: 59 | P35: 55 | Q35: 106 | R35: 23 | S35: 10 | U35: 1 | V35: 152 | W35: 0.251 | X35: 1.927 | Y35: 0.327 | Z35: 0.307 | AA35: 0.634 | AC35: 666969 | AD35: 1B | AE35: =IF(ISNA(VLOOKUP(A35,Rankings!$B$2:$H$1998,7,FALSE)),"-",VLOOKUP(A35,Rankings!$B$2:$H$1998,7,FALSE)) -> -
A36: Marcell Ozuna | B36: OF | C36: =(G36*'Points System'!$B$16)+(H36*'Points System'!$B$17)+(I36*'Points System'!$B$15)+(J36*'Points System'!$B$2)+(K36*'Points System'!$B$3)+(L36*'Points System'!$B$4)+(M36*'Points System'!$B$5)+(N36*'Points System'!$B$6)+(O36*'Points System'!$B$7)+(P36*'Points System'!$B$8)+(Q36*'Points System'!$B$9)+(R36*'Points System'!$B$10)+(S36*'Points System'!$B$11)+(T36*'Points System'!$B$13)+(U36*'Points System'!$B$12)+(V36*'Points System'!$B$14) -> 102.88 | D36: =C36/G36 -> 0.1634468734 | E36: =C36/F36 -> 0.6867823765 | F36: 149.8 | G36: 629.44 | H36: 569 | I36: 163.66 | J36: 102.88 | K36: 28.59 | L36: 2.81 | M36: 29.53 | N36: 98.79 | O36: 82.26 | P36: 53.73 | Q36: 131.68 | R36: 1.96 | S36: 2.4 | T36: 3.17 | U36: 2.54 | V36: 286.61 | W36: 0.288 | X36: 2.451 | Y36: 0.35 | Z36: 0.504 | AA36: 0.854 | AB36: NL | AC36: 457708 | AD36: RF | AE36: =IF(ISNA(VLOOKUP(A36,Rankings!$B$2:$H$1998,7,FALSE)),"-",VLOOKUP(A36,Rankings!$B$2:$H$1998,7,FALSE)) -> 0
A37: Orlando Arcia | B37: SS | C37: =(G37*'Points System'!$B$16)+(H37*'Points System'!$B$17)+(I37*'Points System'!$B$15)+(J37*'Points System'!$B$2)+(K37*'Points System'!$B$3)+(L37*'Points System'!$B$4)+(M37*'Points System'!$B$5)+(N37*'Points System'!$B$6)+(O37*'Points System'!$B$7)+(P37*'Points System'!$B$8)+(Q37*'Points System'!$B$9)+(R37*'Points System'!$B$10)+(S37*'Points System'!$B$11)+(T37*'Points System'!$B$13)+(U37*'Points System'!$B$12)+(V37*'Points System'!$B$14) -> 102.58 | D37: =C37/G37 -> 0.1759851773 | E37: =C37/F37 -> 0.6893817204 | F37: 148.8 | G37: 582.89 | H37: 539.79 | I37: 144.03 | J37: 102.58 | K37: 23.58 | L37: 4.01 | M37: 14.69 | N37: 62.04 | O37: 62.74 | P37: 38.6 | Q37: 104.98 | R37: 16.54 | S37: 6.66 | T37: 2.83 | U37: 2.13 | V37: 220.53 | W37: 0.267 | X37: 2.72 | Y37: 0.317 | Z37: 0.409 | AA37: 0.726 | AB37: NL | AC37: 519058 | AD37: C | AE37: =IF(ISNA(VLOOKUP(A37,Rankings!$B$2:$H$1998,7,FALSE)),"-",VLOOKUP(A37,Rankings!$B$2:$H$1998,7,FALSE)) -> 0
A38: Joey Votto | B38: 1B | C38: =(G38*'Points System'!$B$16)+(H38*'Points System'!$B$17)+(I38*'Points System'!$B$15)+(J38*'Points System'!$B$2)+(K38*'Points System'!$B$3)+(L38*'Points System'!$B$4)+(M38*'Points System'!$B$5)+(N38*'Points System'!$B$6)+(O38*'Points System'!$B$7)+(P38*'Points System'!$B$8)+(Q38*'Points System'!$B$9)+(R38*'Points System'!$B$10)+(S38*'Points System'!$B$11)+(T38*'Points System'!$B$13)+(U38*'Points System'!$B$12)+(V38*'Points System'!$B$14) -> 101.98 | D38: =C38/G38 -> 0.1548530126 | E38: =C38/F38 -> 0.6553984576 | F38: 155.6 | G38: 658.56 | H38: 536.64 | I38: 165.25 | J38: 101.98 | K38: 31.6 | L38: 1.24 | M38: 29.63 | N38: 95.02 | O38: 96.97 | P38: 119.93 | Q38: 101.03 | R38: 5.31 | S38: 1.53 | T38: 4.97 | U38: 5.85 | V38: 287.42 | W38: 0.308 | X38: 0.842 | Y38: 0.436 | Z38: 0.536 | AA38: 0.972 | AB38: NL | AC38: 592178 | AD38: RF | AE38: =IF(ISNA(VLOOKUP(A38,Rankings!$B$2:$H$1998,7,FALSE)),"-",VLOOKUP(A38,Rankings!$B$2:$H$1998,7,FALSE)) -> 0
A39: Joe Mauer | B39: 1B | C39: =(G39*'Points System'!$B$16)+(H39*'Points System'!$B$17)+(I39*'Points System'!$B$15)+(J39*'Points System'!$B$2)+(K39*'Points System'!$B$3)+(L39*'Points System'!$B$4)+(M39*'Points System'!$B$5)+(N39*'Points System'!$B$6)+(O39*'Points System'!$B$7)+(P39*'Points System'!$B$8)+(Q39*'Points System'!$B$9)+(R39*'Points System'!$B$10)+(S39*'Points System'!$B$11)+(T39*'Points System'!$B$13)+(U39*'Points System'!$B$12)+(V39*'Points System'!$B$14) -> 101.4 | D39: =C39/G39 -> 0.1801769786 | E39: =C39/F39 -> 0.7544642857 | F39: 134.4 | G39: 562.78 | H39: 504.93 | I39: 129.97 | J39: 101.4 | K39: 26.87 | L39: 1.84 | M39: 8.96 | N39: 62.54 | O39: 67.44 | P39: 65.35 | Q39: 88.76 | R39: 2.16 | S39: 1.03 | T39: 2.7 | U39: 2.24 | V39: 196.5 | W39: 0.257 | X39: 1.358 | Y39: 0.343 | Z39: 0.389 | AA39: 0.732 | AB39: AL | AC39: 595981 | AD39: CF | AE39: =IF(ISNA(VLOOKUP(A39,Rankings!$B$2:$H$1998,7,FALSE)),"-",VLOOKUP(A39,Rankings!$B$2:$H$1998,7,FALSE)) -> 0
A40: Jonathan Schoop | B40: 2B | C40: =(G40*'Points System'!$B$16)+(H40*'Points System'!$B$17)+(I40*'Points System'!$B$15)+(J40*'Points System'!$B$2)+(K40*'Points System'!$B$3)+(L40*'Points System'!$B$4)+(M40*'Points System'!$B$5)+(N40*'Points System'!$B$6)+(O40*'Points System'!$B$7)+(P40*'Points System'!$B$8)+(Q40*'Points System'!$B$9)+(R40*'Points System'!$B$10)+(S40*'Points System'!$B$11)+(T40*'Points System'!$B$13)+(U40*'Points System'!$B$12)+(V40*'Points System'!$B$14) -> 101.12 | D40: =C40/G40 -> 0.1588987712 | E40: =C40/F40 -> 0.658504819 | F40: 153.56 | G40: 636.38 | H40: 600.77 | I40: 149.81 | J40: 101.12 | K40: 30.11 | L40: 0.59 | M40: 30.02 | N40: 94.49 | O40: 84.75 | P40: 29.77 | Q40: 134.73 | R40: 1.52 | S40: 0.83 | T40: 5.23 | U40: 9.1 | V40: 283.19 | W40: 0.249 | X40: 4.526 | Y40: 0.293 | Z40: 0.471 | AA40: 0.764 | AB40: AL | AC40: 645277 | AD40: LF | AE40: =IF(ISNA(VLOOKUP(A40,Rankings!$B$2:$H$1998,7,FALSE)),"-",VLOOKUP(A40,Rankings!$B$2:$H$1998,7,FALSE)) -> 0
A41: Nicky Lopez | C41: =(G41*'Points System'!$B$16)+(H41*'Points System'!$B$17)+(I41*'Points System'!$B$15)+(J41*'Points System'!$B$2)+(K41*'Points System'!$B$3)+(L41*'Points System'!$B$4)+(M41*'Points System'!$B$5)+(N41*'Points System'!$B$6)+(O41*'Points System'!$B$7)+(P41*'Points System'!$B$8)+(Q41*'Points System'!$B$9)+(R41*'Points System'!$B$10)+(S41*'Points System'!$B$11)+(T41*'Points System'!$B$13)+(U41*'Points System'!$B$12)+(V41*'Points System'!$B$14) -> 101 | D41: =C41/G41 -> 0.1806797853 | E41: =C41/F41 -> 0.814516129 | F41: 124 | G41: 559 | H41: 512 | I41: 128 | J41: 101 | K41: 16 | L41: 6 | M41: 5 | N41: 39 | O41: 57 | P41: 36 | Q41: 61 | R41: 17 | S41: 10 | U41: 6 | V41: 171 | W41: 0.25 | X41: 1.694 | Y41: 0.307 | Z41: 0.334 | AA41: 0.641 | AC41: 575929 | AD41: 3B | AE41: =IF(ISNA(VLOOKUP(A41,Rankings!$B$2:$H$1998,7,FALSE)),"-",VLOOKUP(A41,Rankings!$B$2:$H$1998,7,FALSE)) -> -
A42: Manny Machado | B42: 3B | C42: =(G42*'Points System'!$B$16)+(H42*'Points System'!$B$17)+(I42*'Points System'!$B$15)+(J42*'Points System'!$B$2)+(K42*'Points System'!$B$3)+(L42*'Points System'!$B$4)+(M42*'Points System'!$B$5)+(N42*'Points System'!$B$6)+(O42*'Points System'!$B$7)+(P42*'Points System'!$B$8)+(Q42*'Points System'!$B$9)+(R42*'Points System'!$B$10)+(S42*'Points System'!$B$11)+(T42*'Points System'!$B$13)+(U42*'Points System'!$B$12)+(V42*'Points System'!$B$14) -> 100.68 | D42: =C42/G42 -> 0.1527004687 | E42: =C42/F42 -> 0.651228978 | F42: 154.6 | G42: 659.33 | H42: 610.86 | I42: 156.88 | J42: 100.68 | K42: 31.41 | L42: 1.09 | M42: 34.9 | N42: 98.02 | O42: 92.73 | P42: 52.72 | Q42: 107.3 | R42: 7.64 | S42: 3.82 | T42: 4.63 | U42: 2.94 | V42: 306.37 | W42: 0.257 | X42: 2.035 | Y42: 0.317 | Z42: 0.502 | AA42: 0.819 | AB42: AL | AC42: 462101 | AD42: SS | AE42: =IF(ISNA(VLOOKUP(A42,Rankings!$B$2:$H$1998,7,FALSE)),"-",VLOOKUP(A42,Rankings!$B$2:$H$1998,7,FALSE)) -> 0
A43: Daniel Murphy | B43: 2B | C43: =(G43*'Points System'!$B$16)+(H43*'Points System'!$B$17)+(I43*'Points System'!$B$15)+(J43*'Points System'!$B$2)+(K43*'Points System'!$B$3)+(L43*'Points System'!$B$4)+(M43*'Points System'!$B$5)+(N43*'Points System'!$B$6)+(O43*'Points System'!$B$7)+(P43*'Points System'!$B$8)+(Q43*'Points System'!$B$9)+(R43*'Points System'!$B$10)+(S43*'Points System'!$B$11)+(T43*'Points System'!$B$13)+(U43*'Points System'!$B$12)+(V43*'Points System'!$B$14) -> 100.49 | D43: =C43/G43 -> 0.177334251 | E43: =C43/F43 -> 0.7516080778 | F43: 133.7 | G43: 566.67 | H43: 516.14 | I43: 162.73 | J43: 100.49 | K43: 37.87 | L43: 2.89 | M43: 19.53 | N43: 86.09 | O43: 80.26 | P43: 43.14 | Q43: 66 | R43: 2.84 | S43: 1.29 | T43: 4.07 | U43: 4.5 | V43: 263.02 | W43: 0.315 | X43: 1.53 | Y43: 0.37 | Z43: 0.51 | AA43: 0.88 | AB43: NL | AC43: 605137 | AD43: LF | AE43: =IF(ISNA(VLOOKUP(A43,Rankings!$B$2:$H$1998,7,FALSE)),"-",VLOOKUP(A43,Rankings!$B$2:$H$1998,7,FALSE)) -> 0
A44: Manuel Margot | B44: OF | C44: =(G44*'Points System'!$B$16)+(H44*'Points System'!$B$17)+(I44*'Points System'!$B$15)+(J44*'Points System'!$B$2)+(K44*'Points System'!$B$3)+(L44*'Points System'!$B$4)+(M44*'Points System'!$B$5)+(N44*'Points System'!$B$6)+(O44*'Points System'!$B$7)+(P44*'Points System'!$B$8)+(Q44*'Points System'!$B$9)+(R44*'Points System'!$B$10)+(S44*'Points System'!$B$11)+(T44*'Points System'!$B$13)+(U44*'Points System'!$B$12)+(V44*'Points System'!$B$14) -> 100.36 | D44: =C44/G44 -> 0.1683271276 | E44: =C44/F44 -> 0.7225341973 | F44: 138.9 | G44: 596.22 | H44: 547.57 | I44: 145.43 | J44: 100.36 | K44: 23.39 | L44: 8.6 | M44: 13.51 | N44: 51.35 | O44: 69.91 | P44: 39.21 | Q44: 105.65 | R44: 21.54 | S44: 8.17 | T44: 3.7 | U44: 2.98 | V44: 226.98 | W44: 0.266 | X44: 2.694 | Y44: 0.316 | Z44: 0.415 | AA44: 0.731 | AB44: NL | AC44: 541645 | AD44: C | AE44: =IF(ISNA(VLOOKUP(A44,Rankings!$B$2:$H$1998,7,FALSE)),"-",VLOOKUP(A44,Rankings!$B$2:$H$1998,7,FALSE)) -> 0
A45: Carlos Correa | B45: SS | C45: =(G45*'Points System'!$B$16)+(H45*'Points System'!$B$17)+(I45*'Points System'!$B$15)+(J45*'Points System'!$B$2)+(K45*'Points System'!$B$3)+(L45*'Points System'!$B$4)+(M45*'Points System'!$B$5)+(N45*'Points System'!$B$6)+(O45*'Points System'!$B$7)+(P45*'Points System'!$B$8)+(Q45*'Points System'!$B$9)+(R45*'Points System'!$B$10)+(S45*'Points System'!$B$11)+(T45*'Points System'!$B$13)+(U45*'Points System'!$B$12)+(V45*'Points System'!$B$14) -> 100.33 | D45: =C45/G45 -> 0.1605845258 | E45: =C45/F45 -> 0.6909779614 | F45: 145.2 | G45: 624.78 | H45: 544.71 | I45: 150.63 | J45: 100.33 | K45: 30.44 | L45: 2.01 | M45: 28.11 | N45: 104.01 | O45: 90.74 | P45: 68.2 | Q45: 116.94 | R45: 7.82 | S45: 2.58 | T45: 3.53 | U45: 3.36 | V45: 279.68 | W45: 0.277 | X45: 1.715 | Y45: 0.358 | Z45: 0.513 | AA45: 0.871 | AB45: AL | AC45: 643217 | AD45: RF | AE45: =IF(ISNA(VLOOKUP(A45,Rankings!$B$2:$H$1998,7,FALSE)),"-",VLOOKUP(A45,Rankings!$B$2:$H$1998,7,FALSE)) -> 0
A46: Billy Hamilton | B46: OF | C46: =(G46*'Points System'!$B$16)+(H46*'Points System'!$B$17)+(I46*'Points System'!$B$15)+(J46*'Points System'!$B$2)+(K46*'Points System'!$B$3)+(L46*'Points System'!$B$4)+(M46*'Points System'!$B$5)+(N46*'Points System'!$B$6)+(O46*'Points System'!$B$7)+(P46*'Points System'!$B$8)+(Q46*'Points System'!$B$9)+(R46*'Points System'!$B$10)+(S46*'Points System'!$B$11)+(T46*'Points System'!$B$13)+(U46*'Points System'!$B$12)+(V46*'Points System'!$B$14) -> 100.15 | D46: =C46/G46 -> 0.1741072981 | E46: =C46/F46 -> 0.7407544379 | F46: 135.2 | G46: 575.22 | H46: 530.71 | I46: 131.75 | J46: 100.15 | K46: 18.71 | L46: 7.24 | M46: 4.69 | N46: 38.04 | O46: 72.69 | P46: 41.3 | Q46: 115.78 | R46: 55.77 | S46: 12.04 | T46: 2.3 | U46: 1.25 | V46: 178.05 | W46: 0.248 | X46: 2.803 | Y46: 0.303 | Z46: 0.335 | AA46: 0.638 | AB46: NL | AC46: 516770 | AD46: LF | AE46: =IF(ISNA(VLOOKUP(A46,Rankings!$B$2:$H$1998,7,FALSE)),"-",VLOOKUP(A46,Rankings!$B$2:$H$1998,7,FALSE)) -> 0
A47: Melky Cabrera | B47: OF | C47: =(G47*'Points System'!$B$16)+(H47*'Points System'!$B$17)+(I47*'Points System'!$B$15)+(J47*'Points System'!$B$2)+(K47*'Points System'!$B$3)+(L47*'Points System'!$B$4)+(M47*'Points System'!$B$5)+(N47*'Points System'!$B$6)+(O47*'Points System'!$B$7)+(P47*'Points System'!$B$8)+(Q47*'Points System'!$B$9)+(R47*'Points System'!$B$10)+(S47*'Points System'!$B$11)+(T47*'Points System'!$B$13)+(U47*'Points System'!$B$12)+(V47*'Points System'!$B$14) -> 99.99 | D47: =C47/G47 -> 0.2011304663 | E47: =C47/F47 -> 0.794959453 | F47: 125.78 | G47: 497.14 | H47: 504.09 | I47: 140.71 | J47: 99.99 | K47: 28.87 | L47: 2.36 | M47: 12.6 | N47: 67.62 | O47: 61.1 | P47: 32.75 | Q47: 61.02 | R47: 1.63 | S47: 1.02 | T47: 3.03 | U47: 1.7 | V47: 215.21 | W47: 0.279 | X47: 1.863 | Y47: 0.323 | Z47: 0.427 | AA47: 0.75 | AB47: AL | AC47: 600869 | AD47: SS | AE47: =IF(ISNA(VLOOKUP(A47,Rankings!$B$2:$H$1998,7,FALSE)),"-",VLOOKUP(A47,Rankings!$B$2:$H$1998,7,FALSE)) -> 0
A48: Didi Gregorius | B48: SS | C48: =(G48*'Points System'!$B$16)+(H48*'Points System'!$B$17)+(I48*'Points System'!$B$15)+(J48*'Points System'!$B$2)+(K48*'Points System'!$B$3)+(L48*'Points System'!$B$4)+(M48*'Points System'!$B$5)+(N48*'Points System'!$B$6)+(O48*'Points System'!$B$7)+(P48*'Points System'!$B$8)+(Q48*'Points System'!$B$9)+(R48*'Points System'!$B$10)+(S48*'Points System'!$B$11)+(T48*'Points System'!$B$13)+(U48*'Points System'!$B$12)+(V48*'Points System'!$B$14) -> 99.82 | D48: =C48/G48 -> 0.1679227508 | E48: =C48/F48 -> 0.6884137931 | F48: 145 | G48: 594.44 | H48: 552.79 | I48: 139.51 | J48: 99.82 | K48: 26.34 | L48: 1.36 | M48: 21.72 | N48: 79.04 | O48: 71.7 | P48: 28.92 | Q48: 79.89 | R48: 4.67 | S48: 1.38 | T48: 4.8 | U48: 6.34 | V48: 243.46 | W48: 0.252 | X48: 2.762 | Y48: 0.295 | Z48: 0.44 | AA48: 0.735 | AB48: AL | AC48: 502110 | AD48: 2B | AE48: =IF(ISNA(VLOOKUP(A48,Rankings!$B$2:$H$1998,7,FALSE)),"-",VLOOKUP(A48,Rankings!$B$2:$H$1998,7,FALSE)) -> 0
A49: Joe Panik | B49: 2B | C49: =(G49*'Points System'!$B$16)+(H49*'Points System'!$B$17)+(I49*'Points System'!$B$15)+(J49*'Points System'!$B$2)+(K49*'Points System'!$B$3)+(L49*'Points System'!$B$4)+(M49*'Points System'!$B$5)+(N49*'Points System'!$B$6)+(O49*'Points System'!$B$7)+(P49*'Points System'!$B$8)+(Q49*'Points System'!$B$9)+(R49*'Points System'!$B$10)+(S49*'Points System'!$B$11)+(T49*'Points System'!$B$13)+(U49*'Points System'!$B$12)+(V49*'Points System'!$B$14) -> 99.61 | D49: =C49/G49 -> 0.1723028489 | E49: =C49/F49 -> 0.7389465875 | F49: 134.8 | G49: 578.11 | H49: 509.93 | I49: 144.12 | J49: 99.61 | K49: 27.16 | L49: 4.96 | M49: 10.84 | N49: 58.11 | O49: 69.51 | P49: 49.79 | Q49: 56.43 | R49: 4.1 | S49: 1.63 | T49: 4.7 | U49: 5.25 | V49: 212.17 | W49: 0.283 | X49: 1.133 | Y49: 0.35 | Z49: 0.416 | AA49: 0.766 | AB49: NL | AC49: 453943 | AD49: LF | AE49: =IF(ISNA(VLOOKUP(A49,Rankings!$B$2:$H$1998,7,FALSE)),"-",VLOOKUP(A49,Rankings!$B$2:$H$1998,7,FALSE)) -> 0
A50: Amed Rosario | B50: SS | C50: =(G50*'Points System'!$B$16)+(H50*'Points System'!$B$17)+(I50*'Points System'!$B$15)+(J50*'Points System'!$B$2)+(K50*'Points System'!$B$3)+(L50*'Points System'!$B$4)+(M50*'Points System'!$B$5)+(N50*'Points System'!$B$6)+(O50*'Points System'!$B$7)+(P50*'Points System'!$B$8)+(Q50*'Points System'!$B$9)+(R50*'Points System'!$B$10)+(S50*'Points System'!$B$11)+(T50*'Points System'!$B$13)+(U50*'Points System'!$B$12)+(V50*'Points System'!$B$14) -> 98.64 | D50: =C50/G50 -> 0.1728827818 | E50: =C50/F50 -> 0.7215801024 | F50: 136.7 | G50: 570.56 | H50: 509.36 | I50: 133.24 | J50: 98.64 | K50: 21 | L50: 8.14 | M50: 9.55 | N50: 49.55 | O50: 56.08 | P50: 25.71 | Q50: 122.89 | R50: 18.09 | S50: 7.86 | T50: 4.27 | U50: 4.75 | V50: 203.26 | W50: 0.262 | X50: 4.78 | Y50: 0.301 | Z50: 0.399 | AA50: 0.7 | AB50: NL | AC50: 503556 | AD50: 2B | AE50: =IF(ISNA(VLOOKUP(A50,Rankings!$B$2:$H$1998,7,FALSE)),"-",VLOOKUP(A50,Rankings!$B$2:$H$1998,7,FALSE)) -> 0
A51: Nomar Mazara | B51: OF | C51: =(G51*'Points System'!$B$16)+(H51*'Points System'!$B$17)+(I51*'Points System'!$B$15)+(J51*'Points System'!$B$2)+(K51*'Points System'!$B$3)+(L51*'Points System'!$B$4)+(M51*'Points System'!$B$5)+(N51*'Points System'!$B$6)+(O51*'Points System'!$B$7)+(P51*'Points System'!$B$8)+(Q51*'Points System'!$B$9)+(R51*'Points System'!$B$10)+(S51*'Points System'!$B$11)+(T51*'Points System'!$B$13)+(U51*'Points System'!$B$12)+(V51*'Points System'!$B$14) -> 97.43 | D51: =C51/G51 -> 0.1547318437 | E51: =C51/F51 -> 0.6517056856 | F51: 149.5 | G51: 629.67 | H51: 565.64 | I51: 139.25 | J51: 97.43 | K51: 25.23 | L51: 2.59 | M51: 23.22 | N51: 91.04 | O51: 73.93 | P51: 53.43 | Q51: 123.13 | R51: 2.29 | S51: 2.01 | T51: 4.57 | U51: 6.13 | V51: 248.54 | W51: 0.246 | X51: 2.305 | Y51: 0.316 | Z51: 0.439 | AA51: 0.755 | AB51: AL | AC51: 660162 | AD51: 1B | AE51: =IF(ISNA(VLOOKUP(A51,Rankings!$B$2:$H$1998,7,FALSE)),"-",VLOOKUP(A51,Rankings!$B$2:$H$1998,7,FALSE)) -> 0
A52: Alex Bregman | B52: SS/3B | C52: =(G52*'Points System'!$B$16)+(H52*'Points System'!$B$17)+(I52*'Points System'!$B$15)+(J52*'Points System'!$B$2)+(K52*'Points System'!$B$3)+(L52*'Points System'!$B$4)+(M52*'Points System'!$B$5)+(N52*'Points System'!$B$6)+(O52*'Points System'!$B$7)+(P52*'Points System'!$B$8)+(Q52*'Points System'!$B$9)+(R52*'Points System'!$B$10)+(S52*'Points System'!$B$11)+(T52*'Points System'!$B$13)+(U52*'Points System'!$B$12)+(V52*'Points System'!$B$14) -> 97.15 | D52: =C52/G52 -> 0.1517707894 | E52: =C52/F52 -> 0.6404087014 | F52: 151.7 | G52: 640.11 | H52: 576.2 | I52: 148.35 | J52: 97.15 | K52: 33.88 | L52: 5.17 | M52: 21.47 | N52: 81.63 | O52: 90.07 | P52: 56.24 | Q52: 100.13 | R52: 14.59 | S52: 5.13 | T52: 5.33 | U52: 5.94 | V52: 266.3 | W52: 0.257 | X52: 1.78 | Y52: 0.327 | Z52: 0.462 | AA52: 0.789 | AB52: AL | AC52: 592450 | AD52: SS | AE52: =IF(ISNA(VLOOKUP(A52,Rankings!$B$2:$H$1998,7,FALSE)),"-",VLOOKUP(A52,Rankings!$B$2:$H$1998,7,FALSE)) -> 0
A53: Evan Longoria | B53: 3B | C53: =(G53*'Points System'!$B$16)+(H53*'Points System'!$B$17)+(I53*'Points System'!$B$15)+(J53*'Points System'!$B$2)+(K53*'Points System'!$B$3)+(L53*'Points System'!$B$4)+(M53*'Points System'!$B$5)+(N53*'Points System'!$B$6)+(O53*'Points System'!$B$7)+(P53*'Points System'!$B$8)+(Q53*'Points System'!$B$9)+(R53*'Points System'!$B$10)+(S53*'Points System'!$B$11)+(T53*'Points System'!$B$13)+(U53*'Points System'!$B$12)+(V53*'Points System'!$B$14) -> 97.11 | D53: =C53/G53 -> 0.1538985737 | E53: =C53/F53 -> 0.6421769607 | F53: 151.22 | G53: 631 | H53: 582.15 | I53: 155.76 | J53: 97.11 | K53: 34.83 | L53: 2.18 | M53: 22.52 | N53: 84.42 | O53: 71.55 | P53: 44.62 | Q53: 112.96 | R53: 3.58 | S53: 1.93 | T53: 5.63 | U53: 4.73 | V53: 263.39 | W53: 0.268 | X53: 2.532 | Y53: 0.322 | Z53: 0.452 | AA53: 0.774 | AB53: NL | AC53: 516416 | AD53: CF | AE53: =IF(ISNA(VLOOKUP(A53,Rankings!$B$2:$H$1998,7,FALSE)),"-",VLOOKUP(A53,Rankings!$B$2:$H$1998,7,FALSE)) -> 0
A54: Ian Miller | C54: =(G54*'Points System'!$B$16)+(H54*'Points System'!$B$17)+(I54*'Points System'!$B$15)+(J54*'Points System'!$B$2)+(K54*'Points System'!$B$3)+(L54*'Points System'!$B$4)+(M54*'Points System'!$B$5)+(N54*'Points System'!$B$6)+(O54*'Points System'!$B$7)+(P54*'Points System'!$B$8)+(Q54*'Points System'!$B$9)+(R54*'Points System'!$B$10)+(S54*'Points System'!$B$11)+(T54*'Points System'!$B$13)+(U54*'Points System'!$B$12)+(V54*'Points System'!$B$14) -> 97 | D54: =C54/G54 -> 0.1766848816 | E54: =C54/F54 -> 0.776 | F54: 125 | G54: 549 | H54: 510 | I54: 117 | J54: 97 | K54: 14 | L54: 4 | M54: 2 | N54: 32 | O54: 51 | P54: 27 | Q54: 113 | R54: 31 | S54: 6 | U54: 5 | V54: 145 | W54: 0.229 | X54: 4.185 | Y54: 0.275 | Z54: 0.284 | AA54: 0.559 | AC54: 592419 | AD54: 2B | AE54: =IF(ISNA(VLOOKUP(A54,Rankings!$B$2:$H$1998,7,FALSE)),"-",VLOOKUP(A54,Rankings!$B$2:$H$1998,7,FALSE)) -> -
A55: Josh Harrison | B55: 2B/3B/OF | C55: =(G55*'Points System'!$B$16)+(H55*'Points System'!$B$17)+(I55*'Points System'!$B$15)+(J55*'Points System'!$B$2)+(K55*'Points System'!$B$3)+(L55*'Points System'!$B$4)+(M55*'Points System'!$B$5)+(N55*'Points System'!$B$6)+(O55*'Points System'!$B$7)+(P55*'Points System'!$B$8)+(Q55*'Points System'!$B$9)+(R55*'Points System'!$B$10)+(S55*'Points System'!$B$11)+(T55*'Points System'!$B$13)+(U55*'Points System'!$B$12)+(V55*'Points System'!$B$14) -> 96.84 | D55: =C55/G55 -> 0.1732379249 | E55: =C55/F55 -> 0.7403669725 | F55: 130.8 | G55: 559 | H55: 509.07 | I55: 141.69 | J55: 96.84 | K55: 28.95 | L55: 3.44 | M55: 11.8 | N55: 53.11 | O55: 65.29 | P55: 25.86 | Q55: 89.46 | R55: 13.37 | S55: 4.9 | T55: 5.47 | U55: 12.34 | V55: 212.26 | W55: 0.278 | X55: 3.459 | Y55: 0.325 | Z55: 0.417 | AA55: 0.742 | AB55: NL | AC55: 444482 | AD55: 2B | AE55: =IF(ISNA(VLOOKUP(A55,Rankings!$B$2:$H$1998,7,FALSE)),"-",VLOOKUP(A55,Rankings!$B$2:$H$1998,7,FALSE)) -> 0
A56: Ian Kinsler | B56: 2B | C56: =(G56*'Points System'!$B$16)+(H56*'Points System'!$B$17)+(I56*'Points System'!$B$15)+(J56*'Points System'!$B$2)+(K56*'Points System'!$B$3)+(L56*'Points System'!$B$4)+(M56*'Points System'!$B$5)+(N56*'Points System'!$B$6)+(O56*'Points System'!$B$7)+(P56*'Points System'!$B$8)+(Q56*'Points System'!$B$9)+(R56*'Points System'!$B$10)+(S56*'Points System'!$B$11)+(T56*'Points System'!$B$13)+(U56*'Points System'!$B$12)+(V56*'Points System'!$B$14) -> 96.11 | D56: =C56/G56 -> 0.1581901376 | E56: =C56/F56 -> 0.6811481219 | F56: 141.1 | G56: 607.56 | H56: 556.62 | I56: 143.48 | J56: 96.11 | K56: 25.77 | L56: 3.42 | M56: 18.7 | N56: 61.75 | O56: 86.58 | P56: 46.14 | Q56: 94.1 | R56: 11.81 | S56: 5.19 | T56: 3.4 | U56: 7.28 | V56: 232.71 | W56: 0.258 | X56: 2.039 | Y56: 0.321 | Z56: 0.418 | AA56: 0.739 | AB56: AL | AC56: 621566 | AD56: 3B | AE56: =IF(ISNA(VLOOKUP(A56,Rankings!$B$2:$H$1998,7,FALSE)),"-",VLOOKUP(A56,Rankings!$B$2:$H$1998,7,FALSE)) -> 0
A57: Trey Mancini | B57: 1B/OF | C57: =(G57*'Points System'!$B$16)+(H57*'Points System'!$B$17)+(I57*'Points System'!$B$15)+(J57*'Points System'!$B$2)+(K57*'Points System'!$B$3)+(L57*'Points System'!$B$4)+(M57*'Points System'!$B$5)+(N57*'Points System'!$B$6)+(O57*'Points System'!$B$7)+(P57*'Points System'!$B$8)+(Q57*'Points System'!$B$9)+(R57*'Points System'!$B$10)+(S57*'Points System'!$B$11)+(T57*'Points System'!$B$13)+(U57*'Points System'!$B$12)+(V57*'Points System'!$B$14) -> 95.69 | D57: =C57/G57 -> 0.1618517641 | E57: =C57/F57 -> 0.6786524823 | F57: 141 | G57: 591.22 | H57: 538.8 | I57: 139.06 | J57: 95.69 | K57: 24.93 | L57: 4.02 | M57: 23.66 | N57: 77.65 | O57: 68.41 | P57: 36.43 | Q57: 141.75 | R57: 1.73 | S57: 0.71 | T57: 4.1 | U57: 5.06 | V57: 252.25 | W57: 0.258 | X57: 3.891 | Y57: 0.309 | Z57: 0.468 | AA57: 0.777 | AB57: AL | AC57: 641658 | AD57: RF | AE57: =IF(ISNA(VLOOKUP(A57,Rankings!$B$2:$H$1998,7,FALSE)),"-",VLOOKUP(A57,Rankings!$B$2:$H$1998,7,FALSE)) -> 0
A58: Brett Gardner | B58: OF | C58: =(G58*'Points System'!$B$16)+(H58*'Points System'!$B$17)+(I58*'Points System'!$B$15)+(J58*'Points System'!$B$2)+(K58*'Points System'!$B$3)+(L58*'Points System'!$B$4)+(M58*'Points System'!$B$5)+(N58*'Points System'!$B$6)+(O58*'Points System'!$B$7)+(P58*'Points System'!$B$8)+(Q58*'Points System'!$B$9)+(R58*'Points System'!$B$10)+(S58*'Points System'!$B$11)+(T58*'Points System'!$B$13)+(U58*'Points System'!$B$12)+(V58*'Points System'!$B$14) -> 95.16 | D58: =C58/G58 -> 0.1612280167 | E58: =C58/F58 -> 0.6826398852 | F58: 139.4 | G58: 590.22 | H58: 537.93 | I58: 126.11 | J58: 95.16 | K58: 22.03 | L58: 3.61 | M58: 15.38 | N58: 56.29 | O58: 83.54 | P58: 63.55 | Q58: 109.41 | R58: 17.04 | S58: 4.52 | T58: 3.3 | U58: 6.2 | V58: 211.57 | W58: 0.234 | X58: 1.722 | Y58: 0.321 | Z58: 0.393 | AA58: 0.714 | AB58: AL | AC58: 596115 | AD58: RF | AE58: =IF(ISNA(VLOOKUP(A58,Rankings!$B$2:$H$1998,7,FALSE)),"-",VLOOKUP(A58,Rankings!$B$2:$H$1998,7,FALSE)) -> 0
A59: Kole Calhoun | B59: OF | C59: =(G59*'Points System'!$B$16)+(H59*'Points System'!$B$17)+(I59*'Points System'!$B$15)+(J59*'Points System'!$B$2)+(K59*'Points System'!$B$3)+(L59*'Points System'!$B$4)+(M59*'Points System'!$B$5)+(N59*'Points System'!$B$6)+(O59*'Points System'!$B$7)+(P59*'Points System'!$B$8)+(Q59*'Points System'!$B$9)+(R59*'Points System'!$B$10)+(S59*'Points System'!$B$11)+(T59*'Points System'!$B$13)+(U59*'Points System'!$B$12)+(V59*'Points System'!$B$14) -> 94.36 | D59: =C59/G59 -> 0.1523016334 | E59: =C59/F59 -> 0.628229028 | F59: 150.2 | G59: 619.56 | H59: 561.43 | I59: 131.77 | J59: 94.36 | K59: 24.34 | L59: 2.75 | M59: 19.72 | N59: 73.57 | O59: 78.67 | P59: 61.57 | Q59: 124.61 | R59: 4.06 | S59: 1.94 | T59: 4.5 | U59: 6.14 | V59: 230.17 | W59: 0.235 | X59: 2.024 | Y59: 0.315 | Z59: 0.41 | AA59: 0.725 | AB59: AL | AC59: 614177 | AD59: RF | AE59: =IF(ISNA(VLOOKUP(A59,Rankings!$B$2:$H$1998,7,FALSE)),"-",VLOOKUP(A59,Rankings!$B$2:$H$1998,7,FALSE)) -> 0
A60: Andrew McCutchen | B60: OF | C60: =(G60*'Points System'!$B$16)+(H60*'Points System'!$B$17)+(I60*'Points System'!$B$15)+(J60*'Points System'!$B$2)+(K60*'Points System'!$B$3)+(L60*'Points System'!$B$4)+(M60*'Points System'!$B$5)+(N60*'Points System'!$B$6)+(O60*'Points System'!$B$7)+(P60*'Points System'!$B$8)+(Q60*'Points System'!$B$9)+(R60*'Points System'!$B$10)+(S60*'Points System'!$B$11)+(T60*'Points System'!$B$13)+(U60*'Points System'!$B$12)+(V60*'Points System'!$B$14) -> 94.35 | D60: =C60/G60 -> 0.1481417513 | E60: =C60/F60 -> 0.6264940239 | F60: 150.6 | G60: 636.89 | H60: 553.79 | I60: 150.27 | J60: 94.35 | K60: 29.15 | L60: 2.82 | M60: 24.66 | N60: 83 | O60: 87.16 | P60: 75.11 | Q60: 126.39 | R60: 9.26 | S60: 4.85 | T60: 3.9 | U60: 6.55 | V60: 259.75 | W60: 0.271 | X60: 1.683 | Y60: 0.363 | Z60: 0.469 | AA60: 0.832 | AB60: NL | AC60: 467793 | AD60: RF | AE60: =IF(ISNA(VLOOKUP(A60,Rankings!$B$2:$H$1998,7,FALSE)),"-",VLOOKUP(A60,Rankings!$B$2:$H$1998,7,FALSE)) -> 0
A61: Kevin Pillar | B61: OF | C61: =(G61*'Points System'!$B$16)+(H61*'Points System'!$B$17)+(I61*'Points System'!$B$15)+(J61*'Points System'!$B$2)+(K61*'Points System'!$B$3)+(L61*'Points System'!$B$4)+(M61*'Points System'!$B$5)+(N61*'Points System'!$B$6)+(O61*'Points System'!$B$7)+(P61*'Points System'!$B$8)+(Q61*'Points System'!$B$9)+(R61*'Points System'!$B$10)+(S61*'Points System'!$B$11)+(T61*'Points System'!$B$13)+(U61*'Points System'!$B$12)+(V61*'Points System'!$B$14) -> 94.35 | D61: =C61/G61 -> 0.1628605458 | E61: =C61/F61 -> 0.6533933518 | F61: 144.4 | G61: 579.33 | H61: 543.64 | I61: 131.28 | J61: 94.35 | K61: 31.6 | L61: 1.68 | M61: 12.94 | N61: 51.88 | O61: 65.74 | P61: 27.75 | Q61: 88.53 | R61: 14.38 | S61: 5.28 | T61: 3.47 | U61: 5.91 | V61: 214.35 | W61: 0.241 | X61: 3.19 | Y61: 0.284 | Z61: 0.394 | AA61: 0.678 | AB61: AL | AC61: 606299 | AD61: LF | AE61: =IF(ISNA(VLOOKUP(A61,Rankings!$B$2:$H$1998,7,FALSE)),"-",VLOOKUP(A61,Rankings!$B$2:$H$1998,7,FALSE)) -> 0
A62: George Springer | B62: OF | C62: =(G62*'Points System'!$B$16)+(H62*'Points System'!$B$17)+(I62*'Points System'!$B$15)+(J62*'Points System'!$B$2)+(K62*'Points System'!$B$3)+(L62*'Points System'!$B$4)+(M62*'Points System'!$B$5)+(N62*'Points System'!$B$6)+(O62*'Points System'!$B$7)+(P62*'Points System'!$B$8)+(Q62*'Points System'!$B$9)+(R62*'Points System'!$B$10)+(S62*'Points System'!$B$11)+(T62*'Points System'!$B$13)+(U62*'Points System'!$B$12)+(V62*'Points System'!$B$14) -> 94.29 | D62: =C62/G62 -> 0.1465131456 | E62: =C62/F62 -> 0.6414285714 | F62: 147 | G62: 643.56 | H62: 567.93 | I62: 142.62 | J62: 94.29 | K62: 26.03 | L62: 1.69 | M62: 31.37 | N62: 84.76 | O62: 107.81 | P62: 72.75 | Q62: 134.45 | R62: 8.41 | S62: 5.96 | T62: 4.47 | U62: 10.46 | V62: 276.9 | W62: 0.251 | X62: 1.848 | Y62: 0.344 | Z62: 0.488 | AA62: 0.832 | AB62: AL | AC62: 429664 | AD62: C | AE62: =IF(ISNA(VLOOKUP(A62,Rankings!$B$2:$H$1998,7,FALSE)),"-",VLOOKUP(A62,Rankings!$B$2:$H$1998,7,FALSE)) -> 0
A63: Eddie Rosario | B63: OF | C63: =(G63*'Points System'!$B$16)+(H63*'Points System'!$B$17)+(I63*'Points System'!$B$15)+(J63*'Points System'!$B$2)+(K63*'Points System'!$B$3)+(L63*'Points System'!$B$4)+(M63*'Points System'!$B$5)+(N63*'Points System'!$B$6)+(O63*'Points System'!$B$7)+(P63*'Points System'!$B$8)+(Q63*'Points System'!$B$9)+(R63*'Points System'!$B$10)+(S63*'Points System'!$B$11)+(T63*'Points System'!$B$13)+(U63*'Points System'!$B$12)+(V63*'Points System'!$B$14) -> 94.13 | D63: =C63/G63 -> 0.1605108792 | E63: =C63/F63 -> 0.6478320716 | F63: 145.3 | G63: 586.44 | H63: 550.36 | I63: 140.09 | J63: 94.13 | K63: 28.11 | L63: 3.93 | M63: 23.64 | N63: 77.86 | O63: 76.95 | P63: 31.07 | Q63: 119.83 | R63: 9.44 | S63: 6.33 | T63: 4.2 | U63: 1.45 | V63: 256.7 | W63: 0.255 | X63: 3.857 | Y63: 0.294 | Z63: 0.466 | AA63: 0.76 | AB63: AL | AC63: 641820 | AD63: RF | AE63: =IF(ISNA(VLOOKUP(A63,Rankings!$B$2:$H$1998,7,FALSE)),"-",VLOOKUP(A63,Rankings!$B$2:$H$1998,7,FALSE)) -> 0
A64: Ketel Marte | B64: SS | C64: =(G64*'Points System'!$B$16)+(H64*'Points System'!$B$17)+(I64*'Points System'!$B$15)+(J64*'Points System'!$B$2)+(K64*'Points System'!$B$3)+(L64*'Points System'!$B$4)+(M64*'Points System'!$B$5)+(N64*'Points System'!$B$6)+(O64*'Points System'!$B$7)+(P64*'Points System'!$B$8)+(Q64*'Points System'!$B$9)+(R64*'Points System'!$B$10)+(S64*'Points System'!$B$11)+(T64*'Points System'!$B$13)+(U64*'Points System'!$B$12)+(V64*'Points System'!$B$14) -> 94.12 | D64: =C64/G64 -> 0.1750516116 | E64: =C64/F64 -> 0.7190221543 | F64: 130.9 | G64: 537.67 | H64: 477.21 | I64: 133.86 | J64: 94.12 | K64: 27.71 | L64: 5.76 | M64: 8.14 | N64: 48.36 | O64: 62.69 | P64: 41.75 | Q64: 75.99 | R64: 11.31 | S64: 4.28 | T64: 3.27 | U64: 2.09 | V64: 199.38 | W64: 0.281 | X64: 1.82 | Y64: 0.339 | Z64: 0.418 | AA64: 0.757 | AB64: NL | AC64: 606466 | AD64: 2B | AE64: =IF(ISNA(VLOOKUP(A64,Rankings!$B$2:$H$1998,7,FALSE)),"-",VLOOKUP(A64,Rankings!$B$2:$H$1998,7,FALSE)) -> 0
A65: Garabez Rosa | C65: =(G65*'Points System'!$B$16)+(H65*'Points System'!$B$17)+(I65*'Points System'!$B$15)+(J65*'Points System'!$B$2)+(K65*'Points System'!$B$3)+(L65*'Points System'!$B$4)+(M65*'Points System'!$B$5)+(N65*'Points System'!$B$6)+(O65*'Points System'!$B$7)+(P65*'Points System'!$B$8)+(Q65*'Points System'!$B$9)+(R65*'Points System'!$B$10)+(S65*'Points System'!$B$11)+(T65*'Points System'!$B$13)+(U65*'Points System'!$B$12)+(V65*'Points System'!$B$14) -> 94 | D65: =C65/G65 -> 0.1804222649 | E65: =C65/F65 -> 0.746031746 | F65: 126 | G65: 521 | H65: 503 | I65: 121 | J65: 94 | K65: 17 | L65: 1 | M65: 9 | N65: 49 | O65: 49 | P65: 11 | Q65: 135 | R65: 2 | S65: 4 | U65: 3 | V65: 167 | W65: 0.241 | X65: 12.273 | Y65: 0.261 | Z65: 0.332 | AA65: 0.593 | AC65: 623251 | AD65: RF | AE65: =IF(ISNA(VLOOKUP(A65,Rankings!$B$2:$H$1998,7,FALSE)),"-",VLOOKUP(A65,Rankings!$B$2:$H$1998,7,FALSE)) -> -
A66: Paul Goldschmidt | B66: 1B | C66: =(G66*'Points System'!$B$16)+(H66*'Points System'!$B$17)+(I66*'Points System'!$B$15)+(J66*'Points System'!$B$2)+(K66*'Points System'!$B$3)+(L66*'Points System'!$B$4)+(M66*'Points System'!$B$5)+(N66*'Points System'!$B$6)+(O66*'Points System'!$B$7)+(P66*'Points System'!$B$8)+(Q66*'Points System'!$B$9)+(R66*'Points System'!$B$10)+(S66*'Points System'!$B$11)+(T66*'Points System'!$B$13)+(U66*'Points System'!$B$12)+(V66*'Points System'!$B$14) -> 93.77 | D66: =C66/G66 -> 0.1430380133 | E66: =C66/F66 -> 0.6069255663 | F66: 154.5 | G66: 655.56 | H66: 551.57 | I66: 161.93 | J66: 93.77 | K66: 33.56 | L66: 2.76 | M66: 31.33 | N66: 106.94 | O66: 104.06 | P66: 100.59 | Q66: 142.55 | R66: 17.55 | S66: 5.02 | T66: 4.3 | U66: 5.44 | V66: 294.49 | W66: 0.294 | X66: 1.417 | Y66: 0.405 | Z66: 0.534 | AA66: 0.939 | AB66: NL | AC66: 572821 | AD66: 2B | AE66: =IF(ISNA(VLOOKUP(A66,Rankings!$B$2:$H$1998,7,FALSE)),"-",VLOOKUP(A66,Rankings!$B$2:$H$1998,7,FALSE)) -> 0
A67: Justin Turner | B67: 3B | C67: =(G67*'Points System'!$B$16)+(H67*'Points System'!$B$17)+(I67*'Points System'!$B$15)+(J67*'Points System'!$B$2)+(K67*'Points System'!$B$3)+(L67*'Points System'!$B$4)+(M67*'Points System'!$B$5)+(N67*'Points System'!$B$6)+(O67*'Points System'!$B$7)+(P67*'Points System'!$B$8)+(Q67*'Points System'!$B$9)+(R67*'Points System'!$B$10)+(S67*'Points System'!$B$11)+(T67*'Points System'!$B$13)+(U67*'Points System'!$B$12)+(V67*'Points System'!$B$14) -> 93.58 | D67: =C67/G67 -> 0.1615314242 | E67: =C67/F67 -> 0.678115942 | F67: 138 | G67: 579.33 | H67: 507.29 | I67: 149.05 | J67: 93.58 | K67: 31.92 | L67: 1.22 | M67: 22.44 | N67: 81.64 | O67: 76.96 | P67: 54.38 | Q67: 83.09 | R67: 5.49 | S67: 1.39 | T67: 6.2 | U67: 13.8 | V67: 250.84 | W67: 0.294 | X67: 1.528 | Y67: 0.373 | Z67: 0.494 | AA67: 0.867 | AB67: NL | AC67: 501981 | AD67: LF | AE67: =IF(ISNA(VLOOKUP(A67,Rankings!$B$2:$H$1998,7,FALSE)),"-",VLOOKUP(A67,Rankings!$B$2:$H$1998,7,FALSE)) -> 0
A68: Miguel Cabrera | B68: 1B | C68: =(G68*'Points System'!$B$16)+(H68*'Points System'!$B$17)+(I68*'Points System'!$B$15)+(J68*'Points System'!$B$2)+(K68*'Points System'!$B$3)+(L68*'Points System'!$B$4)+(M68*'Points System'!$B$5)+(N68*'Points System'!$B$6)+(O68*'Points System'!$B$7)+(P68*'Points System'!$B$8)+(Q68*'Points System'!$B$9)+(R68*'Points System'!$B$10)+(S68*'Points System'!$B$11)+(T68*'Points System'!$B$13)+(U68*'Points System'!$B$12)+(V68*'Points System'!$B$14) -> 93.22 | D68: =C68/G68 -> 0.1636702016 | E68: =C68/F68 -> 0.6925705795 | F68: 134.6 | G68: 569.56 | H68: 509.57 | I68: 132.91 | J68: 93.22 | K68: 24.34 | L68: 0.65 | M68: 24.16 | N68: 80.59 | O68: 69.88 | P68: 62.52 | Q68: 109.66 | R68: 0.46 | S68: 0.66 | T68: 3.5 | U68: 3.4 | V68: 240.49 | W68: 0.261 | X68: 1.754 | Y68: 0.343 | Z68: 0.472 | AA68: 0.815 | AB68: AL | AC68: 622534 | AD68: 1B | AE68: =IF(ISNA(VLOOKUP(A68,Rankings!$B$2:$H$1998,7,FALSE)),"-",VLOOKUP(A68,Rankings!$B$2:$H$1998,7,FALSE)) -> 0
A69: Alcides Escobar | B69: SS | C69: =(G69*'Points System'!$B$16)+(H69*'Points System'!$B$17)+(I69*'Points System'!$B$15)+(J69*'Points System'!$B$2)+(K69*'Points System'!$B$3)+(L69*'Points System'!$B$4)+(M69*'Points System'!$B$5)+(N69*'Points System'!$B$6)+(O69*'Points System'!$B$7)+(P69*'Points System'!$B$8)+(Q69*'Points System'!$B$9)+(R69*'Points System'!$B$10)+(S69*'Points System'!$B$11)+(T69*'Points System'!$B$13)+(U69*'Points System'!$B$12)+(V69*'Points System'!$B$14) -> 93.16 | D69: =C69/G69 -> 0.181953125 | E69: =C69/F69 -> 0.671665465 | F69: 138.7 | G69: 512 | H69: 507.79 | I69: 114.95 | J69: 93.16 | K69: 22.95 | L69: 3.75 | M69: 5.18 | N69: 44.54 | O69: 54.59 | P69: 17.96 | Q69: 74.33 | R69: 8.34 | S69: 4.15 | T69: 3.73 | U69: 3.94 | V69: 171.03 | W69: 0.226 | X69: 4.139 | Y69: 0.257 | Z69: 0.337 | AA69: 0.594 | AB69: AL | AC69: 594988 | AD69: OF | AE69: =IF(ISNA(VLOOKUP(A69,Rankings!$B$2:$H$1998,7,FALSE)),"-",VLOOKUP(A69,Rankings!$B$2:$H$1998,7,FALSE)) -> 0
A70: Daniel Castro | B70: SS | C70: =(G70*'Points System'!$B$16)+(H70*'Points System'!$B$17)+(I70*'Points System'!$B$15)+(J70*'Points System'!$B$2)+(K70*'Points System'!$B$3)+(L70*'Points System'!$B$4)+(M70*'Points System'!$B$5)+(N70*'Points System'!$B$6)+(O70*'Points System'!$B$7)+(P70*'Points System'!$B$8)+(Q70*'Points System'!$B$9)+(R70*'Points System'!$B$10)+(S70*'Points System'!$B$11)+(T70*'Points System'!$B$13)+(U70*'Points System'!$B$12)+(V70*'Points System'!$B$14) -> 93 | D70: =C70/G70 -> 0.1953781513 | E70: =C70/F70 -> 0.7153846154 | F70: 130 | G70: 476 | H70: 445 | I70: 121 | J70: 93 | K70: 21 | L70: 2 | M70: 5 | N70: 42 | O70: 47 | P70: 20 | Q70: 54 | R70: 2 | S70: 4 | U70: 1 | V70: 161 | W70: 0.272 | X70: 2.7 | Y70: 0.305 | Z70: 0.362 | AA70: 0.667 | AC70: 607111 | AD70: SP | AE70: =IF(ISNA(VLOOKUP(A70,Rankings!$B$2:$H$1998,7,FALSE)),"-",VLOOKUP(A70,Rankings!$B$2:$H$1998,7,FALSE)) -> 0
A71: Josh Bell | B71: 1B | C71: =(G71*'Points System'!$B$16)+(H71*'Points System'!$B$17)+(I71*'Points System'!$B$15)+(J71*'Points System'!$B$2)+(K71*'Points System'!$B$3)+(L71*'Points System'!$B$4)+(M71*'Points System'!$B$5)+(N71*'Points System'!$B$6)+(O71*'Points System'!$B$7)+(P71*'Points System'!$B$8)+(Q71*'Points System'!$B$9)+(R71*'Points System'!$B$10)+(S71*'Points System'!$B$11)+(T71*'Points System'!$B$13)+(U71*'Points System'!$B$12)+(V71*'Points System'!$B$14) -> 92.89 | D71: =C71/G71 -> 0.1492352677 | E71: =C71/F71 -> 0.6188540973 | F71: 150.1 | G71: 622.44 | H71: 544.64 | I71: 148.8 | J71: 92.89 | K71: 26.89 | L71: 5.09 | M71: 23.21 | N71: 86.76 | O71: 75.76 | P71: 67.17 | Q71: 106.56 | R71: 3.41 | S71: 3.46 | T71: 4.13 | U71: 2.4 | V71: 254.78 | W71: 0.273 | X71: 1.586 | Y71: 0.353 | Z71: 0.468 | AA71: 0.821 | AB71: NL | AC71: 518692 | AD71: C | AE71: =IF(ISNA(VLOOKUP(A71,Rankings!$B$2:$H$1998,7,FALSE)),"-",VLOOKUP(A71,Rankings!$B$2:$H$1998,7,FALSE)) -> 0
A72: Ian Desmond | B72: 1B/OF | C72: =(G72*'Points System'!$B$16)+(H72*'Points System'!$B$17)+(I72*'Points System'!$B$15)+(J72*'Points System'!$B$2)+(K72*'Points System'!$B$3)+(L72*'Points System'!$B$4)+(M72*'Points System'!$B$5)+(N72*'Points System'!$B$6)+(O72*'Points System'!$B$7)+(P72*'Points System'!$B$8)+(Q72*'Points System'!$B$9)+(R72*'Points System'!$B$10)+(S72*'Points System'!$B$11)+(T72*'Points System'!$B$13)+(U72*'Points System'!$B$12)+(V72*'Points System'!$B$14) -> 92.64 | D72: =C72/G72 -> 0.176232237 | E72: =C72/F72 -> 0.7126153846 | F72: 130 | G72: 525.67 | H72: 489.93 | I72: 133.09 | J72: 92.64 | K72: 22.83 | L72: 2.1 | M72: 16.97 | N72: 67.31 | O72: 69.04 | P72: 37.41 | Q72: 128.89 | R72: 16.74 | S72: 5.45 | T72: 3.47 | U72: 4.08 | V72: 212.48 | W72: 0.272 | X72: 3.445 | Y72: 0.326 | Z72: 0.434 | AA72: 0.76 | AB72: NL | AC72: 656541 | AD72: CF | AE72: =IF(ISNA(VLOOKUP(A72,Rankings!$B$2:$H$1998,7,FALSE)),"-",VLOOKUP(A72,Rankings!$B$2:$H$1998,7,FALSE)) -> 0
A73: Ryon Healy | B73: 1B/3B | C73: =(G73*'Points System'!$B$16)+(H73*'Points System'!$B$17)+(I73*'Points System'!$B$15)+(J73*'Points System'!$B$2)+(K73*'Points System'!$B$3)+(L73*'Points System'!$B$4)+(M73*'Points System'!$B$5)+(N73*'Points System'!$B$6)+(O73*'Points System'!$B$7)+(P73*'Points System'!$B$8)+(Q73*'Points System'!$B$9)+(R73*'Points System'!$B$10)+(S73*'Points System'!$B$11)+(T73*'Points System'!$B$13)+(U73*'Points System'!$B$12)+(V73*'Points System'!$B$14) -> 92.61 | D73: =C73/G73 -> 0.171783124 | E73: =C73/F73 -> 0.7167956656 | F73: 129.2 | G73: 539.11 | H73: 515.86 | I73: 142.02 | J73: 92.61 | K73: 26.85 | L73: 0.71 | M73: 21.06 | N73: 70.95 | O73: 62.99 | P73: 23.74 | Q73: 127.48 | R73: 0.47 | S73: 0.69 | T73: 2.43 | U73: 2.94 | V73: 232.68 | W73: 0.275 | X73: 5.37 | Y73: 0.31 | Z73: 0.451 | AA73: 0.761 | AB73: AL | AC73: 134181 | AD73: 2B | AE73: =IF(ISNA(VLOOKUP(A73,Rankings!$B$2:$H$1998,7,FALSE)),"-",VLOOKUP(A73,Rankings!$B$2:$H$1998,7,FALSE)) -> 0
A74: Freddy Galvis | B74: SS | C74: =(G74*'Points System'!$B$16)+(H74*'Points System'!$B$17)+(I74*'Points System'!$B$15)+(J74*'Points System'!$B$2)+(K74*'Points System'!$B$3)+(L74*'Points System'!$B$4)+(M74*'Points System'!$B$5)+(N74*'Points System'!$B$6)+(O74*'Points System'!$B$7)+(P74*'Points System'!$B$8)+(Q74*'Points System'!$B$9)+(R74*'Points System'!$B$10)+(S74*'Points System'!$B$11)+(T74*'Points System'!$B$13)+(U74*'Points System'!$B$12)+(V74*'Points System'!$B$14) -> 92.32 | D74: =C74/G74 -> 0.1691214186 | E74: =C74/F74 -> 0.6652255368 | F74: 138.78 | G74: 545.88 | H74: 522.77 | I74: 129.75 | J74: 92.32 | K74: 22.8 | L74: 4.13 | M74: 12.4 | N74: 54.98 | O74: 58.83 | P74: 32.88 | Q74: 97.94 | R74: 11.65 | S74: 4.39 | T74: 3.4 | U74: 3.27 | V74: 199.91 | W74: 0.248 | X74: 2.979 | Y74: 0.295 | Z74: 0.382 | AA74: 0.677 | AB74: NL | AC74: 664159 | AD74: 1B | AE74: =IF(ISNA(VLOOKUP(A74,Rankings!$B$2:$H$1998,7,FALSE)),"-",VLOOKUP(A74,Rankings!$B$2:$H$1998,7,FALSE)) -> 0
A75: Chris Taylor | B75: 2B/SS/OF | C75: =(G75*'Points System'!$B$16)+(H75*'Points System'!$B$17)+(I75*'Points System'!$B$15)+(J75*'Points System'!$B$2)+(K75*'Points System'!$B$3)+(L75*'Points System'!$B$4)+(M75*'Points System'!$B$5)+(N75*'Points System'!$B$6)+(O75*'Points System'!$B$7)+(P75*'Points System'!$B$8)+(Q75*'Points System'!$B$9)+(R75*'Points System'!$B$10)+(S75*'Points System'!$B$11)+(T75*'Points System'!$B$13)+(U75*'Points System'!$B$12)+(V75*'Points System'!$B$14) -> 92.28 | D75: =C75/G75 -> 0.1526399365 | E75: =C75/F75 -> 0.6359751895 | F75: 145.1 | G75: 604.56 | H75: 538.87 | I75: 145.1 | J75: 92.28 | K75: 31.33 | L75: 5.85 | M75: 16.06 | N75: 63.93 | O75: 81.32 | P75: 50.99 | Q75: 139.5 | R75: 16.57 | S75: 5.78 | T75: 2.77 | U75: 3.83 | V75: 236.73 | W75: 0.269 | X75: 2.736 | Y75: 0.335 | Z75: 0.439 | AA75: 0.774 | AB75: NL | AC75: 592696 | AD75: RF | AE75: =IF(ISNA(VLOOKUP(A75,Rankings!$B$2:$H$1998,7,FALSE)),"-",VLOOKUP(A75,Rankings!$B$2:$H$1998,7,FALSE)) -> 0
A76: Josh Reddick | B76: OF | C76: =(G76*'Points System'!$B$16)+(H76*'Points System'!$B$17)+(I76*'Points System'!$B$15)+(J76*'Points System'!$B$2)+(K76*'Points System'!$B$3)+(L76*'Points System'!$B$4)+(M76*'Points System'!$B$5)+(N76*'Points System'!$B$6)+(O76*'Points System'!$B$7)+(P76*'Points System'!$B$8)+(Q76*'Points System'!$B$9)+(R76*'Points System'!$B$10)+(S76*'Points System'!$B$11)+(T76*'Points System'!$B$13)+(U76*'Points System'!$B$12)+(V76*'Points System'!$B$14) -> 92.26 | D76: =C76/G76 -> 0.1765538885 | E76: =C76/F76 -> 0.7241758242 | F76: 127.4 | G76: 522.56 | H76: 481.29 | I76: 125.64 | J76: 92.26 | K76: 24.49 | L76: 2.7 | M76: 14.45 | N76: 69.99 | O76: 67.72 | P76: 45.04 | Q76: 74.26 | R76: 7.06 | S76: 2.88 | T76: 4.03 | U76: 0.59 | V76: 207.14 | W76: 0.261 | X76: 1.649 | Y76: 0.323 | Z76: 0.43 | AA76: 0.753 | AB76: AL | AC76: 595281 | AD76: 2B | AE76: =IF(ISNA(VLOOKUP(A76,Rankings!$B$2:$H$1998,7,FALSE)),"-",VLOOKUP(A76,Rankings!$B$2:$H$1998,7,FALSE)) -> 0
A77: David Peralta | B77: OF | C77: =(G77*'Points System'!$B$16)+(H77*'Points System'!$B$17)+(I77*'Points System'!$B$15)+(J77*'Points System'!$B$2)+(K77*'Points System'!$B$3)+(L77*'Points System'!$B$4)+(M77*'Points System'!$B$5)+(N77*'Points System'!$B$6)+(O77*'Points System'!$B$7)+(P77*'Points System'!$B$8)+(Q77*'Points System'!$B$9)+(R77*'Points System'!$B$10)+(S77*'Points System'!$B$11)+(T77*'Points System'!$B$13)+(U77*'Points System'!$B$12)+(V77*'Points System'!$B$14) -> 92.25 | D77: =C77/G77 -> 0.170552238 | E77: =C77/F77 -> 0.6951770912 | F77: 132.7 | G77: 540.89 | H77: 502.93 | I77: 140.96 | J77: 92.25 | K77: 28.94 | L77: 5.19 | M77: 14.66 | N77: 61.06 | O77: 70.94 | P77: 40.81 | Q77: 98.6 | R77: 6.97 | S77: 2.81 | T77: 3.23 | U77: 5.36 | V77: 224.34 | W77: 0.28 | X77: 2.416 | Y77: 0.339 | Z77: 0.446 | AA77: 0.785 | AB77: NL | AC77: 448801 | AD77: LF | AE77: =IF(ISNA(VLOOKUP(A77,Rankings!$B$2:$H$1998,7,FALSE)),"-",VLOOKUP(A77,Rankings!$B$2:$H$1998,7,FALSE)) -> 0
A78: J.T. Realmuto | B78: C/1B | C78: =(G78*'Points System'!$B$16)+(H78*'Points System'!$B$17)+(I78*'Points System'!$B$15)+(J78*'Points System'!$B$2)+(K78*'Points System'!$B$3)+(L78*'Points System'!$B$4)+(M78*'Points System'!$B$5)+(N78*'Points System'!$B$6)+(O78*'Points System'!$B$7)+(P78*'Points System'!$B$8)+(Q78*'Points System'!$B$9)+(R78*'Points System'!$B$10)+(S78*'Points System'!$B$11)+(T78*'Points System'!$B$13)+(U78*'Points System'!$B$12)+(V78*'Points System'!$B$14) -> 92.02 | D78: =C78/G78 -> 0.1731521903 | E78: =C78/F78 -> 0.7067588326 | F78: 130.2 | G78: 531.44 | H78: 496.86 | I78: 136.76 | J78: 92.02 | K78: 27.5 | L78: 3.86 | M78: 14.12 | N78: 57.38 | O78: 59.74 | P78: 32.28 | Q78: 95.51 | R78: 8.24 | S78: 2.98 | T78: 2.97 | U78: 4.9 | V78: 215.08 | W78: 0.275 | X78: 2.959 | Y78: 0.324 | Z78: 0.433 | AA78: 0.757 | AB78: NL | AC78: 590271 | AD78: 3B | AE78: =IF(ISNA(VLOOKUP(A78,Rankings!$B$2:$H$1998,7,FALSE)),"-",VLOOKUP(A78,Rankings!$B$2:$H$1998,7,FALSE)) -> 0
A79: Nelson Cruz | B79: OF | C79: =(G79*'Points System'!$B$16)+(H79*'Points System'!$B$17)+(I79*'Points System'!$B$15)+(J79*'Points System'!$B$2)+(K79*'Points System'!$B$3)+(L79*'Points System'!$B$4)+(M79*'Points System'!$B$5)+(N79*'Points System'!$B$6)+(O79*'Points System'!$B$7)+(P79*'Points System'!$B$8)+(Q79*'Points System'!$B$9)+(R79*'Points System'!$B$10)+(S79*'Points System'!$B$11)+(T79*'Points System'!$B$13)+(U79*'Points System'!$B$12)+(V79*'Points System'!$B$14) -> 91.78 | D79: =C79/G79 -> 0.1491290784 | E79: =C79/F79 -> 0.6264846416 | F79: 146.5 | G79: 615.44 | H79: 553.62 | I79: 138.91 | J79: 91.78 | K79: 22.46 | L79: 0.67 | M79: 36.14 | N79: 105.49 | O79: 86.55 | P79: 61.78 | Q79: 142.25 | R79: 1.51 | S79: 1.19 | T79: 5.43 | U79: 8.75 | V79: 283.27 | W79: 0.251 | X79: 2.303 | Y79: 0.333 | Z79: 0.512 | AA79: 0.845 | AB79: AL | AC79: 446334 | AD79: SS | AE79: =IF(ISNA(VLOOKUP(A79,Rankings!$B$2:$H$1998,7,FALSE)),"-",VLOOKUP(A79,Rankings!$B$2:$H$1998,7,FALSE)) -> 0
A80: Nolan Arenado | B80: 3B | C80: =(G80*'Points System'!$B$16)+(H80*'Points System'!$B$17)+(I80*'Points System'!$B$15)+(J80*'Points System'!$B$2)+(K80*'Points System'!$B$3)+(L80*'Points System'!$B$4)+(M80*'Points System'!$B$5)+(N80*'Points System'!$B$6)+(O80*'Points System'!$B$7)+(P80*'Points System'!$B$8)+(Q80*'Points System'!$B$9)+(R80*'Points System'!$B$10)+(S80*'Points System'!$B$11)+(T80*'Points System'!$B$13)+(U80*'Points System'!$B$12)+(V80*'Points System'!$B$14) -> 91.33 | D80: =C80/G80 -> 0.1385194061 | E80: =C80/F80 -> 0.5846991037 | F80: 156.2 | G80: 659.33 | H80: 596.43 | I80: 175.98 | J80: 91.33 | K80: 39.17 | L80: 5.35 | M80: 40.02 | N80: 125.05 | O80: 101.49 | P80: 59.58 | Q80: 103.43 | R80: 2.96 | S80: 2.53 | T80: 4.63 | U80: 3.6 | V80: 345.8 | W80: 0.295 | X80: 1.736 | Y80: 0.36 | Z80: 0.58 | AA80: 0.94 | AB80: NL | AC80: 605141 | AD80: C | AE80: =IF(ISNA(VLOOKUP(A80,Rankings!$B$2:$H$1998,7,FALSE)),"-",VLOOKUP(A80,Rankings!$B$2:$H$1998,7,FALSE)) -> 0
A81: Jorge Polanco | B81: SS | C81: =(G81*'Points System'!$B$16)+(H81*'Points System'!$B$17)+(I81*'Points System'!$B$15)+(J81*'Points System'!$B$2)+(K81*'Points System'!$B$3)+(L81*'Points System'!$B$4)+(M81*'Points System'!$B$5)+(N81*'Points System'!$B$6)+(O81*'Points System'!$B$7)+(P81*'Points System'!$B$8)+(Q81*'Points System'!$B$9)+(R81*'Points System'!$B$10)+(S81*'Points System'!$B$11)+(T81*'Points System'!$B$13)+(U81*'Points System'!$B$12)+(V81*'Points System'!$B$14) -> 91.03 | D81: =C81/G81 -> 0.1609242138 | E81: =C81/F81 -> 0.6544212797 | F81: 139.1 | G81: 565.67 | H81: 517 | I81: 126.62 | J81: 91.03 | K81: 27.31 | L81: 3.85 | M81: 13.31 | N81: 68.78 | O81: 62.46 | P81: 41.31 | Q81: 85.31 | R81: 12.51 | S81: 5.68 | T81: 4.43 | U81: 2.7 | V81: 210.44 | W81: 0.245 | X81: 2.065 | Y81: 0.302 | Z81: 0.407 | AA81: 0.709 | AB81: AL | AC81: 408045 | AD81: C | AE81: =IF(ISNA(VLOOKUP(A81,Rankings!$B$2:$H$1998,7,FALSE)),"-",VLOOKUP(A81,Rankings!$B$2:$H$1998,7,FALSE)) -> 0
A82: Jose Iglesias | B82: SS | C82: =(G82*'Points System'!$B$16)+(H82*'Points System'!$B$17)+(I82*'Points System'!$B$15)+(J82*'Points System'!$B$2)+(K82*'Points System'!$B$3)+(L82*'Points System'!$B$4)+(M82*'Points System'!$B$5)+(N82*'Points System'!$B$6)+(O82*'Points System'!$B$7)+(P82*'Points System'!$B$8)+(Q82*'Points System'!$B$9)+(R82*'Points System'!$B$10)+(S82*'Points System'!$B$11)+(T82*'Points System'!$B$13)+(U82*'Points System'!$B$12)+(V82*'Points System'!$B$14) -> 90.88 | D82: =C82/G82 -> 0.1788976378 | E82: =C82/F82 -> 0.7069072806 | F82: 128.56 | G82: 508 | H82: 476.69 | I82: 115.95 | J82: 90.88 | K82: 25.96 | L82: 1.03 | M82: 5.85 | N82: 46.12 | O82: 54.85 | P82: 25.49 | Q82: 59.6 | R82: 8.72 | S82: 4.76 | T82: 3.07 | U82: 5.13 | V82: 169.29 | W82: 0.243 | X82: 2.338 | Y82: 0.287 | Z82: 0.355 | AA82: 0.642 | AB82: AL | AC82: 663411 | AD82: 3B | AE82: =IF(ISNA(VLOOKUP(A82,Rankings!$B$2:$H$1998,7,FALSE)),"-",VLOOKUP(A82,Rankings!$B$2:$H$1998,7,FALSE)) -> 0
A83: Yadier Molina | B83: C | C83: =(G83*'Points System'!$B$16)+(H83*'Points System'!$B$17)+(I83*'Points System'!$B$15)+(J83*'Points System'!$B$2)+(K83*'Points System'!$B$3)+(L83*'Points System'!$B$4)+(M83*'Points System'!$B$5)+(N83*'Points System'!$B$6)+(O83*'Points System'!$B$7)+(P83*'Points System'!$B$8)+(Q83*'Points System'!$B$9)+(R83*'Points System'!$B$10)+(S83*'Points System'!$B$11)+(T83*'Points System'!$B$13)+(U83*'Points System'!$B$12)+(V83*'Points System'!$B$14) -> 90.75 | D83: =C83/G83 -> 0.1843687782 | E83: =C83/F83 -> 0.7348178138 | F83: 123.5 | G83: 492.22 | H83: 463.64 | I83: 127.6 | J83: 90.75 | K83: 25.25 | L83: 1.01 | M83: 11.45 | N83: 61.17 | O83: 49.71 | P83: 29.58 | Q83: 66.28 | R83: 5.14 | S83: 2.46 | T83: 3.97 | U83: 3.34 | V83: 190.08 | W83: 0.275 | X83: 2.241 | Y83: 0.321 | Z83: 0.41 | AA83: 0.731 | AB83: NL | AC83: 516664 | AD83: LF | AE83: =IF(ISNA(VLOOKUP(A83,Rankings!$B$2:$H$1998,7,FALSE)),"-",VLOOKUP(A83,Rankings!$B$2:$H$1998,7,FALSE)) -> 0
A84: Kris Bryant | B84: 3B/OF | C84: =(G84*'Points System'!$B$16)+(H84*'Points System'!$B$17)+(I84*'Points System'!$B$15)+(J84*'Points System'!$B$2)+(K84*'Points System'!$B$3)+(L84*'Points System'!$B$4)+(M84*'Points System'!$B$5)+(N84*'Points System'!$B$6)+(O84*'Points System'!$B$7)+(P84*'Points System'!$B$8)+(Q84*'Points System'!$B$9)+(R84*'Points System'!$B$10)+(S84*'Points System'!$B$11)+(T84*'Points System'!$B$13)+(U84*'Points System'!$B$12)+(V84*'Points System'!$B$14) -> 90.62 | D84: =C84/G84 -> 0.137049696 | E84: =C84/F84 -> 0.5926749509 | F84: 152.9 | G84: 661.22 | H84: 561.5 | I84: 161.97 | J84: 90.62 | K84: 34.24 | L84: 3.58 | M84: 32.66 | N84: 94.57 | O84: 107.51 | P84: 85.68 | Q84: 144.82 | R84: 8.16 | S84: 4.4 | T84: 5.3 | U84: 13.08 | V84: 300.48 | W84: 0.288 | X84: 1.69 | Y84: 0.392 | Z84: 0.535 | AA84: 0.927 | AB84: NL | AC84: 502671 | AD84: 2B | AE84: =IF(ISNA(VLOOKUP(A84,Rankings!$B$2:$H$1998,7,FALSE)),"-",VLOOKUP(A84,Rankings!$B$2:$H$1998,7,FALSE)) -> 0
A85: Tim Beckham | B85: 2B/SS | C85: =(G85*'Points System'!$B$16)+(H85*'Points System'!$B$17)+(I85*'Points System'!$B$15)+(J85*'Points System'!$B$2)+(K85*'Points System'!$B$3)+(L85*'Points System'!$B$4)+(M85*'Points System'!$B$5)+(N85*'Points System'!$B$6)+(O85*'Points System'!$B$7)+(P85*'Points System'!$B$8)+(Q85*'Points System'!$B$9)+(R85*'Points System'!$B$10)+(S85*'Points System'!$B$11)+(T85*'Points System'!$B$13)+(U85*'Points System'!$B$12)+(V85*'Points System'!$B$14) -> 90.58 | D85: =C85/G85 -> 0.1564745716 | E85: =C85/F85 -> 0.6419105662 | F85: 141.11 | G85: 578.88 | H85: 530.23 | I85: 126.21 | J85: 90.58 | K85: 19.59 | L85: 4.68 | M85: 20.3 | N85: 63.75 | O85: 66.86 | P85: 35.65 | Q85: 158.97 | R85: 6.22 | S85: 4.31 | T85: 2.67 | U85: 4.17 | V85: 225 | W85: 0.238 | X85: 4.459 | Y85: 0.29 | Z85: 0.424 | AA85: 0.714 | AB85: AL | AC85: 592261 | AD85: C | AE85: =IF(ISNA(VLOOKUP(A85,Rankings!$B$2:$H$1998,7,FALSE)),"-",VLOOKUP(A85,Rankings!$B$2:$H$1998,7,FALSE)) -> 0
A86: Kyle Seager | B86: 3B | C86: =(G86*'Points System'!$B$16)+(H86*'Points System'!$B$17)+(I86*'Points System'!$B$15)+(J86*'Points System'!$B$2)+(K86*'Points System'!$B$3)+(L86*'Points System'!$B$4)+(M86*'Points System'!$B$5)+(N86*'Points System'!$B$6)+(O86*'Points System'!$B$7)+(P86*'Points System'!$B$8)+(Q86*'Points System'!$B$9)+(R86*'Points System'!$B$10)+(S86*'Points System'!$B$11)+(T86*'Points System'!$B$13)+(U86*'Points System'!$B$12)+(V86*'Points System'!$B$14) -> 90.24 | D86: =C86/G86 -> 0.1417374778 | E86: =C86/F86 -> 0.5894186806 | F86: 153.1 | G86: 636.67 | H86: 575.71 | I86: 139.32 | J86: 90.24 | K86: 30.26 | L86: 1.38 | M86: 26.92 | N86: 90.17 | O86: 79.04 | P86: 58.88 | Q86: 103.86 | R86: 3.06 | S86: 2.15 | T86: 4.33 | U86: 6.9 | V86: 262.58 | W86: 0.242 | X86: 1.764 | Y86: 0.318 | Z86: 0.456 | AA86: 0.774 | AB86: AL | AC86: 594777 | AD86: RF | AE86: =IF(ISNA(VLOOKUP(A86,Rankings!$B$2:$H$1998,7,FALSE)),"-",VLOOKUP(A86,Rankings!$B$2:$H$1998,7,FALSE)) -> 0
A87: Nick Castellanos | B87: 3B/OF | C87: =(G87*'Points System'!$B$16)+(H87*'Points System'!$B$17)+(I87*'Points System'!$B$15)+(J87*'Points System'!$B$2)+(K87*'Points System'!$B$3)+(L87*'Points System'!$B$4)+(M87*'Points System'!$B$5)+(N87*'Points System'!$B$6)+(O87*'Points System'!$B$7)+(P87*'Points System'!$B$8)+(Q87*'Points System'!$B$9)+(R87*'Points System'!$B$10)+(S87*'Points System'!$B$11)+(T87*'Points System'!$B$13)+(U87*'Points System'!$B$12)+(V87*'Points System'!$B$14) -> 89.76 | D87: =C87/G87 -> 0.1451910323 | E87: =C87/F87 -> 0.6 | F87: 149.6 | G87: 618.22 | H87: 569.57 | I87: 155.49 | J87: 89.76 | K87: 33.74 | L87: 7.32 | M87: 24.93 | N87: 88.94 | O87: 69.92 | P87: 40.36 | Q87: 139.09 | R87: 3.39 | S87: 3.24 | T87: 4.17 | U87: 3.79 | V87: 278.92 | W87: 0.273 | X87: 3.446 | Y87: 0.323 | Z87: 0.49 | AA87: 0.813 | AB87: AL | AC87: 514917 | AD87: RF | AE87: =IF(ISNA(VLOOKUP(A87,Rankings!$B$2:$H$1998,7,FALSE)),"-",VLOOKUP(A87,Rankings!$B$2:$H$1998,7,FALSE)) -> 0
A88: Anthony Rendon | B88: 3B | C88: =(G88*'Points System'!$B$16)+(H88*'Points System'!$B$17)+(I88*'Points System'!$B$15)+(J88*'Points System'!$B$2)+(K88*'Points System'!$B$3)+(L88*'Points System'!$B$4)+(M88*'Points System'!$B$5)+(N88*'Points System'!$B$6)+(O88*'Points System'!$B$7)+(P88*'Points System'!$B$8)+(Q88*'Points System'!$B$9)+(R88*'Points System'!$B$10)+(S88*'Points System'!$B$11)+(T88*'Points System'!$B$13)+(U88*'Points System'!$B$12)+(V88*'Points System'!$B$14) -> 89.39 | D88: =C88/G88 -> 0.1455341734 | E88: =C88/F88 -> 0.614786795 | F88: 145.4 | G88: 614.22 | H88: 527.57 | I88: 149.42 | J88: 89.39 | K88: 35.99 | L88: 1.16 | M88: 22.02 | N88: 88.6 | O88: 83.16 | P88: 74.22 | Q88: 98.04 | R88: 7.54 | S88: 3.28 | T88: 5.27 | U88: 6.76 | V88: 252.93 | W88: 0.283 | X88: 1.321 | Y88: 0.375 | Z88: 0.479 | AA88: 0.854 | AB88: NL | AC88: 608577 | AD88: SS | AE88: =IF(ISNA(VLOOKUP(A88,Rankings!$B$2:$H$1998,7,FALSE)),"-",VLOOKUP(A88,Rankings!$B$2:$H$1998,7,FALSE)) -> 0
A89: Ben Gamel | B89: OF | C89: =(G89*'Points System'!$B$16)+(H89*'Points System'!$B$17)+(I89*'Points System'!$B$15)+(J89*'Points System'!$B$2)+(K89*'Points System'!$B$3)+(L89*'Points System'!$B$4)+(M89*'Points System'!$B$5)+(N89*'Points System'!$B$6)+(O89*'Points System'!$B$7)+(P89*'Points System'!$B$8)+(Q89*'Points System'!$B$9)+(R89*'Points System'!$B$10)+(S89*'Points System'!$B$11)+(T89*'Points System'!$B$13)+(U89*'Points System'!$B$12)+(V89*'Points System'!$B$14) -> 89.37 | D89: =C89/G89 -> 0.1684446622 | E89: =C89/F89 -> 0.6694382022 | F89: 133.5 | G89: 530.56 | H89: 488.07 | I89: 117.29 | J89: 89.37 | K89: 22.39 | L89: 4.69 | M89: 10.13 | N89: 55.59 | O89: 63.04 | P89: 38.08 | Q89: 114.2 | R89: 6.51 | S89: 2.88 | T89: 3.27 | U89: 2.08 | V89: 188.74 | W89: 0.24 | X89: 2.999 | Y89: 0.296 | Z89: 0.387 | AA89: 0.683 | AB89: AL | AC89: 493329 | AD89: CF | AE89: =IF(ISNA(VLOOKUP(A89,Rankings!$B$2:$H$1998,7,FALSE)),"-",VLOOKUP(A89,Rankings!$B$2:$H$1998,7,FALSE)) -> 0
A90: Brian Mundell | C90: =(G90*'Points System'!$B$16)+(H90*'Points System'!$B$17)+(I90*'Points System'!$B$15)+(J90*'Points System'!$B$2)+(K90*'Points System'!$B$3)+(L90*'Points System'!$B$4)+(M90*'Points System'!$B$5)+(N90*'Points System'!$B$6)+(O90*'Points System'!$B$7)+(P90*'Points System'!$B$8)+(Q90*'Points System'!$B$9)+(R90*'Points System'!$B$10)+(S90*'Points System'!$B$11)+(T90*'Points System'!$B$13)+(U90*'Points System'!$B$12)+(V90*'Points System'!$B$14) -> 89 | D90: =C90/G90 -> 0.1695238095 | E90: =C90/F90 -> 0.7295081967 | F90: 122 | G90: 525 | H90: 470 | I90: 127 | J90: 89 | K90: 27 | L90: 1 | M90: 10 | N90: 50 | O90: 63 | P90: 45 | Q90: 91 | R90: 4 | S90: 4 | U90: 4 | V90: 186 | W90: 0.27 | X90: 2.022 | Y90: 0.339 | Z90: 0.396 | AA90: 0.735 | AC90: 622435 | AD90: RF | AE90: =IF(ISNA(VLOOKUP(A90,Rankings!$B$2:$H$1998,7,FALSE)),"-",VLOOKUP(A90,Rankings!$B$2:$H$1998,7,FALSE)) -> -
A91: Sebastian Elizalde | C91: =(G91*'Points System'!$B$16)+(H91*'Points System'!$B$17)+(I91*'Points System'!$B$15)+(J91*'Points System'!$B$2)+(K91*'Points System'!$B$3)+(L91*'Points System'!$B$4)+(M91*'Points System'!$B$5)+(N91*'Points System'!$B$6)+(O91*'Points System'!$B$7)+(P91*'Points System'!$B$8)+(Q91*'Points System'!$B$9)+(R91*'Points System'!$B$10)+(S91*'Points System'!$B$11)+(T91*'Points System'!$B$13)+(U91*'Points System'!$B$12)+(V91*'Points System'!$B$14) -> 89 | D91: =C91/G91 -> 0.1660447761 | E91: =C91/F91 -> 0.679389313 | F91: 131 | G91: 536 | H91: 492 | I91: 126 | J91: 89 | K91: 21 | L91: 5 | M91: 11 | N91: 56 | O91: 54 | P91: 32 | Q91: 100 | R91: 5 | S91: 4 | U91: 4 | V91: 190 | W91: 0.256 | X91: 3.125 | Y91: 0.307 | Z91: 0.386 | AA91: 0.693 | AC91: 657061 | AD91: C | AE91: =IF(ISNA(VLOOKUP(A91,Rankings!$B$2:$H$1998,7,FALSE)),"-",VLOOKUP(A91,Rankings!$B$2:$H$1998,7,FALSE)) -> -
A92: Dustin Pedroia | B92: 2B | C92: =(G92*'Points System'!$B$16)+(H92*'Points System'!$B$17)+(I92*'Points System'!$B$15)+(J92*'Points System'!$B$2)+(K92*'Points System'!$B$3)+(L92*'Points System'!$B$4)+(M92*'Points System'!$B$5)+(N92*'Points System'!$B$6)+(O92*'Points System'!$B$7)+(P92*'Points System'!$B$8)+(Q92*'Points System'!$B$9)+(R92*'Points System'!$B$10)+(S92*'Points System'!$B$11)+(T92*'Points System'!$B$13)+(U92*'Points System'!$B$12)+(V92*'Points System'!$B$14) -> 88.85 | D92: =C92/G92 -> 0.1924534841 | E92: =C92/F92 -> 0.8494263862 | F92: 104.6 | G92: 461.67 | H92: 413.43 | I92: 108.41 | J92: 88.85 | K92: 19.5 | L92: 0.54 | M92: 8.97 | N92: 53.2 | O92: 54.92 | P92: 43.22 | Q92: 53.75 | R92: 4.01 | S92: 2.44 | T92: 2.27 | U92: 1.51 | V92: 165.35 | W92: 0.262 | X92: 1.244 | Y92: 0.333 | Z92: 0.4 | AA92: 0.733 | AB92: AL | AC92: 571697 | AD92: 1B | AE92: =IF(ISNA(VLOOKUP(A92,Rankings!$B$2:$H$1998,7,FALSE)),"-",VLOOKUP(A92,Rankings!$B$2:$H$1998,7,FALSE)) -> 0
A93: Rafael Devers | B93: 3B | C93: =(G93*'Points System'!$B$16)+(H93*'Points System'!$B$17)+(I93*'Points System'!$B$15)+(J93*'Points System'!$B$2)+(K93*'Points System'!$B$3)+(L93*'Points System'!$B$4)+(M93*'Points System'!$B$5)+(N93*'Points System'!$B$6)+(O93*'Points System'!$B$7)+(P93*'Points System'!$B$8)+(Q93*'Points System'!$B$9)+(R93*'Points System'!$B$10)+(S93*'Points System'!$B$11)+(T93*'Points System'!$B$13)+(U93*'Points System'!$B$12)+(V93*'Points System'!$B$14) -> 88.62 | D93: =C93/G93 -> 0.1568495575 | E93: =C93/F93 -> 0.6501834189 | F93: 136.3 | G93: 565 | H93: 502.21 | I93: 134.43 | J93: 88.62 | K93: 29.61 | L93: 2.29 | M93: 22.56 | N93: 75.22 | O93: 71.61 | P93: 41.53 | Q93: 124.3 | R93: 5.59 | S93: 3.55 | T93: 2.53 | U93: 2.04 | V93: 244.95 | W93: 0.268 | X93: 2.993 | Y93: 0.325 | Z93: 0.488 | AA93: 0.813 | AB93: AL | AC93: 598265 | AD93: SS | AE93: =IF(ISNA(VLOOKUP(A93,Rankings!$B$2:$H$1998,7,FALSE)),"-",VLOOKUP(A93,Rankings!$B$2:$H$1998,7,FALSE)) -> 0
A94: Mike Trout | B94: OF | C94: =(G94*'Points System'!$B$16)+(H94*'Points System'!$B$17)+(I94*'Points System'!$B$15)+(J94*'Points System'!$B$2)+(K94*'Points System'!$B$3)+(L94*'Points System'!$B$4)+(M94*'Points System'!$B$5)+(N94*'Points System'!$B$6)+(O94*'Points System'!$B$7)+(P94*'Points System'!$B$8)+(Q94*'Points System'!$B$9)+(R94*'Points System'!$B$10)+(S94*'Points System'!$B$11)+(T94*'Points System'!$B$13)+(U94*'Points System'!$B$12)+(V94*'Points System'!$B$14) -> 88.24 | D94: =C94/G94 -> 0.1348328342 | E94: =C94/F94 -> 0.577865095 | F94: 152.7 | G94: 654.44 | H94: 528.21 | I94: 149.23 | J94: 88.24 | K94: 29.45 | L94: 4.25 | M94: 37.36 | N94: 100.53 | O94: 112.69 | P94: 112.2 | Q94: 127.4 | R94: 23.6 | S94: 6.55 | T94: 4.93 | U94: 9.76 | V94: 309.33 | W94: 0.283 | X94: 1.135 | Y94: 0.414 | Z94: 0.586 | AA94: 1 | AB94: AL | AC94: 596019 | AD94: LF | AE94: =IF(ISNA(VLOOKUP(A94,Rankings!$B$2:$H$1998,7,FALSE)),"-",VLOOKUP(A94,Rankings!$B$2:$H$1998,7,FALSE)) -> 0
A95: A.J. Pollock | B95: OF | C95: =(G95*'Points System'!$B$16)+(H95*'Points System'!$B$17)+(I95*'Points System'!$B$15)+(J95*'Points System'!$B$2)+(K95*'Points System'!$B$3)+(L95*'Points System'!$B$4)+(M95*'Points System'!$B$5)+(N95*'Points System'!$B$6)+(O95*'Points System'!$B$7)+(P95*'Points System'!$B$8)+(Q95*'Points System'!$B$9)+(R95*'Points System'!$B$10)+(S95*'Points System'!$B$11)+(T95*'Points System'!$B$13)+(U95*'Points System'!$B$12)+(V95*'Points System'!$B$14) -> 88.21 | D95: =C95/G95 -> 0.1549664453 | E95: =C95/F95 -> 0.6642319277 | F95: 132.8 | G95: 569.22 | H95: 519.57 | I95: 146.31 | J95: 88.21 | K95: 35.81 | L95: 6.37 | M95: 17.49 | N95: 62.19 | O95: 89.03 | P95: 45.63 | Q95: 87.59 | R95: 24.84 | S95: 6.98 | T95: 2.37 | U95: 4.1 | V95: 248.9 | W95: 0.282 | X95: 1.92 | Y95: 0.343 | Z95: 0.479 | AA95: 0.822 | AB95: NL | AC95: 608369 | AD95: RF | AE95: =IF(ISNA(VLOOKUP(A95,Rankings!$B$2:$H$1998,7,FALSE)),"-",VLOOKUP(A95,Rankings!$B$2:$H$1998,7,FALSE)) -> 0
A96: Eugenio Suarez | B96: 3B | C96: =(G96*'Points System'!$B$16)+(H96*'Points System'!$B$17)+(I96*'Points System'!$B$15)+(J96*'Points System'!$B$2)+(K96*'Points System'!$B$3)+(L96*'Points System'!$B$4)+(M96*'Points System'!$B$5)+(N96*'Points System'!$B$6)+(O96*'Points System'!$B$7)+(P96*'Points System'!$B$8)+(Q96*'Points System'!$B$9)+(R96*'Points System'!$B$10)+(S96*'Points System'!$B$11)+(T96*'Points System'!$B$13)+(U96*'Points System'!$B$12)+(V96*'Points System'!$B$14) -> 88.02 | D96: =C96/G96 -> 0.1422729403 | E96: =C96/F96 -> 0.5856287425 | F96: 150.3 | G96: 618.67 | H96: 544.86 | I96: 140.28 | J96: 88.02 | K96: 25.96 | L96: 2.14 | M96: 23.94 | N96: 80.02 | O96: 79.84 | P96: 66.46 | Q96: 144.53 | R96: 5.81 | S96: 4.1 | T96: 4.47 | U96: 7.79 | V96: 242.12 | W96: 0.257 | X96: 2.175 | Y96: 0.344 | Z96: 0.444 | AA96: 0.788 | AB96: NL | AC96: 456715 | AD96: RF | AE96: =IF(ISNA(VLOOKUP(A96,Rankings!$B$2:$H$1998,7,FALSE)),"-",VLOOKUP(A96,Rankings!$B$2:$H$1998,7,FALSE)) -> 0
A97: Tim Lopes | C97: =(G97*'Points System'!$B$16)+(H97*'Points System'!$B$17)+(I97*'Points System'!$B$15)+(J97*'Points System'!$B$2)+(K97*'Points System'!$B$3)+(L97*'Points System'!$B$4)+(M97*'Points System'!$B$5)+(N97*'Points System'!$B$6)+(O97*'Points System'!$B$7)+(P97*'Points System'!$B$8)+(Q97*'Points System'!$B$9)+(R97*'Points System'!$B$10)+(S97*'Points System'!$B$11)+(T97*'Points System'!$B$13)+(U97*'Points System'!$B$12)+(V97*'Points System'!$B$14) -> 88 | D97: =C97/G97 -> 0.1585585586 | E97: =C97/F97 -> 0.6769230769 | F97: 130 | G97: 555 | H97: 509 | I97: 121 | J97: 88 | K97: 24 | L97: 4 | M97: 5 | N97: 43 | O97: 52 | P97: 35 | Q97: 117 | R97: 16 | S97: 10 | U97: 4 | V97: 168 | W97: 0.238 | X97: 3.343 | Y97: 0.292 | Z97: 0.33 | AA97: 0.622 | AC97: 605361 | AD97: DH | AE97: =IF(ISNA(VLOOKUP(A97,Rankings!$B$2:$H$1998,7,FALSE)),"-",VLOOKUP(A97,Rankings!$B$2:$H$1998,7,FALSE)) -> -
A98: Kean Wong | C98: =(G98*'Points System'!$B$16)+(H98*'Points System'!$B$17)+(I98*'Points System'!$B$15)+(J98*'Points System'!$B$2)+(K98*'Points System'!$B$3)+(L98*'Points System'!$B$4)+(M98*'Points System'!$B$5)+(N98*'Points System'!$B$6)+(O98*'Points System'!$B$7)+(P98*'Points System'!$B$8)+(Q98*'Points System'!$B$9)+(R98*'Points System'!$B$10)+(S98*'Points System'!$B$11)+(T98*'Points System'!$B$13)+(U98*'Points System'!$B$12)+(V98*'Points System'!$B$14) -> 88 | D98: =C98/G98 -> 0.1735700197 | E98: =C98/F98 -> 0.704 | F98: 125 | G98: 507 | H98: 469 | I98: 115 | J98: 88 | K98: 20 | L98: 1 | M98: 6 | N98: 40 | O98: 47 | P98: 29 | Q98: 96 | R98: 14 | S98: 10 | U98: 2 | V98: 155 | W98: 0.245 | X98: 3.31 | Y98: 0.292 | Z98: 0.33 | AA98: 0.622 | AC98: 543543 | AD98: C | AE98: =IF(ISNA(VLOOKUP(A98,Rankings!$B$2:$H$1998,7,FALSE)),"-",VLOOKUP(A98,Rankings!$B$2:$H$1998,7,FALSE)) -> -
A99: Martin Prado | B99: 3B | C99: =(G99*'Points System'!$B$16)+(H99*'Points System'!$B$17)+(I99*'Points System'!$B$15)+(J99*'Points System'!$B$2)+(K99*'Points System'!$B$3)+(L99*'Points System'!$B$4)+(M99*'Points System'!$B$5)+(N99*'Points System'!$B$6)+(O99*'Points System'!$B$7)+(P99*'Points System'!$B$8)+(Q99*'Points System'!$B$9)+(R99*'Points System'!$B$10)+(S99*'Points System'!$B$11)+(T99*'Points System'!$B$13)+(U99*'Points System'!$B$12)+(V99*'Points System'!$B$14) -> 87.66 | D99: =C99/G99 -> 0.1882125604 | E99: =C99/F99 -> 0.7842190016 | F99: 111.78 | G99: 465.75 | H99: 424.54 | I99: 117.21 | J99: 87.66 | K99: 23.79 | L99: 1.43 | M99: 7.82 | N99: 47.38 | O99: 47.65 | P99: 31.42 | Q99: 63.49 | R99: 1.4 | S99: 1.04 | T99: 2.97 | U99: 3.23 | V99: 170.81 | W99: 0.276 | X99: 2.021 | Y99: 0.329 | Z99: 0.402 | AA99: 0.731 | AB99: NL | AC99: 543484 | AD99: SS | AE99: =IF(ISNA(VLOOKUP(A99,Rankings!$B$2:$H$1998,7,FALSE)),"-",VLOOKUP(A99,Rankings!$B$2:$H$1998,7,FALSE)) -> 0
A100: Byron Buxton | B100: OF | C100: =(G100*'Points System'!$B$16)+(H100*'Points System'!$B$17)+(I100*'Points System'!$B$15)+(J100*'Points System'!$B$2)+(K100*'Points System'!$B$3)+(L100*'Points System'!$B$4)+(M100*'Points System'!$B$5)+(N100*'Points System'!$B$6)+(O100*'Points System'!$B$7)+(P100*'Points System'!$B$8)+(Q100*'Points System'!$B$9)+(R100*'Points System'!$B$10)+(S100*'Points System'!$B$11)+(T100*'Points System'!$B$13)+(U100*'Points System'!$B$12)+(V100*'Points System'!$B$14) -> 87.63 | D100: =C100/G100 -> 0.1470844943 | E100: =C100/F100 -> 0.5977489768 | F100: 146.6 | G100: 595.78 | H100: 531.57 | I100: 127.74 | J100: 87.63 | K100: 21.3 | L100: 6.99 | M100: 20.09 | N100: 67.25 | O100: 78.84 | P100: 44.46 | Q100: 166.84 | R100: 26.76 | S100: 4.13 | T100: 3.87 | U100: 4.68 | V100: 231.56 | W100: 0.24 | X100: 3.753 | Y100: 0.303 | Z100: 0.436 | AA100: 0.739 | AB100: AL | AC100: 543760 | AD100: DH | AE100: =IF(ISNA(VLOOKUP(A100,Rankings!$B$2:$H$1998,7,FALSE)),"-",VLOOKUP(A100,Rankings!$B$2:$H$1998,7,FALSE)) -> 0
A101: Yulieski Gurriel | B101: 1B | C101: =(G101*'Points System'!$B$16)+(H101*'Points System'!$B$17)+(I101*'Points System'!$B$15)+(J101*'Points System'!$B$2)+(K101*'Points System'!$B$3)+(L101*'Points System'!$B$4)+(M101*'Points System'!$B$5)+(N101*'Points System'!$B$6)+(O101*'Points System'!$B$7)+(P101*'Points System'!$B$8)+(Q101*'Points System'!$B$9)+(R101*'Points System'!$B$10)+(S101*'Points System'!$B$11)+(T101*'Points System'!$B$13)+(U101*'Points System'!$B$12)+(V101*'Points System'!$B$14) -> 87.42 | D101: =C101/G101 -> 0.1698564128 | E101: =C101/F101 -> 0.6921615202 | F101: 126.3 | G101: 514.67 | H101: 483.15 | I101: 138.56 | J101: 87.42 | K101: 34.65 | L101: 1.25 | M101: 16.06 | N101: 68.58 | O101: 62.36 | P101: 24.42 | Q101: 66.24 | R101: 2.96 | S101: 1.93 | T101: 4.23 | U101: 6.09 | V101: 224.71 | W101: 0.287 | X101: 2.713 | Y101: 0.326 | Z101: 0.465 | AA101: 0.791 | AB101: AL | AC101: 434778 | AD101: 3B | AE101: =IF(ISNA(VLOOKUP(A101,Rankings!$B$2:$H$1998,7,FALSE)),"-",VLOOKUP(A101,Rankings!$B$2:$H$1998,7,FALSE)) -> 0
A102: Albert Pujols | B102: 1B | C102: =(G102*'Points System'!$B$16)+(H102*'Points System'!$B$17)+(I102*'Points System'!$B$15)+(J102*'Points System'!$B$2)+(K102*'Points System'!$B$3)+(L102*'Points System'!$B$4)+(M102*'Points System'!$B$5)+(N102*'Points System'!$B$6)+(O102*'Points System'!$B$7)+(P102*'Points System'!$B$8)+(Q102*'Points System'!$B$9)+(R102*'Points System'!$B$10)+(S102*'Points System'!$B$11)+(T102*'Points System'!$B$13)+(U102*'Points System'!$B$12)+(V102*'Points System'!$B$14) -> 87.11 | D102: =C102/G102 -> 0.1649810606 | E102: =C102/F102 -> 0.6742260062 | F102: 129.2 | G102: 528 | H102: 510.54 | I102: 114.12 | J102: 87.11 | K102: 15.57 | L102: 0.19 | M102: 22.09 | N102: 84.15 | O102: 56.88 | P102: 35.98 | Q102: 77.91 | R102: 2.42 | S102: 0.85 | T102: 3.47 | U102: 2.59 | V102: 207.18 | W102: 0.224 | X102: 2.165 | Y102: 0.276 | Z102: 0.406 | AA102: 0.682 | AB102: AL | AC102: 596146 | AD102: LF | AE102: =IF(ISNA(VLOOKUP(A102,Rankings!$B$2:$H$1998,7,FALSE)),"-",VLOOKUP(A102,Rankings!$B$2:$H$1998,7,FALSE)) -> 0
A103: Brandon Phillips | B103: 2B/3B | C103: =(G103*'Points System'!$B$16)+(H103*'Points System'!$B$17)+(I103*'Points System'!$B$15)+(J103*'Points System'!$B$2)+(K103*'Points System'!$B$3)+(L103*'Points System'!$B$4)+(M103*'Points System'!$B$5)+(N103*'Points System'!$B$6)+(O103*'Points System'!$B$7)+(P103*'Points System'!$B$8)+(Q103*'Points System'!$B$9)+(R103*'Points System'!$B$10)+(S103*'Points System'!$B$11)+(T103*'Points System'!$B$13)+(U103*'Points System'!$B$12)+(V103*'Points System'!$B$14) -> 86.93 | D103: =C103/G103 -> 0.206813694 | E103: =C103/F103 -> 0.7692920354 | F103: 113 | G103: 420.33 | H103: 427.8 | I103: 114.48 | J103: 86.93 | K103: 22.52 | L103: 0.87 | M103: 9.01 | N103: 46.9 | O103: 54.26 | P103: 16.29 | Q103: 55.23 | R103: 8.97 | S103: 5.69 | T103: 2.55 | U103: 5.02 | V103: 170.62 | W103: 0.268 | X103: 3.39 | Y103: 0.301 | Z103: 0.399 | AA103: 0.7 | AB103: NL | AC103: 643473 | AD103: SS | AE103: =IF(ISNA(VLOOKUP(A103,Rankings!$B$2:$H$1998,7,FALSE)),"-",VLOOKUP(A103,Rankings!$B$2:$H$1998,7,FALSE)) -> 0
A104: Jordy Mercer | B104: SS | C104: =(G104*'Points System'!$B$16)+(H104*'Points System'!$B$17)+(I104*'Points System'!$B$15)+(J104*'Points System'!$B$2)+(K104*'Points System'!$B$3)+(L104*'Points System'!$B$4)+(M104*'Points System'!$B$5)+(N104*'Points System'!$B$6)+(O104*'Points System'!$B$7)+(P104*'Points System'!$B$8)+(Q104*'Points System'!$B$9)+(R104*'Points System'!$B$10)+(S104*'Points System'!$B$11)+(T104*'Points System'!$B$13)+(U104*'Points System'!$B$12)+(V104*'Points System'!$B$14) -> 86.91 | D104: =C104/G104 -> 0.161308883 | E104: =C104/F104 -> 0.6311546841 | F104: 137.7 | G104: 538.78 | H104: 486.71 | I104: 125.63 | J104: 86.91 | K104: 22.91 | L104: 3.31 | M104: 11.74 | N104: 55.84 | O104: 53.65 | P104: 45.58 | Q104: 84.28 | R104: 1.56 | S104: 2.32 | T104: 3.1 | U104: 3.23 | V104: 189.62 | W104: 0.258 | X104: 1.849 | Y104: 0.324 | Z104: 0.39 | AA104: 0.714 | AB104: NL | AC104: 606340 | AD104: CF | AE104: =IF(ISNA(VLOOKUP(A104,Rankings!$B$2:$H$1998,7,FALSE)),"-",VLOOKUP(A104,Rankings!$B$2:$H$1998,7,FALSE)) -> 0
A105: Kevin Kiermaier | B105: OF | C105: =(G105*'Points System'!$B$16)+(H105*'Points System'!$B$17)+(I105*'Points System'!$B$15)+(J105*'Points System'!$B$2)+(K105*'Points System'!$B$3)+(L105*'Points System'!$B$4)+(M105*'Points System'!$B$5)+(N105*'Points System'!$B$6)+(O105*'Points System'!$B$7)+(P105*'Points System'!$B$8)+(Q105*'Points System'!$B$9)+(R105*'Points System'!$B$10)+(S105*'Points System'!$B$11)+(T105*'Points System'!$B$13)+(U105*'Points System'!$B$12)+(V105*'Points System'!$B$14) -> 86.9 | D105: =C105/G105 -> 0.1534739147 | E105: =C105/F105 -> 0.6437037037 | F105: 135 | G105: 566.22 | H105: 497.21 | I105: 123 | J105: 86.9 | K105: 22.08 | L105: 5.1 | M105: 16.41 | N105: 53.35 | O105: 68.91 | P105: 42.16 | Q105: 118.21 | R105: 20.49 | S105: 7.43 | T105: 3 | U105: 5.74 | V105: 212 | W105: 0.247 | X105: 2.804 | Y105: 0.312 | Z105: 0.426 | AA105: 0.738 | AB105: AL | AC105: 605548 | AD105: RF | AE105: =IF(ISNA(VLOOKUP(A105,Rankings!$B$2:$H$1998,7,FALSE)),"-",VLOOKUP(A105,Rankings!$B$2:$H$1998,7,FALSE)) -> 0
A106: Adrian Beltre | B106: 3B | C106: =(G106*'Points System'!$B$16)+(H106*'Points System'!$B$17)+(I106*'Points System'!$B$15)+(J106*'Points System'!$B$2)+(K106*'Points System'!$B$3)+(L106*'Points System'!$B$4)+(M106*'Points System'!$B$5)+(N106*'Points System'!$B$6)+(O106*'Points System'!$B$7)+(P106*'Points System'!$B$8)+(Q106*'Points System'!$B$9)+(R106*'Points System'!$B$10)+(S106*'Points System'!$B$11)+(T106*'Points System'!$B$13)+(U106*'Points System'!$B$12)+(V106*'Points System'!$B$14) -> 86.89 | D106: =C106/G106 -> 0.1628495389 | E106: =C106/F106 -> 0.7163231657 | F106: 121.3 | G106: 533.56 | H106: 457.21 | I106: 124.29 | J106: 86.89 | K106: 23.82 | L106: 1.41 | M106: 20.64 | N106: 80.04 | O106: 65.36 | P106: 43.61 | Q106: 69.95 | R106: 1.11 | S106: 0.59 | T106: 3.77 | U106: 4.5 | V106: 221.32 | W106: 0.272 | X106: 1.604 | Y106: 0.339 | Z106: 0.484 | AA106: 0.823 | AB106: AL | AC106: 657557 | AD106: RF | AE106: =IF(ISNA(VLOOKUP(A106,Rankings!$B$2:$H$1998,7,FALSE)),"-",VLOOKUP(A106,Rankings!$B$2:$H$1998,7,FALSE)) -> 0
A107: Freddie Freeman | B107: 1B/3B | C107: =(G107*'Points System'!$B$16)+(H107*'Points System'!$B$17)+(I107*'Points System'!$B$15)+(J107*'Points System'!$B$2)+(K107*'Points System'!$B$3)+(L107*'Points System'!$B$4)+(M107*'Points System'!$B$5)+(N107*'Points System'!$B$6)+(O107*'Points System'!$B$7)+(P107*'Points System'!$B$8)+(Q107*'Points System'!$B$9)+(R107*'Points System'!$B$10)+(S107*'Points System'!$B$11)+(T107*'Points System'!$B$13)+(U107*'Points System'!$B$12)+(V107*'Points System'!$B$14) -> 86.84 | D107: =C107/G107 -> 0.1402907916 | E107: =C107/F107 -> 0.600138217 | F107: 144.7 | G107: 619 | H107: 530.14 | I107: 157.89 | J107: 86.84 | K107: 36.81 | L107: 3.02 | M107: 31.78 | N107: 91.61 | O107: 92.51 | P107: 83.93 | Q107: 130.03 | R107: 7.03 | S107: 3.47 | T107: 4.23 | U107: 8.26 | V107: 296.64 | W107: 0.298 | X107: 1.549 | Y107: 0.399 | Z107: 0.56 | AA107: 0.959 | AB107: NL | AC107: 543829 | AD107: 1B | AE107: =IF(ISNA(VLOOKUP(A107,Rankings!$B$2:$H$1998,7,FALSE)),"-",VLOOKUP(A107,Rankings!$B$2:$H$1998,7,FALSE)) -> 0
A108: Dansby Swanson | B108: SS | C108: =(G108*'Points System'!$B$16)+(H108*'Points System'!$B$17)+(I108*'Points System'!$B$15)+(J108*'Points System'!$B$2)+(K108*'Points System'!$B$3)+(L108*'Points System'!$B$4)+(M108*'Points System'!$B$5)+(N108*'Points System'!$B$6)+(O108*'Points System'!$B$7)+(P108*'Points System'!$B$8)+(Q108*'Points System'!$B$9)+(R108*'Points System'!$B$10)+(S108*'Points System'!$B$11)+(T108*'Points System'!$B$13)+(U108*'Points System'!$B$12)+(V108*'Points System'!$B$14) -> 86.73 | D108: =C108/G108 -> 0.1546292499 | E108: =C108/F108 -> 0.6253064167 | F108: 138.7 | G108: 560.89 | H108: 495.86 | I108: 126.44 | J108: 86.73 | K108: 25.77 | L108: 3.31 | M108: 9.14 | N108: 57.07 | O108: 62.23 | P108: 57.6 | Q108: 116.13 | R108: 5.47 | S108: 2.87 | T108: 3.7 | U108: 2.53 | V108: 184.76 | W108: 0.255 | X108: 2.016 | Y108: 0.333 | Z108: 0.373 | AA108: 0.706 | AB108: NL | AC108: 623323 | AD108: RF | AE108: =IF(ISNA(VLOOKUP(A108,Rankings!$B$2:$H$1998,7,FALSE)),"-",VLOOKUP(A108,Rankings!$B$2:$H$1998,7,FALSE)) -> 0
A109: Bryce Harper | B109: OF | C109: =(G109*'Points System'!$B$16)+(H109*'Points System'!$B$17)+(I109*'Points System'!$B$15)+(J109*'Points System'!$B$2)+(K109*'Points System'!$B$3)+(L109*'Points System'!$B$4)+(M109*'Points System'!$B$5)+(N109*'Points System'!$B$6)+(O109*'Points System'!$B$7)+(P109*'Points System'!$B$8)+(Q109*'Points System'!$B$9)+(R109*'Points System'!$B$10)+(S109*'Points System'!$B$11)+(T109*'Points System'!$B$13)+(U109*'Points System'!$B$12)+(V109*'Points System'!$B$14) -> 86.56 | D109: =C109/G109 -> 0.1409771987 | E109: =C109/F109 -> 0.6002773925 | F109: 144.2 | G109: 614 | H109: 510.43 | I109: 150.92 | J109: 86.56 | K109: 29.54 | L109: 1.75 | M109: 34.11 | N109: 101.64 | O109: 102.11 | P109: 97.93 | Q109: 120.7 | R109: 9.85 | S109: 4.66 | T109: 3.93 | U109: 3.13 | V109: 287.33 | W109: 0.296 | X109: 1.233 | Y109: 0.409 | Z109: 0.563 | AA109: 0.972 | AB109: NL | AC109: 592518 | AD109: SS | AE109: =IF(ISNA(VLOOKUP(A109,Rankings!$B$2:$H$1998,7,FALSE)),"-",VLOOKUP(A109,Rankings!$B$2:$H$1998,7,FALSE)) -> 0
A110: Anthony Rizzo | B110: 1B | C110: =(G110*'Points System'!$B$16)+(H110*'Points System'!$B$17)+(I110*'Points System'!$B$15)+(J110*'Points System'!$B$2)+(K110*'Points System'!$B$3)+(L110*'Points System'!$B$4)+(M110*'Points System'!$B$5)+(N110*'Points System'!$B$6)+(O110*'Points System'!$B$7)+(P110*'Points System'!$B$8)+(Q110*'Points System'!$B$9)+(R110*'Points System'!$B$10)+(S110*'Points System'!$B$11)+(T110*'Points System'!$B$13)+(U110*'Points System'!$B$12)+(V110*'Points System'!$B$14) -> 86.45 | D110: =C110/G110 -> 0.1313610187 | E110: =C110/F110 -> 0.5624593364 | F110: 153.7 | G110: 658.11 | H110: 558.86 | I110: 156.66 | J110: 86.45 | K110: 33.96 | L110: 3.04 | M110: 32.11 | N110: 106.69 | O110: 95.59 | P110: 81.72 | Q110: 96.18 | R110: 8.26 | S110: 4.48 | T110: 6.3 | U110: 20.24 | V110: 291.93 | W110: 0.28 | X110: 1.177 | Y110: 0.388 | Z110: 0.522 | AA110: 0.91 | AB110: NL | AC110: 519203 | AD110: RF | AE110: =IF(ISNA(VLOOKUP(A110,Rankings!$B$2:$H$1998,7,FALSE)),"-",VLOOKUP(A110,Rankings!$B$2:$H$1998,7,FALSE)) -> 0
A111: Jed Lowrie | B111: 2B | C111: =(G111*'Points System'!$B$16)+(H111*'Points System'!$B$17)+(I111*'Points System'!$B$15)+(J111*'Points System'!$B$2)+(K111*'Points System'!$B$3)+(L111*'Points System'!$B$4)+(M111*'Points System'!$B$5)+(N111*'Points System'!$B$6)+(O111*'Points System'!$B$7)+(P111*'Points System'!$B$8)+(Q111*'Points System'!$B$9)+(R111*'Points System'!$B$10)+(S111*'Points System'!$B$11)+(T111*'Points System'!$B$13)+(U111*'Points System'!$B$12)+(V111*'Points System'!$B$14) -> 86.33 | D111: =C111/G111 -> 0.1531868834 | E111: =C111/F111 -> 0.6442537313 | F111: 134 | G111: 563.56 | H111: 506.36 | I111: 122.05 | J111: 86.33 | K111: 30.31 | L111: 1.99 | M111: 10.94 | N111: 57.65 | O111: 67.64 | P111: 55.35 | Q111: 87.63 | R111: 0.59 | S111: 0.48 | T111: 3.23 | U111: 2.89 | V111: 196.68 | W111: 0.241 | X111: 1.583 | Y111: 0.318 | Z111: 0.388 | AA111: 0.706 | AB111: AL | AC111: 622046 | AD111: SS | AE111: =IF(ISNA(VLOOKUP(A111,Rankings!$B$2:$H$1998,7,FALSE)),"-",VLOOKUP(A111,Rankings!$B$2:$H$1998,7,FALSE)) -> 0
A112: Tommy Pham | B112: OF | C112: =(G112*'Points System'!$B$16)+(H112*'Points System'!$B$17)+(I112*'Points System'!$B$15)+(J112*'Points System'!$B$2)+(K112*'Points System'!$B$3)+(L112*'Points System'!$B$4)+(M112*'Points System'!$B$5)+(N112*'Points System'!$B$6)+(O112*'Points System'!$B$7)+(P112*'Points System'!$B$8)+(Q112*'Points System'!$B$9)+(R112*'Points System'!$B$10)+(S112*'Points System'!$B$11)+(T112*'Points System'!$B$13)+(U112*'Points System'!$B$12)+(V112*'Points System'!$B$14) -> 86.16 | D112: =C112/G112 -> 0.1454029972 | E112: =C112/F112 -> 0.6084745763 | F112: 141.6 | G112: 592.56 | H112: 496.93 | I112: 136.33 | J112: 86.16 | K112: 24.07 | L112: 2.88 | M112: 22.29 | N112: 72.56 | O112: 89.39 | P112: 69.71 | Q112: 145.36 | R112: 20.33 | S112: 7.11 | T112: 3.8 | U112: 6.61 | V112: 232.1 | W112: 0.274 | X112: 2.085 | Y112: 0.369 | Z112: 0.467 | AA112: 0.836 | AB112: NL | AC112: 656555 | AD112: C | AE112: =IF(ISNA(VLOOKUP(A112,Rankings!$B$2:$H$1998,7,FALSE)),"-",VLOOKUP(A112,Rankings!$B$2:$H$1998,7,FALSE)) -> 0
A113: Brandon Crawford | B113: SS | C113: =(G113*'Points System'!$B$16)+(H113*'Points System'!$B$17)+(I113*'Points System'!$B$15)+(J113*'Points System'!$B$2)+(K113*'Points System'!$B$3)+(L113*'Points System'!$B$4)+(M113*'Points System'!$B$5)+(N113*'Points System'!$B$6)+(O113*'Points System'!$B$7)+(P113*'Points System'!$B$8)+(Q113*'Points System'!$B$9)+(R113*'Points System'!$B$10)+(S113*'Points System'!$B$11)+(T113*'Points System'!$B$13)+(U113*'Points System'!$B$12)+(V113*'Points System'!$B$14) -> 86.14 | D113: =C113/G113 -> 0.1452075115 | E113: =C113/F113 -> 0.5871847307 | F113: 146.7 | G113: 593.22 | H113: 528.86 | I113: 137.17 | J113: 86.14 | K113: 30.68 | L113: 4.31 | M113: 15.69 | N113: 75.21 | O113: 63.23 | P113: 49.03 | Q113: 117.6 | R113: 4.61 | S113: 3.03 | T113: 5.47 | U113: 5.05 | V113: 223.19 | W113: 0.259 | X113: 2.399 | Y113: 0.325 | Z113: 0.422 | AA113: 0.747 | AB113: NL | AC113: 605196 | AD113: 3B | AE113: =IF(ISNA(VLOOKUP(A113,Rankings!$B$2:$H$1998,7,FALSE)),"-",VLOOKUP(A113,Rankings!$B$2:$H$1998,7,FALSE)) -> 0
A114: Delino DeShields | B114: OF | C114: =(G114*'Points System'!$B$16)+(H114*'Points System'!$B$17)+(I114*'Points System'!$B$15)+(J114*'Points System'!$B$2)+(K114*'Points System'!$B$3)+(L114*'Points System'!$B$4)+(M114*'Points System'!$B$5)+(N114*'Points System'!$B$6)+(O114*'Points System'!$B$7)+(P114*'Points System'!$B$8)+(Q114*'Points System'!$B$9)+(R114*'Points System'!$B$10)+(S114*'Points System'!$B$11)+(T114*'Points System'!$B$13)+(U114*'Points System'!$B$12)+(V114*'Points System'!$B$14) -> 86.03 | D114: =C114/G114 -> 0.1620516878 | E114: =C114/F114 -> 0.672109375 | F114: 128 | G114: 530.88 | H114: 462 | I114: 117.12 | J114: 86.03 | K114: 20.32 | L114: 2.81 | M114: 7.95 | N114: 36.34 | O114: 77.94 | P114: 52.93 | Q114: 134.14 | R114: 31.23 | S114: 10.05 | T114: 3 | U114: 3.87 | V114: 166.9 | W114: 0.254 | X114: 2.534 | Y114: 0.333 | Z114: 0.361 | AA114: 0.694 | AB114: AL | AC114: 446359 | AD114: 1B | AE114: =IF(ISNA(VLOOKUP(A114,Rankings!$B$2:$H$1998,7,FALSE)),"-",VLOOKUP(A114,Rankings!$B$2:$H$1998,7,FALSE)) -> 0
A115: Matt Beaty | C115: =(G115*'Points System'!$B$16)+(H115*'Points System'!$B$17)+(I115*'Points System'!$B$15)+(J115*'Points System'!$B$2)+(K115*'Points System'!$B$3)+(L115*'Points System'!$B$4)+(M115*'Points System'!$B$5)+(N115*'Points System'!$B$6)+(O115*'Points System'!$B$7)+(P115*'Points System'!$B$8)+(Q115*'Points System'!$B$9)+(R115*'Points System'!$B$10)+(S115*'Points System'!$B$11)+(T115*'Points System'!$B$13)+(U115*'Points System'!$B$12)+(V115*'Points System'!$B$14) -> 86 | D115: =C115/G115 -> 0.1737373737 | E115: =C115/F115 -> 0.7413793103 | F115: 116 | G115: 495 | H115: 461 | I115: 120 | J115: 86 | K115: 23 | L115: 1 | M115: 10 | N115: 53 | O115: 52 | P115: 27 | Q115: 78 | R115: 3 | S115: 2 | U115: 3 | V115: 175 | W115: 0.26 | X115: 2.889 | Y115: 0.305 | Z115: 0.38 | AA115: 0.685 | AC115: 666182 | AD115: SS | AE115: =IF(ISNA(VLOOKUP(A115,Rankings!$B$2:$H$1998,7,FALSE)),"-",VLOOKUP(A115,Rankings!$B$2:$H$1998,7,FALSE)) -> -
A116: Edwin Espinal | C116: =(G116*'Points System'!$B$16)+(H116*'Points System'!$B$17)+(I116*'Points System'!$B$15)+(J116*'Points System'!$B$2)+(K116*'Points System'!$B$3)+(L116*'Points System'!$B$4)+(M116*'Points System'!$B$5)+(N116*'Points System'!$B$6)+(O116*'Points System'!$B$7)+(P116*'Points System'!$B$8)+(Q116*'Points System'!$B$9)+(R116*'Points System'!$B$10)+(S116*'Points System'!$B$11)+(T116*'Points System'!$B$13)+(U116*'Points System'!$B$12)+(V116*'Points System'!$B$14) -> 86 | D116: =C116/G116 -> 0.1653846154 | E116: =C116/F116 -> 0.6615384615 | F116: 130 | G116: 520 | H116: 488 | I116: 123 | J116: 86 | K116: 26 | L116: 0 | M116: 11 | N116: 59 | O116: 48 | P116: 21 | Q116: 91 | R116: 1 | S116: 1 | U116: 4 | V116: 182 | W116: 0.252 | X116: 4.333 | Y116: 0.288 | Z116: 0.373 | AA116: 0.661 | AC116: 666783 | AD116: SS | AE116: =IF(ISNA(VLOOKUP(A116,Rankings!$B$2:$H$1998,7,FALSE)),"-",VLOOKUP(A116,Rankings!$B$2:$H$1998,7,FALSE)) -> -
A117: Kyle Wren | C117: =(G117*'Points System'!$B$16)+(H117*'Points System'!$B$17)+(I117*'Points System'!$B$15)+(J117*'Points System'!$B$2)+(K117*'Points System'!$B$3)+(L117*'Points System'!$B$4)+(M117*'Points System'!$B$5)+(N117*'Points System'!$B$6)+(O117*'Points System'!$B$7)+(P117*'Points System'!$B$8)+(Q117*'Points System'!$B$9)+(R117*'Points System'!$B$10)+(S117*'Points System'!$B$11)+(T117*'Points System'!$B$13)+(U117*'Points System'!$B$12)+(V117*'Points System'!$B$14) -> 86 | D117: =C117/G117 -> 0.1616541353 | E117: =C117/F117 -> 0.6615384615 | F117: 130 | G117: 532 | H117: 479 | I117: 112 | J117: 86 | K117: 15 | L117: 7 | M117: 4 | N117: 38 | O117: 53 | P117: 44 | Q117: 101 | R117: 22 | S117: 7 | U117: 2 | V117: 153 | W117: 0.234 | X117: 2.295 | Y117: 0.301 | Z117: 0.319 | AA117: 0.62 | AC117: 466320 | AD117: 3B | AE117: =IF(ISNA(VLOOKUP(A117,Rankings!$B$2:$H$1998,7,FALSE)),"-",VLOOKUP(A117,Rankings!$B$2:$H$1998,7,FALSE)) -> -
A118: Chase Headley | B118: 1B/3B | C118: =(G118*'Points System'!$B$16)+(H118*'Points System'!$B$17)+(I118*'Points System'!$B$15)+(J118*'Points System'!$B$2)+(K118*'Points System'!$B$3)+(L118*'Points System'!$B$4)+(M118*'Points System'!$B$5)+(N118*'Points System'!$B$6)+(O118*'Points System'!$B$7)+(P118*'Points System'!$B$8)+(Q118*'Points System'!$B$9)+(R118*'Points System'!$B$10)+(S118*'Points System'!$B$11)+(T118*'Points System'!$B$13)+(U118*'Points System'!$B$12)+(V118*'Points System'!$B$14) -> 85.76 | D118: =C118/G118 -> 0.1664887111 | E118: =C118/F118 -> 0.6612181958 | F118: 129.7 | G118: 515.11 | H118: 473.87 | I118: 119.96 | J118: 85.76 | K118: 23.1 | L118: 1.13 | M118: 10.95 | N118: 52.46 | O118: 58.53 | P118: 49.99 | Q118: 111.75 | R118: 5.91 | S118: 1.97 | T118: 4.13 | U118: 5.66 | V118: 179.15 | W118: 0.253 | X118: 2.235 | Y118: 0.329 | Z118: 0.378 | AA118: 0.707 | AB118: NL | AC118: 656308 | AD118: SS | AE118: =IF(ISNA(VLOOKUP(A118,Rankings!$B$2:$H$1998,7,FALSE)),"-",VLOOKUP(A118,Rankings!$B$2:$H$1998,7,FALSE)) -> 0
A119: Brian Dozier | B119: 2B | C119: =(G119*'Points System'!$B$16)+(H119*'Points System'!$B$17)+(I119*'Points System'!$B$15)+(J119*'Points System'!$B$2)+(K119*'Points System'!$B$3)+(L119*'Points System'!$B$4)+(M119*'Points System'!$B$5)+(N119*'Points System'!$B$6)+(O119*'Points System'!$B$7)+(P119*'Points System'!$B$8)+(Q119*'Points System'!$B$9)+(R119*'Points System'!$B$10)+(S119*'Points System'!$B$11)+(T119*'Points System'!$B$13)+(U119*'Points System'!$B$12)+(V119*'Points System'!$B$14) -> 85.42 | D119: =C119/G119 -> 0.128173579 | E119: =C119/F119 -> 0.5597640891 | F119: 152.6 | G119: 666.44 | H119: 598.21 | I119: 141.55 | J119: 85.42 | K119: 29.66 | L119: 3.39 | M119: 33.14 | N119: 89.46 | O119: 103.01 | P119: 70.78 | Q119: 135.18 | R119: 14.56 | S119: 4.97 | T119: 3.83 | U119: 7.16 | V119: 287.47 | W119: 0.237 | X119: 1.91 | Y119: 0.323 | Z119: 0.481 | AA119: 0.804 | AB119: AL | AC119: 518934 | AD119: LF | AE119: =IF(ISNA(VLOOKUP(A119,Rankings!$B$2:$H$1998,7,FALSE)),"-",VLOOKUP(A119,Rankings!$B$2:$H$1998,7,FALSE)) -> 0
A120: Asdrubal Cabrera | B120: 2B/SS/3B | C120: =(G120*'Points System'!$B$16)+(H120*'Points System'!$B$17)+(I120*'Points System'!$B$15)+(J120*'Points System'!$B$2)+(K120*'Points System'!$B$3)+(L120*'Points System'!$B$4)+(M120*'Points System'!$B$5)+(N120*'Points System'!$B$6)+(O120*'Points System'!$B$7)+(P120*'Points System'!$B$8)+(Q120*'Points System'!$B$9)+(R120*'Points System'!$B$10)+(S120*'Points System'!$B$11)+(T120*'Points System'!$B$13)+(U120*'Points System'!$B$12)+(V120*'Points System'!$B$14) -> 85.25 | D120: =C120/G120 -> 0.1628275651 | E120: =C120/F120 -> 0.6675802662 | F120: 127.7 | G120: 523.56 | H120: 485.5 | I120: 131.1 | J120: 85.25 | K120: 28.4 | L120: 1.55 | M120: 15.84 | N120: 58.09 | O120: 62.59 | P120: 42.45 | Q120: 90.45 | R120: 3.7 | S120: 1.84 | T120: 3.47 | U120: 4.53 | V120: 210.06 | W120: 0.27 | X120: 2.131 | Y120: 0.332 | Z120: 0.433 | AA120: 0.765 | AB120: NL | AC120: 592387 | AD120: LF | AE120: =IF(ISNA(VLOOKUP(A120,Rankings!$B$2:$H$1998,7,FALSE)),"-",VLOOKUP(A120,Rankings!$B$2:$H$1998,7,FALSE)) -> 0
A121: Sam Hilliard | C121: =(G121*'Points System'!$B$16)+(H121*'Points System'!$B$17)+(I121*'Points System'!$B$15)+(J121*'Points System'!$B$2)+(K121*'Points System'!$B$3)+(L121*'Points System'!$B$4)+(M121*'Points System'!$B$5)+(N121*'Points System'!$B$6)+(O121*'Points System'!$B$7)+(P121*'Points System'!$B$8)+(Q121*'Points System'!$B$9)+(R121*'Points System'!$B$10)+(S121*'Points System'!$B$11)+(T121*'Points System'!$B$13)+(U121*'Points System'!$B$12)+(V121*'Points System'!$B$14) -> 85 | D121: =C121/G121 -> 0.1545454545 | E121: =C121/F121 -> 0.6692913386 | F121: 127 | G121: 550 | H121: 503 | I121: 119 | J121: 85 | K121: 16 | L121: 5 | M121: 13 | N121: 53 | O121: 61 | P121: 40 | Q121: 176 | R121: 25 | S121: 17 | U121: 1 | V121: 184 | W121: 0.237 | X121: 4.4 | Y121: 0.294 | Z121: 0.366 | AA121: 0.66 | AC121: 642221 | AD121: C | AE121: =IF(ISNA(VLOOKUP(A121,Rankings!$B$2:$H$1998,7,FALSE)),"-",VLOOKUP(A121,Rankings!$B$2:$H$1998,7,FALSE)) -> -
A122: Braden Bishop | C122: =(G122*'Points System'!$B$16)+(H122*'Points System'!$B$17)+(I122*'Points System'!$B$15)+(J122*'Points System'!$B$2)+(K122*'Points System'!$B$3)+(L122*'Points System'!$B$4)+(M122*'Points System'!$B$5)+(N122*'Points System'!$B$6)+(O122*'Points System'!$B$7)+(P122*'Points System'!$B$8)+(Q122*'Points System'!$B$9)+(R122*'Points System'!$B$10)+(S122*'Points System'!$B$11)+(T122*'Points System'!$B$13)+(U122*'Points System'!$B$12)+(V122*'Points System'!$B$14) -> 85 | D122: =C122/G122 -> 0.1622137405 | E122: =C122/F122 -> 0.7391304348 | F122: 115 | G122: 524 | H122: 475 | I122: 106 | J122: 85 | K122: 16 | L122: 2 | M122: 3 | N122: 31 | O122: 50 | P122: 34 | Q122: 109 | R122: 12 | S122: 4 | U122: 7 | V122: 135 | W122: 0.223 | X122: 3.206 | Y122: 0.285 | Z122: 0.284 | AA122: 0.569 | AC122: 592535 | AD122: RF | AE122: =IF(ISNA(VLOOKUP(A122,Rankings!$B$2:$H$1998,7,FALSE)),"-",VLOOKUP(A122,Rankings!$B$2:$H$1998,7,FALSE)) -> -
A123: Gregory Polanco | B123: OF | C123: =(G123*'Points System'!$B$16)+(H123*'Points System'!$B$17)+(I123*'Points System'!$B$15)+(J123*'Points System'!$B$2)+(K123*'Points System'!$B$3)+(L123*'Points System'!$B$4)+(M123*'Points System'!$B$5)+(N123*'Points System'!$B$6)+(O123*'Points System'!$B$7)+(P123*'Points System'!$B$8)+(Q123*'Points System'!$B$9)+(R123*'Points System'!$B$10)+(S123*'Points System'!$B$11)+(T123*'Points System'!$B$13)+(U123*'Points System'!$B$12)+(V123*'Points System'!$B$14) -> 84.98 | D123: =C123/G123 -> 0.15175 | E123: =C123/F123 -> 0.6211988304 | F123: 136.8 | G123: 560 | H123: 510.14 | I123: 134.36 | J123: 84.98 | K123: 30.52 | L123: 2.7 | M123: 17.79 | N123: 67.54 | O123: 67.85 | P123: 47.17 | Q123: 98.74 | R123: 14.31 | S123: 4.97 | T123: 2.8 | U123: 1.9 | V123: 225.28 | W123: 0.263 | X123: 2.093 | Y123: 0.326 | Z123: 0.442 | AA123: 0.768 | AB123: NL | AC123: 542921 | AD123: CF | AE123: =IF(ISNA(VLOOKUP(A123,Rankings!$B$2:$H$1998,7,FALSE)),"-",VLOOKUP(A123,Rankings!$B$2:$H$1998,7,FALSE)) -> 0
A124: Denard Span | B124: OF | C124: =(G124*'Points System'!$B$16)+(H124*'Points System'!$B$17)+(I124*'Points System'!$B$15)+(J124*'Points System'!$B$2)+(K124*'Points System'!$B$3)+(L124*'Points System'!$B$4)+(M124*'Points System'!$B$5)+(N124*'Points System'!$B$6)+(O124*'Points System'!$B$7)+(P124*'Points System'!$B$8)+(Q124*'Points System'!$B$9)+(R124*'Points System'!$B$10)+(S124*'Points System'!$B$11)+(T124*'Points System'!$B$13)+(U124*'Points System'!$B$12)+(V124*'Points System'!$B$14) -> 84.35 | D124: =C124/G124 -> 0.1750435793 | E124: =C124/F124 -> 0.7313795196 | F124: 115.33 | G124: 481.88 | H124: 452 | I124: 120.45 | J124: 84.35 | K124: 23.02 | L124: 3.47 | M124: 10.41 | N124: 42.12 | O124: 60.83 | P124: 38.97 | Q124: 64.27 | R124: 10.34 | S124: 5.07 | T124: 2 | U124: 2.9 | V124: 182.44 | W124: 0.266 | X124: 1.649 | Y124: 0.327 | Z124: 0.404 | AA124: 0.731 | AB124: AL | AC124: 572128 | AD124: C | AE124: =IF(ISNA(VLOOKUP(A124,Rankings!$B$2:$H$1998,7,FALSE)),"-",VLOOKUP(A124,Rankings!$B$2:$H$1998,7,FALSE)) -> 0
A125: Yoan Moncada | B125: 2B | C125: =(G125*'Points System'!$B$16)+(H125*'Points System'!$B$17)+(I125*'Points System'!$B$15)+(J125*'Points System'!$B$2)+(K125*'Points System'!$B$3)+(L125*'Points System'!$B$4)+(M125*'Points System'!$B$5)+(N125*'Points System'!$B$6)+(O125*'Points System'!$B$7)+(P125*'Points System'!$B$8)+(Q125*'Points System'!$B$9)+(R125*'Points System'!$B$10)+(S125*'Points System'!$B$11)+(T125*'Points System'!$B$13)+(U125*'Points System'!$B$12)+(V125*'Points System'!$B$14) -> 84.33 | D125: =C125/G125 -> 0.1390299393 | E125: =C125/F125 -> 0.5938732394 | F125: 142 | G125: 606.56 | H125: 528.85 | I125: 129.87 | J125: 84.33 | K125: 22.31 | L125: 4.23 | M125: 19.16 | N125: 62.31 | O125: 81.16 | P125: 69.12 | Q125: 181.93 | R125: 19.84 | S125: 8.58 | T125: 3.77 | U125: 4.99 | V125: 218.28 | W125: 0.246 | X125: 2.632 | Y125: 0.336 | Z125: 0.413 | AA125: 0.749 | AB125: AL | AC125: 451594 | AD125: 2B | AE125: =IF(ISNA(VLOOKUP(A125,Rankings!$B$2:$H$1998,7,FALSE)),"-",VLOOKUP(A125,Rankings!$B$2:$H$1998,7,FALSE)) -> 0
A126: Jason Heyward | B126: OF | C126: =(G126*'Points System'!$B$16)+(H126*'Points System'!$B$17)+(I126*'Points System'!$B$15)+(J126*'Points System'!$B$2)+(K126*'Points System'!$B$3)+(L126*'Points System'!$B$4)+(M126*'Points System'!$B$5)+(N126*'Points System'!$B$6)+(O126*'Points System'!$B$7)+(P126*'Points System'!$B$8)+(Q126*'Points System'!$B$9)+(R126*'Points System'!$B$10)+(S126*'Points System'!$B$11)+(T126*'Points System'!$B$13)+(U126*'Points System'!$B$12)+(V126*'Points System'!$B$14) -> 84.08 | D126: =C126/G126 -> 0.1640777457 | E126: =C126/F126 -> 0.6960264901 | F126: 120.8 | G126: 512.44 | H126: 460.36 | I126: 120.58 | J126: 84.08 | K126: 21.99 | L126: 2.95 | M126: 10.96 | N126: 56.14 | O126: 59.61 | P126: 46.88 | Q126: 80.41 | R126: 8.49 | S126: 3.78 | T126: 2.4 | U126: 3.14 | V126: 180.75 | W126: 0.262 | X126: 1.715 | Y126: 0.333 | Z126: 0.393 | AA126: 0.726 | AB126: NL | AC126: 602115 | AD126: DH | AE126: =IF(ISNA(VLOOKUP(A126,Rankings!$B$2:$H$1998,7,FALSE)),"-",VLOOKUP(A126,Rankings!$B$2:$H$1998,7,FALSE)) -> 0
A127: Jahmai Jones | B127: OF | C127: =(G127*'Points System'!$B$16)+(H127*'Points System'!$B$17)+(I127*'Points System'!$B$15)+(J127*'Points System'!$B$2)+(K127*'Points System'!$B$3)+(L127*'Points System'!$B$4)+(M127*'Points System'!$B$5)+(N127*'Points System'!$B$6)+(O127*'Points System'!$B$7)+(P127*'Points System'!$B$8)+(Q127*'Points System'!$B$9)+(R127*'Points System'!$B$10)+(S127*'Points System'!$B$11)+(T127*'Points System'!$B$13)+(U127*'Points System'!$B$12)+(V127*'Points System'!$B$14) -> 84 | D127: =C127/G127 -> 0.1492007105 | E127: =C127/F127 -> 0.6829268293 | F127: 123 | G127: 563 | H127: 517 | I127: 119 | J127: 84 | K127: 20 | L127: 4 | M127: 11 | N127: 48 | O127: 59 | P127: 32 | Q127: 134 | R127: 20 | S127: 15 | U127: 7 | V127: 180 | W127: 0.23 | X127: 4.188 | Y127: 0.284 | Z127: 0.348 | AA127: 0.632 | AB127: AL | AC127: 545341 | AD127: 1B | AE127: =IF(ISNA(VLOOKUP(A127,Rankings!$B$2:$H$1998,7,FALSE)),"-",VLOOKUP(A127,Rankings!$B$2:$H$1998,7,FALSE)) -> 0
A128: David Fletcher | C128: =(G128*'Points System'!$B$16)+(H128*'Points System'!$B$17)+(I128*'Points System'!$B$15)+(J128*'Points System'!$B$2)+(K128*'Points System'!$B$3)+(L128*'Points System'!$B$4)+(M128*'Points System'!$B$5)+(N128*'Points System'!$B$6)+(O128*'Points System'!$B$7)+(P128*'Points System'!$B$8)+(Q128*'Points System'!$B$9)+(R128*'Points System'!$B$10)+(S128*'Points System'!$B$11)+(T128*'Points System'!$B$13)+(U128*'Points System'!$B$12)+(V128*'Points System'!$B$14) -> 84 | D128: =C128/G128 -> 0.175 | E128: =C128/F128 -> 0.7777777778 | F128: 108 | G128: 480 | H128: 448 | I128: 106 | J128: 84 | K128: 17 | L128: 2 | M128: 3 | N128: 33 | O128: 44 | P128: 21 | Q128: 67 | R128: 15 | S128: 5 | U128: 4 | V128: 136 | W128: 0.237 | X128: 3.19 | Y128: 0.277 | Z128: 0.304 | AA128: 0.581 | AC128: 546991 | AD128: 3B | AE128: =IF(ISNA(VLOOKUP(A128,Rankings!$B$2:$H$1998,7,FALSE)),"-",VLOOKUP(A128,Rankings!$B$2:$H$1998,7,FALSE)) -> -
A129: Scooter Gennett | B129: 2B/3B/OF | C129: =(G129*'Points System'!$B$16)+(H129*'Points System'!$B$17)+(I129*'Points System'!$B$15)+(J129*'Points System'!$B$2)+(K129*'Points System'!$B$3)+(L129*'Points System'!$B$4)+(M129*'Points System'!$B$5)+(N129*'Points System'!$B$6)+(O129*'Points System'!$B$7)+(P129*'Points System'!$B$8)+(Q129*'Points System'!$B$9)+(R129*'Points System'!$B$10)+(S129*'Points System'!$B$11)+(T129*'Points System'!$B$13)+(U129*'Points System'!$B$12)+(V129*'Points System'!$B$14) -> 83.81 | D129: =C129/G129 -> 0.1632672939 | E129: =C129/F129 -> 0.6334845049 | F129: 132.3 | G129: 513.33 | H129: 479.71 | I129: 129.54 | J129: 83.81 | K129: 24.98 | L129: 2.67 | M129: 18.6 | N129: 71.75 | O129: 65.14 | P129: 31.42 | Q129: 108.29 | R129: 3.94 | S129: 2.38 | T129: 2.97 | U129: 3.55 | V129: 216.18 | W129: 0.27 | X129: 3.447 | Y129: 0.318 | Z129: 0.451 | AA129: 0.769 | AB129: NL | AC129: 656305 | AD129: LF | AE129: =IF(ISNA(VLOOKUP(A129,Rankings!$B$2:$H$1998,7,FALSE)),"-",VLOOKUP(A129,Rankings!$B$2:$H$1998,7,FALSE)) -> 0
A130: Maikel Franco | B130: 3B | C130: =(G130*'Points System'!$B$16)+(H130*'Points System'!$B$17)+(I130*'Points System'!$B$15)+(J130*'Points System'!$B$2)+(K130*'Points System'!$B$3)+(L130*'Points System'!$B$4)+(M130*'Points System'!$B$5)+(N130*'Points System'!$B$6)+(O130*'Points System'!$B$7)+(P130*'Points System'!$B$8)+(Q130*'Points System'!$B$9)+(R130*'Points System'!$B$10)+(S130*'Points System'!$B$11)+(T130*'Points System'!$B$13)+(U130*'Points System'!$B$12)+(V130*'Points System'!$B$14) -> 83.45 | D130: =C130/G130 -> 0.1424863831 | E130: =C130/F130 -> 0.5943732194 | F130: 140.4 | G130: 585.67 | H130: 535.57 | I130: 139.53 | J130: 83.45 | K130: 27.56 | L130: 1.31 | M130: 24.85 | N130: 82.48 | O130: 67.98 | P130: 39.77 | Q130: 91.96 | R130: 1.11 | S130: 0.58 | T130: 4.07 | U130: 3.88 | V130: 241.9 | W130: 0.261 | X130: 2.312 | Y130: 0.314 | Z130: 0.452 | AA130: 0.766 | AB130: NL | AC130: 457759 | AD130: LF | AE130: =IF(ISNA(VLOOKUP(A130,Rankings!$B$2:$H$1998,7,FALSE)),"-",VLOOKUP(A130,Rankings!$B$2:$H$1998,7,FALSE)) -> 0
A131: Marcus Semien | B131: SS | C131: =(G131*'Points System'!$B$16)+(H131*'Points System'!$B$17)+(I131*'Points System'!$B$15)+(J131*'Points System'!$B$2)+(K131*'Points System'!$B$3)+(L131*'Points System'!$B$4)+(M131*'Points System'!$B$5)+(N131*'Points System'!$B$6)+(O131*'Points System'!$B$7)+(P131*'Points System'!$B$8)+(Q131*'Points System'!$B$9)+(R131*'Points System'!$B$10)+(S131*'Points System'!$B$11)+(T131*'Points System'!$B$13)+(U131*'Points System'!$B$12)+(V131*'Points System'!$B$14) -> 83.17 | D131: =C131/G131 -> 0.1430955576 | E131: =C131/F131 -> 0.5970567121 | F131: 139.3 | G131: 581.22 | H131: 517.5 | I131: 122.02 | J131: 83.17 | K131: 24.78 | L131: 2.58 | M131: 19.01 | N131: 62.21 | O131: 73.96 | P131: 52.58 | Q131: 126.19 | R131: 12.74 | S131: 3.18 | T131: 2.63 | U131: 1.68 | V131: 216.51 | W131: 0.236 | X131: 2.4 | Y131: 0.307 | Z131: 0.418 | AA131: 0.725 | AB131: AL | AC131: 502517 | AD131: 2B | AE131: =IF(ISNA(VLOOKUP(A131,Rankings!$B$2:$H$1998,7,FALSE)),"-",VLOOKUP(A131,Rankings!$B$2:$H$1998,7,FALSE)) -> 0
A132: Ronald Acuna | B132: OF | C132: =(G132*'Points System'!$B$16)+(H132*'Points System'!$B$17)+(I132*'Points System'!$B$15)+(J132*'Points System'!$B$2)+(K132*'Points System'!$B$3)+(L132*'Points System'!$B$4)+(M132*'Points System'!$B$5)+(N132*'Points System'!$B$6)+(O132*'Points System'!$B$7)+(P132*'Points System'!$B$8)+(Q132*'Points System'!$B$9)+(R132*'Points System'!$B$10)+(S132*'Points System'!$B$11)+(T132*'Points System'!$B$13)+(U132*'Points System'!$B$12)+(V132*'Points System'!$B$14) -> 83.16 | D132: =C132/G132 -> 0.1616106652 | E132: =C132/F132 -> 0.7318489835 | F132: 113.63 | G132: 514.57 | H132: 456.91 | I132: 125.12 | J132: 83.16 | K132: 21.87 | L132: 4.05 | M132: 16.11 | N132: 62.06 | O132: 60.15 | P132: 35.42 | Q132: 133.99 | R132: 22.5 | S132: 10.49 | T132: 3.6 | U132: 4.17 | V132: 203.49 | W132: 0.274 | X132: 3.783 | Y132: 0.329 | Z132: 0.445 | AA132: 0.774 | AB132: NL | AC132: 593528 | AD132: CF | AE132: =IF(ISNA(VLOOKUP(A132,Rankings!$B$2:$H$1998,7,FALSE)),"-",VLOOKUP(A132,Rankings!$B$2:$H$1998,7,FALSE)) -> 0
A133: Hunter Pence | B133: OF | C133: =(G133*'Points System'!$B$16)+(H133*'Points System'!$B$17)+(I133*'Points System'!$B$15)+(J133*'Points System'!$B$2)+(K133*'Points System'!$B$3)+(L133*'Points System'!$B$4)+(M133*'Points System'!$B$5)+(N133*'Points System'!$B$6)+(O133*'Points System'!$B$7)+(P133*'Points System'!$B$8)+(Q133*'Points System'!$B$9)+(R133*'Points System'!$B$10)+(S133*'Points System'!$B$11)+(T133*'Points System'!$B$13)+(U133*'Points System'!$B$12)+(V133*'Points System'!$B$14) -> 82.99 | D133: =C133/G133 -> 0.1647705839 | E133: =C133/F133 -> 0.6769168026 | F133: 122.6 | G133: 503.67 | H133: 456.07 | I133: 121.12 | J133: 82.99 | K133: 18.35 | L133: 3.71 | M133: 14.55 | N133: 63.17 | O133: 55.52 | P133: 39.48 | Q133: 101.2 | R133: 2.6 | S133: 2.07 | T133: 3.33 | U133: 1.99 | V133: 189.02 | W133: 0.266 | X133: 2.563 | Y133: 0.325 | Z133: 0.414 | AA133: 0.739 | AB133: NL | AC133: 668804 | AD133: CF | AE133: =IF(ISNA(VLOOKUP(A133,Rankings!$B$2:$H$1998,7,FALSE)),"-",VLOOKUP(A133,Rankings!$B$2:$H$1998,7,FALSE)) -> 0
A134: Javier Baez | B134: 2B/SS | C134: =(G134*'Points System'!$B$16)+(H134*'Points System'!$B$17)+(I134*'Points System'!$B$15)+(J134*'Points System'!$B$2)+(K134*'Points System'!$B$3)+(L134*'Points System'!$B$4)+(M134*'Points System'!$B$5)+(N134*'Points System'!$B$6)+(O134*'Points System'!$B$7)+(P134*'Points System'!$B$8)+(Q134*'Points System'!$B$9)+(R134*'Points System'!$B$10)+(S134*'Points System'!$B$11)+(T134*'Points System'!$B$13)+(U134*'Points System'!$B$12)+(V134*'Points System'!$B$14) -> 82.91 | D134: =C134/G134 -> 0.1527816168 | E134: =C134/F134 -> 0.6007971014 | F134: 138 | G134: 542.67 | H134: 494.93 | I134: 132.71 | J134: 82.91 | K134: 24.57 | L134: 2.39 | M134: 22.51 | N134: 74.29 | O134: 70.21 | P134: 30.69 | Q134: 142.95 | R134: 11.49 | S134: 3.86 | T134: 3.67 | U134: 7 | V134: 229.26 | W134: 0.268 | X134: 4.658 | Y134: 0.318 | Z134: 0.463 | AA134: 0.781 | AB134: NL | AC134: 664702 | AD134: 1B | AE134: =IF(ISNA(VLOOKUP(A134,Rankings!$B$2:$H$1998,7,FALSE)),"-",VLOOKUP(A134,Rankings!$B$2:$H$1998,7,FALSE)) -> 0
A135: Marwin Gonzalez | B135: 1B/2B/SS/3B/OF | C135: =(G135*'Points System'!$B$16)+(H135*'Points System'!$B$17)+(I135*'Points System'!$B$15)+(J135*'Points System'!$B$2)+(K135*'Points System'!$B$3)+(L135*'Points System'!$B$4)+(M135*'Points System'!$B$5)+(N135*'Points System'!$B$6)+(O135*'Points System'!$B$7)+(P135*'Points System'!$B$8)+(Q135*'Points System'!$B$9)+(R135*'Points System'!$B$10)+(S135*'Points System'!$B$11)+(T135*'Points System'!$B$13)+(U135*'Points System'!$B$12)+(V135*'Points System'!$B$14) -> 82.78 | D135: =C135/G135 -> 0.1593976855 | E135: =C135/F135 -> 0.630945122 | F135: 131.2 | G135: 519.33 | H135: 479.94 | I135: 123.64 | J135: 82.78 | K135: 27.64 | L135: 1.06 | M135: 19.16 | N135: 73.26 | O135: 63.93 | P135: 39.25 | Q135: 106.4 | R135: 8.39 | S135: 3.97 | T135: 3 | U135: 5.28 | V135: 217.88 | W135: 0.258 | X135: 2.711 | Y135: 0.319 | Z135: 0.454 | AA135: 0.773 | AB135: AL | AC135: 624577 | AD135: LF | AE135: =IF(ISNA(VLOOKUP(A135,Rankings!$B$2:$H$1998,7,FALSE)),"-",VLOOKUP(A135,Rankings!$B$2:$H$1998,7,FALSE)) -> 0
A136: Yasiel Puig | B136: OF | C136: =(G136*'Points System'!$B$16)+(H136*'Points System'!$B$17)+(I136*'Points System'!$B$15)+(J136*'Points System'!$B$2)+(K136*'Points System'!$B$3)+(L136*'Points System'!$B$4)+(M136*'Points System'!$B$5)+(N136*'Points System'!$B$6)+(O136*'Points System'!$B$7)+(P136*'Points System'!$B$8)+(Q136*'Points System'!$B$9)+(R136*'Points System'!$B$10)+(S136*'Points System'!$B$11)+(T136*'Points System'!$B$13)+(U136*'Points System'!$B$12)+(V136*'Points System'!$B$14) -> 82.74 | D136: =C136/G136 -> 0.1482503449 | E136: =C136/F136 -> 0.5918454936 | F136: 139.8 | G136: 558.11 | H136: 495.71 | I136: 135.38 | J136: 82.74 | K136: 24.14 | L136: 3.03 | M136: 24.56 | N136: 77.96 | O136: 71.41 | P136: 54.93 | Q136: 105.88 | R136: 11.2 | S136: 5.56 | T136: 4.13 | U136: 4.45 | V136: 238.35 | W136: 0.273 | X136: 1.928 | Y136: 0.348 | Z136: 0.481 | AA136: 0.829 | AB136: NL | AC136: 621035 | AD136: 2B | AE136: =IF(ISNA(VLOOKUP(A136,Rankings!$B$2:$H$1998,7,FALSE)),"-",VLOOKUP(A136,Rankings!$B$2:$H$1998,7,FALSE)) -> 0
A137: Paul DeJong | B137: 2B/SS | C137: =(G137*'Points System'!$B$16)+(H137*'Points System'!$B$17)+(I137*'Points System'!$B$15)+(J137*'Points System'!$B$2)+(K137*'Points System'!$B$3)+(L137*'Points System'!$B$4)+(M137*'Points System'!$B$5)+(N137*'Points System'!$B$6)+(O137*'Points System'!$B$7)+(P137*'Points System'!$B$8)+(Q137*'Points System'!$B$9)+(R137*'Points System'!$B$10)+(S137*'Points System'!$B$11)+(T137*'Points System'!$B$13)+(U137*'Points System'!$B$12)+(V137*'Points System'!$B$14) -> 82.69 | D137: =C137/G137 -> 0.1438086957 | E137: =C137/F137 -> 0.604017531 | F137: 136.9 | G137: 575 | H137: 527.47 | I137: 138.28 | J137: 82.69 | K137: 28.85 | L137: 1.7 | M137: 26.27 | N137: 77.72 | O137: 66.08 | P137: 30.52 | Q137: 154.94 | R137: 2.55 | S137: 1.46 | T137: 3.8 | U137: 6.54 | V137: 250.57 | W137: 0.262 | X137: 5.077 | Y137: 0.309 | Z137: 0.475 | AA137: 0.784 | AB137: NL | AC137: 543401 | AD137: 2B | AE137: =IF(ISNA(VLOOKUP(A137,Rankings!$B$2:$H$1998,7,FALSE)),"-",VLOOKUP(A137,Rankings!$B$2:$H$1998,7,FALSE)) -> 0
A138: Eduardo Nunez | B138: 2B/SS/3B/OF | C138: =(G138*'Points System'!$B$16)+(H138*'Points System'!$B$17)+(I138*'Points System'!$B$15)+(J138*'Points System'!$B$2)+(K138*'Points System'!$B$3)+(L138*'Points System'!$B$4)+(M138*'Points System'!$B$5)+(N138*'Points System'!$B$6)+(O138*'Points System'!$B$7)+(P138*'Points System'!$B$8)+(Q138*'Points System'!$B$9)+(R138*'Points System'!$B$10)+(S138*'Points System'!$B$11)+(T138*'Points System'!$B$13)+(U138*'Points System'!$B$12)+(V138*'Points System'!$B$14) -> 82.62 | D138: =C138/G138 -> 0.214909999 | E138: =C138/F138 -> 0.8131889764 | F138: 101.6 | G138: 384.44 | H138: 407.94 | I138: 110.35 | J138: 82.62 | K138: 22.38 | L138: 1.18 | M138: 11.57 | N138: 52.35 | O138: 53.73 | P138: 18.39 | Q138: 51.3 | R138: 21.84 | S138: 6.55 | T138: 2.23 | U138: 2.76 | V138: 177.2 | W138: 0.271 | X138: 2.79 | Y138: 0.305 | Z138: 0.434 | AA138: 0.739 | AB138: AL | AC138: 664023 | AD138: SS | AE138: =IF(ISNA(VLOOKUP(A138,Rankings!$B$2:$H$1998,7,FALSE)),"-",VLOOKUP(A138,Rankings!$B$2:$H$1998,7,FALSE)) -> 0
A139: Shin-Soo Choo | B139: OF | C139: =(G139*'Points System'!$B$16)+(H139*'Points System'!$B$17)+(I139*'Points System'!$B$15)+(J139*'Points System'!$B$2)+(K139*'Points System'!$B$3)+(L139*'Points System'!$B$4)+(M139*'Points System'!$B$5)+(N139*'Points System'!$B$6)+(O139*'Points System'!$B$7)+(P139*'Points System'!$B$8)+(Q139*'Points System'!$B$9)+(R139*'Points System'!$B$10)+(S139*'Points System'!$B$11)+(T139*'Points System'!$B$13)+(U139*'Points System'!$B$12)+(V139*'Points System'!$B$14) -> 82.58 | D139: =C139/G139 -> 0.1470703473 | E139: =C139/F139 -> 0.6325061275 | F139: 130.56 | G139: 561.5 | H139: 485.54 | I139: 113.54 | J139: 82.58 | K139: 19.19 | L139: 1.12 | M139: 19.28 | N139: 65.83 | O139: 79.55 | P139: 64.25 | Q139: 124.04 | R139: 8.78 | S139: 3.65 | T139: 4.03 | U139: 9.53 | V139: 201.44 | W139: 0.234 | X139: 1.931 | Y139: 0.333 | Z139: 0.415 | AA139: 0.748 | AB139: AL | AC139: 593871 | AD139: 1B | AE139: =IF(ISNA(VLOOKUP(A139,Rankings!$B$2:$H$1998,7,FALSE)),"-",VLOOKUP(A139,Rankings!$B$2:$H$1998,7,FALSE)) -> 0
A140: Mike Moustakas | B140: 3B | C140: =(G140*'Points System'!$B$16)+(H140*'Points System'!$B$17)+(I140*'Points System'!$B$15)+(J140*'Points System'!$B$2)+(K140*'Points System'!$B$3)+(L140*'Points System'!$B$4)+(M140*'Points System'!$B$5)+(N140*'Points System'!$B$6)+(O140*'Points System'!$B$7)+(P140*'Points System'!$B$8)+(Q140*'Points System'!$B$9)+(R140*'Points System'!$B$10)+(S140*'Points System'!$B$11)+(T140*'Points System'!$B$13)+(U140*'Points System'!$B$12)+(V140*'Points System'!$B$14) -> 82.11 | D140: =C140/G140 -> 0.1461604187 | E140: =C140/F140 -> 0.6173684211 | F140: 133 | G140: 561.78 | H140: 509.62 | I140: 136.86 | J140: 82.11 | K140: 25.27 | L140: 0.52 | M140: 29.51 | N140: 80.12 | O140: 69.26 | P140: 37.85 | Q140: 87.38 | R140: 0.57 | S140: 0.92 | T140: 4.23 | U140: 5.98 | V140: 252.25 | W140: 0.269 | X140: 2.309 | Y140: 0.324 | Z140: 0.495 | AA140: 0.819 | AB140: AL | AC140: 502054 | AD140: 3B | AE140: =IF(ISNA(VLOOKUP(A140,Rankings!$B$2:$H$1998,7,FALSE)),"-",VLOOKUP(A140,Rankings!$B$2:$H$1998,7,FALSE)) -> 0
A141: Rougned Odor | B141: 2B | C141: =(G141*'Points System'!$B$16)+(H141*'Points System'!$B$17)+(I141*'Points System'!$B$15)+(J141*'Points System'!$B$2)+(K141*'Points System'!$B$3)+(L141*'Points System'!$B$4)+(M141*'Points System'!$B$5)+(N141*'Points System'!$B$6)+(O141*'Points System'!$B$7)+(P141*'Points System'!$B$8)+(Q141*'Points System'!$B$9)+(R141*'Points System'!$B$10)+(S141*'Points System'!$B$11)+(T141*'Points System'!$B$13)+(U141*'Points System'!$B$12)+(V141*'Points System'!$B$14) -> 82.11 | D141: =C141/G141 -> 0.1326258662 | E141: =C141/F141 -> 0.542338177 | F141: 151.4 | G141: 619.11 | H141: 582.5 | I141: 132.42 | J141: 82.11 | K141: 25.22 | L141: 3.75 | M141: 29.53 | N141: 83.11 | O141: 80.1 | P141: 30.47 | Q141: 130.85 | R141: 13.77 | S141: 6.62 | T141: 4.53 | U141: 8.63 | V141: 261.92 | W141: 0.227 | X141: 4.294 | Y141: 0.274 | Z141: 0.45 | AA141: 0.724 | AB141: AL | AC141: 435079 | AD141: OF | AE141: =IF(ISNA(VLOOKUP(A141,Rankings!$B$2:$H$1998,7,FALSE)),"-",VLOOKUP(A141,Rankings!$B$2:$H$1998,7,FALSE)) -> 0
A142: Neftali Soto | B142: 1B/OF | C142: =(G142*'Points System'!$B$16)+(H142*'Points System'!$B$17)+(I142*'Points System'!$B$15)+(J142*'Points System'!$B$2)+(K142*'Points System'!$B$3)+(L142*'Points System'!$B$4)+(M142*'Points System'!$B$5)+(N142*'Points System'!$B$6)+(O142*'Points System'!$B$7)+(P142*'Points System'!$B$8)+(Q142*'Points System'!$B$9)+(R142*'Points System'!$B$10)+(S142*'Points System'!$B$11)+(T142*'Points System'!$B$13)+(U142*'Points System'!$B$12)+(V142*'Points System'!$B$14) -> 82 | D142: =C142/G142 -> 0.1623762376 | E142: =C142/F142 -> 0.656 | F142: 125 | G142: 505 | H142: 470 | I142: 122 | J142: 82 | K142: 26 | L142: 2 | M142: 12 | N142: 56 | O142: 53 | P142: 30 | Q142: 106 | R142: 0 | S142: 0 | U142: 2 | V142: 188 | W142: 0.26 | X142: 3.533 | Y142: 0.307 | Z142: 0.4 | AA142: 0.707 | AC142: 607430 | AD142: 3B | AE142: =IF(ISNA(VLOOKUP(A142,Rankings!$B$2:$H$1998,7,FALSE)),"-",VLOOKUP(A142,Rankings!$B$2:$H$1998,7,FALSE)) -> 0
A143: Nick Tanielu | C143: =(G143*'Points System'!$B$16)+(H143*'Points System'!$B$17)+(I143*'Points System'!$B$15)+(J143*'Points System'!$B$2)+(K143*'Points System'!$B$3)+(L143*'Points System'!$B$4)+(M143*'Points System'!$B$5)+(N143*'Points System'!$B$6)+(O143*'Points System'!$B$7)+(P143*'Points System'!$B$8)+(Q143*'Points System'!$B$9)+(R143*'Points System'!$B$10)+(S143*'Points System'!$B$11)+(T143*'Points System'!$B$13)+(U143*'Points System'!$B$12)+(V143*'Points System'!$B$14) -> 82 | D143: =C143/G143 -> 0.1630218688 | E143: =C143/F143 -> 0.6776859504 | F143: 121 | G143: 503 | H143: 471 | I143: 113 | J143: 82 | K143: 21 | L143: 2 | M143: 8 | N143: 51 | O143: 48 | P143: 23 | Q143: 104 | R143: 3 | S143: 4 | U143: 4 | V143: 162 | W143: 0.24 | X143: 4.522 | Y143: 0.281 | Z143: 0.344 | AA143: 0.625 | AC143: 592680 | AD143: LF | AE143: =IF(ISNA(VLOOKUP(A143,Rankings!$B$2:$H$1998,7,FALSE)),"-",VLOOKUP(A143,Rankings!$B$2:$H$1998,7,FALSE)) -> -
A144: Harold Ramirez | B144: OF | C144: =(G144*'Points System'!$B$16)+(H144*'Points System'!$B$17)+(I144*'Points System'!$B$15)+(J144*'Points System'!$B$2)+(K144*'Points System'!$B$3)+(L144*'Points System'!$B$4)+(M144*'Points System'!$B$5)+(N144*'Points System'!$B$6)+(O144*'Points System'!$B$7)+(P144*'Points System'!$B$8)+(Q144*'Points System'!$B$9)+(R144*'Points System'!$B$10)+(S144*'Points System'!$B$11)+(T144*'Points System'!$B$13)+(U144*'Points System'!$B$12)+(V144*'Points System'!$B$14) -> 82 | D144: =C144/G144 -> 0.1656565657 | E144: =C144/F144 -> 0.6776859504 | F144: 121 | G144: 495 | H144: 461 | I144: 110 | J144: 82 | K144: 18 | L144: 4 | M144: 6 | N144: 45 | O144: 46 | P144: 23 | Q144: 95 | R144: 5 | S144: 5 | U144: 6 | V144: 154 | W144: 0.239 | X144: 4.13 | Y144: 0.284 | Z144: 0.334 | AA144: 0.618 | AC144: 572241 | AD144: C | AE144: =IF(ISNA(VLOOKUP(A144,Rankings!$B$2:$H$1998,7,FALSE)),"-",VLOOKUP(A144,Rankings!$B$2:$H$1998,7,FALSE)) -> 0
A145: Kendrys Morales | B145: 1B | C145: =(G145*'Points System'!$B$16)+(H145*'Points System'!$B$17)+(I145*'Points System'!$B$15)+(J145*'Points System'!$B$2)+(K145*'Points System'!$B$3)+(L145*'Points System'!$B$4)+(M145*'Points System'!$B$5)+(N145*'Points System'!$B$6)+(O145*'Points System'!$B$7)+(P145*'Points System'!$B$8)+(Q145*'Points System'!$B$9)+(R145*'Points System'!$B$10)+(S145*'Points System'!$B$11)+(T145*'Points System'!$B$13)+(U145*'Points System'!$B$12)+(V145*'Points System'!$B$14) -> 81.83 | D145: =C145/G145 -> 0.1481836949 | E145: =C145/F145 -> 0.6008076358 | F145: 136.2 | G145: 552.22 | H145: 517.85 | I145: 120.27 | J145: 81.83 | K145: 22.85 | L145: 0.52 | M145: 25.51 | N145: 83.98 | O145: 66.59 | P145: 43.67 | Q145: 114.79 | R145: 0.21 | S145: 0.14 | T145: 3.8 | U145: 5.51 | V145: 231.13 | W145: 0.232 | X145: 2.629 | Y145: 0.297 | Z145: 0.446 | AA145: 0.743 | AB145: AL | AC145: 624503 | AD145: 1B | AE145: =IF(ISNA(VLOOKUP(A145,Rankings!$B$2:$H$1998,7,FALSE)),"-",VLOOKUP(A145,Rankings!$B$2:$H$1998,7,FALSE)) -> 0
A146: Adeiny Hechavarria | B146: SS | C146: =(G146*'Points System'!$B$16)+(H146*'Points System'!$B$17)+(I146*'Points System'!$B$15)+(J146*'Points System'!$B$2)+(K146*'Points System'!$B$3)+(L146*'Points System'!$B$4)+(M146*'Points System'!$B$5)+(N146*'Points System'!$B$6)+(O146*'Points System'!$B$7)+(P146*'Points System'!$B$8)+(Q146*'Points System'!$B$9)+(R146*'Points System'!$B$10)+(S146*'Points System'!$B$11)+(T146*'Points System'!$B$13)+(U146*'Points System'!$B$12)+(V146*'Points System'!$B$14) -> 81.75 | D146: =C146/G146 -> 0.1824776786 | E146: =C146/F146 -> 0.6646341463 | F146: 123 | G146: 448 | H146: 420.33 | I146: 100.46 | J146: 81.75 | K146: 15.29 | L146: 4.65 | M146: 6.62 | N146: 38.62 | O146: 45.63 | P146: 23.18 | Q146: 73.77 | R146: 4.33 | S146: 1.89 | T146: 3.05 | U146: 1.97 | V146: 152.76 | W146: 0.239 | X146: 3.182 | Y146: 0.28 | Z146: 0.363 | AA146: 0.643 | AB146: NL | AC146: 570717 | AD146: CF | AE146: =IF(ISNA(VLOOKUP(A146,Rankings!$B$2:$H$1998,7,FALSE)),"-",VLOOKUP(A146,Rankings!$B$2:$H$1998,7,FALSE)) -> 0
A147: Matt Duffy | B147: Util | C147: =(G147*'Points System'!$B$16)+(H147*'Points System'!$B$17)+(I147*'Points System'!$B$15)+(J147*'Points System'!$B$2)+(K147*'Points System'!$B$3)+(L147*'Points System'!$B$4)+(M147*'Points System'!$B$5)+(N147*'Points System'!$B$6)+(O147*'Points System'!$B$7)+(P147*'Points System'!$B$8)+(Q147*'Points System'!$B$9)+(R147*'Points System'!$B$10)+(S147*'Points System'!$B$11)+(T147*'Points System'!$B$13)+(U147*'Points System'!$B$12)+(V147*'Points System'!$B$14) -> 81.73 | D147: =C147/G147 -> 0.1838695163 | E147: =C147/F147 -> 0.755779545 | F147: 108.14 | G147: 444.5 | H147: 411 | I147: 111.2 | J147: 81.73 | K147: 18.45 | L147: 2.28 | M147: 8.32 | N147: 47.5 | O147: 49.94 | P147: 27.28 | Q147: 75.4 | R147: 8.65 | S147: 3.49 | T147: 2.9 | U147: 3.88 | V147: 158.75 | W147: 0.271 | X147: 2.764 | Y147: 0.32 | Z147: 0.386 | AA147: 0.706 | AB147: AL | AC147: 457449 | AD147: 2B | AE147: =IF(ISNA(VLOOKUP(A147,Rankings!$B$2:$H$1998,7,FALSE)),"-",VLOOKUP(A147,Rankings!$B$2:$H$1998,7,FALSE)) -> -
A148: Yoenis Cespedes | B148: OF | C148: =(G148*'Points System'!$B$16)+(H148*'Points System'!$B$17)+(I148*'Points System'!$B$15)+(J148*'Points System'!$B$2)+(K148*'Points System'!$B$3)+(L148*'Points System'!$B$4)+(M148*'Points System'!$B$5)+(N148*'Points System'!$B$6)+(O148*'Points System'!$B$7)+(P148*'Points System'!$B$8)+(Q148*'Points System'!$B$9)+(R148*'Points System'!$B$10)+(S148*'Points System'!$B$11)+(T148*'Points System'!$B$13)+(U148*'Points System'!$B$12)+(V148*'Points System'!$B$14) -> 81.55 | D148: =C148/G148 -> 0.1422664945 | E148: =C148/F148 -> 0.6113193403 | F148: 133.4 | G148: 573.22 | H148: 506.93 | I148: 141.31 | J148: 81.55 | K148: 28.7 | L148: 2.95 | M148: 29.48 | N148: 83.51 | O148: 78.39 | P148: 45.16 | Q148: 118.28 | R148: 2.77 | S148: 1.65 | T148: 3.77 | U148: 5.01 | V148: 265.72 | W148: 0.279 | X148: 2.619 | Y148: 0.341 | Z148: 0.524 | AA148: 0.865 | AB148: NL | AC148: 443558 | AD148: CF | AE148: =IF(ISNA(VLOOKUP(A148,Rankings!$B$2:$H$1998,7,FALSE)),"-",VLOOKUP(A148,Rankings!$B$2:$H$1998,7,FALSE)) -> 0
A149: Kolten Wong | B149: 2B | C149: =(G149*'Points System'!$B$16)+(H149*'Points System'!$B$17)+(I149*'Points System'!$B$15)+(J149*'Points System'!$B$2)+(K149*'Points System'!$B$3)+(L149*'Points System'!$B$4)+(M149*'Points System'!$B$5)+(N149*'Points System'!$B$6)+(O149*'Points System'!$B$7)+(P149*'Points System'!$B$8)+(Q149*'Points System'!$B$9)+(R149*'Points System'!$B$10)+(S149*'Points System'!$B$11)+(T149*'Points System'!$B$13)+(U149*'Points System'!$B$12)+(V149*'Points System'!$B$14) -> 81.23 | D149: =C149/G149 -> 0.1615617169 | E149: =C149/F149 -> 0.647250996 | F149: 125.5 | G149: 502.78 | H149: 436.07 | I149: 118.03 | J149: 81.23 | K149: 23.72 | L149: 4.24 | M149: 9.21 | N149: 51.4 | O149: 59.14 | P149: 43.94 | Q149: 78.13 | R149: 10.36 | S149: 2.96 | T149: 4.9 | U149: 12.49 | V149: 178.23 | W149: 0.271 | X149: 1.778 | Y149: 0.351 | Z149: 0.409 | AA149: 0.76 | AB149: NL | AC149: 452678 | AD149: RF | AE149: =IF(ISNA(VLOOKUP(A149,Rankings!$B$2:$H$1998,7,FALSE)),"-",VLOOKUP(A149,Rankings!$B$2:$H$1998,7,FALSE)) -> 0
A150: Michael Brantley | B150: OF | C150: =(G150*'Points System'!$B$16)+(H150*'Points System'!$B$17)+(I150*'Points System'!$B$15)+(J150*'Points System'!$B$2)+(K150*'Points System'!$B$3)+(L150*'Points System'!$B$4)+(M150*'Points System'!$B$5)+(N150*'Points System'!$B$6)+(O150*'Points System'!$B$7)+(P150*'Points System'!$B$8)+(Q150*'Points System'!$B$9)+(R150*'Points System'!$B$10)+(S150*'Points System'!$B$11)+(T150*'Points System'!$B$13)+(U150*'Points System'!$B$12)+(V150*'Points System'!$B$14) -> 81.1 | D150: =C150/G150 -> 0.1804226919 | E150: =C150/F150 -> 0.7658891302 | F150: 105.89 | G150: 449.5 | H150: 403.62 | I150: 109.33 | J150: 81.1 | K150: 24.8 | L150: 0.88 | M150: 11.68 | N150: 62.34 | O150: 56.64 | P150: 40.06 | Q150: 58 | R150: 10.89 | S150: 2.14 | T150: 2.77 | U150: 2.5 | V150: 180.06 | W150: 0.271 | X150: 1.448 | Y150: 0.338 | Z150: 0.446 | AA150: 0.784 | AB150: AL | AC150: 666211 | AD150: LF | AE150: =IF(ISNA(VLOOKUP(A150,Rankings!$B$2:$H$1998,7,FALSE)),"-",VLOOKUP(A150,Rankings!$B$2:$H$1998,7,FALSE)) -> 0
A151: Matt Hague | B151: 1B/3B/OF | C151: =(G151*'Points System'!$B$16)+(H151*'Points System'!$B$17)+(I151*'Points System'!$B$15)+(J151*'Points System'!$B$2)+(K151*'Points System'!$B$3)+(L151*'Points System'!$B$4)+(M151*'Points System'!$B$5)+(N151*'Points System'!$B$6)+(O151*'Points System'!$B$7)+(P151*'Points System'!$B$8)+(Q151*'Points System'!$B$9)+(R151*'Points System'!$B$10)+(S151*'Points System'!$B$11)+(T151*'Points System'!$B$13)+(U151*'Points System'!$B$12)+(V151*'Points System'!$B$14) -> 81 | D151: =C151/G151 -> 0.1560693642 | E151: =C151/F151 -> 0.648 | F151: 125 | G151: 519 | H151: 469 | I151: 113 | J151: 81 | K151: 22 | L151: 0 | M151: 10 | N151: 47 | O151: 52 | P151: 40 | Q151: 88 | R151: 5 | S151: 2 | U151: 6 | V151: 165 | W151: 0.241 | X151: 2.2 | Y151: 0.309 | Z151: 0.352 | AA151: 0.661 | AC151: 607461 | AD151: CF | AE151: =IF(ISNA(VLOOKUP(A151,Rankings!$B$2:$H$1998,7,FALSE)),"-",VLOOKUP(A151,Rankings!$B$2:$H$1998,7,FALSE)) -> 0
A152: Roemon Fields | C152: =(G152*'Points System'!$B$16)+(H152*'Points System'!$B$17)+(I152*'Points System'!$B$15)+(J152*'Points System'!$B$2)+(K152*'Points System'!$B$3)+(L152*'Points System'!$B$4)+(M152*'Points System'!$B$5)+(N152*'Points System'!$B$6)+(O152*'Points System'!$B$7)+(P152*'Points System'!$B$8)+(Q152*'Points System'!$B$9)+(R152*'Points System'!$B$10)+(S152*'Points System'!$B$11)+(T152*'Points System'!$B$13)+(U152*'Points System'!$B$12)+(V152*'Points System'!$B$14) -> 81 | D152: =C152/G152 -> 0.1659836066 | E152: =C152/F152 -> 0.686440678 | F152: 118 | G152: 488 | H152: 453 | I152: 99 | J152: 81 | K152: 12 | L152: 4 | M152: 2 | N152: 28 | O152: 44 | P152: 27 | Q152: 112 | R152: 34 | S152: 12 | U152: 2 | V152: 125 | W152: 0.219 | X152: 4.148 | Y152: 0.266 | Z152: 0.276 | AA152: 0.542 | AC152: 606993 | AD152: CF | AE152: =IF(ISNA(VLOOKUP(A152,Rankings!$B$2:$H$1998,7,FALSE)),"-",VLOOKUP(A152,Rankings!$B$2:$H$1998,7,FALSE)) -> -
A153: Wuilmer Becerra | C153: =(G153*'Points System'!$B$16)+(H153*'Points System'!$B$17)+(I153*'Points System'!$B$15)+(J153*'Points System'!$B$2)+(K153*'Points System'!$B$3)+(L153*'Points System'!$B$4)+(M153*'Points System'!$B$5)+(N153*'Points System'!$B$6)+(O153*'Points System'!$B$7)+(P153*'Points System'!$B$8)+(Q153*'Points System'!$B$9)+(R153*'Points System'!$B$10)+(S153*'Points System'!$B$11)+(T153*'Points System'!$B$13)+(U153*'Points System'!$B$12)+(V153*'Points System'!$B$14) -> 81 | D153: =C153/G153 -> 0.162 | E153: =C153/F153 -> 0.6532258065 | F153: 124 | G153: 500 | H153: 468 | I153: 102 | J153: 81 | K153: 17 | L153: 1 | M153: 3 | N153: 30 | O153: 41 | P153: 23 | Q153: 150 | R153: 11 | S153: 5 | U153: 7 | V153: 130 | W153: 0.218 | X153: 6.522 | Y153: 0.265 | Z153: 0.278 | AA153: 0.543 | AC153: 518649 | AD153: CF | AE153: =IF(ISNA(VLOOKUP(A153,Rankings!$B$2:$H$1998,7,FALSE)),"-",VLOOKUP(A153,Rankings!$B$2:$H$1998,7,FALSE)) -> -
A154: Wil Myers | B154: 1B | C154: =(G154*'Points System'!$B$16)+(H154*'Points System'!$B$17)+(I154*'Points System'!$B$15)+(J154*'Points System'!$B$2)+(K154*'Points System'!$B$3)+(L154*'Points System'!$B$4)+(M154*'Points System'!$B$5)+(N154*'Points System'!$B$6)+(O154*'Points System'!$B$7)+(P154*'Points System'!$B$8)+(Q154*'Points System'!$B$9)+(R154*'Points System'!$B$10)+(S154*'Points System'!$B$11)+(T154*'Points System'!$B$13)+(U154*'Points System'!$B$12)+(V154*'Points System'!$B$14) -> 80.92 | D154: =C154/G154 -> 0.1297252236 | E154: =C154/F154 -> 0.5434519812 | F154: 148.9 | G154: 623.78 | H154: 555.14 | I154: 140.51 | J154: 80.92 | K154: 27.87 | L154: 3.11 | M154: 27.91 | N154: 82.47 | O154: 83.05 | P154: 66.76 | Q154: 158.82 | R154: 19.24 | S154: 6.23 | T154: 4.47 | U154: 4.34 | V154: 257.63 | W154: 0.253 | X154: 2.379 | Y154: 0.336 | Z154: 0.464 | AA154: 0.8 | AB154: NL | AC154: 546318 | AD154: LF | AE154: =IF(ISNA(VLOOKUP(A154,Rankings!$B$2:$H$1998,7,FALSE)),"-",VLOOKUP(A154,Rankings!$B$2:$H$1998,7,FALSE)) -> 0
A155: Travis Shaw | B155: 3B | C155: =(G155*'Points System'!$B$16)+(H155*'Points System'!$B$17)+(I155*'Points System'!$B$15)+(J155*'Points System'!$B$2)+(K155*'Points System'!$B$3)+(L155*'Points System'!$B$4)+(M155*'Points System'!$B$5)+(N155*'Points System'!$B$6)+(O155*'Points System'!$B$7)+(P155*'Points System'!$B$8)+(Q155*'Points System'!$B$9)+(R155*'Points System'!$B$10)+(S155*'Points System'!$B$11)+(T155*'Points System'!$B$13)+(U155*'Points System'!$B$12)+(V155*'Points System'!$B$14) -> 80.2 | D155: =C155/G155 -> 0.1337402238 | E155: =C155/F155 -> 0.5561719834 | F155: 144.2 | G155: 599.67 | H155: 535.21 | I155: 139.55 | J155: 80.2 | K155: 30.79 | L155: 1.44 | M155: 26.24 | N155: 89.22 | O155: 76.85 | P155: 54.54 | Q155: 138.53 | R155: 7.03 | S155: 1.59 | T155: 3.77 | U155: 4.34 | V155: 251.06 | W155: 0.261 | X155: 2.54 | Y155: 0.332 | Z155: 0.469 | AA155: 0.801 | AB155: NL | AC155: 547180 | AD155: RF | AE155: =IF(ISNA(VLOOKUP(A155,Rankings!$B$2:$H$1998,7,FALSE)),"-",VLOOKUP(A155,Rankings!$B$2:$H$1998,7,FALSE)) -> 0
A156: Stephen Piscotty | B156: OF | C156: =(G156*'Points System'!$B$16)+(H156*'Points System'!$B$17)+(I156*'Points System'!$B$15)+(J156*'Points System'!$B$2)+(K156*'Points System'!$B$3)+(L156*'Points System'!$B$4)+(M156*'Points System'!$B$5)+(N156*'Points System'!$B$6)+(O156*'Points System'!$B$7)+(P156*'Points System'!$B$8)+(Q156*'Points System'!$B$9)+(R156*'Points System'!$B$10)+(S156*'Points System'!$B$11)+(T156*'Points System'!$B$13)+(U156*'Points System'!$B$12)+(V156*'Points System'!$B$14) -> 80.15 | D156: =C156/G156 -> 0.1423067363 | E156: =C156/F156 -> 0.5928254438 | F156: 135.2 | G156: 563.22 | H156: 492.69 | I156: 127.27 | J156: 80.15 | K156: 28 | L156: 2.15 | M156: 17.33 | N156: 68.39 | O156: 67.58 | P156: 57.18 | Q156: 120.65 | R156: 5.62 | S156: 4.77 | T156: 3.27 | U156: 6.51 | V156: 211.92 | W156: 0.258 | X156: 2.11 | Y156: 0.341 | Z156: 0.43 | AA156: 0.771 | AB156: AL | AC156: 621005 | AD156: SS | AE156: =IF(ISNA(VLOOKUP(A156,Rankings!$B$2:$H$1998,7,FALSE)),"-",VLOOKUP(A156,Rankings!$B$2:$H$1998,7,FALSE)) -> 0
A157: Jason Kipnis | B157: 2B/OF | C157: =(G157*'Points System'!$B$16)+(H157*'Points System'!$B$17)+(I157*'Points System'!$B$15)+(J157*'Points System'!$B$2)+(K157*'Points System'!$B$3)+(L157*'Points System'!$B$4)+(M157*'Points System'!$B$5)+(N157*'Points System'!$B$6)+(O157*'Points System'!$B$7)+(P157*'Points System'!$B$8)+(Q157*'Points System'!$B$9)+(R157*'Points System'!$B$10)+(S157*'Points System'!$B$11)+(T157*'Points System'!$B$13)+(U157*'Points System'!$B$12)+(V157*'Points System'!$B$14) -> 80.1 | D157: =C157/G157 -> 0.144527444 | E157: =C157/F157 -> 0.6009002251 | F157: 133.3 | G157: 554.22 | H157: 496.14 | I157: 121.68 | J157: 80.1 | K157: 31.56 | L157: 2.42 | M157: 16.06 | N157: 60.18 | O157: 69.79 | P157: 47.7 | Q157: 107.43 | R157: 10.01 | S157: 3.41 | T157: 4.47 | U157: 5.6 | V157: 214.72 | W157: 0.245 | X157: 2.252 | Y157: 0.316 | Z157: 0.433 | AA157: 0.749 | AB157: AL | AC157: 543281 | AD157: C | AE157: =IF(ISNA(VLOOKUP(A157,Rankings!$B$2:$H$1998,7,FALSE)),"-",VLOOKUP(A157,Rankings!$B$2:$H$1998,7,FALSE)) -> 0
A158: Ryan Mountcastle | C158: =(G158*'Points System'!$B$16)+(H158*'Points System'!$B$17)+(I158*'Points System'!$B$15)+(J158*'Points System'!$B$2)+(K158*'Points System'!$B$3)+(L158*'Points System'!$B$4)+(M158*'Points System'!$B$5)+(N158*'Points System'!$B$6)+(O158*'Points System'!$B$7)+(P158*'Points System'!$B$8)+(Q158*'Points System'!$B$9)+(R158*'Points System'!$B$10)+(S158*'Points System'!$B$11)+(T158*'Points System'!$B$13)+(U158*'Points System'!$B$12)+(V158*'Points System'!$B$14) -> 80 | D158: =C158/G158 -> 0.1446654611 | E158: =C158/F158 -> 0.6106870229 | F158: 131 | G158: 553 | H158: 530 | I158: 131 | J158: 80 | K158: 33 | L158: 2 | M158: 16 | N158: 62 | O158: 59 | P158: 16 | Q158: 127 | R158: 7 | S158: 3 | U158: 3 | V158: 216 | W158: 0.247 | X158: 7.938 | Y158: 0.273 | Z158: 0.408 | AA158: 0.681 | AC158: 475174 | AD158: 2B | AE158: =IF(ISNA(VLOOKUP(A158,Rankings!$B$2:$H$1998,7,FALSE)),"-",VLOOKUP(A158,Rankings!$B$2:$H$1998,7,FALSE)) -> -
A159: Jake Cronenworth | C159: =(G159*'Points System'!$B$16)+(H159*'Points System'!$B$17)+(I159*'Points System'!$B$15)+(J159*'Points System'!$B$2)+(K159*'Points System'!$B$3)+(L159*'Points System'!$B$4)+(M159*'Points System'!$B$5)+(N159*'Points System'!$B$6)+(O159*'Points System'!$B$7)+(P159*'Points System'!$B$8)+(Q159*'Points System'!$B$9)+(R159*'Points System'!$B$10)+(S159*'Points System'!$B$11)+(T159*'Points System'!$B$13)+(U159*'Points System'!$B$12)+(V159*'Points System'!$B$14) -> 80 | D159: =C159/G159 -> 0.1535508637 | E159: =C159/F159 -> 0.6837606838 | F159: 117 | G159: 521 | H159: 468 | I159: 104 | J159: 80 | K159: 17 | L159: 3 | M159: 4 | N159: 35 | O159: 52 | P159: 46 | Q159: 122 | R159: 9 | S159: 8 | U159: 4 | V159: 139 | W159: 0.222 | X159: 2.652 | Y159: 0.297 | Z159: 0.297 | AA159: 0.594 | AC159: 592144 | AD159: 1B | AE159: =IF(ISNA(VLOOKUP(A159,Rankings!$B$2:$H$1998,7,FALSE)),"-",VLOOKUP(A159,Rankings!$B$2:$H$1998,7,FALSE)) -> -
A160: Victor Martinez | B160: Util | C160: =(G160*'Points System'!$B$16)+(H160*'Points System'!$B$17)+(I160*'Points System'!$B$15)+(J160*'Points System'!$B$2)+(K160*'Points System'!$B$3)+(L160*'Points System'!$B$4)+(M160*'Points System'!$B$5)+(N160*'Points System'!$B$6)+(O160*'Points System'!$B$7)+(P160*'Points System'!$B$8)+(Q160*'Points System'!$B$9)+(R160*'Points System'!$B$10)+(S160*'Points System'!$B$11)+(T160*'Points System'!$B$13)+(U160*'Points System'!$B$12)+(V160*'Points System'!$B$14) -> 79.86 | D160: =C160/G160 -> 0.1697343252 | E160: =C160/F160 -> 0.7025600422 | F160: 113.67 | G160: 470.5 | H160: 424.58 | I160: 101.83 | J160: 79.86 | K160: 16.2 | L160: 0.4 | M160: 14.46 | N160: 58.03 | O160: 46.62 | P160: 36.41 | Q160: 73.31 | R160: 0.14 | S160: 0.25 | T160: 2.57 | U160: 4.89 | V160: 171.3 | W160: 0.24 | X160: 2.013 | Y160: 0.306 | Z160: 0.403 | AA160: 0.709 | AB160: AL | AC160: 610141 | AD160: LF | AE160: =IF(ISNA(VLOOKUP(A160,Rankings!$B$2:$H$1998,7,FALSE)),"-",VLOOKUP(A160,Rankings!$B$2:$H$1998,7,FALSE)) -> 0
A161: Mitch Haniger | B161: OF | C161: =(G161*'Points System'!$B$16)+(H161*'Points System'!$B$17)+(I161*'Points System'!$B$15)+(J161*'Points System'!$B$2)+(K161*'Points System'!$B$3)+(L161*'Points System'!$B$4)+(M161*'Points System'!$B$5)+(N161*'Points System'!$B$6)+(O161*'Points System'!$B$7)+(P161*'Points System'!$B$8)+(Q161*'Points System'!$B$9)+(R161*'Points System'!$B$10)+(S161*'Points System'!$B$11)+(T161*'Points System'!$B$13)+(U161*'Points System'!$B$12)+(V161*'Points System'!$B$14) -> 79.48 | D161: =C161/G161 -> 0.1404513245 | E161: =C161/F161 -> 0.5989449887 | F161: 132.7 | G161: 565.89 | H161: 487.57 | I161: 121.69 | J161: 79.48 | K161: 26.16 | L161: 2.94 | M161: 20.1 | N161: 67.38 | O161: 69.22 | P161: 45.34 | Q161: 125.44 | R161: 7.01 | S161: 4.43 | T161: 3.97 | U161: 9.59 | V161: 221.02 | W161: 0.25 | X161: 2.767 | Y161: 0.323 | Z161: 0.453 | AA161: 0.776 | AB161: AL | AC161: 656252 | AD161: 3B | AE161: =IF(ISNA(VLOOKUP(A161,Rankings!$B$2:$H$1998,7,FALSE)),"-",VLOOKUP(A161,Rankings!$B$2:$H$1998,7,FALSE)) -> 0
A162: J.D. Martinez | B162: OF | C162: =(G162*'Points System'!$B$16)+(H162*'Points System'!$B$17)+(I162*'Points System'!$B$15)+(J162*'Points System'!$B$2)+(K162*'Points System'!$B$3)+(L162*'Points System'!$B$4)+(M162*'Points System'!$B$5)+(N162*'Points System'!$B$6)+(O162*'Points System'!$B$7)+(P162*'Points System'!$B$8)+(Q162*'Points System'!$B$9)+(R162*'Points System'!$B$10)+(S162*'Points System'!$B$11)+(T162*'Points System'!$B$13)+(U162*'Points System'!$B$12)+(V162*'Points System'!$B$14) -> 79.23 | D162: =C162/G162 -> 0.135050369 | E162: =C162/F162 -> 0.5783211679 | F162: 137 | G162: 586.67 | H162: 522 | I162: 151.67 | J162: 79.23 | K162: 32.83 | L162: 2.61 | M162: 37.95 | N162: 104.91 | O162: 89.41 | P162: 56.82 | Q162: 157.98 | R162: 3.25 | S162: 1.25 | T162: 3.83 | U162: 2.95 | V162: 304.52 | W162: 0.291 | X162: 2.78 | Y162: 0.361 | Z162: 0.583 | AA162: 0.944 | AB162: AL | AC162: 608324 | AD162: CF | AE162: =IF(ISNA(VLOOKUP(A162,Rankings!$B$2:$H$1998,7,FALSE)),"-",VLOOKUP(A162,Rankings!$B$2:$H$1998,7,FALSE)) -> 0
A163: Andrew Pullin | C163: =(G163*'Points System'!$B$16)+(H163*'Points System'!$B$17)+(I163*'Points System'!$B$15)+(J163*'Points System'!$B$2)+(K163*'Points System'!$B$3)+(L163*'Points System'!$B$4)+(M163*'Points System'!$B$5)+(N163*'Points System'!$B$6)+(O163*'Points System'!$B$7)+(P163*'Points System'!$B$8)+(Q163*'Points System'!$B$9)+(R163*'Points System'!$B$10)+(S163*'Points System'!$B$11)+(T163*'Points System'!$B$13)+(U163*'Points System'!$B$12)+(V163*'Points System'!$B$14) -> 79 | D163: =C163/G163 -> 0.148217636 | E163: =C163/F163 -> 0.6220472441 | F163: 127 | G163: 533 | H163: 498 | I163: 127 | J163: 79 | K163: 28 | L163: 4 | M163: 16 | N163: 68 | O163: 60 | P163: 27 | Q163: 111 | R163: 4 | S163: 2 | U163: 6 | V163: 211 | W163: 0.255 | X163: 4.111 | Y163: 0.301 | Z163: 0.424 | AA163: 0.725 | AC163: 405395 | AD163: RF | AE163: =IF(ISNA(VLOOKUP(A163,Rankings!$B$2:$H$1998,7,FALSE)),"-",VLOOKUP(A163,Rankings!$B$2:$H$1998,7,FALSE)) -> -
A164: Jason Krizan | C164: =(G164*'Points System'!$B$16)+(H164*'Points System'!$B$17)+(I164*'Points System'!$B$15)+(J164*'Points System'!$B$2)+(K164*'Points System'!$B$3)+(L164*'Points System'!$B$4)+(M164*'Points System'!$B$5)+(N164*'Points System'!$B$6)+(O164*'Points System'!$B$7)+(P164*'Points System'!$B$8)+(Q164*'Points System'!$B$9)+(R164*'Points System'!$B$10)+(S164*'Points System'!$B$11)+(T164*'Points System'!$B$13)+(U164*'Points System'!$B$12)+(V164*'Points System'!$B$14) -> 79 | D164: =C164/G164 -> 0.1595959596 | E164: =C164/F164 -> 0.652892562 | F164: 121 | G164: 495 | H164: 451 | I164: 113 | J164: 79 | K164: 23 | L164: 3 | M164: 8 | N164: 44 | O164: 50 | P164: 38 | Q164: 59 | R164: 5 | S164: 5 | U164: 0 | V164: 166 | W164: 0.251 | X164: 1.553 | Y164: 0.309 | Z164: 0.368 | AA164: 0.677 | AC164: 608364 | AD164: RF | AE164: =IF(ISNA(VLOOKUP(A164,Rankings!$B$2:$H$1998,7,FALSE)),"-",VLOOKUP(A164,Rankings!$B$2:$H$1998,7,FALSE)) -> -
A165: Matt Dominguez | B165: 3B | C165: =(G165*'Points System'!$B$16)+(H165*'Points System'!$B$17)+(I165*'Points System'!$B$15)+(J165*'Points System'!$B$2)+(K165*'Points System'!$B$3)+(L165*'Points System'!$B$4)+(M165*'Points System'!$B$5)+(N165*'Points System'!$B$6)+(O165*'Points System'!$B$7)+(P165*'Points System'!$B$8)+(Q165*'Points System'!$B$9)+(R165*'Points System'!$B$10)+(S165*'Points System'!$B$11)+(T165*'Points System'!$B$13)+(U165*'Points System'!$B$12)+(V165*'Points System'!$B$14) -> 79 | D165: =C165/G165 -> 0.1618852459 | E165: =C165/F165 -> 0.6370967742 | F165: 124 | G165: 488 | H165: 460 | I165: 116 | J165: 79 | K165: 22 | L165: 0 | M165: 15 | N165: 59 | O165: 49 | P165: 19 | Q165: 86 | R165: 2 | S165: 1 | U165: 4 | V165: 183 | W165: 0.252 | X165: 4.526 | Y165: 0.288 | Z165: 0.398 | AA165: 0.686 | AB165: AL | AC165: 572138 | AD165: SS | AE165: =IF(ISNA(VLOOKUP(A165,Rankings!$B$2:$H$1998,7,FALSE)),"-",VLOOKUP(A165,Rankings!$B$2:$H$1998,7,FALSE)) -> -
A166: Josh Naylor | C166: =(G166*'Points System'!$B$16)+(H166*'Points System'!$B$17)+(I166*'Points System'!$B$15)+(J166*'Points System'!$B$2)+(K166*'Points System'!$B$3)+(L166*'Points System'!$B$4)+(M166*'Points System'!$B$5)+(N166*'Points System'!$B$6)+(O166*'Points System'!$B$7)+(P166*'Points System'!$B$8)+(Q166*'Points System'!$B$9)+(R166*'Points System'!$B$10)+(S166*'Points System'!$B$11)+(T166*'Points System'!$B$13)+(U166*'Points System'!$B$12)+(V166*'Points System'!$B$14) -> 79 | D166: =C166/G166 -> 0.1499051233 | E166: =C166/F166 -> 0.6370967742 | F166: 124 | G166: 527 | H166: 490 | I166: 117 | J166: 79 | K166: 23 | L166: 2 | M166: 13 | N166: 56 | O166: 55 | P166: 32 | Q166: 120 | R166: 8 | S166: 4 | U166: 2 | V166: 183 | W166: 0.239 | X166: 3.75 | Y166: 0.288 | Z166: 0.373 | AA166: 0.661 | AC166: 657027 | AD166: RF | AE166: =IF(ISNA(VLOOKUP(A166,Rankings!$B$2:$H$1998,7,FALSE)),"-",VLOOKUP(A166,Rankings!$B$2:$H$1998,7,FALSE)) -> -
A167: C.J Hinojosa | C167: =(G167*'Points System'!$B$16)+(H167*'Points System'!$B$17)+(I167*'Points System'!$B$15)+(J167*'Points System'!$B$2)+(K167*'Points System'!$B$3)+(L167*'Points System'!$B$4)+(M167*'Points System'!$B$5)+(N167*'Points System'!$B$6)+(O167*'Points System'!$B$7)+(P167*'Points System'!$B$8)+(Q167*'Points System'!$B$9)+(R167*'Points System'!$B$10)+(S167*'Points System'!$B$11)+(T167*'Points System'!$B$13)+(U167*'Points System'!$B$12)+(V167*'Points System'!$B$14) -> 79 | D167: =C167/G167 -> 0.1615541922 | E167: =C167/F167 -> 0.6929824561 | F167: 114 | G167: 489 | H167: 447 | I167: 104 | J167: 79 | K167: 17 | L167: 2 | M167: 6 | N167: 38 | O167: 47 | P167: 31 | Q167: 76 | R167: 5 | S167: 5 | U167: 2 | V167: 143 | W167: 0.233 | X167: 2.452 | Y167: 0.285 | Z167: 0.32 | AA167: 0.605 | AC167: 596012 | AD167: 3B | AE167: =IF(ISNA(VLOOKUP(A167,Rankings!$B$2:$H$1998,7,FALSE)),"-",VLOOKUP(A167,Rankings!$B$2:$H$1998,7,FALSE)) -> -
A168: Johan Camargo | B168: 2B/SS/3B | C168: =(G168*'Points System'!$B$16)+(H168*'Points System'!$B$17)+(I168*'Points System'!$B$15)+(J168*'Points System'!$B$2)+(K168*'Points System'!$B$3)+(L168*'Points System'!$B$4)+(M168*'Points System'!$B$5)+(N168*'Points System'!$B$6)+(O168*'Points System'!$B$7)+(P168*'Points System'!$B$8)+(Q168*'Points System'!$B$9)+(R168*'Points System'!$B$10)+(S168*'Points System'!$B$11)+(T168*'Points System'!$B$13)+(U168*'Points System'!$B$12)+(V168*'Points System'!$B$14) -> 78.83 | D168: =C168/G168 -> 0.1672785146 | E168: =C168/F168 -> 0.6503052302 | F168: 121.22 | G168: 471.25 | H168: 436.57 | I168: 118.66 | J168: 78.83 | K168: 28.85 | L168: 4.47 | M168: 8.31 | N168: 48.37 | O168: 48.93 | P168: 26.44 | Q168: 92.84 | R168: 1.68 | S168: 0.72 | T168: 3.2 | U168: 2.41 | V168: 183.18 | W168: 0.272 | X168: 3.511 | Y168: 0.315 | Z168: 0.42 | AA168: 0.735 | AB168: NL | AC168: 460576 | AD168: RF | AE168: =IF(ISNA(VLOOKUP(A168,Rankings!$B$2:$H$1998,7,FALSE)),"-",VLOOKUP(A168,Rankings!$B$2:$H$1998,7,FALSE)) -> 0
A169: Dixon Machado | B169: 2B/SS | C169: =(G169*'Points System'!$B$16)+(H169*'Points System'!$B$17)+(I169*'Points System'!$B$15)+(J169*'Points System'!$B$2)+(K169*'Points System'!$B$3)+(L169*'Points System'!$B$4)+(M169*'Points System'!$B$5)+(N169*'Points System'!$B$6)+(O169*'Points System'!$B$7)+(P169*'Points System'!$B$8)+(Q169*'Points System'!$B$9)+(R169*'Points System'!$B$10)+(S169*'Points System'!$B$11)+(T169*'Points System'!$B$13)+(U169*'Points System'!$B$12)+(V169*'Points System'!$B$14) -> 78.38 | D169: =C169/G169 -> 0.1673248938 | E169: =C169/F169 -> 0.6706023272 | F169: 116.88 | G169: 468.43 | H169: 393.38 | I169: 96.78 | J169: 78.38 | K169: 17.48 | L169: 1.92 | M169: 5.13 | N169: 33.86 | O169: 44.77 | P169: 31.48 | Q169: 79.09 | R169: 6.56 | S169: 2.25 | T169: 3.5 | U169: 3.82 | V169: 139.62 | W169: 0.246 | X169: 2.512 | Y169: 0.306 | Z169: 0.355 | AA169: 0.661 | AB169: AL | AC169: 543094 | AD169: DH | AE169: =IF(ISNA(VLOOKUP(A169,Rankings!$B$2:$H$1998,7,FALSE)),"-",VLOOKUP(A169,Rankings!$B$2:$H$1998,7,FALSE)) -> -
A170: Carlos Santana | B170: 1B/OF | C170: =(G170*'Points System'!$B$16)+(H170*'Points System'!$B$17)+(I170*'Points System'!$B$15)+(J170*'Points System'!$B$2)+(K170*'Points System'!$B$3)+(L170*'Points System'!$B$4)+(M170*'Points System'!$B$5)+(N170*'Points System'!$B$6)+(O170*'Points System'!$B$7)+(P170*'Points System'!$B$8)+(Q170*'Points System'!$B$9)+(R170*'Points System'!$B$10)+(S170*'Points System'!$B$11)+(T170*'Points System'!$B$13)+(U170*'Points System'!$B$12)+(V170*'Points System'!$B$14) -> 78.25 | D170: =C170/G170 -> 0.1251779687 | E170: =C170/F170 -> 0.5258736559 | F170: 148.8 | G170: 625.11 | H170: 535 | I170: 136.38 | J170: 78.25 | K170: 29.64 | L170: 2.53 | M170: 26.46 | N170: 83.66 | O170: 82.45 | P170: 90.62 | Q170: 97.15 | R170: 5.03 | S170: 1.87 | T170: 3.13 | U170: 3.76 | V170: 250.96 | W170: 0.255 | X170: 1.072 | Y170: 0.365 | Z170: 0.469 | AA170: 0.834 | AB170: NL | AC170: 429665 | AD170: SS | AE170: =IF(ISNA(VLOOKUP(A170,Rankings!$B$2:$H$1998,7,FALSE)),"-",VLOOKUP(A170,Rankings!$B$2:$H$1998,7,FALSE)) -> 0
A171: Dexter Fowler | B171: OF | C171: =(G171*'Points System'!$B$16)+(H171*'Points System'!$B$17)+(I171*'Points System'!$B$15)+(J171*'Points System'!$B$2)+(K171*'Points System'!$B$3)+(L171*'Points System'!$B$4)+(M171*'Points System'!$B$5)+(N171*'Points System'!$B$6)+(O171*'Points System'!$B$7)+(P171*'Points System'!$B$8)+(Q171*'Points System'!$B$9)+(R171*'Points System'!$B$10)+(S171*'Points System'!$B$11)+(T171*'Points System'!$B$13)+(U171*'Points System'!$B$12)+(V171*'Points System'!$B$14) -> 78.02 | D171: =C171/G171 -> 0.1369564836 | E171: =C171/F171 -> 0.5969395562 | F171: 130.7 | G171: 569.67 | H171: 475.36 | I171: 125.38 | J171: 78.02 | K171: 23.99 | L171: 6.87 | M171: 16.19 | N171: 60.01 | O171: 78.41 | P171: 72.2 | Q171: 124.28 | R171: 10.39 | S171: 3.93 | T171: 4.03 | U171: 6.25 | V171: 211.37 | W171: 0.264 | X171: 1.721 | Y171: 0.365 | Z171: 0.445 | AA171: 0.81 | AB171: NL | AC171: 493316 | AD171: 1B | AE171: =IF(ISNA(VLOOKUP(A171,Rankings!$B$2:$H$1998,7,FALSE)),"-",VLOOKUP(A171,Rankings!$B$2:$H$1998,7,FALSE)) -> 0
A172: J.P. Crawford | B172: SS/3B | C172: =(G172*'Points System'!$B$16)+(H172*'Points System'!$B$17)+(I172*'Points System'!$B$15)+(J172*'Points System'!$B$2)+(K172*'Points System'!$B$3)+(L172*'Points System'!$B$4)+(M172*'Points System'!$B$5)+(N172*'Points System'!$B$6)+(O172*'Points System'!$B$7)+(P172*'Points System'!$B$8)+(Q172*'Points System'!$B$9)+(R172*'Points System'!$B$10)+(S172*'Points System'!$B$11)+(T172*'Points System'!$B$13)+(U172*'Points System'!$B$12)+(V172*'Points System'!$B$14) -> 78.02 | D172: =C172/G172 -> 0.1361272987 | E172: =C172/F172 -> 0.5866165414 | F172: 133 | G172: 573.14 | H172: 461.08 | I172: 110.45 | J172: 78.02 | K172: 21.31 | L172: 4.57 | M172: 11.18 | N172: 53.26 | O172: 57.78 | P172: 70.48 | Q172: 109.19 | R172: 6.51 | S172: 3.74 | T172: 4.1 | U172: 1.73 | V172: 179.07 | W172: 0.24 | X172: 1.549 | Y172: 0.34 | Z172: 0.388 | AA172: 0.728 | AB172: NL | AC172: 621466 | AD172: 2B | AE172: =IF(ISNA(VLOOKUP(A172,Rankings!$B$2:$H$1998,7,FALSE)),"-",VLOOKUP(A172,Rankings!$B$2:$H$1998,7,FALSE)) -> 0
A173: Ryne Birk | C173: =(G173*'Points System'!$B$16)+(H173*'Points System'!$B$17)+(I173*'Points System'!$B$15)+(J173*'Points System'!$B$2)+(K173*'Points System'!$B$3)+(L173*'Points System'!$B$4)+(M173*'Points System'!$B$5)+(N173*'Points System'!$B$6)+(O173*'Points System'!$B$7)+(P173*'Points System'!$B$8)+(Q173*'Points System'!$B$9)+(R173*'Points System'!$B$10)+(S173*'Points System'!$B$11)+(T173*'Points System'!$B$13)+(U173*'Points System'!$B$12)+(V173*'Points System'!$B$14) -> 78 | D173: =C173/G173 -> 0.1604938272 | E173: =C173/F173 -> 0.6782608696 | F173: 115 | G173: 486 | H173: 448 | I173: 113 | J173: 78 | K173: 18 | L173: 3 | M173: 14 | N173: 55 | O173: 54 | P173: 27 | Q173: 95 | R173: 5 | S173: 6 | U173: 5 | V173: 179 | W173: 0.252 | X173: 3.519 | Y173: 0.302 | Z173: 0.4 | AA173: 0.702 | AC173: 572816 | AD173: OF | AE173: =IF(ISNA(VLOOKUP(A173,Rankings!$B$2:$H$1998,7,FALSE)),"-",VLOOKUP(A173,Rankings!$B$2:$H$1998,7,FALSE)) -> -
A174: Tommy Edman | C174: =(G174*'Points System'!$B$16)+(H174*'Points System'!$B$17)+(I174*'Points System'!$B$15)+(J174*'Points System'!$B$2)+(K174*'Points System'!$B$3)+(L174*'Points System'!$B$4)+(M174*'Points System'!$B$5)+(N174*'Points System'!$B$6)+(O174*'Points System'!$B$7)+(P174*'Points System'!$B$8)+(Q174*'Points System'!$B$9)+(R174*'Points System'!$B$10)+(S174*'Points System'!$B$11)+(T174*'Points System'!$B$13)+(U174*'Points System'!$B$12)+(V174*'Points System'!$B$14) -> 78 | D174: =C174/G174 -> 0.1611570248 | E174: =C174/F174 -> 0.6842105263 | F174: 114 | G174: 484 | H174: 445 | I174: 109 | J174: 78 | K174: 20 | L174: 4 | M174: 7 | N174: 46 | O174: 50 | P174: 30 | Q174: 84 | R174: 11 | S174: 5 | U174: 3 | V174: 158 | W174: 0.245 | X174: 2.8 | Y174: 0.297 | Z174: 0.355 | AA174: 0.652 | AC174: 571602 | AD174: 1B | AE174: =IF(ISNA(VLOOKUP(A174,Rankings!$B$2:$H$1998,7,FALSE)),"-",VLOOKUP(A174,Rankings!$B$2:$H$1998,7,FALSE)) -> -
A175: Jackie Bradley Jr. | B175: OF | C175: =(G175*'Points System'!$B$16)+(H175*'Points System'!$B$17)+(I175*'Points System'!$B$15)+(J175*'Points System'!$B$2)+(K175*'Points System'!$B$3)+(L175*'Points System'!$B$4)+(M175*'Points System'!$B$5)+(N175*'Points System'!$B$6)+(O175*'Points System'!$B$7)+(P175*'Points System'!$B$8)+(Q175*'Points System'!$B$9)+(R175*'Points System'!$B$10)+(S175*'Points System'!$B$11)+(T175*'Points System'!$B$13)+(U175*'Points System'!$B$12)+(V175*'Points System'!$B$14) -> 77.96 | D175: =C175/G175 -> 0.13518997 | E175: =C175/F175 -> 0.5560627675 | F175: 140.2 | G175: 576.67 | H175: 505.08 | I175: 130.41 | J175: 77.96 | K175: 26.71 | L175: 4.28 | M175: 20.51 | N175: 74.23 | O175: 72.58 | P175: 53.64 | Q175: 130 | R175: 7.83 | S175: 2.89 | T175: 4.33 | U175: 8.44 | V175: 226.26 | W175: 0.258 | X175: 2.424 | Y175: 0.337 | Z175: 0.448 | AA175: 0.785 | AB175: AL | AC175: 642708 | AD175: LF | AE175: =IF(ISNA(VLOOKUP(A175,Rankings!$B$2:$H$1998,7,FALSE)),"-",VLOOKUP(A175,Rankings!$B$2:$H$1998,7,FALSE)) -> 0
A176: Zack Cozart | B176: SS | C176: =(G176*'Points System'!$B$16)+(H176*'Points System'!$B$17)+(I176*'Points System'!$B$15)+(J176*'Points System'!$B$2)+(K176*'Points System'!$B$3)+(L176*'Points System'!$B$4)+(M176*'Points System'!$B$5)+(N176*'Points System'!$B$6)+(O176*'Points System'!$B$7)+(P176*'Points System'!$B$8)+(Q176*'Points System'!$B$9)+(R176*'Points System'!$B$10)+(S176*'Points System'!$B$11)+(T176*'Points System'!$B$13)+(U176*'Points System'!$B$12)+(V176*'Points System'!$B$14) -> 77.87 | D176: =C176/G176 -> 0.146739028 | E176: =C176/F176 -> 0.6121855346 | F176: 127.2 | G176: 530.67 | H176: 468.08 | I176: 124.93 | J176: 77.87 | K176: 24.28 | L176: 4.02 | M176: 18.52 | N176: 60.98 | O176: 70.38 | P176: 48.18 | Q176: 84.26 | R176: 3.58 | S176: 1.33 | T176: 3.37 | U176: 3.26 | V176: 212.57 | W176: 0.267 | X176: 1.749 | Y176: 0.337 | Z176: 0.454 | AA176: 0.791 | AB176: AL | AC176: 621020 | AD176: 2B | AE176: =IF(ISNA(VLOOKUP(A176,Rankings!$B$2:$H$1998,7,FALSE)),"-",VLOOKUP(A176,Rankings!$B$2:$H$1998,7,FALSE)) -> 0
A177: Josh Donaldson | B177: 3B | C177: =(G177*'Points System'!$B$16)+(H177*'Points System'!$B$17)+(I177*'Points System'!$B$15)+(J177*'Points System'!$B$2)+(K177*'Points System'!$B$3)+(L177*'Points System'!$B$4)+(M177*'Points System'!$B$5)+(N177*'Points System'!$B$6)+(O177*'Points System'!$B$7)+(P177*'Points System'!$B$8)+(Q177*'Points System'!$B$9)+(R177*'Points System'!$B$10)+(S177*'Points System'!$B$11)+(T177*'Points System'!$B$13)+(U177*'Points System'!$B$12)+(V177*'Points System'!$B$14) -> 77.83 | D177: =C177/G177 -> 0.1247495552 | E177: =C177/F177 -> 0.542369338 | F177: 143.5 | G177: 623.89 | H177: 523.14 | I177: 133.99 | J177: 77.83 | K177: 27.37 | L177: 1.98 | M177: 35.94 | N177: 96.7 | O177: 95.23 | P177: 86.91 | Q177: 126.96 | R177: 4 | S177: 1.35 | T177: 3.93 | U177: 6.15 | V177: 282.27 | W177: 0.256 | X177: 1.461 | Y177: 0.366 | Z177: 0.54 | AA177: 0.906 | AB177: AL | AC177: 542432 | AD177: 1B | AE177: =IF(ISNA(VLOOKUP(A177,Rankings!$B$2:$H$1998,7,FALSE)),"-",VLOOKUP(A177,Rankings!$B$2:$H$1998,7,FALSE)) -> 0
A178: Chris Owings | B178: 2B/SS/OF | C178: =(G178*'Points System'!$B$16)+(H178*'Points System'!$B$17)+(I178*'Points System'!$B$15)+(J178*'Points System'!$B$2)+(K178*'Points System'!$B$3)+(L178*'Points System'!$B$4)+(M178*'Points System'!$B$5)+(N178*'Points System'!$B$6)+(O178*'Points System'!$B$7)+(P178*'Points System'!$B$8)+(Q178*'Points System'!$B$9)+(R178*'Points System'!$B$10)+(S178*'Points System'!$B$11)+(T178*'Points System'!$B$13)+(U178*'Points System'!$B$12)+(V178*'Points System'!$B$14) -> 77.64 | D178: =C178/G178 -> 0.1640570523 | E178: =C178/F178 -> 0.6561311586 | F178: 118.33 | G178: 473.25 | H178: 451.07 | I178: 118.79 | J178: 77.64 | K178: 27.39 | L178: 4.65 | M178: 11.03 | N178: 57.11 | O178: 52.43 | P178: 24.17 | Q178: 105.97 | R178: 14.95 | S178: 3.93 | T178: 2.63 | U178: 2.51 | V178: 190.49 | W178: 0.263 | X178: 4.384 | Y178: 0.303 | Z178: 0.422 | AA178: 0.725 | AB178: NL | AC178: 613564 | AD178: 2B | AE178: =IF(ISNA(VLOOKUP(A178,Rankings!$B$2:$H$1998,7,FALSE)),"-",VLOOKUP(A178,Rankings!$B$2:$H$1998,7,FALSE)) -> 0
A179: Edwin Encarnacion | B179: 1B | C179: =(G179*'Points System'!$B$16)+(H179*'Points System'!$B$17)+(I179*'Points System'!$B$15)+(J179*'Points System'!$B$2)+(K179*'Points System'!$B$3)+(L179*'Points System'!$B$4)+(M179*'Points System'!$B$5)+(N179*'Points System'!$B$6)+(O179*'Points System'!$B$7)+(P179*'Points System'!$B$8)+(Q179*'Points System'!$B$9)+(R179*'Points System'!$B$10)+(S179*'Points System'!$B$11)+(T179*'Points System'!$B$13)+(U179*'Points System'!$B$12)+(V179*'Points System'!$B$14) -> 77.62 | D179: =C179/G179 -> 0.1231848407 | E179: =C179/F179 -> 0.5171219187 | F179: 150.1 | G179: 630.11 | H179: 547.79 | I179: 127.82 | J179: 77.62 | K179: 22.58 | L179: 0.71 | M179: 36.61 | N179: 107.89 | O179: 92.11 | P179: 87.21 | Q179: 125.16 | R179: 1.83 | S179: 0.58 | T179: 4.47 | U179: 5.29 | V179: 271.35 | W179: 0.233 | X179: 1.435 | Y179: 0.342 | Z179: 0.495 | AA179: 0.837 | AB179: AL | AC179: 543807 | AD179: 1B | AE179: =IF(ISNA(VLOOKUP(A179,Rankings!$B$2:$H$1998,7,FALSE)),"-",VLOOKUP(A179,Rankings!$B$2:$H$1998,7,FALSE)) -> 0
A180: Willson Contreras | B180: C | C180: =(G180*'Points System'!$B$16)+(H180*'Points System'!$B$17)+(I180*'Points System'!$B$15)+(J180*'Points System'!$B$2)+(K180*'Points System'!$B$3)+(L180*'Points System'!$B$4)+(M180*'Points System'!$B$5)+(N180*'Points System'!$B$6)+(O180*'Points System'!$B$7)+(P180*'Points System'!$B$8)+(Q180*'Points System'!$B$9)+(R180*'Points System'!$B$10)+(S180*'Points System'!$B$11)+(T180*'Points System'!$B$13)+(U180*'Points System'!$B$12)+(V180*'Points System'!$B$14) -> 77.44 | D180: =C180/G180 -> 0.1508258024 | E180: =C180/F180 -> 0.6175438596 | F180: 125.4 | G180: 513.44 | H180: 448.36 | I180: 123.72 | J180: 77.44 | K180: 24.49 | L180: 1.38 | M180: 20.89 | N180: 76.45 | O180: 61.95 | P180: 50.02 | Q180: 107.29 | R180: 4.84 | S180: 3.91 | T180: 3.27 | U180: 5.65 | V180: 214.12 | W180: 0.276 | X180: 2.145 | Y180: 0.354 | Z180: 0.478 | AA180: 0.832 | AB180: NL | AC180: 670032 | AD180: 1B | AE180: =IF(ISNA(VLOOKUP(A180,Rankings!$B$2:$H$1998,7,FALSE)),"-",VLOOKUP(A180,Rankings!$B$2:$H$1998,7,FALSE)) -> 0
A181: Jeimer Candelario | B181: 3B | C181: =(G181*'Points System'!$B$16)+(H181*'Points System'!$B$17)+(I181*'Points System'!$B$15)+(J181*'Points System'!$B$2)+(K181*'Points System'!$B$3)+(L181*'Points System'!$B$4)+(M181*'Points System'!$B$5)+(N181*'Points System'!$B$6)+(O181*'Points System'!$B$7)+(P181*'Points System'!$B$8)+(Q181*'Points System'!$B$9)+(R181*'Points System'!$B$10)+(S181*'Points System'!$B$11)+(T181*'Points System'!$B$13)+(U181*'Points System'!$B$12)+(V181*'Points System'!$B$14) -> 77.27 | D181: =C181/G181 -> 0.1409702078 | E181: =C181/F181 -> 0.5878727937 | F181: 131.44 | G181: 548.13 | H181: 458.38 | I181: 114.01 | J181: 77.27 | K181: 28.39 | L181: 2.3 | M181: 13.97 | N181: 59.86 | O181: 57.03 | P181: 47.55 | Q181: 128.3 | R181: 1.21 | S181: 0.83 | T181: 2.77 | U181: 4.67 | V181: 196.83 | W181: 0.249 | X181: 2.698 | Y181: 0.324 | Z181: 0.429 | AA181: 0.753 | AB181: AL | AC181: 452104 | AD181: C | AE181: =IF(ISNA(VLOOKUP(A181,Rankings!$B$2:$H$1998,7,FALSE)),"-",VLOOKUP(A181,Rankings!$B$2:$H$1998,7,FALSE)) -> 0
A182: Jonathan Villar | B182: 2B/OF | C182: =(G182*'Points System'!$B$16)+(H182*'Points System'!$B$17)+(I182*'Points System'!$B$15)+(J182*'Points System'!$B$2)+(K182*'Points System'!$B$3)+(L182*'Points System'!$B$4)+(M182*'Points System'!$B$5)+(N182*'Points System'!$B$6)+(O182*'Points System'!$B$7)+(P182*'Points System'!$B$8)+(Q182*'Points System'!$B$9)+(R182*'Points System'!$B$10)+(S182*'Points System'!$B$11)+(T182*'Points System'!$B$13)+(U182*'Points System'!$B$12)+(V182*'Points System'!$B$14) -> 77.23 | D182: =C182/G182 -> 0.1509489279 | E182: =C182/F182 -> 0.6081102362 | F182: 127 | G182: 511.63 | H182: 457.54 | I182: 117.1 | J182: 77.23 | K182: 24.15 | L182: 2.13 | M182: 13.75 | N182: 49.74 | O182: 65.05 | P182: 46.53 | Q182: 139.61 | R182: 32.9 | S182: 11.01 | T182: 2.4 | U182: 1.93 | V182: 186.92 | W182: 0.256 | X182: 3 | Y182: 0.326 | Z182: 0.409 | AA182: 0.735 | AB182: NL | AC182: 474568 | AD182: 2B | AE182: =IF(ISNA(VLOOKUP(A182,Rankings!$B$2:$H$1998,7,FALSE)),"-",VLOOKUP(A182,Rankings!$B$2:$H$1998,7,FALSE)) -> 0
A183: Yonder Alonso | B183: 1B | C183: =(G183*'Points System'!$B$16)+(H183*'Points System'!$B$17)+(I183*'Points System'!$B$15)+(J183*'Points System'!$B$2)+(K183*'Points System'!$B$3)+(L183*'Points System'!$B$4)+(M183*'Points System'!$B$5)+(N183*'Points System'!$B$6)+(O183*'Points System'!$B$7)+(P183*'Points System'!$B$8)+(Q183*'Points System'!$B$9)+(R183*'Points System'!$B$10)+(S183*'Points System'!$B$11)+(T183*'Points System'!$B$13)+(U183*'Points System'!$B$12)+(V183*'Points System'!$B$14) -> 77.18 | D183: =C183/G183 -> 0.1488869169 | E183: =C183/F183 -> 0.5851846235 | F183: 131.89 | G183: 518.38 | H183: 461.5 | I183: 123.93 | J183: 77.18 | K183: 25.4 | L183: 0.38 | M183: 20.4 | N183: 68.48 | O183: 67.46 | P183: 58.6 | Q183: 106.89 | R183: 2.29 | S183: 1.05 | T183: 2.43 | U183: 2.37 | V183: 210.72 | W183: 0.269 | X183: 1.824 | Y183: 0.352 | Z183: 0.457 | AA183: 0.809 | AB183: AL | AC183: 570256 | AD183: SS | AE183: =IF(ISNA(VLOOKUP(A183,Rankings!$B$2:$H$1998,7,FALSE)),"-",VLOOKUP(A183,Rankings!$B$2:$H$1998,7,FALSE)) -> 0
A184: Salvador Perez | B184: C | C184: =(G184*'Points System'!$B$16)+(H184*'Points System'!$B$17)+(I184*'Points System'!$B$15)+(J184*'Points System'!$B$2)+(K184*'Points System'!$B$3)+(L184*'Points System'!$B$4)+(M184*'Points System'!$B$5)+(N184*'Points System'!$B$6)+(O184*'Points System'!$B$7)+(P184*'Points System'!$B$8)+(Q184*'Points System'!$B$9)+(R184*'Points System'!$B$10)+(S184*'Points System'!$B$11)+(T184*'Points System'!$B$13)+(U184*'Points System'!$B$12)+(V184*'Points System'!$B$14) -> 77.04 | D184: =C184/G184 -> 0.1500467435 | E184: =C184/F184 -> 0.6042352941 | F184: 127.5 | G184: 513.44 | H184: 488.07 | I184: 116.65 | J184: 77.04 | K184: 22.85 | L184: 0.96 | M184: 24.04 | N184: 72.3 | O184: 56.65 | P184: 19.45 | Q184: 97.79 | R184: 0.8 | S184: 0.31 | T184: 3.63 | U184: 5.33 | V184: 221.78 | W184: 0.239 | X184: 5.028 | Y184: 0.274 | Z184: 0.454 | AA184: 0.728 | AB184: AL | AC184: 489149 | AD184: 1B | AE184: =IF(ISNA(VLOOKUP(A184,Rankings!$B$2:$H$1998,7,FALSE)),"-",VLOOKUP(A184,Rankings!$B$2:$H$1998,7,FALSE)) -> 0
A185: Andrew Knizner | C185: =(G185*'Points System'!$B$16)+(H185*'Points System'!$B$17)+(I185*'Points System'!$B$15)+(J185*'Points System'!$B$2)+(K185*'Points System'!$B$3)+(L185*'Points System'!$B$4)+(M185*'Points System'!$B$5)+(N185*'Points System'!$B$6)+(O185*'Points System'!$B$7)+(P185*'Points System'!$B$8)+(Q185*'Points System'!$B$9)+(R185*'Points System'!$B$10)+(S185*'Points System'!$B$11)+(T185*'Points System'!$B$13)+(U185*'Points System'!$B$12)+(V185*'Points System'!$B$14) -> 77 | D185: =C185/G185 -> 0.1681222707 | E185: =C185/F185 -> 0.712962963 | F185: 108 | G185: 458 | H185: 425 | I185: 106 | J185: 77 | K185: 19 | L185: 2 | M185: 8 | N185: 62 | O185: 54 | P185: 26 | Q185: 68 | R185: 1 | S185: 3 | U185: 4 | V185: 153 | W185: 0.249 | X185: 2.615 | Y185: 0.299 | Z185: 0.36 | AA185: 0.659 | AC185: 669902 | AD185: 1B | AE185: =IF(ISNA(VLOOKUP(A185,Rankings!$B$2:$H$1998,7,FALSE)),"-",VLOOKUP(A185,Rankings!$B$2:$H$1998,7,FALSE)) -> -
A186: Osvaldo Abreu | C186: =(G186*'Points System'!$B$16)+(H186*'Points System'!$B$17)+(I186*'Points System'!$B$15)+(J186*'Points System'!$B$2)+(K186*'Points System'!$B$3)+(L186*'Points System'!$B$4)+(M186*'Points System'!$B$5)+(N186*'Points System'!$B$6)+(O186*'Points System'!$B$7)+(P186*'Points System'!$B$8)+(Q186*'Points System'!$B$9)+(R186*'Points System'!$B$10)+(S186*'Points System'!$B$11)+(T186*'Points System'!$B$13)+(U186*'Points System'!$B$12)+(V186*'Points System'!$B$14) -> 77 | D186: =C186/G186 -> 0.1480769231 | E186: =C186/F186 -> 0.6015625 | F186: 128 | G186: 520 | H186: 477 | I186: 106 | J186: 77 | K186: 19 | L186: 4 | M186: 6 | N186: 40 | O186: 50 | P186: 31 | Q186: 138 | R186: 8 | S186: 9 | U186: 5 | V186: 151 | W186: 0.222 | X186: 4.452 | Y186: 0.277 | Z186: 0.317 | AA186: 0.594 | AC186: 605439 | AD186: 1B | AE186: =IF(ISNA(VLOOKUP(A186,Rankings!$B$2:$H$1998,7,FALSE)),"-",VLOOKUP(A186,Rankings!$B$2:$H$1998,7,FALSE)) -> -
A187: Randy Cesar | C187: =(G187*'Points System'!$B$16)+(H187*'Points System'!$B$17)+(I187*'Points System'!$B$15)+(J187*'Points System'!$B$2)+(K187*'Points System'!$B$3)+(L187*'Points System'!$B$4)+(M187*'Points System'!$B$5)+(N187*'Points System'!$B$6)+(O187*'Points System'!$B$7)+(P187*'Points System'!$B$8)+(Q187*'Points System'!$B$9)+(R187*'Points System'!$B$10)+(S187*'Points System'!$B$11)+(T187*'Points System'!$B$13)+(U187*'Points System'!$B$12)+(V187*'Points System'!$B$14) -> 77 | D187: =C187/G187 -> 0.1652360515 | E187: =C187/F187 -> 0.6814159292 | F187: 113 | G187: 466 | H187: 439 | I187: 101 | J187: 77 | K187: 15 | L187: 1 | M187: 8 | N187: 40 | O187: 44 | P187: 22 | Q187: 142 | R187: 3 | S187: 1 | U187: 1 | V187: 142 | W187: 0.23 | X187: 6.455 | Y187: 0.268 | Z187: 0.323 | AA187: 0.591 | AC187: 543377 | AD187: 1B | AE187: =IF(ISNA(VLOOKUP(A187,Rankings!$B$2:$H$1998,7,FALSE)),"-",VLOOKUP(A187,Rankings!$B$2:$H$1998,7,FALSE)) -> -
A188: Ryan Braun | B188: OF | C188: =(G188*'Points System'!$B$16)+(H188*'Points System'!$B$17)+(I188*'Points System'!$B$15)+(J188*'Points System'!$B$2)+(K188*'Points System'!$B$3)+(L188*'Points System'!$B$4)+(M188*'Points System'!$B$5)+(N188*'Points System'!$B$6)+(O188*'Points System'!$B$7)+(P188*'Points System'!$B$8)+(Q188*'Points System'!$B$9)+(R188*'Points System'!$B$10)+(S188*'Points System'!$B$11)+(T188*'Points System'!$B$13)+(U188*'Points System'!$B$12)+(V188*'Points System'!$B$14) -> 76.54 | D188: =C188/G188 -> 0.1526738875 | E188: =C188/F188 -> 0.6232899023 | F188: 122.8 | G188: 501.33 | H188: 453.29 | I188: 128.34 | J188: 76.54 | K188: 27.33 | L188: 2.52 | M188: 21.97 | N188: 73.81 | O188: 70.18 | P188: 44.89 | Q188: 93.7 | R188: 12.88 | S188: 4.62 | T188: 3.73 | U188: 3.81 | V188: 226.64 | W188: 0.283 | X188: 2.087 | Y188: 0.35 | Z188: 0.5 | AA188: 0.85 | AB188: NL | AC188: 596748 | AD188: SS | AE188: =IF(ISNA(VLOOKUP(A188,Rankings!$B$2:$H$1998,7,FALSE)),"-",VLOOKUP(A188,Rankings!$B$2:$H$1998,7,FALSE)) -> 0
A189: Neil Walker | B189: 1B/2B | C189: =(G189*'Points System'!$B$16)+(H189*'Points System'!$B$17)+(I189*'Points System'!$B$15)+(J189*'Points System'!$B$2)+(K189*'Points System'!$B$3)+(L189*'Points System'!$B$4)+(M189*'Points System'!$B$5)+(N189*'Points System'!$B$6)+(O189*'Points System'!$B$7)+(P189*'Points System'!$B$8)+(Q189*'Points System'!$B$9)+(R189*'Points System'!$B$10)+(S189*'Points System'!$B$11)+(T189*'Points System'!$B$13)+(U189*'Points System'!$B$12)+(V189*'Points System'!$B$14) -> 76.38 | D189: =C189/G189 -> 0.157442335 | E189: =C189/F189 -> 0.6515952909 | F189: 117.22 | G189: 485.13 | H189: 428.5 | I189: 115.78 | J189: 76.38 | K189: 20.36 | L189: 1.97 | M189: 17.76 | N189: 58.98 | O189: 61.95 | P189: 48.51 | Q189: 87.09 | R189: 1.9 | S189: 1.47 | T189: 3 | U189: 4.86 | V189: 194.05 | W189: 0.27 | X189: 1.795 | Y189: 0.349 | Z189: 0.453 | AA189: 0.802 | AB189: NL | AC189: 596018 | AD189: CF | AE189: =IF(ISNA(VLOOKUP(A189,Rankings!$B$2:$H$1998,7,FALSE)),"-",VLOOKUP(A189,Rankings!$B$2:$H$1998,7,FALSE)) -> 0
A190: Corey Dickerson | B190: OF | C190: =(G190*'Points System'!$B$16)+(H190*'Points System'!$B$17)+(I190*'Points System'!$B$15)+(J190*'Points System'!$B$2)+(K190*'Points System'!$B$3)+(L190*'Points System'!$B$4)+(M190*'Points System'!$B$5)+(N190*'Points System'!$B$6)+(O190*'Points System'!$B$7)+(P190*'Points System'!$B$8)+(Q190*'Points System'!$B$9)+(R190*'Points System'!$B$10)+(S190*'Points System'!$B$11)+(T190*'Points System'!$B$13)+(U190*'Points System'!$B$12)+(V190*'Points System'!$B$14) -> 76.37 | D190: =C190/G190 -> 0.1538942065 | E190: =C190/F190 -> 0.6120371854 | F190: 124.78 | G190: 496.25 | H190: 483.42 | I190: 130.61 | J190: 76.37 | K190: 29.54 | L190: 3.18 | M190: 21.97 | N190: 61.18 | O190: 64.5 | P190: 31.14 | Q190: 120.7 | R190: 2.58 | S190: 2.19 | T190: 2.17 | U190: 2.27 | V190: 232.87 | W190: 0.27 | X190: 3.876 | Y190: 0.316 | Z190: 0.482 | AA190: 0.798 | AB190: NL | AC190: 641432 | AD190: LF | AE190: =IF(ISNA(VLOOKUP(A190,Rankings!$B$2:$H$1998,7,FALSE)),"-",VLOOKUP(A190,Rankings!$B$2:$H$1998,7,FALSE)) -> 0
A191: Mark Trumbo | B191: OF | C191: =(G191*'Points System'!$B$16)+(H191*'Points System'!$B$17)+(I191*'Points System'!$B$15)+(J191*'Points System'!$B$2)+(K191*'Points System'!$B$3)+(L191*'Points System'!$B$4)+(M191*'Points System'!$B$5)+(N191*'Points System'!$B$6)+(O191*'Points System'!$B$7)+(P191*'Points System'!$B$8)+(Q191*'Points System'!$B$9)+(R191*'Points System'!$B$10)+(S191*'Points System'!$B$11)+(T191*'Points System'!$B$13)+(U191*'Points System'!$B$12)+(V191*'Points System'!$B$14) -> 76.27 | D191: =C191/G191 -> 0.1402666667 | E191: =C191/F191 -> 0.5654236786 | F191: 134.89 | G191: 543.75 | H191: 523.85 | I191: 116.42 | J191: 76.27 | K191: 20.18 | L191: 0.98 | M191: 28.44 | N191: 76.15 | O191: 73.07 | P191: 40.98 | Q191: 136.21 | R191: 1.18 | S191: 0.53 | T191: 1.7 | U191: 1.49 | V191: 233.33 | W191: 0.222 | X191: 3.324 | Y191: 0.28 | Z191: 0.445 | AA191: 0.725 | AB191: AL | AC191: 425783 | AD191: 1B | AE191: =IF(ISNA(VLOOKUP(A191,Rankings!$B$2:$H$1998,7,FALSE)),"-",VLOOKUP(A191,Rankings!$B$2:$H$1998,7,FALSE)) -> 0
A192: Donald Dewees Jr. | C192: =(G192*'Points System'!$B$16)+(H192*'Points System'!$B$17)+(I192*'Points System'!$B$15)+(J192*'Points System'!$B$2)+(K192*'Points System'!$B$3)+(L192*'Points System'!$B$4)+(M192*'Points System'!$B$5)+(N192*'Points System'!$B$6)+(O192*'Points System'!$B$7)+(P192*'Points System'!$B$8)+(Q192*'Points System'!$B$9)+(R192*'Points System'!$B$10)+(S192*'Points System'!$B$11)+(T192*'Points System'!$B$13)+(U192*'Points System'!$B$12)+(V192*'Points System'!$B$14) -> 76 | D192: =C192/G192 -> 0.1436672968 | E192: =C192/F192 -> 0.6178861789 | F192: 123 | G192: 529 | H192: 486 | I192: 110 | J192: 76 | K192: 21 | L192: 6 | M192: 7 | N192: 45 | O192: 53 | P192: 31 | Q192: 104 | R192: 17 | S192: 7 | U192: 4 | V192: 164 | W192: 0.226 | X192: 3.355 | Y192: 0.278 | Z192: 0.337 | AA192: 0.615 | AC192: 607249 | AD192: RF | AE192: =IF(ISNA(VLOOKUP(A192,Rankings!$B$2:$H$1998,7,FALSE)),"-",VLOOKUP(A192,Rankings!$B$2:$H$1998,7,FALSE)) -> -
A193: Taylor Trammell | C193: =(G193*'Points System'!$B$16)+(H193*'Points System'!$B$17)+(I193*'Points System'!$B$15)+(J193*'Points System'!$B$2)+(K193*'Points System'!$B$3)+(L193*'Points System'!$B$4)+(M193*'Points System'!$B$5)+(N193*'Points System'!$B$6)+(O193*'Points System'!$B$7)+(P193*'Points System'!$B$8)+(Q193*'Points System'!$B$9)+(R193*'Points System'!$B$10)+(S193*'Points System'!$B$11)+(T193*'Points System'!$B$13)+(U193*'Points System'!$B$12)+(V193*'Points System'!$B$14) -> 76 | D193: =C193/G193 -> 0.1417910448 | E193: =C193/F193 -> 0.6178861789 | F193: 123 | G193: 536 | H193: 484 | I193: 109 | J193: 76 | K193: 17 | L193: 6 | M193: 10 | N193: 50 | O193: 57 | P193: 47 | Q193: 157 | R193: 29 | S193: 13 | U193: 2 | V193: 168 | W193: 0.225 | X193: 3.34 | Y193: 0.296 | Z193: 0.347 | AA193: 0.643 | AC193: 582473 | AD193: LF | AE193: =IF(ISNA(VLOOKUP(A193,Rankings!$B$2:$H$1998,7,FALSE)),"-",VLOOKUP(A193,Rankings!$B$2:$H$1998,7,FALSE)) -> -
A194: Gabriel Guerrero | B194: OF | C194: =(G194*'Points System'!$B$16)+(H194*'Points System'!$B$17)+(I194*'Points System'!$B$15)+(J194*'Points System'!$B$2)+(K194*'Points System'!$B$3)+(L194*'Points System'!$B$4)+(M194*'Points System'!$B$5)+(N194*'Points System'!$B$6)+(O194*'Points System'!$B$7)+(P194*'Points System'!$B$8)+(Q194*'Points System'!$B$9)+(R194*'Points System'!$B$10)+(S194*'Points System'!$B$11)+(T194*'Points System'!$B$13)+(U194*'Points System'!$B$12)+(V194*'Points System'!$B$14) -> 76 | D194: =C194/G194 -> 0.1439393939 | E194: =C194/F194 -> 0.5588235294 | F194: 136 | G194: 528 | H194: 498 | I194: 113 | J194: 76 | K194: 22 | L194: 5 | M194: 10 | N194: 46 | O194: 50 | P194: 25 | Q194: 137 | R194: 4 | S194: 4 | U194: 1 | V194: 175 | W194: 0.227 | X194: 5.48 | Y194: 0.265 | Z194: 0.351 | AA194: 0.616 | AC194: 621446 | AD194: 2B | AE194: =IF(ISNA(VLOOKUP(A194,Rankings!$B$2:$H$1998,7,FALSE)),"-",VLOOKUP(A194,Rankings!$B$2:$H$1998,7,FALSE)) -> 0
A195: Scott Heineman | C195: =(G195*'Points System'!$B$16)+(H195*'Points System'!$B$17)+(I195*'Points System'!$B$15)+(J195*'Points System'!$B$2)+(K195*'Points System'!$B$3)+(L195*'Points System'!$B$4)+(M195*'Points System'!$B$5)+(N195*'Points System'!$B$6)+(O195*'Points System'!$B$7)+(P195*'Points System'!$B$8)+(Q195*'Points System'!$B$9)+(R195*'Points System'!$B$10)+(S195*'Points System'!$B$11)+(T195*'Points System'!$B$13)+(U195*'Points System'!$B$12)+(V195*'Points System'!$B$14) -> 76 | D195: =C195/G195 -> 0.1381818182 | E195: =C195/F195 -> 0.6280991736 | F195: 121 | G195: 550 | H195: 499 | I195: 112 | J195: 76 | K195: 22 | L195: 5 | M195: 9 | N195: 42 | O195: 58 | P195: 38 | Q195: 158 | R195: 11 | S195: 9 | U195: 9 | V195: 171 | W195: 0.224 | X195: 4.158 | Y195: 0.291 | Z195: 0.343 | AA195: 0.634 | AC195: 453064 | AD195: 1B | AE195: =IF(ISNA(VLOOKUP(A195,Rankings!$B$2:$H$1998,7,FALSE)),"-",VLOOKUP(A195,Rankings!$B$2:$H$1998,7,FALSE)) -> -
A196: Willie Calhoun | B196: 2B/OF | C196: =(G196*'Points System'!$B$16)+(H196*'Points System'!$B$17)+(I196*'Points System'!$B$15)+(J196*'Points System'!$B$2)+(K196*'Points System'!$B$3)+(L196*'Points System'!$B$4)+(M196*'Points System'!$B$5)+(N196*'Points System'!$B$6)+(O196*'Points System'!$B$7)+(P196*'Points System'!$B$8)+(Q196*'Points System'!$B$9)+(R196*'Points System'!$B$10)+(S196*'Points System'!$B$11)+(T196*'Points System'!$B$13)+(U196*'Points System'!$B$12)+(V196*'Points System'!$B$14) -> 75.97 | D196: =C196/G196 -> 0.141558127 | E196: =C196/F196 -> 0.618346085 | F196: 122.86 | G196: 536.67 | H196: 415 | I196: 113.95 | J196: 75.97 | K196: 20.21 | L196: 2.55 | M196: 20.32 | N196: 64.46 | O196: 57.67 | P196: 36.19 | Q196: 75.93 | R196: 2.39 | S196: 1.67 | T196: 3.9 | U196: 3.34 | V196: 205.32 | W196: 0.275 | X196: 2.098 | Y196: 0.335 | Z196: 0.495 | AA196: 0.83 | AB196: AL | AC196: 665138 | AD196: SS | AE196: =IF(ISNA(VLOOKUP(A196,Rankings!$B$2:$H$1998,7,FALSE)),"-",VLOOKUP(A196,Rankings!$B$2:$H$1998,7,FALSE)) -> 0
A197: Cheslor Cuthbert | B197: 3B | C197: =(G197*'Points System'!$B$16)+(H197*'Points System'!$B$17)+(I197*'Points System'!$B$15)+(J197*'Points System'!$B$2)+(K197*'Points System'!$B$3)+(L197*'Points System'!$B$4)+(M197*'Points System'!$B$5)+(N197*'Points System'!$B$6)+(O197*'Points System'!$B$7)+(P197*'Points System'!$B$8)+(Q197*'Points System'!$B$9)+(R197*'Points System'!$B$10)+(S197*'Points System'!$B$11)+(T197*'Points System'!$B$13)+(U197*'Points System'!$B$12)+(V197*'Points System'!$B$14) -> 75.96 | D197: =C197/G197 -> 0.1577340781 | E197: =C197/F197 -> 0.627768595 | F197: 121 | G197: 481.57 | H197: 423.42 | I197: 104.94 | J197: 75.96 | K197: 21.77 | L197: 1.49 | M197: 12.23 | N197: 50.36 | O197: 45.7 | P197: 33.71 | Q197: 96.69 | R197: 2.07 | S197: 1.06 | T197: 2.9 | U197: 1.63 | V197: 172.89 | W197: 0.248 | X197: 2.868 | Y197: 0.304 | Z197: 0.408 | AA197: 0.712 | AB197: AL | AC197: 452655 | AD197: 1B | AE197: =IF(ISNA(VLOOKUP(A197,Rankings!$B$2:$H$1998,7,FALSE)),"-",VLOOKUP(A197,Rankings!$B$2:$H$1998,7,FALSE)) -> -
A198: Justin Upton | B198: OF | C198: =(G198*'Points System'!$B$16)+(H198*'Points System'!$B$17)+(I198*'Points System'!$B$15)+(J198*'Points System'!$B$2)+(K198*'Points System'!$B$3)+(L198*'Points System'!$B$4)+(M198*'Points System'!$B$5)+(N198*'Points System'!$B$6)+(O198*'Points System'!$B$7)+(P198*'Points System'!$B$8)+(Q198*'Points System'!$B$9)+(R198*'Points System'!$B$10)+(S198*'Points System'!$B$11)+(T198*'Points System'!$B$13)+(U198*'Points System'!$B$12)+(V198*'Points System'!$B$14) -> 75.95 | D198: =C198/G198 -> 0.1209606778 | E198: =C198/F198 -> 0.5066711141 | F198: 149.9 | G198: 627.89 | H198: 559.93 | I198: 129.45 | J198: 75.95 | K198: 29.76 | L198: 1.06 | M198: 31.71 | N198: 96.76 | O198: 87.52 | P198: 65.72 | Q198: 180.39 | R198: 12.23 | S198: 4.9 | T198: 2.93 | U198: 3.95 | V198: 265.49 | W198: 0.231 | X198: 2.745 | Y198: 0.315 | Z198: 0.474 | AA198: 0.789 | AB198: AL | AC198: 571976 | AD198: SS | AE198: =IF(ISNA(VLOOKUP(A198,Rankings!$B$2:$H$1998,7,FALSE)),"-",VLOOKUP(A198,Rankings!$B$2:$H$1998,7,FALSE)) -> 0
A199: Justin Smoak | B199: 1B | C199: =(G199*'Points System'!$B$16)+(H199*'Points System'!$B$17)+(I199*'Points System'!$B$15)+(J199*'Points System'!$B$2)+(K199*'Points System'!$B$3)+(L199*'Points System'!$B$4)+(M199*'Points System'!$B$5)+(N199*'Points System'!$B$6)+(O199*'Points System'!$B$7)+(P199*'Points System'!$B$8)+(Q199*'Points System'!$B$9)+(R199*'Points System'!$B$10)+(S199*'Points System'!$B$11)+(T199*'Points System'!$B$13)+(U199*'Points System'!$B$12)+(V199*'Points System'!$B$14) -> 75.83 | D199: =C199/G199 -> 0.1260095051 | E199: =C199/F199 -> 0.5082439678 | F199: 149.2 | G199: 601.78 | H199: 532.14 | I199: 124.24 | J199: 75.83 | K199: 23.15 | L199: 0.8 | M199: 31.51 | N199: 85.55 | O199: 76.86 | P199: 66.15 | Q199: 141.4 | R199: 0.54 | S199: 0.67 | T199: 2.9 | U199: 3.13 | V199: 250.57 | W199: 0.233 | X199: 2.138 | Y199: 0.32 | Z199: 0.471 | AA199: 0.791 | AB199: AL | AC199: 594809 | AD199: SS | AE199: =IF(ISNA(VLOOKUP(A199,Rankings!$B$2:$H$1998,7,FALSE)),"-",VLOOKUP(A199,Rankings!$B$2:$H$1998,7,FALSE)) -> 0
A200: Yunel Escobar | B200: 3B | C200: =(G200*'Points System'!$B$16)+(H200*'Points System'!$B$17)+(I200*'Points System'!$B$15)+(J200*'Points System'!$B$2)+(K200*'Points System'!$B$3)+(L200*'Points System'!$B$4)+(M200*'Points System'!$B$5)+(N200*'Points System'!$B$6)+(O200*'Points System'!$B$7)+(P200*'Points System'!$B$8)+(Q200*'Points System'!$B$9)+(R200*'Points System'!$B$10)+(S200*'Points System'!$B$11)+(T200*'Points System'!$B$13)+(U200*'Points System'!$B$12)+(V200*'Points System'!$B$14) -> 75.68 | D200: =C200/G200 -> 0.2158770003 | E200: =C200/F200 -> 0.8306442761 | F200: 91.11 | G200: 350.57 | H200: 358.45 | I200: 98.86 | J200: 75.68 | K200: 18.33 | L200: 1.07 | M200: 6.15 | N200: 32.49 | O200: 45.59 | P200: 29.58 | Q200: 46.02 | R200: 1.38 | S200: 1.95 | T200: 1.63 | U200: 2.57 | V200: 140.15 | W200: 0.276 | X200: 1.556 | Y200: 0.334 | Z200: 0.391 | AA200: 0.725 | AB200: AL | AC200: 542897 | AD200: CF | AE200: =IF(ISNA(VLOOKUP(A200,Rankings!$B$2:$H$1998,7,FALSE)),"-",VLOOKUP(A200,Rankings!$B$2:$H$1998,7,FALSE)) -> -
... 797 more rows

Sheet Pitchers
A1: Name | B1: POS | C1: FPTS | D1: PPS | E1: G | F1: GS | G1: IP | H1: W | I1: L | J1: SV | K1: BS | L1: K | M1: BB | N1: H | O1: R | P1: ER | Q1: HRA | R1: HLD | S1: QS | T1: WP | U1: CG | V1: ERA | W1: WHIP | X1: K/9 | Y1: BB/9 | Z1: LG | AA1: PlayerID | AB1: Drafted
A2: Chris Sale | B2: SP | C2: =(G2*'Points System'!$E$6)+(H2*'Points System'!$E$2)+(I2*'Points System'!$E$3)+(J2*'Points System'!$E$4)+(K2*'Points System'!$E$5)+(L2*'Points System'!$E$7)+(M2*'Points System'!$E$8)+(N2*'Points System'!$E$10)+(P2*'Points System'!$E$9)+(Q2*'Points System'!$E$17)+(R2*'Points System'!$E$11)+(S2*'Points System'!$E$12)+(T2*'Points System'!$E$16)+(U2*'Points System'!$E$13) -> 207.3 | D2: =IF(AND(ABS(E2-F2)<3,F2>9),C2/F2,0) -> 6.657032755 | E2: 31.08 | F2: 31.14 | G2: 207.3 | H2: 16.46 | I2: 7.85 | J2: 0 | K2: 0 | L2: 255.02 | M2: 43.27 | N2: 171.38 | O2: 77.7 | P2: 70.55 | Q2: 24.18 | R2: 0 | S2: 21.72 | T2: 2 | U2: 2.67 | V2: 3.06 | W2: =(M2+N2)/G2 -> 1.035455861 | X2: 11.07 | Y2: 1.88 | Z2: AL | AA2: 519242 | AB2: =IF(ISNA(VLOOKUP(A2,Rankings!$B$2:$H$19998,7,FALSE)),"-",VLOOKUP(A2,Rankings!$B$2:$H$19998,7,FALSE)) -> 0
A3: Corey Kluber | B3: SP | C3: =(G3*'Points System'!$E$6)+(H3*'Points System'!$E$2)+(I3*'Points System'!$E$3)+(J3*'Points System'!$E$4)+(K3*'Points System'!$E$5)+(L3*'Points System'!$E$7)+(M3*'Points System'!$E$8)+(N3*'Points System'!$E$10)+(P3*'Points System'!$E$9)+(Q3*'Points System'!$E$17)+(R3*'Points System'!$E$11)+(S3*'Points System'!$E$12)+(T3*'Points System'!$E$16)+(U3*'Points System'!$E$13) -> 206.91 | D3: =IF(AND(ABS(E3-F3)<3,F3>9),C3/F3,0) -> 6.659478597 | E3: 31 | F3: 31.07 | G3: 206.91 | H3: 16.41 | I3: 7.3 | J3: 0 | K3: 0 | L3: 241.84 | M3: 46.74 | N3: 169.5 | O3: 77.35 | P3: 68.51 | Q3: 22.18 | R3: 0 | S3: 21.68 | T3: 2.5 | U3: 3.33 | V3: 2.98 | W3: =(M3+N3)/G3 -> 1.045092069 | X3: 10.52 | Y3: 2.03 | Z3: AL | AA3: 446372 | AB3: =IF(ISNA(VLOOKUP(A3,Rankings!$B$2:$H$19998,7,FALSE)),"-",VLOOKUP(A3,Rankings!$B$2:$H$19998,7,FALSE)) -> 0
A4: Max Scherzer | B4: SP | C4: =(G4*'Points System'!$E$6)+(H4*'Points System'!$E$2)+(I4*'Points System'!$E$3)+(J4*'Points System'!$E$4)+(K4*'Points System'!$E$5)+(L4*'Points System'!$E$7)+(M4*'Points System'!$E$8)+(N4*'Points System'!$E$10)+(P4*'Points System'!$E$9)+(Q4*'Points System'!$E$17)+(R4*'Points System'!$E$11)+(S4*'Points System'!$E$12)+(T4*'Points System'!$E$16)+(U4*'Points System'!$E$13) -> 204.69 | D4: =IF(AND(ABS(E4-F4)<3,F4>9),C4/F4,0) -> 6.424670433 | E4: 31.85 | F4: 31.86 | G4: 204.69 | H4: 16.18 | I4: 7.5 | J4: 0 | K4: 0 | L4: 259.44 | M4: 54.66 | N4: 155.24 | O4: 77.15 | P4: 68.81 | Q4: 25.27 | R4: 0 | S4: 22 | T4: 2.5 | U4: 2.17 | V4: 3.03 | W4: =(M4+N4)/G4 -> 1.025453124 | X4: 11.41 | Y4: 2.4 | Z4: NL | AA4: 453286 | AB4: =IF(ISNA(VLOOKUP(A4,Rankings!$B$2:$H$19998,7,FALSE)),"-",VLOOKUP(A4,Rankings!$B$2:$H$19998,7,FALSE)) -> 0
A5: Carlos Martinez | B5: SP | C5: =(G5*'Points System'!$E$6)+(H5*'Points System'!$E$2)+(I5*'Points System'!$E$3)+(J5*'Points System'!$E$4)+(K5*'Points System'!$E$5)+(L5*'Points System'!$E$7)+(M5*'Points System'!$E$8)+(N5*'Points System'!$E$10)+(P5*'Points System'!$E$9)+(Q5*'Points System'!$E$17)+(R5*'Points System'!$E$11)+(S5*'Points System'!$E$12)+(T5*'Points System'!$E$16)+(U5*'Points System'!$E$13) -> 201.22 | D5: =IF(AND(ABS(E5-F5)<3,F5>9),C5/F5,0) -> 6.301910429 | E5: 31.92 | F5: 31.93 | G5: 201.22 | H5: 13.91 | I5: 9.91 | J5: 0 | K5: 0 | L5: 200.51 | M5: 69.99 | N5: 182.22 | O5: 91.9 | P5: 78.92 | Q5: 21.27 | R5: 0 | S5: 18.6 | T5: 6 | U5: 0.83 | V5: 3.53 | W5: =(M5+N5)/G5 -> 1.253404234 | X5: 8.97 | Y5: 3.13 | Z5: NL | AA5: 593372 | AB5: =IF(ISNA(VLOOKUP(A5,Rankings!$B$2:$H$19998,7,FALSE)),"-",VLOOKUP(A5,Rankings!$B$2:$H$19998,7,FALSE)) -> 0
A6: Justin Verlander | B6: SP | C6: =(G6*'Points System'!$E$6)+(H6*'Points System'!$E$2)+(I6*'Points System'!$E$3)+(J6*'Points System'!$E$4)+(K6*'Points System'!$E$5)+(L6*'Points System'!$E$7)+(M6*'Points System'!$E$8)+(N6*'Points System'!$E$10)+(P6*'Points System'!$E$9)+(Q6*'Points System'!$E$17)+(R6*'Points System'!$E$11)+(S6*'Points System'!$E$12)+(T6*'Points System'!$E$16)+(U6*'Points System'!$E$13) -> 199.85 | D6: =IF(AND(ABS(E6-F6)<3,F6>9),C6/F6,0) -> 6.35857461 | E6: 31.31 | F6: 31.43 | G6: 199.85 | H6: 14.41 | I6: 8.45 | J6: 0 | K6: 0 | L6: 216.26 | M6: 61.19 | N6: 169.22 | O6: 93.85 | P6: 79.14 | Q6: 26.45 | R6: 0 | S6: 19.38 | T6: 3.5 | U6: 0.83 | V6: 3.56 | W6: =(M6+N6)/G6 -> 1.152914686 | X6: 9.74 | Y6: 2.76 | Z6: AL | AA6: 434378 | AB6: =IF(ISNA(VLOOKUP(A6,Rankings!$B$2:$H$19998,7,FALSE)),"-",VLOOKUP(A6,Rankings!$B$2:$H$19998,7,FALSE)) -> 0
A7: Jeff Samardzija | B7: SP | C7: =(G7*'Points System'!$E$6)+(H7*'Points System'!$E$2)+(I7*'Points System'!$E$3)+(J7*'Points System'!$E$4)+(K7*'Points System'!$E$5)+(L7*'Points System'!$E$7)+(M7*'Points System'!$E$8)+(N7*'Points System'!$E$10)+(P7*'Points System'!$E$9)+(Q7*'Points System'!$E$17)+(R7*'Points System'!$E$11)+(S7*'Points System'!$E$12)+(T7*'Points System'!$E$16)+(U7*'Points System'!$E$13) -> 199.17 | D7: =IF(AND(ABS(E7-F7)<3,F7>9),C7/F7,0) -> 6.294879899 | E7: 31.62 | F7: 31.64 | G7: 199.17 | H7: 11.94 | I7: 11.33 | J7: 0 | K7: 0 | L7: 181.03 | M7: 44.26 | N7: 193.1 | O7: 91.3 | P7: 86.96 | Q7: 25.91 | R7: 0 | S7: 17.4 | T7: 1.5 | U7: 0.5 | V7: 3.93 | W7: =(M7+N7)/G7 -> 1.191745745 | X7: 8.18 | Y7: 2 | Z7: NL | AA7: 502188 | AB7: =IF(ISNA(VLOOKUP(A7,Rankings!$B$2:$H$19998,7,FALSE)),"-",VLOOKUP(A7,Rankings!$B$2:$H$19998,7,FALSE)) -> 0
A8: Chris Archer | B8: SP | C8: =(G8*'Points System'!$E$6)+(H8*'Points System'!$E$2)+(I8*'Points System'!$E$3)+(J8*'Points System'!$E$4)+(K8*'Points System'!$E$5)+(L8*'Points System'!$E$7)+(M8*'Points System'!$E$8)+(N8*'Points System'!$E$10)+(P8*'Points System'!$E$9)+(Q8*'Points System'!$E$17)+(R8*'Points System'!$E$11)+(S8*'Points System'!$E$12)+(T8*'Points System'!$E$16)+(U8*'Points System'!$E$13) -> 197.06 | D8: =IF(AND(ABS(E8-F8)<3,F8>9),C8/F8,0) -> 6.117975784 | E8: 32.15 | F8: 32.21 | G8: 197.06 | H8: 12.53 | I8: 10.46 | J8: 0 | K8: 0 | L8: 231.78 | M8: 60.73 | N8: 174.18 | O8: 79.1 | P8: 76.74 | Q8: 24.55 | R8: 0 | S8: 18.52 | T8: 8.5 | U8: 0.33 | V8: 3.5 | W8: =(M8+N8)/G8 -> 1.19207348 | X8: 10.59 | Y8: 2.77 | Z8: AL | AA8: 502042 | AB8: =IF(ISNA(VLOOKUP(A8,Rankings!$B$2:$H$19998,7,FALSE)),"-",VLOOKUP(A8,Rankings!$B$2:$H$19998,7,FALSE)) -> 0
A9: Zack Greinke | B9: SP | C9: =(G9*'Points System'!$E$6)+(H9*'Points System'!$E$2)+(I9*'Points System'!$E$3)+(J9*'Points System'!$E$4)+(K9*'Points System'!$E$5)+(L9*'Points System'!$E$7)+(M9*'Points System'!$E$8)+(N9*'Points System'!$E$10)+(P9*'Points System'!$E$9)+(Q9*'Points System'!$E$17)+(R9*'Points System'!$E$11)+(S9*'Points System'!$E$12)+(T9*'Points System'!$E$16)+(U9*'Points System'!$E$13) -> 194.83 | D9: =IF(AND(ABS(E9-F9)<3,F9>9),C9/F9,0) -> 6.242550465 | E9: 31.23 | F9: 31.21 | G9: 194.83 | H9: 14.37 | I9: 8.6 | J9: 0 | K9: 0 | L9: 190.15 | M9: 48.64 | N9: 176.53 | O9: 87.25 | P9: 76.88 | Q9: 24.55 | R9: 0 | S9: 18.67 | T9: 5.5 | U9: 0.83 | V9: 3.55 | W9: =(M9+N9)/G9 -> 1.155725504 | X9: 8.78 | Y9: 2.25 | Z9: NL | AA9: 425844 | AB9: =IF(ISNA(VLOOKUP(A9,Rankings!$B$2:$H$19998,7,FALSE)),"-",VLOOKUP(A9,Rankings!$B$2:$H$19998,7,FALSE)) -> 0
A10: Marcus Stroman | B10: SP | C10: =(G10*'Points System'!$E$6)+(H10*'Points System'!$E$2)+(I10*'Points System'!$E$3)+(J10*'Points System'!$E$4)+(K10*'Points System'!$E$5)+(L10*'Points System'!$E$7)+(M10*'Points System'!$E$8)+(N10*'Points System'!$E$10)+(P10*'Points System'!$E$9)+(Q10*'Points System'!$E$17)+(R10*'Points System'!$E$11)+(S10*'Points System'!$E$12)+(T10*'Points System'!$E$16)+(U10*'Points System'!$E$13) -> 194.75 | D10: =IF(AND(ABS(E10-F10)<3,F10>9),C10/F10,0) -> 6.224033237 | E10: 31.15 | F10: 31.29 | G10: 194.75 | H10: 12.39 | I10: 9.27 | J10: 0 | K10: 0 | L10: 161.39 | M10: 56.79 | N10: 193.8 | O10: 91.55 | P10: 80.39 | Q10: 20 | R10: 0 | S10: 17.28 | T10: 3.5 | U10: 0.5 | V10: 3.72 | W10: =(M10+N10)/G10 -> 1.286726573 | X10: 7.46 | Y10: 2.62 | Z10: AL | AA10: 573186 | AB10: =IF(ISNA(VLOOKUP(A10,Rankings!$B$2:$H$19998,7,FALSE)),"-",VLOOKUP(A10,Rankings!$B$2:$H$19998,7,FALSE)) -> 0
A11: Jacob deGrom | B11: SP | C11: =(G11*'Points System'!$E$6)+(H11*'Points System'!$E$2)+(I11*'Points System'!$E$3)+(J11*'Points System'!$E$4)+(K11*'Points System'!$E$5)+(L11*'Points System'!$E$7)+(M11*'Points System'!$E$8)+(N11*'Points System'!$E$10)+(P11*'Points System'!$E$9)+(Q11*'Points System'!$E$17)+(R11*'Points System'!$E$11)+(S11*'Points System'!$E$12)+(T11*'Points System'!$E$16)+(U11*'Points System'!$E$13) -> 193.82 | D11: =IF(AND(ABS(E11-F11)<3,F11>9),C11/F11,0) -> 6.294900942 | E11: 30.77 | F11: 30.79 | G11: 193.82 | H11: 13.39 | I11: 9.55 | J11: 0 | K11: 0 | L11: 212.78 | M11: 53.89 | N11: 172.37 | O11: 82.85 | P11: 72.65 | Q11: 22.82 | R11: 0 | S11: 19.27 | T11: 4 | U11: 1 | V11: 3.37 | W11: =(M11+N11)/G11 -> 1.167371788 | X11: 9.88 | Y11: 2.5 | Z11: NL | AA11: 594798 | AB11: =IF(ISNA(VLOOKUP(A11,Rankings!$B$2:$H$19998,7,FALSE)),"-",VLOOKUP(A11,Rankings!$B$2:$H$19998,7,FALSE)) -> 0
A12: Madison Bumgarner | B12: SP | C12: =(G12*'Points System'!$E$6)+(H12*'Points System'!$E$2)+(I12*'Points System'!$E$3)+(J12*'Points System'!$E$4)+(K12*'Points System'!$E$5)+(L12*'Points System'!$E$7)+(M12*'Points System'!$E$8)+(N12*'Points System'!$E$10)+(P12*'Points System'!$E$9)+(Q12*'Points System'!$E$17)+(R12*'Points System'!$E$11)+(S12*'Points System'!$E$12)+(T12*'Points System'!$E$16)+(U12*'Points System'!$E$13) -> 193.78 | D12: =IF(AND(ABS(E12-F12)<3,F12>9),C12/F12,0) -> 6.279325988 | E12: 30.85 | F12: 30.86 | G12: 193.78 | H12: 12.82 | I12: 9.93 | J12: 0 | K12: 0 | L12: 192.88 | M12: 45.79 | N12: 177.17 | O12: 89.45 | P12: 75.18 | Q12: 25.82 | R12: 0 | S12: 19.32 | T12: 1.5 | U12: 1.67 | V12: 3.49 | W12: =(M12+N12)/G12 -> 1.150583136 | X12: 8.96 | Y12: 2.13 | Z12: NL | AA12: 518516 | AB12: =IF(ISNA(VLOOKUP(A12,Rankings!$B$2:$H$19998,7,FALSE)),"-",VLOOKUP(A12,Rankings!$B$2:$H$19998,7,FALSE)) -> 0
A13: Jose Quintana | B13: SP | C13: =(G13*'Points System'!$E$6)+(H13*'Points System'!$E$2)+(I13*'Points System'!$E$3)+(J13*'Points System'!$E$4)+(K13*'Points System'!$E$5)+(L13*'Points System'!$E$7)+(M13*'Points System'!$E$8)+(N13*'Points System'!$E$10)+(P13*'Points System'!$E$9)+(Q13*'Points System'!$E$17)+(R13*'Points System'!$E$11)+(S13*'Points System'!$E$12)+(T13*'Points System'!$E$16)+(U13*'Points System'!$E$13) -> 193.77 | D13: =IF(AND(ABS(E13-F13)<3,F13>9),C13/F13,0) -> 6.13778904 | E13: 31.77 | F13: 31.57 | G13: 193.77 | H13: 13.62 | I13: 8.7 | J13: 0 | K13: 0 | L13: 194.23 | M13: 54.39 | N13: 173.87 | O13: 80.7 | P13: 75.08 | Q13: 20.73 | R13: 0 | S13: 17.92 | T13: 5.5 | U13: 0.83 | V13: 3.49 | W13: =(M13+N13)/G13 -> 1.17799453 | X13: 9.02 | Y13: 2.53 | Z13: NL | AA13: 500779 | AB13: =IF(ISNA(VLOOKUP(A13,Rankings!$B$2:$H$19998,7,FALSE)),"-",VLOOKUP(A13,Rankings!$B$2:$H$19998,7,FALSE)) -> 0
A14: Rick Porcello | B14: SP | C14: =(G14*'Points System'!$E$6)+(H14*'Points System'!$E$2)+(I14*'Points System'!$E$3)+(J14*'Points System'!$E$4)+(K14*'Points System'!$E$5)+(L14*'Points System'!$E$7)+(M14*'Points System'!$E$8)+(N14*'Points System'!$E$10)+(P14*'Points System'!$E$9)+(Q14*'Points System'!$E$17)+(R14*'Points System'!$E$11)+(S14*'Points System'!$E$12)+(T14*'Points System'!$E$16)+(U14*'Points System'!$E$13) -> 192.97 | D14: =IF(AND(ABS(E14-F14)<3,F14>9),C14/F14,0) -> 6.22483871 | E14: 30.92 | F14: 31 | G14: 192.97 | H14: 12.92 | I14: 10.74 | J14: 0 | K14: 0 | L14: 166.84 | M14: 42.61 | N14: 202.5 | O14: 100.55 | P14: 90.44 | Q14: 28.64 | R14: 0 | S14: 15.52 | T14: 3.5 | U14: 0.83 | V14: 4.22 | W14: =(M14+N14)/G14 -> 1.27019744 | X14: 7.78 | Y14: 1.99 | Z14: AL | AA14: 519144 | AB14: =IF(ISNA(VLOOKUP(A14,Rankings!$B$2:$H$19998,7,FALSE)),"-",VLOOKUP(A14,Rankings!$B$2:$H$19998,7,FALSE)) -> 0
A15: Luis Severino | B15: SP | C15: =(G15*'Points System'!$E$6)+(H15*'Points System'!$E$2)+(I15*'Points System'!$E$3)+(J15*'Points System'!$E$4)+(K15*'Points System'!$E$5)+(L15*'Points System'!$E$7)+(M15*'Points System'!$E$8)+(N15*'Points System'!$E$10)+(P15*'Points System'!$E$9)+(Q15*'Points System'!$E$17)+(R15*'Points System'!$E$11)+(S15*'Points System'!$E$12)+(T15*'Points System'!$E$16)+(U15*'Points System'!$E$13) -> 188.18 | D15: =IF(AND(ABS(E15-F15)<3,F15>9),C15/F15,0) -> 6.029477731 | E15: 31.08 | F15: 31.21 | G15: 188.18 | H15: 13.76 | I15: 7.78 | J15: 0 | K15: 0 | L15: 210.84 | M15: 53.41 | N15: 161.31 | O15: 82.05 | P15: 71.22 | Q15: 23.27 | R15: 0 | S15: 18.68 | T15: 4.5 | U15: 0.33 | V15: 3.41 | W15: =(M15+N15)/G15 -> 1.141035179 | X15: 10.08 | Y15: 2.55 | Z15: AL | AA15: 622663 | AB15: =IF(ISNA(VLOOKUP(A15,Rankings!$B$2:$H$19998,7,FALSE)),"-",VLOOKUP(A15,Rankings!$B$2:$H$19998,7,FALSE)) -> 0
A16: Clayton Kershaw | B16: SP | C16: =(G16*'Points System'!$E$6)+(H16*'Points System'!$E$2)+(I16*'Points System'!$E$3)+(J16*'Points System'!$E$4)+(K16*'Points System'!$E$5)+(L16*'Points System'!$E$7)+(M16*'Points System'!$E$8)+(N16*'Points System'!$E$10)+(P16*'Points System'!$E$9)+(Q16*'Points System'!$E$17)+(R16*'Points System'!$E$11)+(S16*'Points System'!$E$12)+(T16*'Points System'!$E$16)+(U16*'Points System'!$E$13) -> 186.45 | D16: =IF(AND(ABS(E16-F16)<3,F16>9),C16/F16,0) -> 6.510125698 | E16: 28.62 | F16: 28.64 | G16: 186.45 | H16: 15.98 | I16: 6.08 | J16: 0 | K16: 0 | L16: 217.74 | M16: 34.15 | N16: 146.59 | O16: 68.05 | P16: 52.56 | Q16: 19.09 | R16: 0 | S16: 20.73 | T16: 3.5 | U16: 2.5 | V16: 2.54 | W16: =(M16+N16)/G16 -> 0.9693751676 | X16: 10.51 | Y16: 1.65 | Z16: NL | AA16: 477132 | AB16: =IF(ISNA(VLOOKUP(A16,Rankings!$B$2:$H$19998,7,FALSE)),"-",VLOOKUP(A16,Rankings!$B$2:$H$19998,7,FALSE)) -> 0
A17: Jon Lester | B17: SP | C17: =(G17*'Points System'!$E$6)+(H17*'Points System'!$E$2)+(I17*'Points System'!$E$3)+(J17*'Points System'!$E$4)+(K17*'Points System'!$E$5)+(L17*'Points System'!$E$7)+(M17*'Points System'!$E$8)+(N17*'Points System'!$E$10)+(P17*'Points System'!$E$9)+(Q17*'Points System'!$E$17)+(R17*'Points System'!$E$11)+(S17*'Points System'!$E$12)+(T17*'Points System'!$E$16)+(U17*'Points System'!$E$13) -> 185.52 | D17: =IF(AND(ABS(E17-F17)<3,F17>9),C17/F17,0) -> 5.915816327 | E17: 31.23 | F17: 31.36 | G17: 185.52 | H17: 13.29 | I17: 8.7 | J17: 0 | K17: 0 | L17: 180.1 | M17: 56.11 | N17: 171.91 | O17: 85 | P17: 77.19 | Q17: 23.18 | R17: 0 | S17: 17.63 | T17: 2.5 | U17: 0.5 | V17: 3.74 | W17: =(M17+N17)/G17 -> 1.229085813 | X17: 8.74 | Y17: 2.72 | Z17: NL | AA17: 452657 | AB17: =IF(ISNA(VLOOKUP(A17,Rankings!$B$2:$H$19998,7,FALSE)),"-",VLOOKUP(A17,Rankings!$B$2:$H$19998,7,FALSE)) -> 0
A18: Julio Teheran | B18: SP | C18: =(G18*'Points System'!$E$6)+(H18*'Points System'!$E$2)+(I18*'Points System'!$E$3)+(J18*'Points System'!$E$4)+(K18*'Points System'!$E$5)+(L18*'Points System'!$E$7)+(M18*'Points System'!$E$8)+(N18*'Points System'!$E$10)+(P18*'Points System'!$E$9)+(Q18*'Points System'!$E$17)+(R18*'Points System'!$E$11)+(S18*'Points System'!$E$12)+(T18*'Points System'!$E$16)+(U18*'Points System'!$E$13) -> 185.41 | D18: =IF(AND(ABS(E18-F18)<3,F18>9),C18/F18,0) -> 5.954078356 | E18: 31 | F18: 31.14 | G18: 185.41 | H18: 10.41 | I18: 11.67 | J18: 0 | K18: 0 | L18: 154.62 | M18: 61.84 | N18: 182.68 | O18: 98.6 | P18: 89.74 | Q18: 27.82 | R18: 0 | S18: 14.72 | T18: 4 | U18: 0 | V18: 4.36 | W18: =(M18+N18)/G18 -> 1.318806968 | X18: 7.51 | Y18: 3 | Z18: NL | AA18: 527054 | AB18: =IF(ISNA(VLOOKUP(A18,Rankings!$B$2:$H$19998,7,FALSE)),"-",VLOOKUP(A18,Rankings!$B$2:$H$19998,7,FALSE)) -> 0
A19: Dallas Keuchel | B19: SP | C19: =(G19*'Points System'!$E$6)+(H19*'Points System'!$E$2)+(I19*'Points System'!$E$3)+(J19*'Points System'!$E$4)+(K19*'Points System'!$E$5)+(L19*'Points System'!$E$7)+(M19*'Points System'!$E$8)+(N19*'Points System'!$E$10)+(P19*'Points System'!$E$9)+(Q19*'Points System'!$E$17)+(R19*'Points System'!$E$11)+(S19*'Points System'!$E$12)+(T19*'Points System'!$E$16)+(U19*'Points System'!$E$13) -> 185.03 | D19: =IF(AND(ABS(E19-F19)<3,F19>9),C19/F19,0) -> 6.257355428 | E19: 29.54 | F19: 29.57 | G19: 185.03 | H19: 13.95 | I19: 8.72 | J19: 0 | K19: 0 | L19: 159.71 | M19: 55.8 | N19: 172.56 | O19: 92.1 | P19: 73.33 | Q19: 19.64 | R19: 0 | S19: 17.67 | T19: 3.5 | U19: 0.83 | V19: 3.57 | W19: =(M19+N19)/G19 -> 1.234178241 | X19: 7.77 | Y19: 2.71 | Z19: AL | AA19: 572971 | AB19: =IF(ISNA(VLOOKUP(A19,Rankings!$B$2:$H$19998,7,FALSE)),"-",VLOOKUP(A19,Rankings!$B$2:$H$19998,7,FALSE)) -> 0
A20: Gio Gonzalez | B20: SP | C20: =(G20*'Points System'!$E$6)+(H20*'Points System'!$E$2)+(I20*'Points System'!$E$3)+(J20*'Points System'!$E$4)+(K20*'Points System'!$E$5)+(L20*'Points System'!$E$7)+(M20*'Points System'!$E$8)+(N20*'Points System'!$E$10)+(P20*'Points System'!$E$9)+(Q20*'Points System'!$E$17)+(R20*'Points System'!$E$11)+(S20*'Points System'!$E$12)+(T20*'Points System'!$E$16)+(U20*'Points System'!$E$13) -> 184.96 | D20: =IF(AND(ABS(E20-F20)<3,F20>9),C20/F20,0) -> 5.926305671 | E20: 31.15 | F20: 31.21 | G20: 184.96 | H20: 12.43 | I20: 9.55 | J20: 0 | K20: 0 | L20: 170.65 | M20: 70.6 | N20: 173.57 | O20: 91.75 | P20: 80.51 | Q20: 20.45 | R20: 0 | S20: 15.78 | T20: 4 | U20: 0 | V20: 3.92 | W20: =(M20+N20)/G20 -> 1.32012327 | X20: 8.3 | Y20: 3.44 | Z20: NL | AA20: 461829 | AB20: =IF(ISNA(VLOOKUP(A20,Rankings!$B$2:$H$19998,7,FALSE)),"-",VLOOKUP(A20,Rankings!$B$2:$H$19998,7,FALSE)) -> 0
A21: Gerrit Cole | B21: SP | C21: =(G21*'Points System'!$E$6)+(H21*'Points System'!$E$2)+(I21*'Points System'!$E$3)+(J21*'Points System'!$E$4)+(K21*'Points System'!$E$5)+(L21*'Points System'!$E$7)+(M21*'Points System'!$E$8)+(N21*'Points System'!$E$10)+(P21*'Points System'!$E$9)+(Q21*'Points System'!$E$17)+(R21*'Points System'!$E$11)+(S21*'Points System'!$E$12)+(T21*'Points System'!$E$16)+(U21*'Points System'!$E$13) -> 184.42 | D21: =IF(AND(ABS(E21-F21)<3,F21>9),C21/F21,0) -> 6.074440053 | E21: 30.23 | F21: 30.36 | G21: 184.42 | H21: 13.07 | I21: 9.78 | J21: 0 | K21: 0 | L21: 176.91 | M21: 51.29 | N21: 181.57 | O21: 99.7 | P21: 80.74 | Q21: 24 | R21: 0 | S21: 16.5 | T21: 4.5 | U21: 0 | V21: 3.94 | W21: =(M21+N21)/G21 -> 1.262661317 | X21: 8.63 | Y21: 2.5 | Z21: AL | AA21: 543037 | AB21: =IF(ISNA(VLOOKUP(A21,Rankings!$B$2:$H$19998,7,FALSE)),"-",VLOOKUP(A21,Rankings!$B$2:$H$19998,7,FALSE)) -> 0
A22: Carlos Carrasco | B22: SP | C22: =(G22*'Points System'!$E$6)+(H22*'Points System'!$E$2)+(I22*'Points System'!$E$3)+(J22*'Points System'!$E$4)+(K22*'Points System'!$E$5)+(L22*'Points System'!$E$7)+(M22*'Points System'!$E$8)+(N22*'Points System'!$E$10)+(P22*'Points System'!$E$9)+(Q22*'Points System'!$E$17)+(R22*'Points System'!$E$11)+(S22*'Points System'!$E$12)+(T22*'Points System'!$E$16)+(U22*'Points System'!$E$13) -> 183.42 | D22: =IF(AND(ABS(E22-F22)<3,F22>9),C22/F22,0) -> 6.085600531 | E22: 29.92 | F22: 30.14 | G22: 183.42 | H22: 14.64 | I22: 7.85 | J22: 0 | K22: 0 | L22: 201.51 | M22: 44.94 | N22: 160.52 | O22: 76.8 | P22: 67.52 | Q22: 21.82 | R22: 0 | S22: 17.93 | T22: 4.5 | U22: 1 | V22: 3.31 | W22: =(M22+N22)/G22 -> 1.120161378 | X22: 9.89 | Y22: 2.21 | Z22: AL | AA22: 471911 | AB22: =IF(ISNA(VLOOKUP(A22,Rankings!$B$2:$H$19998,7,FALSE)),"-",VLOOKUP(A22,Rankings!$B$2:$H$19998,7,FALSE)) -> 0
A23: Mike Leake | B23: SP | C23: =(G23*'Points System'!$E$6)+(H23*'Points System'!$E$2)+(I23*'Points System'!$E$3)+(J23*'Points System'!$E$4)+(K23*'Points System'!$E$5)+(L23*'Points System'!$E$7)+(M23*'Points System'!$E$8)+(N23*'Points System'!$E$10)+(P23*'Points System'!$E$9)+(Q23*'Points System'!$E$17)+(R23*'Points System'!$E$11)+(S23*'Points System'!$E$12)+(T23*'Points System'!$E$16)+(U23*'Points System'!$E$13) -> 182.86 | D23: =IF(AND(ABS(E23-F23)<3,F23>9),C23/F23,0) -> 5.981681387 | E23: 30.62 | F23: 30.57 | G23: 182.86 | H23: 11.08 | I23: 10.8 | J23: 0 | K23: 0 | L23: 126.11 | M23: 40.07 | N23: 196.43 | O23: 103.6 | P23: 86.69 | Q23: 23.82 | R23: 0 | S23: 14.58 | T23: 3.5 | U23: 0 | V23: 4.27 | W23: =(M23+N23)/G23 -> 1.293339167 | X23: 6.21 | Y23: 1.97 | Z23: NL | AA23: 502190 | AB23: =IF(ISNA(VLOOKUP(A23,Rankings!$B$2:$H$19998,7,FALSE)),"-",VLOOKUP(A23,Rankings!$B$2:$H$19998,7,FALSE)) -> 0
A24: Cole Hamels | B24: SP | C24: =(G24*'Points System'!$E$6)+(H24*'Points System'!$E$2)+(I24*'Points System'!$E$3)+(J24*'Points System'!$E$4)+(K24*'Points System'!$E$5)+(L24*'Points System'!$E$7)+(M24*'Points System'!$E$8)+(N24*'Points System'!$E$10)+(P24*'Points System'!$E$9)+(Q24*'Points System'!$E$17)+(R24*'Points System'!$E$11)+(S24*'Points System'!$E$12)+(T24*'Points System'!$E$16)+(U24*'Points System'!$E$13) -> 179.81 | D24: =IF(AND(ABS(E24-F24)<3,F24>9),C24/F24,0) -> 6.023785595 | E24: 29.58 | F24: 29.85 | G24: 179.81 | H24: 11.52 | I24: 9.42 | J24: 0 | K24: 0 | L24: 152.16 | M24: 66.44 | N24: 175.93 | O24: 99.6 | P24: 83.79 | Q24: 23.8 | R24: 0 | S24: 14.97 | T24: 4 | U24: 0.5 | V24: 4.19 | W24: =(M24+N24)/G24 -> 1.347922807 | X24: 7.62 | Y24: 3.33 | Z24: AL | AA24: 430935 | AB24: =IF(ISNA(VLOOKUP(A24,Rankings!$B$2:$H$19998,7,FALSE)),"-",VLOOKUP(A24,Rankings!$B$2:$H$19998,7,FALSE)) -> 0
A25: Aaron Nola | B25: SP | C25: =(G25*'Points System'!$E$6)+(H25*'Points System'!$E$2)+(I25*'Points System'!$E$3)+(J25*'Points System'!$E$4)+(K25*'Points System'!$E$5)+(L25*'Points System'!$E$7)+(M25*'Points System'!$E$8)+(N25*'Points System'!$E$10)+(P25*'Points System'!$E$9)+(Q25*'Points System'!$E$17)+(R25*'Points System'!$E$11)+(S25*'Points System'!$E$12)+(T25*'Points System'!$E$16)+(U25*'Points System'!$E$13) -> 179.45 | D25: =IF(AND(ABS(E25-F25)<3,F25>9),C25/F25,0) -> 6.083050847 | E25: 29.46 | F25: 29.5 | G25: 179.45 | H25: 12.31 | I25: 9.98 | J25: 0 | K25: 0 | L25: 186.83 | M25: 49.75 | N25: 166.88 | O25: 82.85 | P25: 71.58 | Q25: 20.82 | R25: 0 | S25: 17.03 | T25: 0.5 | U25: 0.33 | V25: 3.59 | W25: =(M25+N25)/G25 -> 1.207188632 | X25: 9.37 | Y25: 2.5 | Z25: NL | AA25: 605400 | AB25: =IF(ISNA(VLOOKUP(A25,Rankings!$B$2:$H$19998,7,FALSE)),"-",VLOOKUP(A25,Rankings!$B$2:$H$19998,7,FALSE)) -> 0
A26: Stephen Strasburg | B26: SP | C26: =(G26*'Points System'!$E$6)+(H26*'Points System'!$E$2)+(I26*'Points System'!$E$3)+(J26*'Points System'!$E$4)+(K26*'Points System'!$E$5)+(L26*'Points System'!$E$7)+(M26*'Points System'!$E$8)+(N26*'Points System'!$E$10)+(P26*'Points System'!$E$9)+(Q26*'Points System'!$E$17)+(R26*'Points System'!$E$11)+(S26*'Points System'!$E$12)+(T26*'Points System'!$E$16)+(U26*'Points System'!$E$13) -> 178.25 | D26: =IF(AND(ABS(E26-F26)<3,F26>9),C26/F26,0) -> 6.102362205 | E26: 29.23 | F26: 29.21 | G26: 178.25 | H26: 14.33 | I26: 7.04 | J26: 0 | K26: 0 | L26: 208.09 | M26: 49.07 | N26: 148.87 | O26: 75.65 | P26: 63.58 | Q26: 19.09 | R26: 0 | S26: 18.95 | T26: 2 | U26: 1.33 | V26: 3.21 | W26: =(M26+N26)/G26 -> 1.110462833 | X26: 10.51 | Y26: 2.48 | Z26: NL | AA26: 544931 | AB26: =IF(ISNA(VLOOKUP(A26,Rankings!$B$2:$H$19998,7,FALSE)),"-",VLOOKUP(A26,Rankings!$B$2:$H$19998,7,FALSE)) -> 0
A27: Trevor Bauer | B27: SP | C27: =(G27*'Points System'!$E$6)+(H27*'Points System'!$E$2)+(I27*'Points System'!$E$3)+(J27*'Points System'!$E$4)+(K27*'Points System'!$E$5)+(L27*'Points System'!$E$7)+(M27*'Points System'!$E$8)+(N27*'Points System'!$E$10)+(P27*'Points System'!$E$9)+(Q27*'Points System'!$E$17)+(R27*'Points System'!$E$11)+(S27*'Points System'!$E$12)+(T27*'Points System'!$E$16)+(U27*'Points System'!$E$13) -> 178.03 | D27: =IF(AND(ABS(E27-F27)<3,F27>9),C27/F27,0) -> 5.934333333 | E27: 30.62 | F27: 30 | G27: 178.03 | H27: 12.76 | I27: 9.49 | J27: 0 | K27: 0 | L27: 180.32 | M27: 63.11 | N27: 167.88 | O27: 87.8 | P27: 79.59 | Q27: 23 | R27: 0 | S27: 15.3 | T27: 2.5 | U27: 0.33 | V27: 4.02 | W27: =(M27+N27)/G27 -> 1.297477953 | X27: 9.12 | Y27: 3.19 | Z27: AL | AA27: 545333 | AB27: =IF(ISNA(VLOOKUP(A27,Rankings!$B$2:$H$19998,7,FALSE)),"-",VLOOKUP(A27,Rankings!$B$2:$H$19998,7,FALSE)) -> 0
A28: Johnny Cueto | B28: SP | C28: =(G28*'Points System'!$E$6)+(H28*'Points System'!$E$2)+(I28*'Points System'!$E$3)+(J28*'Points System'!$E$4)+(K28*'Points System'!$E$5)+(L28*'Points System'!$E$7)+(M28*'Points System'!$E$8)+(N28*'Points System'!$E$10)+(P28*'Points System'!$E$9)+(Q28*'Points System'!$E$17)+(R28*'Points System'!$E$11)+(S28*'Points System'!$E$12)+(T28*'Points System'!$E$16)+(U28*'Points System'!$E$13) -> 177.85 | D28: =IF(AND(ABS(E28-F28)<3,F28>9),C28/F28,0) -> 6.014541765 | E28: 29.31 | F28: 29.57 | G28: 177.85 | H28: 11.04 | I28: 9.73 | J28: 0 | K28: 0 | L28: 158.7 | M28: 51.64 | N28: 175 | O28: 85.85 | P28: 75.34 | Q28: 21.27 | R28: 0 | S28: 16.18 | T28: 2 | U28: 0.83 | V28: 3.81 | W28: =(M28+N28)/G28 -> 1.274332303 | X28: 8.03 | Y28: 2.61 | Z28: NL | AA28: 456501 | AB28: =IF(ISNA(VLOOKUP(A28,Rankings!$B$2:$H$19998,7,FALSE)),"-",VLOOKUP(A28,Rankings!$B$2:$H$19998,7,FALSE)) -> 0
A29: Tanner Roark | B29: SP | C29: =(G29*'Points System'!$E$6)+(H29*'Points System'!$E$2)+(I29*'Points System'!$E$3)+(J29*'Points System'!$E$4)+(K29*'Points System'!$E$5)+(L29*'Points System'!$E$7)+(M29*'Points System'!$E$8)+(N29*'Points System'!$E$10)+(P29*'Points System'!$E$9)+(Q29*'Points System'!$E$17)+(R29*'Points System'!$E$11)+(S29*'Points System'!$E$12)+(T29*'Points System'!$E$16)+(U29*'Points System'!$E$13) -> 177.69 | D29: =IF(AND(ABS(E29-F29)<3,F29>9),C29/F29,0) -> 5.994939271 | E29: 30.08 | F29: 29.64 | G29: 177.69 | H29: 11.8 | I29: 10.25 | J29: 0 | K29: 0 | L29: 151.74 | M29: 61.19 | N29: 174.55 | O29: 88.65 | P29: 82.15 | Q29: 22.27 | R29: 0 | S29: 14.53 | T29: 2.5 | U29: 0 | V29: 4.16 | W29: =(M29+N29)/G29 -> 1.326692554 | X29: 7.69 | Y29: 3.1 | Z29: NL | AA29: 543699 | AB29: =IF(ISNA(VLOOKUP(A29,Rankings!$B$2:$H$19998,7,FALSE)),"-",VLOOKUP(A29,Rankings!$B$2:$H$19998,7,FALSE)) -> 0
A30: Kevin Gausman | B30: SP | C30: =(G30*'Points System'!$E$6)+(H30*'Points System'!$E$2)+(I30*'Points System'!$E$3)+(J30*'Points System'!$E$4)+(K30*'Points System'!$E$5)+(L30*'Points System'!$E$7)+(M30*'Points System'!$E$8)+(N30*'Points System'!$E$10)+(P30*'Points System'!$E$9)+(Q30*'Points System'!$E$17)+(R30*'Points System'!$E$11)+(S30*'Points System'!$E$12)+(T30*'Points System'!$E$16)+(U30*'Points System'!$E$13) -> 177.55 | D30: =IF(AND(ABS(E30-F30)<3,F30>9),C30/F30,0) -> 5.701669878 | E30: 31.15 | F30: 31.14 | G30: 177.55 | H30: 10.95 | I30: 10.54 | J30: 0 | K30: 0 | L30: 167.64 | M30: 57.59 | N30: 179.25 | O30: 92.85 | P30: 83.53 | Q30: 26.91 | R30: 0 | S30: 14.43 | T30: 5.5 | U30: 0 | V30: 4.23 | W30: =(M30+N30)/G30 -> 1.333934103 | X30: 8.5 | Y30: 2.92 | Z30: AL | AA30: 592332 | AB30: =IF(ISNA(VLOOKUP(A30,Rankings!$B$2:$H$19998,7,FALSE)),"-",VLOOKUP(A30,Rankings!$B$2:$H$19998,7,FALSE)) -> 0
A31: Jake Arrieta | B31: SP | C31: =(G31*'Points System'!$E$6)+(H31*'Points System'!$E$2)+(I31*'Points System'!$E$3)+(J31*'Points System'!$E$4)+(K31*'Points System'!$E$5)+(L31*'Points System'!$E$7)+(M31*'Points System'!$E$8)+(N31*'Points System'!$E$10)+(P31*'Points System'!$E$9)+(Q31*'Points System'!$E$17)+(R31*'Points System'!$E$11)+(S31*'Points System'!$E$12)+(T31*'Points System'!$E$16)+(U31*'Points System'!$E$13) -> 177.24 | D31: =IF(AND(ABS(E31-F31)<3,F31>9),C31/F31,0) -> 5.892287234 | E31: 30.17 | F31: 30.08 | G31: 177.24 | H31: 13.08 | I31: 9.58 | J31: 0 | K31: 0 | L31: 162.78 | M31: 58.88 | N31: 157.26 | O31: 85.55 | P31: 74.45 | Q31: 21.27 | R31: 0 | S31: 15.18 | T31: 8.5 | U31: 0.33 | V31: 3.78 | W31: =(M31+N31)/G31 -> 1.219476416 | X31: 8.27 | Y31: 2.99 | Z31: NL | AA31: 453562 | AB31: =IF(ISNA(VLOOKUP(A31,Rankings!$B$2:$H$19998,7,FALSE)),"-",VLOOKUP(A31,Rankings!$B$2:$H$19998,7,FALSE)) -> 0
A32: Masahiro Tanaka | B32: SP | C32: =(G32*'Points System'!$E$6)+(H32*'Points System'!$E$2)+(I32*'Points System'!$E$3)+(J32*'Points System'!$E$4)+(K32*'Points System'!$E$5)+(L32*'Points System'!$E$7)+(M32*'Points System'!$E$8)+(N32*'Points System'!$E$10)+(P32*'Points System'!$E$9)+(Q32*'Points System'!$E$17)+(R32*'Points System'!$E$11)+(S32*'Points System'!$E$12)+(T32*'Points System'!$E$16)+(U32*'Points System'!$E$13) -> 176.75 | D32: =IF(AND(ABS(E32-F32)<3,F32>9),C32/F32,0) -> 6.171438547 | E32: 28.69 | F32: 28.64 | G32: 176.75 | H32: 12.94 | I32: 8.83 | J32: 0 | K32: 0 | L32: 174.37 | M32: 38.63 | N32: 166.84 | O32: 86.4 | P32: 75.1 | Q32: 26.73 | R32: 0 | S32: 16.23 | T32: 4 | U32: 0.5 | V32: 3.82 | W32: =(M32+N32)/G32 -> 1.162489392 | X32: 8.88 | Y32: 1.97 | Z32: AL | AA32: 547888 | AB32: =IF(ISNA(VLOOKUP(A32,Rankings!$B$2:$H$19998,7,FALSE)),"-",VLOOKUP(A32,Rankings!$B$2:$H$19998,7,FALSE)) -> 0
A33: Yu Darvish | B33: SP | C33: =(G33*'Points System'!$E$6)+(H33*'Points System'!$E$2)+(I33*'Points System'!$E$3)+(J33*'Points System'!$E$4)+(K33*'Points System'!$E$5)+(L33*'Points System'!$E$7)+(M33*'Points System'!$E$8)+(N33*'Points System'!$E$10)+(P33*'Points System'!$E$9)+(Q33*'Points System'!$E$17)+(R33*'Points System'!$E$11)+(S33*'Points System'!$E$12)+(T33*'Points System'!$E$16)+(U33*'Points System'!$E$13) -> 176.03 | D33: =IF(AND(ABS(E33-F33)<3,F33>9),C33/F33,0) -> 6.368668596 | E33: 27.31 | F33: 27.64 | G33: 176.03 | H33: 12.75 | I33: 8.56 | J33: 0 | K33: 0 | L33: 204.83 | M33: 56.09 | N33: 149.95 | O33: 74.5 | P33: 69.02 | Q33: 22.18 | R33: 0 | S33: 17.52 | T33: 7.5 | U33: 0.33 | V33: 3.53 | W33: =(M33+N33)/G33 -> 1.170482304 | X33: 10.47 | Y33: 2.87 | Z33: NL | AA33: 506433 | AB33: =IF(ISNA(VLOOKUP(A33,Rankings!$B$2:$H$19998,7,FALSE)),"-",VLOOKUP(A33,Rankings!$B$2:$H$19998,7,FALSE)) -> 0
A34: Zach Davies | B34: SP | C34: =(G34*'Points System'!$E$6)+(H34*'Points System'!$E$2)+(I34*'Points System'!$E$3)+(J34*'Points System'!$E$4)+(K34*'Points System'!$E$5)+(L34*'Points System'!$E$7)+(M34*'Points System'!$E$8)+(N34*'Points System'!$E$10)+(P34*'Points System'!$E$9)+(Q34*'Points System'!$E$17)+(R34*'Points System'!$E$11)+(S34*'Points System'!$E$12)+(T34*'Points System'!$E$16)+(U34*'Points System'!$E$13) -> 175.96 | D34: =IF(AND(ABS(E34-F34)<3,F34>9),C34/F34,0) -> 5.820707906 | E34: 30.08 | F34: 30.23 | G34: 175.96 | H34: 11.78 | I34: 10.14 | J34: 0 | K34: 0 | L34: 126.13 | M34: 52.8 | N34: 187.22 | O34: 95.4 | P34: 83.51 | Q34: 21.8 | R34: 0 | S34: 14 | T34: 1.5 | U34: 0 | V34: 4.27 | W34: =(M34+N34)/G34 -> 1.364060014 | X34: 6.45 | Y34: 2.7 | Z34: NL | AA34: 605200 | AB34: =IF(ISNA(VLOOKUP(A34,Rankings!$B$2:$H$19998,7,FALSE)),"-",VLOOKUP(A34,Rankings!$B$2:$H$19998,7,FALSE)) -> 0
A35: Marco Estrada | B35: SP | C35: =(G35*'Points System'!$E$6)+(H35*'Points System'!$E$2)+(I35*'Points System'!$E$3)+(J35*'Points System'!$E$4)+(K35*'Points System'!$E$5)+(L35*'Points System'!$E$7)+(M35*'Points System'!$E$8)+(N35*'Points System'!$E$10)+(P35*'Points System'!$E$9)+(Q35*'Points System'!$E$17)+(R35*'Points System'!$E$11)+(S35*'Points System'!$E$12)+(T35*'Points System'!$E$16)+(U35*'Points System'!$E$13) -> 175.9 | D35: =IF(AND(ABS(E35-F35)<3,F35>9),C35/F35,0) -> 5.793807642 | E35: 30.31 | F35: 30.36 | G35: 175.9 | H35: 10.25 | I35: 9.89 | J35: 0 | K35: 0 | L35: 157.84 | M35: 63.51 | N35: 162.99 | O35: 96.4 | P35: 86.62 | Q35: 27.64 | R35: 0 | S35: 14.53 | T35: 2 | U35: 0 | V35: 4.43 | W35: =(M35+N35)/G35 -> 1.287663445 | X35: 8.08 | Y35: 3.25 | Z35: AL | AA35: 462136 | AB35: =IF(ISNA(VLOOKUP(A35,Rankings!$B$2:$H$19998,7,FALSE)),"-",VLOOKUP(A35,Rankings!$B$2:$H$19998,7,FALSE)) -> 0
A36: Michael Fulmer | B36: SP | C36: =(G36*'Points System'!$E$6)+(H36*'Points System'!$E$2)+(I36*'Points System'!$E$3)+(J36*'Points System'!$E$4)+(K36*'Points System'!$E$5)+(L36*'Points System'!$E$7)+(M36*'Points System'!$E$8)+(N36*'Points System'!$E$10)+(P36*'Points System'!$E$9)+(Q36*'Points System'!$E$17)+(R36*'Points System'!$E$11)+(S36*'Points System'!$E$12)+(T36*'Points System'!$E$16)+(U36*'Points System'!$E$13) -> 174.72 | D36: =IF(AND(ABS(E36-F36)<3,F36>9),C36/F36,0) -> 6.24 | E36: 28.08 | F36: 28 | G36: 174.72 | H36: 10.46 | I36: 10.53 | J36: 0 | K36: 0 | L36: 136.46 | M36: 47.87 | N36: 172.06 | O36: 91.5 | P36: 77.68 | Q36: 20.8 | R36: 0 | S36: 14.88 | T36: 1.5 | U36: 0.5 | V36: 4 | W36: =(M36+N36)/G36 -> 1.258756868 | X36: 7.03 | Y36: 2.47 | Z36: AL | AA36: 605242 | AB36: =IF(ISNA(VLOOKUP(A36,Rankings!$B$2:$H$19998,7,FALSE)),"-",VLOOKUP(A36,Rankings!$B$2:$H$19998,7,FALSE)) -> 0
A37: Dan Straily | B37: SP | C37: =(G37*'Points System'!$E$6)+(H37*'Points System'!$E$2)+(I37*'Points System'!$E$3)+(J37*'Points System'!$E$4)+(K37*'Points System'!$E$5)+(L37*'Points System'!$E$7)+(M37*'Points System'!$E$8)+(N37*'Points System'!$E$10)+(P37*'Points System'!$E$9)+(Q37*'Points System'!$E$17)+(R37*'Points System'!$E$11)+(S37*'Points System'!$E$12)+(T37*'Points System'!$E$16)+(U37*'Points System'!$E$13) -> 174.14 | D37: =IF(AND(ABS(E37-F37)<3,F37>9),C37/F37,0) -> 6.118763176 | E37: 28.33 | F37: 28.46 | G37: 174.14 | H37: 9.15 | I37: 11.43 | J37: 0 | K37: 0 | L37: 157.62 | M37: 62.25 | N37: 166.68 | O37: 89.65 | P37: 86.45 | Q37: 28.6 | R37: 0 | S37: 13.27 | T37: 2 | U37: 0 | V37: 4.47 | W37: =(M37+N37)/G37 -> 1.314631905 | X37: 8.15 | Y37: 3.22 | Z37: NL | AA37: 573185 | AB37: =IF(ISNA(VLOOKUP(A37,Rankings!$B$2:$H$19998,7,FALSE)),"-",VLOOKUP(A37,Rankings!$B$2:$H$19998,7,FALSE)) -> 0
A38: Robbie Ray | B38: SP | C38: =(G38*'Points System'!$E$6)+(H38*'Points System'!$E$2)+(I38*'Points System'!$E$3)+(J38*'Points System'!$E$4)+(K38*'Points System'!$E$5)+(L38*'Points System'!$E$7)+(M38*'Points System'!$E$8)+(N38*'Points System'!$E$10)+(P38*'Points System'!$E$9)+(Q38*'Points System'!$E$17)+(R38*'Points System'!$E$11)+(S38*'Points System'!$E$12)+(T38*'Points System'!$E$16)+(U38*'Points System'!$E$13) -> 173.69 | D38: =IF(AND(ABS(E38-F38)<3,F38>9),C38/F38,0) -> 5.721014493 | E38: 30.31 | F38: 30.36 | G38: 173.69 | H38: 12.93 | I38: 9.01 | J38: 0 | K38: 0 | L38: 217.55 | M38: 71.11 | N38: 147.27 | O38: 82.2 | P38: 69.63 | Q38: 21.82 | R38: 0 | S38: 16.98 | T38: 5.5 | U38: 0.67 | V38: 3.61 | W38: =(M38+N38)/G38 -> 1.257297484 | X38: 11.27 | Y38: 3.68 | Z38: NL | AA38: 592662 | AB38: =IF(ISNA(VLOOKUP(A38,Rankings!$B$2:$H$19998,7,FALSE)),"-",VLOOKUP(A38,Rankings!$B$2:$H$19998,7,FALSE)) -> 0
A39: Sonny Gray | B39: SP | C39: =(G39*'Points System'!$E$6)+(H39*'Points System'!$E$2)+(I39*'Points System'!$E$3)+(J39*'Points System'!$E$4)+(K39*'Points System'!$E$5)+(L39*'Points System'!$E$7)+(M39*'Points System'!$E$8)+(N39*'Points System'!$E$10)+(P39*'Points System'!$E$9)+(Q39*'Points System'!$E$17)+(R39*'Points System'!$E$11)+(S39*'Points System'!$E$12)+(T39*'Points System'!$E$16)+(U39*'Points System'!$E$13) -> 173.67 | D39: =IF(AND(ABS(E39-F39)<3,F39>9),C39/F39,0) -> 5.945566587 | E39: 29.08 | F39: 29.21 | G39: 173.67 | H39: 12.16 | I39: 9.63 | J39: 0 | K39: 0 | L39: 157.15 | M39: 58.26 | N39: 162.93 | O39: 89.8 | P39: 76.03 | Q39: 22 | R39: 0 | S39: 15.92 | T39: 9.5 | U39: 0.5 | V39: 3.94 | W39: =(M39+N39)/G39 -> 1.273622387 | X39: 8.14 | Y39: 3.02 | Z39: AL | AA39: 543243 | AB39: =IF(ISNA(VLOOKUP(A39,Rankings!$B$2:$H$19998,7,FALSE)),"-",VLOOKUP(A39,Rankings!$B$2:$H$19998,7,FALSE)) -> 0
A40: Jose Berrios | B40: SP | C40: =(G40*'Points System'!$E$6)+(H40*'Points System'!$E$2)+(I40*'Points System'!$E$3)+(J40*'Points System'!$E$4)+(K40*'Points System'!$E$5)+(L40*'Points System'!$E$7)+(M40*'Points System'!$E$8)+(N40*'Points System'!$E$10)+(P40*'Points System'!$E$9)+(Q40*'Points System'!$E$17)+(R40*'Points System'!$E$11)+(S40*'Points System'!$E$12)+(T40*'Points System'!$E$16)+(U40*'Points System'!$E$13) -> 171.82 | D40: =IF(AND(ABS(E40-F40)<3,F40>9),C40/F40,0) -> 5.740728366 | E40: 29.92 | F40: 29.93 | G40: 171.82 | H40: 12.47 | I40: 10.16 | J40: 0 | K40: 0 | L40: 162.84 | M40: 58.76 | N40: 163.2 | O40: 94.65 | P40: 78.35 | Q40: 22.82 | R40: 0 | S40: 14.27 | T40: 4 | U40: 0 | V40: 4.1 | W40: =(M40+N40)/G40 -> 1.291817018 | X40: 8.53 | Y40: 3.08 | Z40: AL | AA40: 621244 | AB40: =IF(ISNA(VLOOKUP(A40,Rankings!$B$2:$H$19998,7,FALSE)),"-",VLOOKUP(A40,Rankings!$B$2:$H$19998,7,FALSE)) -> 0
A41: Kyle Hendricks | B41: SP | C41: =(G41*'Points System'!$E$6)+(H41*'Points System'!$E$2)+(I41*'Points System'!$E$3)+(J41*'Points System'!$E$4)+(K41*'Points System'!$E$5)+(L41*'Points System'!$E$7)+(M41*'Points System'!$E$8)+(N41*'Points System'!$E$10)+(P41*'Points System'!$E$9)+(Q41*'Points System'!$E$17)+(R41*'Points System'!$E$11)+(S41*'Points System'!$E$12)+(T41*'Points System'!$E$16)+(U41*'Points System'!$E$13) -> 169.32 | D41: =IF(AND(ABS(E41-F41)<3,F41>9),C41/F41,0) -> 5.767029973 | E41: 29.31 | F41: 29.36 | G41: 169.32 | H41: 11.51 | I41: 7.76 | J41: 0 | K41: 0 | L41: 148.15 | M41: 46.44 | N41: 159.98 | O41: 80.75 | P41: 68.49 | Q41: 20.18 | R41: 0 | S41: 16.05 | T41: 1.5 | U41: 0.5 | V41: 3.64 | W41: =(M41+N41)/G41 -> 1.219111741 | X41: 7.87 | Y41: 2.47 | Z41: NL | AA41: 543294 | AB41: =IF(ISNA(VLOOKUP(A41,Rankings!$B$2:$H$19998,7,FALSE)),"-",VLOOKUP(A41,Rankings!$B$2:$H$19998,7,FALSE)) -> 0
A42: David Price | B42: SP | C42: =(G42*'Points System'!$E$6)+(H42*'Points System'!$E$2)+(I42*'Points System'!$E$3)+(J42*'Points System'!$E$4)+(K42*'Points System'!$E$5)+(L42*'Points System'!$E$7)+(M42*'Points System'!$E$8)+(N42*'Points System'!$E$10)+(P42*'Points System'!$E$9)+(Q42*'Points System'!$E$17)+(R42*'Points System'!$E$11)+(S42*'Points System'!$E$12)+(T42*'Points System'!$E$16)+(U42*'Points System'!$E$13) -> 167.82 | D42: =IF(AND(ABS(E42-F42)<3,F42>9),C42/F42,0) -> 6.0388629 | E42: 27.85 | F42: 27.79 | G42: 167.82 | H42: 12.8 | I42: 7.43 | J42: 0 | K42: 0 | L42: 169.59 | M42: 44.2 | N42: 163.23 | O42: 82.8 | P42: 69.48 | Q42: 20.91 | R42: 0 | S42: 16.2 | T42: 2.5 | U42: 0.67 | V42: 3.73 | W42: =(M42+N42)/G42 -> 1.236026695 | X42: 9.09 | Y42: 2.37 | Z42: AL | AA42: 456034 | AB42: =IF(ISNA(VLOOKUP(A42,Rankings!$B$2:$H$19998,7,FALSE)),"-",VLOOKUP(A42,Rankings!$B$2:$H$19998,7,FALSE)) -> 0
A43: Danny Duffy | B43: SP | C43: =(G43*'Points System'!$E$6)+(H43*'Points System'!$E$2)+(I43*'Points System'!$E$3)+(J43*'Points System'!$E$4)+(K43*'Points System'!$E$5)+(L43*'Points System'!$E$7)+(M43*'Points System'!$E$8)+(N43*'Points System'!$E$10)+(P43*'Points System'!$E$9)+(Q43*'Points System'!$E$17)+(R43*'Points System'!$E$11)+(S43*'Points System'!$E$12)+(T43*'Points System'!$E$16)+(U43*'Points System'!$E$13) -> 167.11 | D43: =IF(AND(ABS(E43-F43)<3,F43>9),C43/F43,0) -> 5.877945832 | E43: 28.69 | F43: 28.43 | G43: 167.11 | H43: 10.28 | I43: 9.83 | J43: 0 | K43: 0 | L43: 152.06 | M43: 48.97 | N43: 162.94 | O43: 86.45 | P43: 74.26 | Q43: 22.18 | R43: 0 | S43: 14.67 | T43: 2.5 | U43: 0 | V43: 4 | W43: =(M43+N43)/G43 -> 1.268086889 | X43: 8.19 | Y43: 2.64 | Z43: AL | AA43: 518633 | AB43: =IF(ISNA(VLOOKUP(A43,Rankings!$B$2:$H$19998,7,FALSE)),"-",VLOOKUP(A43,Rankings!$B$2:$H$19998,7,FALSE)) -> 0
A44: Taijuan Walker | B44: SP | C44: =(G44*'Points System'!$E$6)+(H44*'Points System'!$E$2)+(I44*'Points System'!$E$3)+(J44*'Points System'!$E$4)+(K44*'Points System'!$E$5)+(L44*'Points System'!$E$7)+(M44*'Points System'!$E$8)+(N44*'Points System'!$E$10)+(P44*'Points System'!$E$9)+(Q44*'Points System'!$E$17)+(R44*'Points System'!$E$11)+(S44*'Points System'!$E$12)+(T44*'Points System'!$E$16)+(U44*'Points System'!$E$13) -> 166.92 | D44: =IF(AND(ABS(E44-F44)<3,F44>9),C44/F44,0) -> 5.66598778 | E44: 29.42 | F44: 29.46 | G44: 166.92 | H44: 10.58 | I44: 9.58 | J44: 0 | K44: 0 | L44: 153.45 | M44: 57.18 | N44: 163.87 | O44: 87.45 | P44: 78.96 | Q44: 24.3 | R44: 0 | S44: 12.82 | T44: 4 | U44: 0.17 | V44: 4.26 | W44: =(M44+N44)/G44 -> 1.324287084 | X44: 8.27 | Y44: 3.08 | Z44: NL | AA44: 592836 | AB44: =IF(ISNA(VLOOKUP(A44,Rankings!$B$2:$H$19998,7,FALSE)),"-",VLOOKUP(A44,Rankings!$B$2:$H$19998,7,FALSE)) -> 0
A45: Ivan Nova | B45: SP | C45: =(G45*'Points System'!$E$6)+(H45*'Points System'!$E$2)+(I45*'Points System'!$E$3)+(J45*'Points System'!$E$4)+(K45*'Points System'!$E$5)+(L45*'Points System'!$E$7)+(M45*'Points System'!$E$8)+(N45*'Points System'!$E$10)+(P45*'Points System'!$E$9)+(Q45*'Points System'!$E$17)+(R45*'Points System'!$E$11)+(S45*'Points System'!$E$12)+(T45*'Points System'!$E$16)+(U45*'Points System'!$E$13) -> 166.72 | D45: =IF(AND(ABS(E45-F45)<3,F45>9),C45/F45,0) -> 5.858046381 | E45: 28.25 | F45: 28.46 | G45: 166.72 | H45: 10.28 | I45: 11.43 | J45: 0 | K45: 0 | L45: 122.72 | M45: 38.13 | N45: 181.37 | O45: 89.15 | P45: 79.7 | Q45: 22.1 | R45: 0 | S45: 13.62 | T45: 5.5 | U45: 1 | V45: 4.3 | W45: =(M45+N45)/G45 -> 1.316578695 | X45: 6.62 | Y45: 2.06 | Z45: NL | AA45: 467100 | AB45: =IF(ISNA(VLOOKUP(A45,Rankings!$B$2:$H$19998,7,FALSE)),"-",VLOOKUP(A45,Rankings!$B$2:$H$19998,7,FALSE)) -> 0
A46: J.A. Happ | B46: SP | C46: =(G46*'Points System'!$E$6)+(H46*'Points System'!$E$2)+(I46*'Points System'!$E$3)+(J46*'Points System'!$E$4)+(K46*'Points System'!$E$5)+(L46*'Points System'!$E$7)+(M46*'Points System'!$E$8)+(N46*'Points System'!$E$10)+(P46*'Points System'!$E$9)+(Q46*'Points System'!$E$17)+(R46*'Points System'!$E$11)+(S46*'Points System'!$E$12)+(T46*'Points System'!$E$16)+(U46*'Points System'!$E$13) -> 166.65 | D46: =IF(AND(ABS(E46-F46)<3,F46>9),C46/F46,0) -> 5.760456274 | E46: 28.85 | F46: 28.93 | G46: 166.65 | H46: 11.51 | I46: 9.62 | J46: 0 | K46: 0 | L46: 150.59 | M46: 54.03 | N46: 164.11 | O46: 86.7 | P46: 73.52 | Q46: 22.27 | R46: 0 | S46: 14.22 | T46: 2.5 | U46: 0 | V46: 3.97 | W46: =(M46+N46)/G46 -> 1.308970897 | X46: 8.13 | Y46: 2.92 | Z46: AL | AA46: 457918 | AB46: =IF(ISNA(VLOOKUP(A46,Rankings!$B$2:$H$19998,7,FALSE)),"-",VLOOKUP(A46,Rankings!$B$2:$H$19998,7,FALSE)) -> 0
A47: Sean Manaea | B47: SP | C47: =(G47*'Points System'!$E$6)+(H47*'Points System'!$E$2)+(I47*'Points System'!$E$3)+(J47*'Points System'!$E$4)+(K47*'Points System'!$E$5)+(L47*'Points System'!$E$7)+(M47*'Points System'!$E$8)+(N47*'Points System'!$E$10)+(P47*'Points System'!$E$9)+(Q47*'Points System'!$E$17)+(R47*'Points System'!$E$11)+(S47*'Points System'!$E$12)+(T47*'Points System'!$E$16)+(U47*'Points System'!$E$13) -> 165.02 | D47: =IF(AND(ABS(E47-F47)<3,F47>9),C47/F47,0) -> 5.717948718 | E47: 29 | F47: 28.86 | G47: 165.02 | H47: 10.66 | I47: 9.53 | J47: 0 | K47: 0 | L47: 145.36 | M47: 53.37 | N47: 164.19 | O47: 84.05 | P47: 76.99 | Q47: 21.27 | R47: 0 | S47: 14.5 | T47: 4.5 | U47: 0 | V47: 4.2 | W47: =(M47+N47)/G47 -> 1.31838565 | X47: 7.93 | Y47: 2.91 | Z47: AL | AA47: 640455 | AB47: =IF(ISNA(VLOOKUP(A47,Rankings!$B$2:$H$19998,7,FALSE)),"-",VLOOKUP(A47,Rankings!$B$2:$H$19998,7,FALSE)) -> 0
A48: Dylan Bundy | B48: SP | C48: =(G48*'Points System'!$E$6)+(H48*'Points System'!$E$2)+(I48*'Points System'!$E$3)+(J48*'Points System'!$E$4)+(K48*'Points System'!$E$5)+(L48*'Points System'!$E$7)+(M48*'Points System'!$E$8)+(N48*'Points System'!$E$10)+(P48*'Points System'!$E$9)+(Q48*'Points System'!$E$17)+(R48*'Points System'!$E$11)+(S48*'Points System'!$E$12)+(T48*'Points System'!$E$16)+(U48*'Points System'!$E$13) -> 164.87 | D48: =IF(AND(ABS(E48-F48)<3,F48>9),C48/F48,0) -> 5.969225199 | E48: 28 | F48: 27.62 | G48: 164.87 | H48: 11.12 | I48: 10.09 | J48: 0 | K48: 0 | L48: 151.95 | M48: 54.5 | N48: 159.82 | O48: 89.1 | P48: 80.94 | Q48: 27 | R48: 0 | S48: 14.47 | T48: 0 | U48: 0.5 | V48: 4.42 | W48: =(M48+N48)/G48 -> 1.299933281 | X48: 8.29 | Y48: 2.98 | Z48: AL | AA48: 605164 | AB48: =IF(ISNA(VLOOKUP(A48,Rankings!$B$2:$H$19998,7,FALSE)),"-",VLOOKUP(A48,Rankings!$B$2:$H$19998,7,FALSE)) -> 0
A49: Clayton Richard | B49: SP | C49: =(G49*'Points System'!$E$6)+(H49*'Points System'!$E$2)+(I49*'Points System'!$E$3)+(J49*'Points System'!$E$4)+(K49*'Points System'!$E$5)+(L49*'Points System'!$E$7)+(M49*'Points System'!$E$8)+(N49*'Points System'!$E$10)+(P49*'Points System'!$E$9)+(Q49*'Points System'!$E$17)+(R49*'Points System'!$E$11)+(S49*'Points System'!$E$12)+(T49*'Points System'!$E$16)+(U49*'Points System'!$E$13) -> 164.53 | D49: =IF(AND(ABS(E49-F49)<3,F49>9),C49/F49,0) -> 5.907719928 | E49: 29.75 | F49: 27.85 | G49: 164.53 | H49: 8.57 | I49: 10.95 | J49: 0 | K49: 0 | L49: 121.73 | M49: 54.47 | N49: 186.58 | O49: 87.3 | P49: 77.25 | Q49: 18.5 | R49: 0 | S49: 12.83 | T49: 4 | U49: 0.67 | V49: 4.23 | W49: =(M49+N49)/G49 -> 1.465082356 | X49: 6.66 | Y49: 2.98 | Z49: NL | AA49: 453385 | AB49: =IF(ISNA(VLOOKUP(A49,Rankings!$B$2:$H$19998,7,FALSE)),"-",VLOOKUP(A49,Rankings!$B$2:$H$19998,7,FALSE)) -> 0
A50: Michael Wacha | B50: SP | C50: =(G50*'Points System'!$E$6)+(H50*'Points System'!$E$2)+(I50*'Points System'!$E$3)+(J50*'Points System'!$E$4)+(K50*'Points System'!$E$5)+(L50*'Points System'!$E$7)+(M50*'Points System'!$E$8)+(N50*'Points System'!$E$10)+(P50*'Points System'!$E$9)+(Q50*'Points System'!$E$17)+(R50*'Points System'!$E$11)+(S50*'Points System'!$E$12)+(T50*'Points System'!$E$16)+(U50*'Points System'!$E$13) -> 164.28 | D50: =IF(AND(ABS(E50-F50)<3,F50>9),C50/F50,0) -> 5.637611531 | E50: 29.23 | F50: 29.14 | G50: 164.28 | H50: 10.96 | I50: 9.23 | J50: 0 | K50: 0 | L50: 148.11 | M50: 54.58 | N50: 162.89 | O50: 83.65 | P50: 73.43 | Q50: 18.82 | R50: 0 | S50: 13.98 | T50: 4 | U50: 0.5 | V50: 4.02 | W50: =(M50+N50)/G50 -> 1.323776479 | X50: 8.11 | Y50: 2.99 | Z50: NL | AA50: 608379 | AB50: =IF(ISNA(VLOOKUP(A50,Rankings!$B$2:$H$19998,7,FALSE)),"-",VLOOKUP(A50,Rankings!$B$2:$H$19998,7,FALSE)) -> 0
A51: Jameson Taillon | B51: SP | C51: =(G51*'Points System'!$E$6)+(H51*'Points System'!$E$2)+(I51*'Points System'!$E$3)+(J51*'Points System'!$E$4)+(K51*'Points System'!$E$5)+(L51*'Points System'!$E$7)+(M51*'Points System'!$E$8)+(N51*'Points System'!$E$10)+(P51*'Points System'!$E$9)+(Q51*'Points System'!$E$17)+(R51*'Points System'!$E$11)+(S51*'Points System'!$E$12)+(T51*'Points System'!$E$16)+(U51*'Points System'!$E$13) -> 163.91 | D51: =IF(AND(ABS(E51-F51)<3,F51>9),C51/F51,0) -> 5.569486918 | E51: 29.15 | F51: 29.43 | G51: 163.91 | H51: 9.88 | I51: 8.85 | J51: 0 | K51: 0 | L51: 151.08 | M51: 46.53 | N51: 168.35 | O51: 75.6 | P51: 70.84 | Q51: 17.45 | R51: 0 | S51: 14.73 | T51: 4 | U51: 0 | V51: 3.89 | W51: =(M51+N51)/G51 -> 1.310963334 | X51: 8.3 | Y51: 2.55 | Z51: NL | AA51: 592791 | AB51: =IF(ISNA(VLOOKUP(A51,Rankings!$B$2:$H$19998,7,FALSE)),"-",VLOOKUP(A51,Rankings!$B$2:$H$19998,7,FALSE)) -> 0
A52: Jon Gray | B52: SP | C52: =(G52*'Points System'!$E$6)+(H52*'Points System'!$E$2)+(I52*'Points System'!$E$3)+(J52*'Points System'!$E$4)+(K52*'Points System'!$E$5)+(L52*'Points System'!$E$7)+(M52*'Points System'!$E$8)+(N52*'Points System'!$E$10)+(P52*'Points System'!$E$9)+(Q52*'Points System'!$E$17)+(R52*'Points System'!$E$11)+(S52*'Points System'!$E$12)+(T52*'Points System'!$E$16)+(U52*'Points System'!$E$13) -> 163.67 | D52: =IF(AND(ABS(E52-F52)<3,F52>9),C52/F52,0) -> 5.997434958 | E52: 27 | F52: 27.29 | G52: 163.67 | H52: 11.49 | I52: 8.45 | J52: 0 | K52: 0 | L52: 169.14 | M52: 53.74 | N52: 165.08 | O52: 81.8 | P52: 75.95 | Q52: 20.55 | R52: 0 | S52: 14.68 | T52: 4 | U52: 0 | V52: 4.18 | W52: =(M52+N52)/G52 -> 1.336958514 | X52: 9.3 | Y52: 2.96 | Z52: NL | AA52: 592351 | AB52: =IF(ISNA(VLOOKUP(A52,Rankings!$B$2:$H$19998,7,FALSE)),"-",VLOOKUP(A52,Rankings!$B$2:$H$19998,7,FALSE)) -> 0
A53: Kyle Gibson | B53: SP | C53: =(G53*'Points System'!$E$6)+(H53*'Points System'!$E$2)+(I53*'Points System'!$E$3)+(J53*'Points System'!$E$4)+(K53*'Points System'!$E$5)+(L53*'Points System'!$E$7)+(M53*'Points System'!$E$8)+(N53*'Points System'!$E$10)+(P53*'Points System'!$E$9)+(Q53*'Points System'!$E$17)+(R53*'Points System'!$E$11)+(S53*'Points System'!$E$12)+(T53*'Points System'!$E$16)+(U53*'Points System'!$E$13) -> 162.85 | D53: =IF(AND(ABS(E53-F53)<3,F53>9),C53/F53,0) -> 5.629104736 | E53: 28.69 | F53: 28.93 | G53: 162.85 | H53: 10.16 | I53: 10.62 | J53: 0 | K53: 0 | L53: 123.59 | M53: 58.74 | N53: 177.93 | O53: 91.5 | P53: 83.13 | Q53: 21.45 | R53: 0 | S53: 11.78 | T53: 4 | U53: 0.17 | V53: 4.59 | W53: =(M53+N53)/G53 -> 1.453300583 | X53: 6.83 | Y53: 3.25 | Z53: AL | AA53: 502043 | AB53: =IF(ISNA(VLOOKUP(A53,Rankings!$B$2:$H$19998,7,FALSE)),"-",VLOOKUP(A53,Rankings!$B$2:$H$19998,7,FALSE)) -> 0
A54: Noah Syndergaard | B54: SP | C54: =(G54*'Points System'!$E$6)+(H54*'Points System'!$E$2)+(I54*'Points System'!$E$3)+(J54*'Points System'!$E$4)+(K54*'Points System'!$E$5)+(L54*'Points System'!$E$7)+(M54*'Points System'!$E$8)+(N54*'Points System'!$E$10)+(P54*'Points System'!$E$9)+(Q54*'Points System'!$E$17)+(R54*'Points System'!$E$11)+(S54*'Points System'!$E$12)+(T54*'Points System'!$E$16)+(U54*'Points System'!$E$13) -> 162.7 | D54: =IF(AND(ABS(E54-F54)<3,F54>9),C54/F54,0) -> 5.651267801 | E54: 28.62 | F54: 28.79 | G54: 162.7 | H54: 12 | I54: 7.98 | J54: 0 | K54: 0 | L54: 191.31 | M54: 41.24 | N54: 146.96 | O54: 66.55 | P54: 56.43 | Q54: 15.73 | R54: 0 | S54: 18.67 | T54: 6 | U54: 0.83 | V54: 3.12 | W54: =(M54+N54)/G54 -> 1.156730178 | X54: 10.58 | Y54: 2.28 | Z54: NL | AA54: 592789 | AB54: =IF(ISNA(VLOOKUP(A54,Rankings!$B$2:$H$19998,7,FALSE)),"-",VLOOKUP(A54,Rankings!$B$2:$H$19998,7,FALSE)) -> 0
A55: Lance Lynn | B55: SP | C55: =(G55*'Points System'!$E$6)+(H55*'Points System'!$E$2)+(I55*'Points System'!$E$3)+(J55*'Points System'!$E$4)+(K55*'Points System'!$E$5)+(L55*'Points System'!$E$7)+(M55*'Points System'!$E$8)+(N55*'Points System'!$E$10)+(P55*'Points System'!$E$9)+(Q55*'Points System'!$E$17)+(R55*'Points System'!$E$11)+(S55*'Points System'!$E$12)+(T55*'Points System'!$E$16)+(U55*'Points System'!$E$13) -> 162.53 | D55: =IF(AND(ABS(E55-F55)<3,F55>9),C55/F55,0) -> 5.702807018 | E55: 28.36 | F55: 28.5 | G55: 162.53 | H55: 9.91 | I55: 9.34 | J55: 0 | K55: 0 | L55: 137.62 | M55: 66.39 | N55: 153.71 | O55: 83.9 | P55: 74.15 | Q55: 21.2 | R55: 0 | S55: 12.55 | T55: 1.5 | U55: 0 | V55: 4.11 | W55: =(M55+N55)/G55 -> 1.35421153 | X55: 7.62 | Y55: 3.68 | Z55: NL | AA55: 458681 | AB55: =IF(ISNA(VLOOKUP(A55,Rankings!$B$2:$H$19998,7,FALSE)),"-",VLOOKUP(A55,Rankings!$B$2:$H$19998,7,FALSE)) -> 0
A56: Ian Kennedy | B56: SP | C56: =(G56*'Points System'!$E$6)+(H56*'Points System'!$E$2)+(I56*'Points System'!$E$3)+(J56*'Points System'!$E$4)+(K56*'Points System'!$E$5)+(L56*'Points System'!$E$7)+(M56*'Points System'!$E$8)+(N56*'Points System'!$E$10)+(P56*'Points System'!$E$9)+(Q56*'Points System'!$E$17)+(R56*'Points System'!$E$11)+(S56*'Points System'!$E$12)+(T56*'Points System'!$E$16)+(U56*'Points System'!$E$13) -> 162.48 | D56: =IF(AND(ABS(E56-F56)<3,F56>9),C56/F56,0) -> 5.515274949 | E56: 29.17 | F56: 29.46 | G56: 162.48 | H56: 7.69 | I56: 12.1 | J56: 0 | K56: 0 | L56: 145.03 | M56: 59.42 | N56: 160.04 | O56: 94.05 | P56: 86.18 | Q56: 29.1 | R56: 0 | S56: 12.25 | T56: 2.5 | U56: 0 | V56: 4.77 | W56: =(M56+N56)/G56 -> 1.350689316 | X56: 8.03 | Y56: 3.29 | Z56: AL | AA56: 453178 | AB56: =IF(ISNA(VLOOKUP(A56,Rankings!$B$2:$H$19998,7,FALSE)),"-",VLOOKUP(A56,Rankings!$B$2:$H$19998,7,FALSE)) -> 0
A57: Zack Godley | B57: SP | C57: =(G57*'Points System'!$E$6)+(H57*'Points System'!$E$2)+(I57*'Points System'!$E$3)+(J57*'Points System'!$E$4)+(K57*'Points System'!$E$5)+(L57*'Points System'!$E$7)+(M57*'Points System'!$E$8)+(N57*'Points System'!$E$10)+(P57*'Points System'!$E$9)+(Q57*'Points System'!$E$17)+(R57*'Points System'!$E$11)+(S57*'Points System'!$E$12)+(T57*'Points System'!$E$16)+(U57*'Points System'!$E$13) -> 160.96 | D57: =IF(AND(ABS(E57-F57)<3,F57>9),C57/F57,0) -> 5.893811791 | E57: 27.17 | F57: 27.31 | G57: 160.96 | H57: 10.92 | I57: 8.49 | J57: 0 | K57: 0 | L57: 161.95 | M57: 60.97 | N57: 149.39 | O57: 84.6 | P57: 69.82 | Q57: 18.2 | R57: 0 | S57: 15.13 | T57: 8 | U57: 0.17 | V57: 3.9 | W57: =(M57+N57)/G57 -> 1.306908549 | X57: 9.06 | Y57: 3.41 | Z57: NL | AA57: 643327 | AB57: =IF(ISNA(VLOOKUP(A57,Rankings!$B$2:$H$19998,7,FALSE)),"-",VLOOKUP(A57,Rankings!$B$2:$H$19998,7,FALSE)) -> 0
A58: Patrick Corbin | B58: SP | C58: =(G58*'Points System'!$E$6)+(H58*'Points System'!$E$2)+(I58*'Points System'!$E$3)+(J58*'Points System'!$E$4)+(K58*'Points System'!$E$5)+(L58*'Points System'!$E$7)+(M58*'Points System'!$E$8)+(N58*'Points System'!$E$10)+(P58*'Points System'!$E$9)+(Q58*'Points System'!$E$17)+(R58*'Points System'!$E$11)+(S58*'Points System'!$E$12)+(T58*'Points System'!$E$16)+(U58*'Points System'!$E$13) -> 160.58 | D58: =IF(AND(ABS(E58-F58)<3,F58>9),C58/F58,0) -> 5.847778587 | E58: 27.58 | F58: 27.46 | G58: 160.58 | H58: 10.76 | I58: 9.95 | J58: 0 | K58: 0 | L58: 145.87 | M58: 54.67 | N58: 170.08 | O58: 79.05 | P58: 75.24 | Q58: 21.2 | R58: 0 | S58: 13.02 | T58: 6 | U58: 0 | V58: 4.22 | W58: =(M58+N58)/G58 -> 1.3996139 | X58: 8.18 | Y58: 3.06 | Z58: NL | AA58: 571578 | AB58: =IF(ISNA(VLOOKUP(A58,Rankings!$B$2:$H$19998,7,FALSE)),"-",VLOOKUP(A58,Rankings!$B$2:$H$19998,7,FALSE)) -> 0
A59: Matt Moore | B59: SP | C59: =(G59*'Points System'!$E$6)+(H59*'Points System'!$E$2)+(I59*'Points System'!$E$3)+(J59*'Points System'!$E$4)+(K59*'Points System'!$E$5)+(L59*'Points System'!$E$7)+(M59*'Points System'!$E$8)+(N59*'Points System'!$E$10)+(P59*'Points System'!$E$9)+(Q59*'Points System'!$E$17)+(R59*'Points System'!$E$11)+(S59*'Points System'!$E$12)+(T59*'Points System'!$E$16)+(U59*'Points System'!$E$13) -> 160.21 | D59: =IF(AND(ABS(E59-F59)<3,F59>9),C59/F59,0) -> 5.659131049 | E59: 28.17 | F59: 28.31 | G59: 160.21 | H59: 9.15 | I59: 10.66 | J59: 0 | K59: 0 | L59: 133.43 | M59: 62.72 | N59: 173.71 | O59: 91.3 | P59: 89.22 | Q59: 25.2 | R59: 0 | S59: 12.32 | T59: 5.5 | U59: 0 | V59: 5.01 | W59: =(M59+N59)/G59 -> 1.475750577 | X59: 7.5 | Y59: 3.52 | Z59: AL | AA59: 519043 | AB59: =IF(ISNA(VLOOKUP(A59,Rankings!$B$2:$H$19998,7,FALSE)),"-",VLOOKUP(A59,Rankings!$B$2:$H$19998,7,FALSE)) -> 0
A60: Chase Anderson | B60: SP | C60: =(G60*'Points System'!$E$6)+(H60*'Points System'!$E$2)+(I60*'Points System'!$E$3)+(J60*'Points System'!$E$4)+(K60*'Points System'!$E$5)+(L60*'Points System'!$E$7)+(M60*'Points System'!$E$8)+(N60*'Points System'!$E$10)+(P60*'Points System'!$E$9)+(Q60*'Points System'!$E$17)+(R60*'Points System'!$E$11)+(S60*'Points System'!$E$12)+(T60*'Points System'!$E$16)+(U60*'Points System'!$E$13) -> 159.73 | D60: =IF(AND(ABS(E60-F60)<3,F60>9),C60/F60,0) -> 5.551963851 | E60: 28.58 | F60: 28.77 | G60: 159.73 | H60: 10.39 | I60: 9.12 | J60: 0 | K60: 0 | L60: 141.32 | M60: 51.74 | N60: 156.52 | O60: 86.15 | P60: 75.51 | Q60: 24.4 | R60: 0 | S60: 13.55 | T60: 1.5 | U60: 0 | V60: 4.25 | W60: =(M60+N60)/G60 -> 1.303825205 | X60: 7.96 | Y60: 2.92 | Z60: NL | AA60: 502624 | AB60: =IF(ISNA(VLOOKUP(A60,Rankings!$B$2:$H$19998,7,FALSE)),"-",VLOOKUP(A60,Rankings!$B$2:$H$19998,7,FALSE)) -> 0
A61: Jason Hammel | B61: SP | C61: =(G61*'Points System'!$E$6)+(H61*'Points System'!$E$2)+(I61*'Points System'!$E$3)+(J61*'Points System'!$E$4)+(K61*'Points System'!$E$5)+(L61*'Points System'!$E$7)+(M61*'Points System'!$E$8)+(N61*'Points System'!$E$10)+(P61*'Points System'!$E$9)+(Q61*'Points System'!$E$17)+(R61*'Points System'!$E$11)+(S61*'Points System'!$E$12)+(T61*'Points System'!$E$16)+(U61*'Points System'!$E$13) -> 159.56 | D61: =IF(AND(ABS(E61-F61)<3,F61>9),C61/F61,0) -> 5.65214311 | E61: 27.92 | F61: 28.23 | G61: 159.56 | H61: 8.85 | I61: 10.98 | J61: 0 | K61: 0 | L61: 131.47 | M61: 45.05 | N61: 170.07 | O61: 88.85 | P61: 82.95 | Q61: 24.9 | R61: 0 | S61: 11.75 | T61: 4.5 | U61: 0 | V61: 4.68 | W61: =(M61+N61)/G61 -> 1.348207571 | X61: 7.42 | Y61: 2.54 | Z61: AL | AA61: 434628 | AB61: =IF(ISNA(VLOOKUP(A61,Rankings!$B$2:$H$19998,7,FALSE)),"-",VLOOKUP(A61,Rankings!$B$2:$H$19998,7,FALSE)) -> 0
A62: Drew Pomeranz | B62: SP | C62: =(G62*'Points System'!$E$6)+(H62*'Points System'!$E$2)+(I62*'Points System'!$E$3)+(J62*'Points System'!$E$4)+(K62*'Points System'!$E$5)+(L62*'Points System'!$E$7)+(M62*'Points System'!$E$8)+(N62*'Points System'!$E$10)+(P62*'Points System'!$E$9)+(Q62*'Points System'!$E$17)+(R62*'Points System'!$E$11)+(S62*'Points System'!$E$12)+(T62*'Points System'!$E$16)+(U62*'Points System'!$E$13) -> 159.33 | D62: =IF(AND(ABS(E62-F62)<3,F62>9),C62/F62,0) -> 5.647997164 | E62: 28.15 | F62: 28.21 | G62: 159.33 | H62: 12.16 | I62: 8.35 | J62: 0.08 | K62: 0 | L62: 159.16 | M62: 60.34 | N62: 145.82 | O62: 80.6 | P62: 67.52 | Q62: 20 | R62: 0 | S62: 13.57 | T62: 4 | U62: 0 | V62: 3.81 | W62: =(M62+N62)/G62 -> 1.293918283 | X62: 8.99 | Y62: 3.41 | Z62: AL | AA62: 519141 | AB62: =IF(ISNA(VLOOKUP(A62,Rankings!$B$2:$H$19998,7,FALSE)),"-",VLOOKUP(A62,Rankings!$B$2:$H$19998,7,FALSE)) -> 0
A63: James Paxton | B63: SP | C63: =(G63*'Points System'!$E$6)+(H63*'Points System'!$E$2)+(I63*'Points System'!$E$3)+(J63*'Points System'!$E$4)+(K63*'Points System'!$E$5)+(L63*'Points System'!$E$7)+(M63*'Points System'!$E$8)+(N63*'Points System'!$E$10)+(P63*'Points System'!$E$9)+(Q63*'Points System'!$E$17)+(R63*'Points System'!$E$11)+(S63*'Points System'!$E$12)+(T63*'Points System'!$E$16)+(U63*'Points System'!$E$13) -> 158.43 | D63: =IF(AND(ABS(E63-F63)<3,F63>9),C63/F63,0) -> 5.775792927 | E63: 27.38 | F63: 27.43 | G63: 158.43 | H63: 11.87 | I63: 7.59 | J63: 0 | K63: 0 | L63: 167.72 | M63: 44.7 | N63: 144.85 | O63: 68.65 | P63: 59.56 | Q63: 16.27 | R63: 0 | S63: 16.33 | T63: 10 | U63: 0.5 | V63: 3.38 | W63: =(M63+N63)/G63 -> 1.196427444 | X63: 9.53 | Y63: 2.54 | Z63: AL | AA63: 572020 | AB63: =IF(ISNA(VLOOKUP(A63,Rankings!$B$2:$H$19998,7,FALSE)),"-",VLOOKUP(A63,Rankings!$B$2:$H$19998,7,FALSE)) -> 0
A64: Jerad Eickhoff | B64: SP | C64: =(G64*'Points System'!$E$6)+(H64*'Points System'!$E$2)+(I64*'Points System'!$E$3)+(J64*'Points System'!$E$4)+(K64*'Points System'!$E$5)+(L64*'Points System'!$E$7)+(M64*'Points System'!$E$8)+(N64*'Points System'!$E$10)+(P64*'Points System'!$E$9)+(Q64*'Points System'!$E$17)+(R64*'Points System'!$E$11)+(S64*'Points System'!$E$12)+(T64*'Points System'!$E$16)+(U64*'Points System'!$E$13) -> 158.38 | D64: =IF(AND(ABS(E64-F64)<3,F64>9),C64/F64,0) -> 5.584626234 | E64: 28 | F64: 28.36 | G64: 158.38 | H64: 8.38 | I64: 10.21 | J64: 0 | K64: 0 | L64: 139.81 | M64: 51.47 | N64: 164.67 | O64: 85.4 | P64: 79.07 | Q64: 25.09 | R64: 0 | S64: 11.18 | T64: 4 | U64: 0 | V64: 4.49 | W64: =(M64+N64)/G64 -> 1.364692512 | X64: 7.94 | Y64: 2.92 | Z64: NL | AA64: 595191 | AB64: =IF(ISNA(VLOOKUP(A64,Rankings!$B$2:$H$19998,7,FALSE)),"-",VLOOKUP(A64,Rankings!$B$2:$H$19998,7,FALSE)) -> 0
A65: Blake Snell | B65: SP | C65: =(G65*'Points System'!$E$6)+(H65*'Points System'!$E$2)+(I65*'Points System'!$E$3)+(J65*'Points System'!$E$4)+(K65*'Points System'!$E$5)+(L65*'Points System'!$E$7)+(M65*'Points System'!$E$8)+(N65*'Points System'!$E$10)+(P65*'Points System'!$E$9)+(Q65*'Points System'!$E$17)+(R65*'Points System'!$E$11)+(S65*'Points System'!$E$12)+(T65*'Points System'!$E$16)+(U65*'Points System'!$E$13) -> 157.84 | D65: =IF(AND(ABS(E65-F65)<3,F65>9),C65/F65,0) -> 5.403628894 | E65: 28.92 | F65: 29.21 | G65: 157.84 | H65: 9.87 | I65: 9.24 | J65: 0 | K65: 0 | L65: 163.39 | M65: 71.36 | N65: 143.85 | O65: 76.9 | P65: 66.77 | Q65: 18 | R65: 0 | S65: 13.57 | T65: 8 | U65: 0.17 | V65: 3.81 | W65: =(M65+N65)/G65 -> 1.363469336 | X65: 9.32 | Y65: 4.07 | Z65: AL | AA65: 605483 | AB65: =IF(ISNA(VLOOKUP(A65,Rankings!$B$2:$H$19998,7,FALSE)),"-",VLOOKUP(A65,Rankings!$B$2:$H$19998,7,FALSE)) -> 0
A66: Ervin Santana | B66: SP | C66: =(G66*'Points System'!$E$6)+(H66*'Points System'!$E$2)+(I66*'Points System'!$E$3)+(J66*'Points System'!$E$4)+(K66*'Points System'!$E$5)+(L66*'Points System'!$E$7)+(M66*'Points System'!$E$8)+(N66*'Points System'!$E$10)+(P66*'Points System'!$E$9)+(Q66*'Points System'!$E$17)+(R66*'Points System'!$E$11)+(S66*'Points System'!$E$12)+(T66*'Points System'!$E$16)+(U66*'Points System'!$E$13) -> 157.72 | D66: =IF(AND(ABS(E66-F66)<3,F66>9),C66/F66,0) -> 6.256247521 | E66: 25 | F66: 25.21 | G66: 157.72 | H66: 10.01 | I66: 8.12 | J66: 0 | K66: 0 | L66: 127.16 | M66: 48.32 | N66: 152.6 | O66: 84.95 | P66: 71.8 | Q66: 21.82 | R66: 0 | S66: 11.8 | T66: 5 | U66: 1.17 | V66: 4.1 | W66: =(M66+N66)/G66 -> 1.273903119 | X66: 7.26 | Y66: 2.76 | Z66: AL | AA66: 429722 | AB66: =IF(ISNA(VLOOKUP(A66,Rankings!$B$2:$H$19998,7,FALSE)),"-",VLOOKUP(A66,Rankings!$B$2:$H$19998,7,FALSE)) -> 0
A67: Luis Perdomo | B67: SP | C67: =(G67*'Points System'!$E$6)+(H67*'Points System'!$E$2)+(I67*'Points System'!$E$3)+(J67*'Points System'!$E$4)+(K67*'Points System'!$E$5)+(L67*'Points System'!$E$7)+(M67*'Points System'!$E$8)+(N67*'Points System'!$E$10)+(P67*'Points System'!$E$9)+(Q67*'Points System'!$E$17)+(R67*'Points System'!$E$11)+(S67*'Points System'!$E$12)+(T67*'Points System'!$E$16)+(U67*'Points System'!$E$13) -> 157.56 | D67: =IF(AND(ABS(E67-F67)<3,F67>9),C67/F67,0) -> 5.786265149 | E67: 27.67 | F67: 27.23 | G67: 157.56 | H67: 8.28 | I67: 10.55 | J67: 0 | K67: 0 | L67: 114.52 | M67: 57.35 | N67: 173.47 | O67: 83.75 | P67: 79.8 | Q67: 18.2 | R67: 0 | S67: 11.95 | T67: 7.5 | U67: 0 | V67: 4.56 | W67: =(M67+N67)/G67 -> 1.464965727 | X67: 6.54 | Y67: 3.28 | Z67: NL | AA67: 606131 | AB67: =IF(ISNA(VLOOKUP(A67,Rankings!$B$2:$H$19998,7,FALSE)),"-",VLOOKUP(A67,Rankings!$B$2:$H$19998,7,FALSE)) -> 0
A68: Jake Odorizzi | B68: SP | C68: =(G68*'Points System'!$E$6)+(H68*'Points System'!$E$2)+(I68*'Points System'!$E$3)+(J68*'Points System'!$E$4)+(K68*'Points System'!$E$5)+(L68*'Points System'!$E$7)+(M68*'Points System'!$E$8)+(N68*'Points System'!$E$10)+(P68*'Points System'!$E$9)+(Q68*'Points System'!$E$17)+(R68*'Points System'!$E$11)+(S68*'Points System'!$E$12)+(T68*'Points System'!$E$16)+(U68*'Points System'!$E$13) -> 157.35 | D68: =IF(AND(ABS(E68-F68)<3,F68>9),C68/F68,0) -> 5.438990667 | E68: 28.62 | F68: 28.93 | G68: 157.35 | H68: 9.69 | I68: 9.29 | J68: 0 | K68: 0 | L68: 138.92 | M68: 55.13 | N68: 152.36 | O68: 92.75 | P68: 77.29 | Q68: 26.64 | R68: 0 | S68: 12.08 | T68: 1.5 | U68: 0 | V68: 4.42 | W68: =(M68+N68)/G68 -> 1.318652685 | X68: 7.95 | Y68: 3.15 | Z68: AL | AA68: 543606 | AB68: =IF(ISNA(VLOOKUP(A68,Rankings!$B$2:$H$19998,7,FALSE)),"-",VLOOKUP(A68,Rankings!$B$2:$H$19998,7,FALSE)) -> 0
A69: Jose Urena | B69: SP | C69: =(G69*'Points System'!$E$6)+(H69*'Points System'!$E$2)+(I69*'Points System'!$E$3)+(J69*'Points System'!$E$4)+(K69*'Points System'!$E$5)+(L69*'Points System'!$E$7)+(M69*'Points System'!$E$8)+(N69*'Points System'!$E$10)+(P69*'Points System'!$E$9)+(Q69*'Points System'!$E$17)+(R69*'Points System'!$E$11)+(S69*'Points System'!$E$12)+(T69*'Points System'!$E$16)+(U69*'Points System'!$E$13) -> 157.12 | D69: =IF(AND(ABS(E69-F69)<3,F69>9),C69/F69,0) -> 5.72177713 | E69: 29.33 | F69: 27.46 | G69: 157.12 | H69: 8.55 | I69: 11.43 | J69: 0 | K69: 0 | L69: 110.81 | M69: 60.03 | N69: 161.92 | O69: 89.25 | P69: 82.12 | Q69: 22 | R69: 0 | S69: 11.37 | T69: 2.5 | U69: 0 | V69: 4.7 | W69: =(M69+N69)/G69 -> 1.412614562 | X69: 6.35 | Y69: 3.44 | Z69: NL | AA69: 570632 | AB69: =IF(ISNA(VLOOKUP(A69,Rankings!$B$2:$H$19998,7,FALSE)),"-",VLOOKUP(A69,Rankings!$B$2:$H$19998,7,FALSE)) -> 0
A70: Jhoulys Chacin | B70: SP | C70: =(G70*'Points System'!$E$6)+(H70*'Points System'!$E$2)+(I70*'Points System'!$E$3)+(J70*'Points System'!$E$4)+(K70*'Points System'!$E$5)+(L70*'Points System'!$E$7)+(M70*'Points System'!$E$8)+(N70*'Points System'!$E$10)+(P70*'Points System'!$E$9)+(Q70*'Points System'!$E$17)+(R70*'Points System'!$E$11)+(S70*'Points System'!$E$12)+(T70*'Points System'!$E$16)+(U70*'Points System'!$E$13) -> 156.34 | D70: =IF(AND(ABS(E70-F70)<3,F70>9),C70/F70,0) -> 5.646081618 | E70: 27.58 | F70: 27.69 | G70: 156.34 | H70: 9.62 | I70: 9.42 | J70: 0 | K70: 0 | L70: 132.65 | M70: 62.78 | N70: 155.51 | O70: 87.5 | P70: 76.78 | Q70: 19.5 | R70: 0 | S70: 13.2 | T70: 4.5 | U70: 0 | V70: 4.42 | W70: =(M70+N70)/G70 -> 1.396251759 | X70: 7.64 | Y70: 3.61 | Z70: NL | AA70: 468504 | AB70: =IF(ISNA(VLOOKUP(A70,Rankings!$B$2:$H$19998,7,FALSE)),"-",VLOOKUP(A70,Rankings!$B$2:$H$19998,7,FALSE)) -> 0
A71: Jordan Zimmermann | B71: SP | C71: =(G71*'Points System'!$E$6)+(H71*'Points System'!$E$2)+(I71*'Points System'!$E$3)+(J71*'Points System'!$E$4)+(K71*'Points System'!$E$5)+(L71*'Points System'!$E$7)+(M71*'Points System'!$E$8)+(N71*'Points System'!$E$10)+(P71*'Points System'!$E$9)+(Q71*'Points System'!$E$17)+(R71*'Points System'!$E$11)+(S71*'Points System'!$E$12)+(T71*'Points System'!$E$16)+(U71*'Points System'!$E$13) -> 155.18 | D71: =IF(AND(ABS(E71-F71)<3,F71>9),C71/F71,0) -> 5.634713145 | E71: 27.17 | F71: 27.54 | G71: 155.18 | H71: 8.5 | I71: 11.13 | J71: 0 | K71: 0 | L71: 105.22 | M71: 40.39 | N71: 180.38 | O71: 95.35 | P71: 86.88 | Q71: 25.7 | R71: 0 | S71: 11 | T71: 2 | U71: 0 | V71: 5.04 | W71: =(M71+N71)/G71 -> 1.422670447 | X71: 6.1 | Y71: 2.34 | Z71: AL | AA71: 519455 | AB71: =IF(ISNA(VLOOKUP(A71,Rankings!$B$2:$H$19998,7,FALSE)),"-",VLOOKUP(A71,Rankings!$B$2:$H$19998,7,FALSE)) -> 0
A72: Mike Foltynewicz | B72: SP | C72: =(G72*'Points System'!$E$6)+(H72*'Points System'!$E$2)+(I72*'Points System'!$E$3)+(J72*'Points System'!$E$4)+(K72*'Points System'!$E$5)+(L72*'Points System'!$E$7)+(M72*'Points System'!$E$8)+(N72*'Points System'!$E$10)+(P72*'Points System'!$E$9)+(Q72*'Points System'!$E$17)+(R72*'Points System'!$E$11)+(S72*'Points System'!$E$12)+(T72*'Points System'!$E$16)+(U72*'Points System'!$E$13) -> 154.1 | D72: =IF(AND(ABS(E72-F72)<3,F72>9),C72/F72,0) -> 5.993776741 | E72: 25.69 | F72: 25.71 | G72: 154.1 | H72: 9.42 | I72: 10.61 | J72: 0 | K72: 0 | L72: 140.9 | M72: 55.14 | N72: 160.2 | O72: 84.1 | P72: 78.74 | Q72: 22.64 | R72: 0 | S72: 11.88 | T72: 5.5 | U72: 0 | V72: 4.6 | W72: =(M72+N72)/G72 -> 1.397404283 | X72: 8.23 | Y72: 3.22 | Z72: NL | AA72: 592314 | AB72: =IF(ISNA(VLOOKUP(A72,Rankings!$B$2:$H$19998,7,FALSE)),"-",VLOOKUP(A72,Rankings!$B$2:$H$19998,7,FALSE)) -> 0
A73: German Marquez | B73: SP | C73: =(G73*'Points System'!$E$6)+(H73*'Points System'!$E$2)+(I73*'Points System'!$E$3)+(J73*'Points System'!$E$4)+(K73*'Points System'!$E$5)+(L73*'Points System'!$E$7)+(M73*'Points System'!$E$8)+(N73*'Points System'!$E$10)+(P73*'Points System'!$E$9)+(Q73*'Points System'!$E$17)+(R73*'Points System'!$E$11)+(S73*'Points System'!$E$12)+(T73*'Points System'!$E$16)+(U73*'Points System'!$E$13) -> 152.92 | D73: =IF(AND(ABS(E73-F73)<3,F73>9),C73/F73,0) -> 5.695344507 | E73: 27.25 | F73: 26.85 | G73: 152.92 | H73: 9.65 | I73: 8.78 | J73: 0 | K73: 0 | L73: 135.99 | M73: 45.67 | N73: 161.74 | O73: 87.15 | P73: 75.77 | Q73: 22.8 | R73: 0 | S73: 12.17 | T73: 3.5 | U73: 0 | V73: 4.46 | W73: =(M73+N73)/G73 -> 1.356330107 | X73: 8 | Y73: 2.69 | Z73: NL | AA73: 608566 | AB73: =IF(ISNA(VLOOKUP(A73,Rankings!$B$2:$H$19998,7,FALSE)),"-",VLOOKUP(A73,Rankings!$B$2:$H$19998,7,FALSE)) -> 0
A74: James Shields | B74: SP | C74: =(G74*'Points System'!$E$6)+(H74*'Points System'!$E$2)+(I74*'Points System'!$E$3)+(J74*'Points System'!$E$4)+(K74*'Points System'!$E$5)+(L74*'Points System'!$E$7)+(M74*'Points System'!$E$8)+(N74*'Points System'!$E$10)+(P74*'Points System'!$E$9)+(Q74*'Points System'!$E$17)+(R74*'Points System'!$E$11)+(S74*'Points System'!$E$12)+(T74*'Points System'!$E$16)+(U74*'Points System'!$E$13) -> 152.19 | D74: =IF(AND(ABS(E74-F74)<3,F74>9),C74/F74,0) -> 5.500180701 | E74: 27.64 | F74: 27.67 | G74: 152.19 | H74: 7.2 | I74: 11.15 | J74: 0 | K74: 0 | L74: 128.08 | M74: 63.24 | N74: 163.25 | O74: 95.75 | P74: 89.57 | Q74: 29.33 | R74: 0 | S74: 11.36 | T74: 2 | U74: 0 | V74: 5.3 | W74: =(M74+N74)/G74 -> 1.488205533 | X74: 7.57 | Y74: 3.74 | Z74: AL | AA74: 448306 | AB74: =IF(ISNA(VLOOKUP(A74,Rankings!$B$2:$H$19998,7,FALSE)),"-",VLOOKUP(A74,Rankings!$B$2:$H$19998,7,FALSE)) -> 0
A75: Alex Cobb | B75: SP | C75: =(G75*'Points System'!$E$6)+(H75*'Points System'!$E$2)+(I75*'Points System'!$E$3)+(J75*'Points System'!$E$4)+(K75*'Points System'!$E$5)+(L75*'Points System'!$E$7)+(M75*'Points System'!$E$8)+(N75*'Points System'!$E$10)+(P75*'Points System'!$E$9)+(Q75*'Points System'!$E$17)+(R75*'Points System'!$E$11)+(S75*'Points System'!$E$12)+(T75*'Points System'!$E$16)+(U75*'Points System'!$E$13) -> 151.64 | D75: =IF(AND(ABS(E75-F75)<3,F75>9),C75/F75,0) -> 5.794421093 | E75: 25.82 | F75: 26.17 | G75: 151.64 | H75: 9.59 | I75: 9.21 | J75: 0 | K75: 0 | L75: 113.9 | M75: 41.04 | N75: 157.74 | O75: 78.65 | P75: 69.34 | Q75: 19.3 | R75: 0 | S75: 12.45 | T75: 4.5 | U75: 0 | V75: 4.12 | W75: =(M75+N75)/G75 -> 1.310867845 | X75: 6.76 | Y75: 2.44 | Z75: AL | AA75: 502171 | AB75: =IF(ISNA(VLOOKUP(A75,Rankings!$B$2:$H$19998,7,FALSE)),"-",VLOOKUP(A75,Rankings!$B$2:$H$19998,7,FALSE)) -> 0
A76: Luis Castillo | B76: SP | C76: =(G76*'Points System'!$E$6)+(H76*'Points System'!$E$2)+(I76*'Points System'!$E$3)+(J76*'Points System'!$E$4)+(K76*'Points System'!$E$5)+(L76*'Points System'!$E$7)+(M76*'Points System'!$E$8)+(N76*'Points System'!$E$10)+(P76*'Points System'!$E$9)+(Q76*'Points System'!$E$17)+(R76*'Points System'!$E$11)+(S76*'Points System'!$E$12)+(T76*'Points System'!$E$16)+(U76*'Points System'!$E$13) -> 151.18 | D76: =IF(AND(ABS(E76-F76)<3,F76>9),C76/F76,0) -> 5.660052415 | E76: 26.62 | F76: 26.71 | G76: 151.18 | H76: 9.14 | I76: 8.89 | J76: 0 | K76: 0 | L76: 150.31 | M76: 49.71 | N76: 139.98 | O76: 77.95 | P76: 64.3 | Q76: 19.64 | R76: 0 | S76: 13.57 | T76: 2.5 | U76: 0 | V76: 3.83 | W76: =(M76+N76)/G76 -> 1.254729462 | X76: 8.95 | Y76: 2.96 | Z76: NL | AA76: 622491 | AB76: =IF(ISNA(VLOOKUP(A76,Rankings!$B$2:$H$19998,7,FALSE)),"-",VLOOKUP(A76,Rankings!$B$2:$H$19998,7,FALSE)) -> 0
A77: Kendall Graveman | B77: SP | C77: =(G77*'Points System'!$E$6)+(H77*'Points System'!$E$2)+(I77*'Points System'!$E$3)+(J77*'Points System'!$E$4)+(K77*'Points System'!$E$5)+(L77*'Points System'!$E$7)+(M77*'Points System'!$E$8)+(N77*'Points System'!$E$10)+(P77*'Points System'!$E$9)+(Q77*'Points System'!$E$17)+(R77*'Points System'!$E$11)+(S77*'Points System'!$E$12)+(T77*'Points System'!$E$16)+(U77*'Points System'!$E$13) -> 151.03 | D77: =IF(AND(ABS(E77-F77)<3,F77>9),C77/F77,0) -> 5.658673661 | E77: 26.75 | F77: 26.69 | G77: 151.03 | H77: 8.06 | I77: 9.21 | J77: 0 | K77: 0 | L77: 98.46 | M77: 46.03 | N77: 167.33 | O77: 84.9 | P77: 76.86 | Q77: 19.3 | R77: 0 | S77: 11.8 | T77: 3.5 | U77: 0.33 | V77: 4.58 | W77: =(M77+N77)/G77 -> 1.412699464 | X77: 5.87 | Y77: 2.74 | Z77: AL | AA77: 608665 | AB77: =IF(ISNA(VLOOKUP(A77,Rankings!$B$2:$H$19998,7,FALSE)),"-",VLOOKUP(A77,Rankings!$B$2:$H$19998,7,FALSE)) -> 0
A78: Shohei Ohtani | B78: P | C78: =(G78*'Points System'!$E$6)+(H78*'Points System'!$E$2)+(I78*'Points System'!$E$3)+(J78*'Points System'!$E$4)+(K78*'Points System'!$E$5)+(L78*'Points System'!$E$7)+(M78*'Points System'!$E$8)+(N78*'Points System'!$E$10)+(P78*'Points System'!$E$9)+(Q78*'Points System'!$E$17)+(R78*'Points System'!$E$11)+(S78*'Points System'!$E$12)+(T78*'Points System'!$E$16)+(U78*'Points System'!$E$13) -> 150.49 | D78: =IF(AND(ABS(E78-F78)<3,F78>9),C78/F78,0) -> 6.055935614 | E78: 24.85 | F78: 24.85 | G78: 150.49 | H78: 10.42 | I78: 7.15 | J78: 0 | K78: 0 | L78: 171.91 | M78: 56.87 | N78: 124.11 | O78: 68.4 | P78: 56.9 | Q78: 16.88 | R78: 0 | S78: 16.9 | U78: 0.25 | V78: 3.4 | W78: =(M78+N78)/G78 -> 1.202604824 | X78: 10.28 | Y78: 3.4 | Z78: AL | AA78: 660271 | AB78: =IF(ISNA(VLOOKUP(A78,Rankings!$B$2:$H$19998,7,FALSE)),"-",VLOOKUP(A78,Rankings!$B$2:$H$19998,7,FALSE)) -> 0
A79: Mike Fiers | B79: SP | C79: =(G79*'Points System'!$E$6)+(H79*'Points System'!$E$2)+(I79*'Points System'!$E$3)+(J79*'Points System'!$E$4)+(K79*'Points System'!$E$5)+(L79*'Points System'!$E$7)+(M79*'Points System'!$E$8)+(N79*'Points System'!$E$10)+(P79*'Points System'!$E$9)+(Q79*'Points System'!$E$17)+(R79*'Points System'!$E$11)+(S79*'Points System'!$E$12)+(T79*'Points System'!$E$16)+(U79*'Points System'!$E$13) -> 150.21 | D79: =IF(AND(ABS(E79-F79)<3,F79>9),C79/F79,0) -> 5.532596685 | E79: 27 | F79: 27.15 | G79: 150.21 | H79: 8.22 | I79: 10.08 | J79: 0 | K79: 0 | L79: 129.69 | M79: 52.22 | N79: 158.13 | O79: 87.15 | P79: 80 | Q79: 25.1 | R79: 0 | S79: 11.28 | T79: 6.5 | U79: 0 | V79: 4.79 | W79: =(M79+N79)/G79 -> 1.400372811 | X79: 7.77 | Y79: 3.13 | Z79: AL | AA79: 571666 | AB79: =IF(ISNA(VLOOKUP(A79,Rankings!$B$2:$H$19998,7,FALSE)),"-",VLOOKUP(A79,Rankings!$B$2:$H$19998,7,FALSE)) -> 0
A80: Miguel Gonzalez | B80: SP | C80: =(G80*'Points System'!$E$6)+(H80*'Points System'!$E$2)+(I80*'Points System'!$E$3)+(J80*'Points System'!$E$4)+(K80*'Points System'!$E$5)+(L80*'Points System'!$E$7)+(M80*'Points System'!$E$8)+(N80*'Points System'!$E$10)+(P80*'Points System'!$E$9)+(Q80*'Points System'!$E$17)+(R80*'Points System'!$E$11)+(S80*'Points System'!$E$12)+(T80*'Points System'!$E$16)+(U80*'Points System'!$E$13) -> 149.62 | D80: =IF(AND(ABS(E80-F80)<3,F80>9),C80/F80,0) -> 5.663133989 | E80: 26.18 | F80: 26.42 | G80: 149.62 | H80: 7.83 | I80: 10.68 | J80: 0 | K80: 0 | L80: 104.75 | M80: 48.58 | N80: 166.14 | O80: 100.25 | P80: 82.84 | Q80: 24.89 | R80: 0 | S80: 11.56 | T80: 1.5 | U80: 0 | V80: 4.98 | W80: =(M80+N80)/G80 -> 1.435102259 | X80: 6.3 | Y80: 2.92 | Z80: AL | AA80: 456068 | AB80: =IF(ISNA(VLOOKUP(A80,Rankings!$B$2:$H$19998,7,FALSE)),"-",VLOOKUP(A80,Rankings!$B$2:$H$19998,7,FALSE)) -> 0
A81: Jordan Montgomery | B81: SP | C81: =(G81*'Points System'!$E$6)+(H81*'Points System'!$E$2)+(I81*'Points System'!$E$3)+(J81*'Points System'!$E$4)+(K81*'Points System'!$E$5)+(L81*'Points System'!$E$7)+(M81*'Points System'!$E$8)+(N81*'Points System'!$E$10)+(P81*'Points System'!$E$9)+(Q81*'Points System'!$E$17)+(R81*'Points System'!$E$11)+(S81*'Points System'!$E$12)+(T81*'Points System'!$E$16)+(U81*'Points System'!$E$13) -> 149.29 | D81: =IF(AND(ABS(E81-F81)<3,F81>9),C81/F81,0) -> 5.543631638 | E81: 29.85 | F81: 26.93 | G81: 149.29 | H81: 9.6 | I81: 8.04 | J81: 0 | K81: 0 | L81: 137.59 | M81: 51.42 | N81: 144.35 | O81: 69.45 | P81: 69.13 | Q81: 21.27 | R81: 0 | S81: 10.53 | T81: 4.5 | U81: 0 | V81: 4.17 | W81: =(M81+N81)/G81 -> 1.311340344 | X81: 8.29 | Y81: 3.1 | Z81: AL | AA81: 656756 | AB81: =IF(ISNA(VLOOKUP(A81,Rankings!$B$2:$H$19998,7,FALSE)),"-",VLOOKUP(A81,Rankings!$B$2:$H$19998,7,FALSE)) -> 0
A82: Dinelson Lamet | B82: SP | C82: =(G82*'Points System'!$E$6)+(H82*'Points System'!$E$2)+(I82*'Points System'!$E$3)+(J82*'Points System'!$E$4)+(K82*'Points System'!$E$5)+(L82*'Points System'!$E$7)+(M82*'Points System'!$E$8)+(N82*'Points System'!$E$10)+(P82*'Points System'!$E$9)+(Q82*'Points System'!$E$17)+(R82*'Points System'!$E$11)+(S82*'Points System'!$E$12)+(T82*'Points System'!$E$16)+(U82*'Points System'!$E$13) -> 149.09 | D82: =IF(AND(ABS(E82-F82)<3,F82>9),C82/F82,0) -> 5.407689518 | E82: 27.23 | F82: 27.57 | G82: 149.09 | H82: 9.24 | I82: 10.04 | J82: 0 | K82: 0 | L82: 171.39 | M82: 69.39 | N82: 127.6 | O82: 74.45 | P82: 68.39 | Q82: 19.27 | R82: 0 | S82: 13.42 | T82: 8 | U82: 0 | V82: 4.13 | W82: =(M82+N82)/G82 -> 1.321282447 | X82: 10.35 | Y82: 4.19 | Z82: NL | AA82: 659275 | AB82: =IF(ISNA(VLOOKUP(A82,Rankings!$B$2:$H$19998,7,FALSE)),"-",VLOOKUP(A82,Rankings!$B$2:$H$19998,7,FALSE)) -> 0
A83: Matt Boyd | B83: SP | C83: =(G83*'Points System'!$E$6)+(H83*'Points System'!$E$2)+(I83*'Points System'!$E$3)+(J83*'Points System'!$E$4)+(K83*'Points System'!$E$5)+(L83*'Points System'!$E$7)+(M83*'Points System'!$E$8)+(N83*'Points System'!$E$10)+(P83*'Points System'!$E$9)+(Q83*'Points System'!$E$17)+(R83*'Points System'!$E$11)+(S83*'Points System'!$E$12)+(T83*'Points System'!$E$16)+(U83*'Points System'!$E$13) -> 147.75 | D83: =IF(AND(ABS(E83-F83)<3,F83>9),C83/F83,0) -> 5.422018349 | E83: 26.82 | F83: 27.25 | G83: 147.75 | H83: 7.94 | I83: 10.73 | J83: 0 | K83: 0 | L83: 125.71 | M83: 52.05 | N83: 156.34 | O83: 88.6 | P83: 78.9 | Q83: 24 | R83: 0 | S83: 11.9 | T83: 2 | U83: 0.33 | V83: 4.81 | W83: =(M83+N83)/G83 -> 1.410423012 | X83: 7.66 | Y83: 3.17 | Z83: AL | AA83: 571510 | AB83: =IF(ISNA(VLOOKUP(A83,Rankings!$B$2:$H$19998,7,FALSE)),"-",VLOOKUP(A83,Rankings!$B$2:$H$19998,7,FALSE)) -> 0
A84: Chad Kuhl | B84: SP | C84: =(G84*'Points System'!$E$6)+(H84*'Points System'!$E$2)+(I84*'Points System'!$E$3)+(J84*'Points System'!$E$4)+(K84*'Points System'!$E$5)+(L84*'Points System'!$E$7)+(M84*'Points System'!$E$8)+(N84*'Points System'!$E$10)+(P84*'Points System'!$E$9)+(Q84*'Points System'!$E$17)+(R84*'Points System'!$E$11)+(S84*'Points System'!$E$12)+(T84*'Points System'!$E$16)+(U84*'Points System'!$E$13) -> 146.83 | D84: =IF(AND(ABS(E84-F84)<3,F84>9),C84/F84,0) -> 5.287360461 | E84: 27.42 | F84: 27.77 | G84: 146.83 | H84: 8.54 | I84: 9.67 | J84: 0 | K84: 0 | L84: 126.85 | M84: 56.18 | N84: 150.74 | O84: 77.6 | P84: 71.07 | Q84: 18.7 | R84: 0 | S84: 10.3 | T84: 4 | U84: 0 | V84: 4.36 | W84: =(M84+N84)/G84 -> 1.409248791 | X84: 7.78 | Y84: 3.44 | Z84: NL | AA84: 641771 | AB84: =IF(ISNA(VLOOKUP(A84,Rankings!$B$2:$H$19998,7,FALSE)),"-",VLOOKUP(A84,Rankings!$B$2:$H$19998,7,FALSE)) -> 0
A85: CC Sabathia | B85: SP | C85: =(G85*'Points System'!$E$6)+(H85*'Points System'!$E$2)+(I85*'Points System'!$E$3)+(J85*'Points System'!$E$4)+(K85*'Points System'!$E$5)+(L85*'Points System'!$E$7)+(M85*'Points System'!$E$8)+(N85*'Points System'!$E$10)+(P85*'Points System'!$E$9)+(Q85*'Points System'!$E$17)+(R85*'Points System'!$E$11)+(S85*'Points System'!$E$12)+(T85*'Points System'!$E$16)+(U85*'Points System'!$E$13) -> 146.71 | D85: =IF(AND(ABS(E85-F85)<3,F85>9),C85/F85,0) -> 5.597481877 | E85: 26 | F85: 26.21 | G85: 146.71 | H85: 10.16 | I85: 8.37 | J85: 0 | K85: 0 | L85: 122.53 | M85: 50.3 | N85: 149.72 | O85: 86.7 | P85: 70.77 | Q85: 21.73 | R85: 0 | S85: 12.38 | T85: 2.5 | U85: 0 | V85: 4.34 | W85: =(M85+N85)/G85 -> 1.363369913 | X85: 7.52 | Y85: 3.09 | Z85: AL | AA85: 282332 | AB85: =IF(ISNA(VLOOKUP(A85,Rankings!$B$2:$H$19998,7,FALSE)),"-",VLOOKUP(A85,Rankings!$B$2:$H$19998,7,FALSE)) -> 0
A86: Sean Newcomb | B86: SP | C86: =(G86*'Points System'!$E$6)+(H86*'Points System'!$E$2)+(I86*'Points System'!$E$3)+(J86*'Points System'!$E$4)+(K86*'Points System'!$E$5)+(L86*'Points System'!$E$7)+(M86*'Points System'!$E$8)+(N86*'Points System'!$E$10)+(P86*'Points System'!$E$9)+(Q86*'Points System'!$E$17)+(R86*'Points System'!$E$11)+(S86*'Points System'!$E$12)+(T86*'Points System'!$E$16)+(U86*'Points System'!$E$13) -> 146.19 | D86: =IF(AND(ABS(E86-F86)<3,F86>9),C86/F86,0) -> 5.234156821 | E86: 28.08 | F86: 27.93 | G86: 146.19 | H86: 8.3 | I86: 9.68 | J86: 0 | K86: 0 | L86: 154.44 | M86: 79.34 | N86: 134.09 | O86: 73.7 | P86: 68.58 | Q86: 15.73 | R86: 0 | S86: 11.73 | T86: 4.5 | U86: 0 | V86: 4.22 | W86: =(M86+N86)/G86 -> 1.459949381 | X86: 9.51 | Y86: 4.88 | Z86: NL | AA86: 656794 | AB86: =IF(ISNA(VLOOKUP(A86,Rankings!$B$2:$H$19998,7,FALSE)),"-",VLOOKUP(A86,Rankings!$B$2:$H$19998,7,FALSE)) -> 0
A87: Kyle Freeland | B87: SP | C87: =(G87*'Points System'!$E$6)+(H87*'Points System'!$E$2)+(I87*'Points System'!$E$3)+(J87*'Points System'!$E$4)+(K87*'Points System'!$E$5)+(L87*'Points System'!$E$7)+(M87*'Points System'!$E$8)+(N87*'Points System'!$E$10)+(P87*'Points System'!$E$9)+(Q87*'Points System'!$E$17)+(R87*'Points System'!$E$11)+(S87*'Points System'!$E$12)+(T87*'Points System'!$E$16)+(U87*'Points System'!$E$13) -> 146 | D87: =IF(AND(ABS(E87-F87)<3,F87>9),C87/F87,0) -> 0 | E87: 31.75 | F87: 24 | G87: 146 | H87: 8.58 | I87: 9.38 | J87: 0 | K87: 0 | L87: 95.26 | M87: 52.92 | N87: 153.12 | O87: 80.3 | P87: 76.25 | Q87: 19.3 | R87: 0 | S87: 9.6 | T87: 0.5 | U87: 0 | V87: 4.7 | W87: =(M87+N87)/G87 -> 1.411232877 | X87: 5.87 | Y87: 3.26 | Z87: NL | AA87: 607536 | AB87: =IF(ISNA(VLOOKUP(A87,Rankings!$B$2:$H$19998,7,FALSE)),"-",VLOOKUP(A87,Rankings!$B$2:$H$19998,7,FALSE)) -> 0
A88: Andrew Cashner | B88: SP | C88: =(G88*'Points System'!$E$6)+(H88*'Points System'!$E$2)+(I88*'Points System'!$E$3)+(J88*'Points System'!$E$4)+(K88*'Points System'!$E$5)+(L88*'Points System'!$E$7)+(M88*'Points System'!$E$8)+(N88*'Points System'!$E$10)+(P88*'Points System'!$E$9)+(Q88*'Points System'!$E$17)+(R88*'Points System'!$E$11)+(S88*'Points System'!$E$12)+(T88*'Points System'!$E$16)+(U88*'Points System'!$E$13) -> 145.66 | D88: =IF(AND(ABS(E88-F88)<3,F88>9),C88/F88,0) -> 5.739164697 | E88: 25.5 | F88: 25.38 | G88: 145.66 | H88: 7.64 | I88: 10.49 | J88: 0 | K88: 0 | L88: 95.89 | M88: 56.41 | N88: 157.92 | O88: 95.55 | P88: 80 | Q88: 21.3 | R88: 0 | S88: 11.25 | T88: 4 | U88: 0 | V88: 4.94 | W88: =(M88+N88)/G88 -> 1.471440341 | X88: 5.92 | Y88: 3.49 | Z88: AL | AA88: 488768 | AB88: =IF(ISNA(VLOOKUP(A88,Rankings!$B$2:$H$19998,7,FALSE)),"-",VLOOKUP(A88,Rankings!$B$2:$H$19998,7,FALSE)) -> 0
A89: Lucas Giolito | B89: SP | C89: =(G89*'Points System'!$E$6)+(H89*'Points System'!$E$2)+(I89*'Points System'!$E$3)+(J89*'Points System'!$E$4)+(K89*'Points System'!$E$5)+(L89*'Points System'!$E$7)+(M89*'Points System'!$E$8)+(N89*'Points System'!$E$10)+(P89*'Points System'!$E$9)+(Q89*'Points System'!$E$17)+(R89*'Points System'!$E$11)+(S89*'Points System'!$E$12)+(T89*'Points System'!$E$16)+(U89*'Points System'!$E$13) -> 145.19 | D89: =IF(AND(ABS(E89-F89)<3,F89>9),C89/F89,0) -> 5.552198853 | E89: 25.92 | F89: 26.15 | G89: 145.19 | H89: 8.03 | I89: 9.92 | J89: 0 | K89: 0 | L89: 129.84 | M89: 62.54 | N89: 144.66 | O89: 89.8 | P89: 72.39 | Q89: 21.6 | R89: 0 | S89: 11.05 | T89: 5.5 | U89: 0 | V89: 4.49 | W89: =(M89+N89)/G89 -> 1.42709553 | X89: 8.05 | Y89: 3.88 | Z89: AL | AA89: 608337 | AB89: =IF(ISNA(VLOOKUP(A89,Rankings!$B$2:$H$19998,7,FALSE)),"-",VLOOKUP(A89,Rankings!$B$2:$H$19998,7,FALSE)) -> 0
A90: Luke Weaver | B90: SP | C90: =(G90*'Points System'!$E$6)+(H90*'Points System'!$E$2)+(I90*'Points System'!$E$3)+(J90*'Points System'!$E$4)+(K90*'Points System'!$E$5)+(L90*'Points System'!$E$7)+(M90*'Points System'!$E$8)+(N90*'Points System'!$E$10)+(P90*'Points System'!$E$9)+(Q90*'Points System'!$E$17)+(R90*'Points System'!$E$11)+(S90*'Points System'!$E$12)+(T90*'Points System'!$E$16)+(U90*'Points System'!$E$13) -> 144.98 | D90: =IF(AND(ABS(E90-F90)<3,F90>9),C90/F90,0) -> 5.411720791 | E90: 27.31 | F90: 26.79 | G90: 144.98 | H90: 10.84 | I90: 7.97 | J90: 0 | K90: 0 | L90: 147.68 | M90: 42.5 | N90: 142.05 | O90: 70.55 | P90: 61.12 | Q90: 17.91 | R90: 0 | S90: 13.15 | T90: 4 | U90: 0 | V90: 3.79 | W90: =(M90+N90)/G90 -> 1.272934198 | X90: 9.17 | Y90: 2.64 | Z90: NL | AA90: 596133 | AB90: =IF(ISNA(VLOOKUP(A90,Rankings!$B$2:$H$19998,7,FALSE)),"-",VLOOKUP(A90,Rankings!$B$2:$H$19998,7,FALSE)) -> 0
A91: Alex Wood | B91: SP | C91: =(G91*'Points System'!$E$6)+(H91*'Points System'!$E$2)+(I91*'Points System'!$E$3)+(J91*'Points System'!$E$4)+(K91*'Points System'!$E$5)+(L91*'Points System'!$E$7)+(M91*'Points System'!$E$8)+(N91*'Points System'!$E$10)+(P91*'Points System'!$E$9)+(Q91*'Points System'!$E$17)+(R91*'Points System'!$E$11)+(S91*'Points System'!$E$12)+(T91*'Points System'!$E$16)+(U91*'Points System'!$E$13) -> 144.85 | D91: =IF(AND(ABS(E91-F91)<3,F91>9),C91/F91,0) -> 5.680392157 | E91: 25.46 | F91: 25.5 | G91: 144.85 | H91: 11.13 | I91: 6.97 | J91: 0 | K91: 0 | L91: 139.83 | M91: 42.67 | N91: 134.87 | O91: 71.55 | P91: 56.52 | Q91: 16.09 | R91: 0 | S91: 14.02 | T91: 2.5 | U91: 0.17 | V91: 3.51 | W91: =(M91+N91)/G91 -> 1.22568174 | X91: 8.69 | Y91: 2.65 | Z91: NL | AA91: 622072 | AB91: =IF(ISNA(VLOOKUP(A91,Rankings!$B$2:$H$19998,7,FALSE)),"-",VLOOKUP(A91,Rankings!$B$2:$H$19998,7,FALSE)) -> 0
A92: Martin Perez | B92: SP | C92: =(G92*'Points System'!$E$6)+(H92*'Points System'!$E$2)+(I92*'Points System'!$E$3)+(J92*'Points System'!$E$4)+(K92*'Points System'!$E$5)+(L92*'Points System'!$E$7)+(M92*'Points System'!$E$8)+(N92*'Points System'!$E$10)+(P92*'Points System'!$E$9)+(Q92*'Points System'!$E$17)+(R92*'Points System'!$E$11)+(S92*'Points System'!$E$12)+(T92*'Points System'!$E$16)+(U92*'Points System'!$E$13) -> 144.83 | D92: =IF(AND(ABS(E92-F92)<3,F92>9),C92/F92,0) -> 5.811797753 | E92: 24.75 | F92: 24.92 | G92: 144.83 | H92: 8.79 | I92: 8.85 | J92: 0 | K92: 0 | L92: 90.76 | M92: 51.03 | N92: 161.58 | O92: 88.55 | P92: 74.41 | Q92: 16.9 | R92: 0 | S92: 10.82 | T92: 1.5 | U92: 0 | V92: 4.62 | W92: =(M92+N92)/G92 -> 1.467996962 | X92: 5.64 | Y92: 3.17 | Z92: AL | AA92: 527048 | AB92: =IF(ISNA(VLOOKUP(A92,Rankings!$B$2:$H$19998,7,FALSE)),"-",VLOOKUP(A92,Rankings!$B$2:$H$19998,7,FALSE)) -> 0
A93: Ricky Nolasco | B93: SP | C93: =(G93*'Points System'!$E$6)+(H93*'Points System'!$E$2)+(I93*'Points System'!$E$3)+(J93*'Points System'!$E$4)+(K93*'Points System'!$E$5)+(L93*'Points System'!$E$7)+(M93*'Points System'!$E$8)+(N93*'Points System'!$E$10)+(P93*'Points System'!$E$9)+(Q93*'Points System'!$E$17)+(R93*'Points System'!$E$11)+(S93*'Points System'!$E$12)+(T93*'Points System'!$E$16)+(U93*'Points System'!$E$13) -> 144.82 | D93: =IF(AND(ABS(E93-F93)<3,F93>9),C93/F93,0) -> 5.635019455 | E93: 25.33 | F93: 25.7 | G93: 144.82 | H93: 7.11 | I93: 9.88 | J93: 0 | K93: 0 | L93: 114.27 | M93: 42.49 | N93: 160.67 | O93: 41.5 | P93: 76.31 | Q93: 22.88 | R93: 0 | S93: 8.48 | T93: 1 | U93: 0.4 | V93: 4.74 | W93: =(M93+N93)/G93 -> 1.402844911 | X93: 7.1 | Y93: 2.64 | Z93: AL | AA93: 445060 | AB93: =IF(ISNA(VLOOKUP(A93,Rankings!$B$2:$H$19998,7,FALSE)),"-",VLOOKUP(A93,Rankings!$B$2:$H$19998,7,FALSE)) -> 0
A94: Lance McCullers | B94: SP | C94: =(G94*'Points System'!$E$6)+(H94*'Points System'!$E$2)+(I94*'Points System'!$E$3)+(J94*'Points System'!$E$4)+(K94*'Points System'!$E$5)+(L94*'Points System'!$E$7)+(M94*'Points System'!$E$8)+(N94*'Points System'!$E$10)+(P94*'Points System'!$E$9)+(Q94*'Points System'!$E$17)+(R94*'Points System'!$E$11)+(S94*'Points System'!$E$12)+(T94*'Points System'!$E$16)+(U94*'Points System'!$E$13) -> 144.7 | D94: =IF(AND(ABS(E94-F94)<3,F94>9),C94/F94,0) -> 5.582561728 | E94: 25.58 | F94: 25.92 | G94: 144.7 | H94: 10.23 | I94: 6.65 | J94: 0 | K94: 0 | L94: 160.4 | M94: 55.3 | N94: 134.39 | O94: 68.55 | P94: 57.98 | Q94: 13.91 | R94: 0 | S94: 13.87 | T94: 8.5 | U94: 0.33 | V94: 3.61 | W94: =(M94+N94)/G94 -> 1.310919143 | X94: 9.98 | Y94: 3.44 | Z94: AL | AA94: 621121 | AB94: =IF(ISNA(VLOOKUP(A94,Rankings!$B$2:$H$19998,7,FALSE)),"-",VLOOKUP(A94,Rankings!$B$2:$H$19998,7,FALSE)) -> 0
A95: Tyler Chatwood | B95: SP | C95: =(G95*'Points System'!$E$6)+(H95*'Points System'!$E$2)+(I95*'Points System'!$E$3)+(J95*'Points System'!$E$4)+(K95*'Points System'!$E$5)+(L95*'Points System'!$E$7)+(M95*'Points System'!$E$8)+(N95*'Points System'!$E$10)+(P95*'Points System'!$E$9)+(Q95*'Points System'!$E$17)+(R95*'Points System'!$E$11)+(S95*'Points System'!$E$12)+(T95*'Points System'!$E$16)+(U95*'Points System'!$E$13) -> 143.74 | D95: =IF(AND(ABS(E95-F95)<3,F95>9),C95/F95,0) -> 5.628034456 | E95: 26.08 | F95: 25.54 | G95: 143.74 | H95: 10.16 | I95: 9.54 | J95: 0 | K95: 0 | L95: 120.68 | M95: 66.44 | N95: 136.2 | O95: 68.9 | P95: 66.53 | Q95: 15.6 | R95: 0 | S95: 11.57 | T95: 6.5 | U95: 0.33 | V95: 4.17 | W95: =(M95+N95)/G95 -> 1.409767636 | X95: 7.56 | Y95: 4.16 | Z95: NL | AA95: 543022 | AB95: =IF(ISNA(VLOOKUP(A95,Rankings!$B$2:$H$19998,7,FALSE)),"-",VLOOKUP(A95,Rankings!$B$2:$H$19998,7,FALSE)) -> 0
A96: Felix Hernandez | B96: SP | C96: =(G96*'Points System'!$E$6)+(H96*'Points System'!$E$2)+(I96*'Points System'!$E$3)+(J96*'Points System'!$E$4)+(K96*'Points System'!$E$5)+(L96*'Points System'!$E$7)+(M96*'Points System'!$E$8)+(N96*'Points System'!$E$10)+(P96*'Points System'!$E$9)+(Q96*'Points System'!$E$17)+(R96*'Points System'!$E$11)+(S96*'Points System'!$E$12)+(T96*'Points System'!$E$16)+(U96*'Points System'!$E$13) -> 142.78 | D96: =IF(AND(ABS(E96-F96)<3,F96>9),C96/F96,0) -> 5.553481136 | E96: 25.38 | F96: 25.71 | G96: 142.78 | H96: 9.57 | I96: 8.49 | J96: 0 | K96: 0 | L96: 125.47 | M96: 49.16 | N96: 142.73 | O96: 82.45 | P96: 67.29 | Q96: 20.36 | R96: 0 | S96: 11.92 | T96: 5 | U96: 0 | V96: 4.24 | W96: =(M96+N96)/G96 -> 1.343955736 | X96: 7.91 | Y96: 3.1 | Z96: AL | AA96: 433587 | AB96: =IF(ISNA(VLOOKUP(A96,Rankings!$B$2:$H$19998,7,FALSE)),"-",VLOOKUP(A96,Rankings!$B$2:$H$19998,7,FALSE)) -> 0
A97: Kenta Maeda | B97: SP | C97: =(G97*'Points System'!$E$6)+(H97*'Points System'!$E$2)+(I97*'Points System'!$E$3)+(J97*'Points System'!$E$4)+(K97*'Points System'!$E$5)+(L97*'Points System'!$E$7)+(M97*'Points System'!$E$8)+(N97*'Points System'!$E$10)+(P97*'Points System'!$E$9)+(Q97*'Points System'!$E$17)+(R97*'Points System'!$E$11)+(S97*'Points System'!$E$12)+(T97*'Points System'!$E$16)+(U97*'Points System'!$E$13) -> 142.12 | D97: =IF(AND(ABS(E97-F97)<3,F97>9),C97/F97,0) -> 5.405857741 | E97: 26.62 | F97: 26.29 | G97: 142.12 | H97: 10.88 | I97: 7.79 | J97: 0 | K97: 0 | L97: 143.09 | M97: 39.66 | N97: 130.78 | O97: 72.85 | P97: 61.86 | Q97: 19.82 | R97: 0 | S97: 11.4 | T97: 2.5 | U97: 0 | V97: 3.92 | W97: =(M97+N97)/G97 -> 1.199268224 | X97: 9.06 | Y97: 2.51 | Z97: NL | AA97: 628317 | AB97: =IF(ISNA(VLOOKUP(A97,Rankings!$B$2:$H$19998,7,FALSE)),"-",VLOOKUP(A97,Rankings!$B$2:$H$19998,7,FALSE)) -> 0
A98: Danny Salazar | B98: SP | C98: =(G98*'Points System'!$E$6)+(H98*'Points System'!$E$2)+(I98*'Points System'!$E$3)+(J98*'Points System'!$E$4)+(K98*'Points System'!$E$5)+(L98*'Points System'!$E$7)+(M98*'Points System'!$E$8)+(N98*'Points System'!$E$10)+(P98*'Points System'!$E$9)+(Q98*'Points System'!$E$17)+(R98*'Points System'!$E$11)+(S98*'Points System'!$E$12)+(T98*'Points System'!$E$16)+(U98*'Points System'!$E$13) -> 141.85 | D98: =IF(AND(ABS(E98-F98)<3,F98>9),C98/F98,0) -> 0 | E98: 30.42 | F98: 25.31 | G98: 141.85 | H98: 10.38 | I98: 7.6 | J98: 0 | K98: 0 | L98: 174.37 | M98: 55.88 | N98: 125.88 | O98: 64.1 | P98: 59.45 | Q98: 18.2 | R98: 0 | S98: 12.97 | T98: 4 | U98: 0 | V98: 3.77 | W98: =(M98+N98)/G98 -> 1.281353542 | X98: 11.06 | Y98: 3.55 | Z98: AL | AA98: 517593 | AB98: =IF(ISNA(VLOOKUP(A98,Rankings!$B$2:$H$19998,7,FALSE)),"-",VLOOKUP(A98,Rankings!$B$2:$H$19998,7,FALSE)) -> 0
A99: Jake Faria | B99: SP | C99: =(G99*'Points System'!$E$6)+(H99*'Points System'!$E$2)+(I99*'Points System'!$E$3)+(J99*'Points System'!$E$4)+(K99*'Points System'!$E$5)+(L99*'Points System'!$E$7)+(M99*'Points System'!$E$8)+(N99*'Points System'!$E$10)+(P99*'Points System'!$E$9)+(Q99*'Points System'!$E$17)+(R99*'Points System'!$E$11)+(S99*'Points System'!$E$12)+(T99*'Points System'!$E$16)+(U99*'Points System'!$E$13) -> 141.49 | D99: =IF(AND(ABS(E99-F99)<3,F99>9),C99/F99,0) -> 5.698348772 | E99: 25 | F99: 24.83 | G99: 141.49 | H99: 8.48 | I99: 8.35 | J99: 0 | K99: 0 | L99: 144.48 | M99: 57.85 | N99: 126.86 | O99: 78.15 | P99: 63.25 | Q99: 19.4 | R99: 0 | S99: 11.85 | T99: 5 | U99: 0 | V99: 4.02 | W99: =(M99+N99)/G99 -> 1.305463284 | X99: 9.19 | Y99: 3.68 | Z99: AL | AA99: 607188 | AB99: =IF(ISNA(VLOOKUP(A99,Rankings!$B$2:$H$19998,7,FALSE)),"-",VLOOKUP(A99,Rankings!$B$2:$H$19998,7,FALSE)) -> 0
A100: Joe Musgrove | B100: SP/RP | C100: =(G100*'Points System'!$E$6)+(H100*'Points System'!$E$2)+(I100*'Points System'!$E$3)+(J100*'Points System'!$E$4)+(K100*'Points System'!$E$5)+(L100*'Points System'!$E$7)+(M100*'Points System'!$E$8)+(N100*'Points System'!$E$10)+(P100*'Points System'!$E$9)+(Q100*'Points System'!$E$17)+(R100*'Points System'!$E$11)+(S100*'Points System'!$E$12)+(T100*'Points System'!$E$16)+(U100*'Points System'!$E$13) -> 140.42 | D100: =IF(AND(ABS(E100-F100)<3,F100>9),C100/F100,0) -> 5.572222222 | E100: 27.46 | F100: 25.2 | G100: 140.42 | H100: 8.83 | I100: 9.31 | J100: 0 | K100: 0 | L100: 122.61 | M100: 37.13 | N100: 145.49 | O100: 67.95 | P100: 64.21 | Q100: 18.91 | R100: 0 | S100: 10.97 | T100: 2.5 | U100: 0.14 | V100: 4.12 | W100: =(M100+N100)/G100 -> 1.30052699 | X100: 7.86 | Y100: 2.38 | Z100: NL | AA100: 605397 | AB100: =IF(ISNA(VLOOKUP(A100,Rankings!$B$2:$H$19998,7,FALSE)),"-",VLOOKUP(A100,Rankings!$B$2:$H$19998,7,FALSE)) -> 0
A101: Jaime Garcia | B101: SP | C101: =(G101*'Points System'!$E$6)+(H101*'Points System'!$E$2)+(I101*'Points System'!$E$3)+(J101*'Points System'!$E$4)+(K101*'Points System'!$E$5)+(L101*'Points System'!$E$7)+(M101*'Points System'!$E$8)+(N101*'Points System'!$E$10)+(P101*'Points System'!$E$9)+(Q101*'Points System'!$E$17)+(R101*'Points System'!$E$11)+(S101*'Points System'!$E$12)+(T101*'Points System'!$E$16)+(U101*'Points System'!$E$13) -> 140.32 | D101: =IF(AND(ABS(E101-F101)<3,F101>9),C101/F101,0) -> 5.863769327 | E101: 25.62 | F101: 23.93 | G101: 140.32 | H101: 7.8 | I101: 8.68 | J101: 0 | K101: 0 | L101: 114.14 | M101: 50.09 | N101: 144.41 | O101: 72.9 | P101: 68.88 | Q101: 18.45 | R101: 0.4 | S101: 10.75 | T101: 4.5 | U101: 0.33 | V101: 4.42 | W101: =(M101+N101)/G101 -> 1.386117446 | X101: 7.32 | Y101: 3.21 | Z101: AL | AA101: 448802 | AB101: =IF(ISNA(VLOOKUP(A101,Rankings!$B$2:$H$19998,7,FALSE)),"-",VLOOKUP(A101,Rankings!$B$2:$H$19998,7,FALSE)) -> 0
A102: Jake Junis | B102: SP | C102: =(G102*'Points System'!$E$6)+(H102*'Points System'!$E$2)+(I102*'Points System'!$E$3)+(J102*'Points System'!$E$4)+(K102*'Points System'!$E$5)+(L102*'Points System'!$E$7)+(M102*'Points System'!$E$8)+(N102*'Points System'!$E$10)+(P102*'Points System'!$E$9)+(Q102*'Points System'!$E$17)+(R102*'Points System'!$E$11)+(S102*'Points System'!$E$12)+(T102*'Points System'!$E$16)+(U102*'Points System'!$E$13) -> 140.17 | D102: =IF(AND(ABS(E102-F102)<3,F102>9),C102/F102,0) -> 5.770687526 | E102: 24.33 | F102: 24.29 | G102: 140.17 | H102: 7.8 | I102: 8.47 | J102: 0 | K102: 0 | L102: 119.54 | M102: 36.11 | N102: 143.77 | O102: 82.3 | P102: 67.18 | Q102: 20.6 | R102: 0 | S102: 10.72 | T102: 2 | U102: 0 | V102: 4.31 | W102: =(M102+N102)/G102 -> 1.283298851 | X102: 7.68 | Y102: 2.32 | Z102: AL | AA102: 596001 | AB102: =IF(ISNA(VLOOKUP(A102,Rankings!$B$2:$H$19998,7,FALSE)),"-",VLOOKUP(A102,Rankings!$B$2:$H$19998,7,FALSE)) -> 0
A103: Adam Wainwright | B103: SP | C103: =(G103*'Points System'!$E$6)+(H103*'Points System'!$E$2)+(I103*'Points System'!$E$3)+(J103*'Points System'!$E$4)+(K103*'Points System'!$E$5)+(L103*'Points System'!$E$7)+(M103*'Points System'!$E$8)+(N103*'Points System'!$E$10)+(P103*'Points System'!$E$9)+(Q103*'Points System'!$E$17)+(R103*'Points System'!$E$11)+(S103*'Points System'!$E$12)+(T103*'Points System'!$E$16)+(U103*'Points System'!$E$13) -> 139.16 | D103: =IF(AND(ABS(E103-F103)<3,F103>9),C103/F103,0) -> 5.696275072 | E103: 24.92 | F103: 24.43 | G103: 139.16 | H103: 9.16 | I103: 8.57 | J103: 0 | K103: 0 | L103: 108.29 | M103: 45.44 | N103: 149.78 | O103: 79.45 | P103: 68.43 | Q103: 16 | R103: 0 | S103: 10.67 | T103: 0.5 | U103: 0 | V103: 4.43 | W103: =(M103+N103)/G103 -> 1.402845645 | X103: 7 | Y103: 2.94 | Z103: NL | AA103: 425794 | AB103: =IF(ISNA(VLOOKUP(A103,Rankings!$B$2:$H$19998,7,FALSE)),"-",VLOOKUP(A103,Rankings!$B$2:$H$19998,7,FALSE)) -> 0
A104: Charlie Morton | B104: SP | C104: =(G104*'Points System'!$E$6)+(H104*'Points System'!$E$2)+(I104*'Points System'!$E$3)+(J104*'Points System'!$E$4)+(K104*'Points System'!$E$5)+(L104*'Points System'!$E$7)+(M104*'Points System'!$E$8)+(N104*'Points System'!$E$10)+(P104*'Points System'!$E$9)+(Q104*'Points System'!$E$17)+(R104*'Points System'!$E$11)+(S104*'Points System'!$E$12)+(T104*'Points System'!$E$16)+(U104*'Points System'!$E$13) -> 137.82 | D104: =IF(AND(ABS(E104-F104)<3,F104>9),C104/F104,0) -> 5.657635468 | E104: 23.77 | F104: 24.36 | G104: 137.82 | H104: 10.94 | I104: 7.38 | J104: 0 | K104: 0 | L104: 143.39 | M104: 47.41 | N104: 128.55 | O104: 65.4 | P104: 57.77 | Q104: 14.45 | R104: 0 | S104: 12.23 | T104: 2.5 | U104: 0.33 | V104: 3.77 | W104: =(M104+N104)/G104 -> 1.276737774 | X104: 9.36 | Y104: 3.1 | Z104: AL | AA104: 450203 | AB104: =IF(ISNA(VLOOKUP(A104,Rankings!$B$2:$H$19998,7,FALSE)),"-",VLOOKUP(A104,Rankings!$B$2:$H$19998,7,FALSE)) -> 0
A105: Nick Pivetta | B105: SP | C105: =(G105*'Points System'!$E$6)+(H105*'Points System'!$E$2)+(I105*'Points System'!$E$3)+(J105*'Points System'!$E$4)+(K105*'Points System'!$E$5)+(L105*'Points System'!$E$7)+(M105*'Points System'!$E$8)+(N105*'Points System'!$E$10)+(P105*'Points System'!$E$9)+(Q105*'Points System'!$E$17)+(R105*'Points System'!$E$11)+(S105*'Points System'!$E$12)+(T105*'Points System'!$E$16)+(U105*'Points System'!$E$13) -> 137.61 | D105: =IF(AND(ABS(E105-F105)<3,F105>9),C105/F105,0) -> 5.36700468 | E105: 25.38 | F105: 25.64 | G105: 137.61 | H105: 8.48 | I105: 9.29 | J105: 0 | K105: 0 | L105: 137.8 | M105: 53.01 | N105: 139.23 | O105: 79 | P105: 71.5 | Q105: 21.64 | R105: 0 | S105: 9.75 | T105: 5.5 | U105: 0 | V105: 4.68 | W105: =(M105+N105)/G105 -> 1.396991498 | X105: 9.01 | Y105: 3.47 | Z105: NL | AA105: 601713 | AB105: =IF(ISNA(VLOOKUP(A105,Rankings!$B$2:$H$19998,7,FALSE)),"-",VLOOKUP(A105,Rankings!$B$2:$H$19998,7,FALSE)) -> 0
A106: Grant Holmes | B106: P | C106: =(G106*'Points System'!$E$6)+(H106*'Points System'!$E$2)+(I106*'Points System'!$E$3)+(J106*'Points System'!$E$4)+(K106*'Points System'!$E$5)+(L106*'Points System'!$E$7)+(M106*'Points System'!$E$8)+(N106*'Points System'!$E$10)+(P106*'Points System'!$E$9)+(Q106*'Points System'!$E$17)+(R106*'Points System'!$E$11)+(S106*'Points System'!$E$12)+(T106*'Points System'!$E$16)+(U106*'Points System'!$E$13) -> 136.7 | D106: =IF(AND(ABS(E106-F106)<3,F106>9),C106/F106,0) -> 0 | E106: 28 | F106: 15 | G106: 136.7 | H106: 5.5 | I106: 7.5 | J106: 0 | K106: 0 | L106: 72.5 | M106: 40 | N106: 88.5 | P106: 79 | Q106: 20 | S106: 3 | U106: 0 | V106: 5.2 | W106: =(M106+N106)/G106 -> 0.9400146306 | X106: 4.77 | Y106: 2.63 | Z106: AL | AA106: 656550 | AB106: =IF(ISNA(VLOOKUP(A106,Rankings!$B$2:$H$19998,7,FALSE)),"-",VLOOKUP(A106,Rankings!$B$2:$H$19998,7,FALSE)) -> 0
A107: Jason Vargas | B107: SP | C107: =(G107*'Points System'!$E$6)+(H107*'Points System'!$E$2)+(I107*'Points System'!$E$3)+(J107*'Points System'!$E$4)+(K107*'Points System'!$E$5)+(L107*'Points System'!$E$7)+(M107*'Points System'!$E$8)+(N107*'Points System'!$E$10)+(P107*'Points System'!$E$9)+(Q107*'Points System'!$E$17)+(R107*'Points System'!$E$11)+(S107*'Points System'!$E$12)+(T107*'Points System'!$E$16)+(U107*'Points System'!$E$13) -> 135.8 | D107: =IF(AND(ABS(E107-F107)<3,F107>9),C107/F107,0) -> 5.749364945 | E107: 25.5 | F107: 23.62 | G107: 135.8 | H107: 9.3 | I107: 9.39 | J107: 0 | K107: 0 | L107: 109.43 | M107: 42.88 | N107: 139.48 | O107: 53 | P107: 66.66 | Q107: 21 | R107: 0.4 | S107: 9.97 | T107: 2.5 | U107: 0.33 | V107: 4.42 | W107: =(M107+N107)/G107 -> 1.342857143 | X107: 7.25 | Y107: 2.84 | Z107: NL | AA107: 450306 | AB107: =IF(ISNA(VLOOKUP(A107,Rankings!$B$2:$H$19998,7,FALSE)),"-",VLOOKUP(A107,Rankings!$B$2:$H$19998,7,FALSE)) -> 0
A108: Aaron Sanchez | B108: SP | C108: =(G108*'Points System'!$E$6)+(H108*'Points System'!$E$2)+(I108*'Points System'!$E$3)+(J108*'Points System'!$E$4)+(K108*'Points System'!$E$5)+(L108*'Points System'!$E$7)+(M108*'Points System'!$E$8)+(N108*'Points System'!$E$10)+(P108*'Points System'!$E$9)+(Q108*'Points System'!$E$17)+(R108*'Points System'!$E$11)+(S108*'Points System'!$E$12)+(T108*'Points System'!$E$16)+(U108*'Points System'!$E$13) -> 135.76 | D108: =IF(AND(ABS(E108-F108)<3,F108>9),C108/F108,0) -> 5.460981496 | E108: 24.85 | F108: 24.86 | G108: 135.76 | H108: 8.89 | I108: 7.08 | J108: 0 | K108: 0 | L108: 110.36 | M108: 54.7 | N108: 136.22 | O108: 70.65 | P108: 62.26 | Q108: 15.73 | R108: 0 | S108: 11.38 | T108: 3.5 | U108: 0.17 | V108: 4.13 | W108: =(M108+N108)/G108 -> 1.406305245 | X108: 7.32 | Y108: 3.63 | Z108: AL | AA108: 592717 | AB108: =IF(ISNA(VLOOKUP(A108,Rankings!$B$2:$H$19998,7,FALSE)),"-",VLOOKUP(A108,Rankings!$B$2:$H$19998,7,FALSE)) -> 0
A109: Aaron Brooks | B109: SP/RP | C109: =(G109*'Points System'!$E$6)+(H109*'Points System'!$E$2)+(I109*'Points System'!$E$3)+(J109*'Points System'!$E$4)+(K109*'Points System'!$E$5)+(L109*'Points System'!$E$7)+(M109*'Points System'!$E$8)+(N109*'Points System'!$E$10)+(P109*'Points System'!$E$9)+(Q109*'Points System'!$E$17)+(R109*'Points System'!$E$11)+(S109*'Points System'!$E$12)+(T109*'Points System'!$E$16)+(U109*'Points System'!$E$13) -> 135.7 | D109: =IF(AND(ABS(E109-F109)<3,F109>9),C109/F109,0) -> 5.654166667 | E109: 25 | F109: 24 | G109: 135.7 | H109: 7 | I109: 10 | L109: 92 | M109: 30 | N109: 167 | P109: 83 | Q109: 28 | V109: 5.5 | W109: =(M109+N109)/G109 -> 1.451731761 | X109: 6.1 | Y109: 1.99 | Z109: NL | AA109: 605156 | AB109: =IF(ISNA(VLOOKUP(A109,Rankings!$B$2:$H$19998,7,FALSE)),"-",VLOOKUP(A109,Rankings!$B$2:$H$19998,7,FALSE)) -> 0
A110: Jeremy Hellickson | B110: SP | C110: =(G110*'Points System'!$E$6)+(H110*'Points System'!$E$2)+(I110*'Points System'!$E$3)+(J110*'Points System'!$E$4)+(K110*'Points System'!$E$5)+(L110*'Points System'!$E$7)+(M110*'Points System'!$E$8)+(N110*'Points System'!$E$10)+(P110*'Points System'!$E$9)+(Q110*'Points System'!$E$17)+(R110*'Points System'!$E$11)+(S110*'Points System'!$E$12)+(T110*'Points System'!$E$16)+(U110*'Points System'!$E$13) -> 135.63 | D110: =IF(AND(ABS(E110-F110)<3,F110>9),C110/F110,0) -> 5.484431864 | E110: 24.1 | F110: 24.73 | G110: 135.63 | H110: 7.14 | I110: 9.12 | J110: 0 | K110: 0 | L110: 95.27 | M110: 38.75 | N110: 144.53 | O110: 56.2 | P110: 74.59 | Q110: 23.67 | R110: 0 | S110: 9.5 | T110: 2 | U110: 0 | V110: 4.95 | W110: =(M110+N110)/G110 -> 1.351323454 | X110: 6.32 | Y110: 2.57 | Z110: NL | AA110: 476451 | AB110: =IF(ISNA(VLOOKUP(A110,Rankings!$B$2:$H$19998,7,FALSE)),"-",VLOOKUP(A110,Rankings!$B$2:$H$19998,7,FALSE)) -> 0
A111: Miles Mikolas | B111: RP | C111: =(G111*'Points System'!$E$6)+(H111*'Points System'!$E$2)+(I111*'Points System'!$E$3)+(J111*'Points System'!$E$4)+(K111*'Points System'!$E$5)+(L111*'Points System'!$E$7)+(M111*'Points System'!$E$8)+(N111*'Points System'!$E$10)+(P111*'Points System'!$E$9)+(Q111*'Points System'!$E$17)+(R111*'Points System'!$E$11)+(S111*'Points System'!$E$12)+(T111*'Points System'!$E$16)+(U111*'Points System'!$E$13) -> 135.37 | D111: =IF(AND(ABS(E111-F111)<3,F111>9),C111/F111,0) -> 5.847516199 | E111: 22.75 | F111: 23.15 | G111: 135.37 | H111: 8.88 | I111: 7.23 | J111: 0 | K111: 0 | L111: 123.76 | M111: 34.67 | N111: 137.53 | O111: 60.95 | P111: 57.97 | Q111: 17.8 | R111: 0 | S111: 11.95 | T111: 4.5 | U111: 0.17 | V111: 3.85 | W111: =(M111+N111)/G111 -> 1.272069144 | X111: 8.23 | Y111: 2.31 | Z111: NL | AA111: 571945 | AB111: =IF(ISNA(VLOOKUP(A111,Rankings!$B$2:$H$19998,7,FALSE)),"-",VLOOKUP(A111,Rankings!$B$2:$H$19998,7,FALSE)) -> 0
A112: Adam Conley | B112: SP | C112: =(G112*'Points System'!$E$6)+(H112*'Points System'!$E$2)+(I112*'Points System'!$E$3)+(J112*'Points System'!$E$4)+(K112*'Points System'!$E$5)+(L112*'Points System'!$E$7)+(M112*'Points System'!$E$8)+(N112*'Points System'!$E$10)+(P112*'Points System'!$E$9)+(Q112*'Points System'!$E$17)+(R112*'Points System'!$E$11)+(S112*'Points System'!$E$12)+(T112*'Points System'!$E$16)+(U112*'Points System'!$E$13) -> 134.63 | D112: =IF(AND(ABS(E112-F112)<3,F112>9),C112/F112,0) -> 5.402487961 | E112: 25.67 | F112: 24.92 | G112: 134.63 | H112: 7.03 | I112: 9.95 | J112: 0 | K112: 0 | L112: 102.16 | M112: 57.3 | N112: 142.1 | O112: 80.95 | P112: 73.87 | Q112: 18.9 | R112: 0 | S112: 9.8 | T112: 7 | U112: 0 | V112: 4.94 | W112: =(M112+N112)/G112 -> 1.481096338 | X112: 6.83 | Y112: 3.83 | Z112: NL | AA112: 543045 | AB112: =IF(ISNA(VLOOKUP(A112,Rankings!$B$2:$H$19998,7,FALSE)),"-",VLOOKUP(A112,Rankings!$B$2:$H$19998,7,FALSE)) -> 0
